Workbook

Sheet inflCalc_1 (hidden)
A1: Name | B1: Diagram #1 | E1: FILEVER | F1: 2
A2: SheetRef | B2: ='Influence diagram'!#REF! ->  | E2: RETFUNC | F2: =PTreeInflEvaluate($A$1,$B$3, SUM($7:$16384)) -> 
A3: GenInfo | B3: 0,0,0,Exponential,0,0,-1,-1,-1
A5: Payoff Node | B5: 23
A7: ARCS | D7: NODES
A8: highest# | B8: 2 | D8: highest# | E8: 23
D10: # | E10: 1 | F10: 2 | G10: 3 | H10: 4 | I10: 5 | J10: 6 | K10: 7 | L10: 8 | M10: 9 | N10: 10 | O10: 11 | P10: 12 | Q10: 13 | R10: 14 | S10: 15 | T10: 16 | U10: 17 | V10: 18 | W10: 19 | X10: 20 | Y10: 21 | Z10: 22 | AA10: 23
A11: 9,7,6,2,1,0,1,0 | D11: iNodeInfo | E11: 2,2,0,0 | F11: 2,2,343,368 | G11: 2,2,208,178 | H11: 2,2,205,79 | I11: 2,2,114,350 | J11: 2,3,116,435 | K11: 1,2,349,235 | L11: 1,2,250,453 | M11: 2,2,218,280 | N11: 2,2,116,435 | O11: 2,3,112,453 | P11: 2,3,92,449 | Q11: 2,2,35,334 | R11: 1,2,18,193 | S11: 2,2,29,342 | T11: 1,2,26,90 | U11: 2,2,417,71 | V11: 1,2,513,191 | W11: 7,2,788,117 | X11: 7,2,788,229 | Y11: 7,2,776,331 | Z11: 7,2,792,436 | AA11: 4,2,1071,259
A12: 3,7,6,2,1,0,1,0 | D12: Succ. | E12: 0 | F12: 0 | G12: 1,2 | H12: 0 | I12: 0 | J12: 0 | K12: 0 | L12: 0 | M12: 1,1 | N12: 0 | O12: 0 | P12: 0 | Q12: 0 | R12: 0 | S12: 0 | T12: 0 | U12: 0 | V12: 0 | W12: 0 | X12: 0 | Y12: 0 | Z12: 0 | AA12: 0
D13: Pred. | E13: 0 | F13: 0 | G13: 0 | H13: 0 | I13: 0 | J13: 0 | K13: 2,1,2 | L13: 0 | M13: 0 | N13: 0 | O13: 0 | P13: 0 | Q13: 0 | R13: 0 | S13: 0 | T13: 0 | U13: 0 | V13: 0 | W13: 0 | X13: 0 | Y13: 0 | Z13: 0 | AA13: 0
D14: Link
D15: N. Name | E15: Year | F15: Year of Construction | G15: Plant type | H15: Nameplate Capacity | I15: Resource Depth | J15: Drilling Cost Curve | K15: Plant Costs | L15: Drilling Costs | M15: Plant Cost curve | N15: Decision #10 | O15: Drilling Cost Curve | P15: Drilling Cost Curve | Q15: Resource Depth | R15: Resource Temperature | S15: Drilling Depth | T15: Resource Potential | U15: # of Wells | V15: Flow Rate | W15: Exploration Jobs | X15: Drilling Jobs | Y15: Plant Construction Jobs | Z15: O&M Jobs | AA15: Economic Impacts
D16: BName1 | E16: Outcome #1 | F16: 2010 | G16: Flash | H16: Outcome #1 | I16: Outcome #1 | J16: Low | K16: Low | L16: Outcome #1 | M16: Outcome #1 | N16: Outcome #1 | O16: Low | P16: Low | Q16: Outcome #1 | R16: Outcome #1 | S16: Outcome #1 | T16: Outcome #1 | U16: Injection | V16: Outcome #1 | W16: Geoscientists | X16: Outcome #1 | Y16: Outcome #1 | Z16: Outcome #1 | AA16: Outcome #1
D17: BName2 | E17: Outcome #2 | F17: Outcome #2 | G17: Binary | H17: Outcome #2 | I17: Outcome #2 | J17: Medium | K17: High | L17: Outcome #2 | M17: Outcome #2 | N17: Outcome #2 | O17: Medium | P17: Medium | Q17: Outcome #2 | R17: Outcome #2 | S17: Outcome #2 | T17: Outcome #2 | U17: Production | V17: Outcome #2 | W17: Engineers | X17: Outcome #2 | Y17: Outcome #2 | Z17: Outcome #2 | AA17: Outcome #2
D18: BName3 | J18: High | O18: High | P18: High
D19: BName4
D20: BName5
D21: BName6
D22: BName7
D23: BName8
D24: BName9
D25: BName10
D26: BName11
D27: BName12
D28: BName13
D29: BName14
D30: BName15
D31: BName16
D32: BName17
D33: BName18
D34: BName19
D35: BName20
D36: BName21
D37: BName22
D38: BName23
D39: BName24
D40: BName25
D41: BName26
D42: BName27
D43: BName28
D44: BName29
D45: BName30
D46: St. Nodes

Sheet PTModule (hidden)

Sheet About
A2: JEDI - GEOTHERMAL
A4: Jobs and Economic Development Impact Model (JEDI)
A6: Release Number: GT12.23.16

Sheet Influence diagram (hidden)

Sheet FAQ
B2: JEDI - Geothermal
B4: Jobs and Economic Development Impact (JEDI) Model
B6: Frequently Asked Questions (FAQ)
B9: How do I know if I have the most current version of the JEDI model?
B10: The most current version of the JEDI model is available on the National Renewable Energy Laboratory web site at http://www.nrel.gov/analysis/jedi/ Click on "Download
B11: JEDI" on the left side of the page. Once there, choose the "Jobs and Economic Development Impact (JEDI) Model" you wish to download. Click on the link to initiate
B12: the download. (See also, getting on the JEDI mailing list, in FAQ.)
B14: How can I determine which version of the JEDI model I have?
B15: The version (release number) of the model you are currently using is listed in the "About JEDI" worksheet contained in this model and is contained in the model's file
B16: name.
B18: Is there a mailing list I can get on to be notified by email when new versions of JEDI are released?
B19: Yes. Prior to downloading, all users are required to register with their contact information and accept our User Agreement. You may elect to “Opt-In” and
B20: be placed on the JEDI mailing list.
B22: When I open up the model I receive a security alert message stating "the macros in the file have been disabled," how do I change the security setting so I
B23: can run the model with the macros enabled?
B24: The message you are receiving is related to the level of security you have chosen in your Excel™ set up. To change the setting for opening files, click the Microsoft
B25: Office Button (on the top left of the toolbar), click on "Excel Options," then "Trust Center," then "Trust Center Settings," then "Macros Settings." Reset the security level
B26: to "Enable" or "Disable with notification." The reset method may vary with different versions of Excel™. Alternately, the model can be successfully run with the macros
B27: disabled. If you choose this option, the print and save results buttons will not function. Similarly, you will need to navigate using the worksheet tabs rather than buttons.
B29: Where can I get more information on input-output modeling and using the JEDI model?
B30: To view and/or download JEDI related publications go to the National Renewable Energy Laboratory web site at http://www.nrel.gov/analysis/jedi/. Click on "Interpreting
B31: Results" or "Publications" from the list on the left side of the page.
B33: How do I run a county or regional level analysis?
B34: Running a county or regional level analysis is similar to running a state level analysis, although there are two difference users must keep in mind. The model
B35: does not contain county or regional level multipliers, thus users must obtain these and add them into the model. (See FAQ on obtaining county or regional level
B36: multipliers and how to add in the data) Second, to run a county or regional level analysis users must also enter the name of the county/region and the year of the
B37: multipliers in the User Add-in Location worksheet. This data provides a reference for the model to automatically insert the multipliers into the analysis.
B39: Where can I get county or regional level data to add-in to the model to run a county or region specific analysis?
B40: County level multipliers and personal consumption expenditure patterns are available from a number of sources. Users familiar with IMPLAN or input-output modeling can
B41: purchase the raw county level data and derive the multipliers themselves, purchase them from someone familiar with input-output modeling, purchase them directly from
B42: IMPLAN (www.implan.com), or contact MRG & Associates (mrgassociates@earthlink.net), the model developer.
B44: How do I add in county or regional level multipliers and the personal consumption expenditure data?
B45: Adding-in county or regional level multipliers and personal consumtption expenditure data involves going to the "User Add-in Location" worksheet in this model and
B46: cutting and pasting the data into their respective locations. With the data installed it is also necessary to insert the county or region name and the year of the data.
B48: What does the "local share" refer to?
B49: The "local share" refers to the percentage of each expenditure that is actually spent locally (i.e., in the state, county or region being analyzed). For example, if $1 million
B50: is going to be spent on construction materials and half ($500,000) of this total will be purchased from local suppliers, we say the "local share" is 50 percent.
B52: What does the term "full-time equivalent for a period of one year" refer to in the jobs results?
B53: The term refers to a job that is held (and wages paid) for a period of one year. This is based on 2,080 hours (52 weeks times 40 hours per week). For example, if the
B54: analysis indicates there are 100 construction jobs, there will be the equivalent of 100 workers, working full-time, for the entire year. If the construction period is two
B55: years, the job impacts (100 jobs) are spread over the two year construction period. In this example, there will be an average of 50 full-time jobs (100 jobs divided by 2
B56: years) during each of the years. Similarly, if the construction period is less than one year, for example, 9 months (75 percent of a full year), then the number of persons
B57: actually employed and working full-time during that period will be greater since they will not be employed and working for an entire year. In this example, there will be
B58: an average of 133 full-time workers (100 jobs divided by .75 percent of the year) during the 9 month construction period.
B60: I want to make my analysis as accurate as possible, where can I get information to adjust the default "local share" values (in the ProjectData worksheet)
B61: for my state or county?
B62: Since the "local share" is directly related to the availability of local businesses and services and their ability to meet the construction and annual operating demands
B63: of the project, it is important to have an accurate picture of these local resources. This can be obtained in a number of ways: contacting experienced and knowlegeable
B64: persons in the area, contacting local business and contractor organizations and/or the local chamber of commerce, among others.
B66: When I make changes to the labor hourly wage rates it doesn't seem to change the total cost. Why is this?
B67: The hourly wage rates are not used to derive the total costs, however they are used to calculate the number of hours and full-time equivalent number of workers employed.
B68: Therefore, if a user increases or decreases the hourly wage without a corresponding change in the total labor cost, the number of full-time workers reported in the results
B69: will increase or decrease relative to the default ratios.
B71: I am interested in viewing and possibly editting internal formulas within the model, how do I access them?
B72: The JEDI model contains a large number of intermediate worksheets that are an integral part of the model analysis. These worksheets are not designed to be changed
B73: by users. Most of these worksheets may be viewed by merely clicking on the respective worksheet and scrolling to the right. Although these sheets may be viewed
B74: by users they are protected and can not be editted. The model contains two additional worksheets: multipliers and household expenditures. These worksheets are
B75: hidden to protect proprietary data derived from IMPLAN (Minnesota Implan Group).
B77: Is additional technical support available?
B78: Yes, technical support is available by contacting Chad Augustine, Geothermal Energy Engineer/Analyst at the National Renewable Energy Laboratory. He can be
B79: reached at 303-384-7382 or by email at chad.augustine@nrel.gov.

Sheet Start
A3: JEDI - GEOTHERMAL
A4: Jobs and Economic Development Impact Model

Sheet ProjectData
A1: Geothermal Plant Project Data
A2: INSTRUCTIONS: Begin by entering Model Analysis Type (Simple or Advanced) and other Descriptive Data.
A3: Choosing "Simple" Analysis indicates use of Model defaults, no review or editting of detailed cost data and inputs.
A4: Choosing "Advanced" allows user to review and edit detailed cost data and inputs.
A5: Once Descriptive Data is complete, if Simple Analysis is choosen, go to Summary Results, if Advanced Analysis
A6: is choosen, cursor down to review/edit detailed cost data and inputs below.
A7: Additional information is available by pointing to the red triangles located in cell corners and in the FAQ tab.
A8: Only those cells with a white background can be changed.
A9: Project Descriptive Data
A10: Geothermal Input Sheet
A11: Select Model Analysis Type (Simple or Advanced) | B11: Advanced
A12: User Input: | E12: Model Default Calculations based on User Inputs:
A13: Project Location | B13: IDAHO | E13: Project Size - Nameplate Capacity (MW) | G13: =(1+B21)*B16 -> 12.22619588
A14: Year of Construction | B14: 2010 | E14: Project Installed Cost | G14: =IF(B11="Simple",'Default Data'!K20,'Default Data'!T20) -> 45928513.17
A15: Construction Period (months) | B15: 21 | E15: Plant Capital Cost | G15: =IF(B11="Advanced",IF(B18="Binary",D117+D123,D117+D134),G16*B16*1000) -> 23549341.05
A16: Nominal Plant Size (MW net output) | B16: 10 | E16: =CONCATENATE(B$18," Installed Plant Cost ($/kW)") -> Binary Installed Plant Cost ($/kW) | G16: =IF(B18="Binary",'Binary Economies of Scale'!D11,'Flash Economies of Scale'!K38) -> 2354.934105
A17: Technology: (Hydrothermal or EGS) | B17: Hydrothermal | E17: Annual Direct O&M Cost ($/kW) | G17: =IF(B11="Advanced",D161/(B16*1000),'Default Data'!G20) -> 150.8674217
A18: Plant Type (Flash or Binary) | B18: Binary | E18: Installed Project Cost ($/kW) | G18: =G14/B16/1000 -> 4592.851317
A19: Resource Temperature (select Celsius or Farenheit) | B19: 200 | C19: Celsius | E19: Number of Production Wells | G19: =IF(B18="Binary",(B16*1000/((G21*'Brine effectiveness'!C14)/1000)),(B16*1000/((G21*'Brine effectiveness'!C25)/1000))) -> 1.863976701
A20: Resource Depth (select meters or feet) | B20: 2250 | C20: Meters | E20: Number of Injection Wells | G20: =G19/B22 -> 0.9319883504
A21: Plant Size Scalar (select Model Derived or Input Value) | B21: =IF(C21="Model Derived",BA21,D21) -> 0.222619588 | C21: Model Derived | D21: 0.27 | E21: Well flow (lb/hr) | G21: ='Default Data'!C5*2.20462*60*60 -> 634930.56 | BA21: =IF($B$18="Binary",'Binary Parasitic Losses'!$D$7, 'Flash Parasitic Losses'!$D$7) -> 0.222619588
A22: Ratio of Production to Injection Wells | B22: 2 | E22: Total Flow (lb/hr) | G22: =G21*G19 -> 1183495.771
A23: Number of Exploration Wells | B23: 2 | E23: Gallons per minute | G23: =7.4805*G21/('Fluid Density'!E18*60) -> 1466.508429 | BA23: To use Default - choose cell w/value
A24: Exploration Well Cost Multiplier | B24: 0.5 | BA24: To input value - choose blank cell
A25: Production Well Flow Rate (kg/s) | B25: 80
A26: Stimulation Cost per Well | B26: 700000
A27: Drilling Cost Curve (Simple Model - Select Low, Medium, or High) | B27: Medium
A28: Drilling Progress (Advanced Model - Select Easy, Medium, or Hard) | B28: Medium
A29: Contingency (percent of all costs) | B29: 0.05
A30: Plant O&M Equipment Cost (percent of Plant cost) | B30: 0.02
A31: Money Value (Dollar Year) | B31: 2010
A32: =IF(B11="Advanced"," Enter Advanced model inputs below. Accept default values or revise values in white cells.","") -> Enter Advanced model inputs below. Accept default values or revise values in white cells.
A33: =IF(B11="Advanced"," Press both Restore Default Values buttons to remove all user revisions made below.") -> Press both Restore Default Values buttons to remove all user revisions made below.
A34: Model Inputs
A35: Permitting | B35: Hourly Rate | D35: Total Cost | E35: Percent of Cost | F35: Local Share
A36: Environmental Analysis | B36: ='Default Data'!D35 -> 75 | D36: ='Default Data'!E35 -> 100000 | E36: =D36/D$137 -> 0.002177296696 | F36: ='Default Data'!H35 -> 0 | BA36: Environmental Analysis | BB36: ='Default Data'!BD35 -> 0 | BD36: ='Default Data'!BE35 -> 0 | BF36: ='Default Data'!BH35 -> 0
A37: Environmental Impact Assessment | B37: ='Default Data'!D36 -> 75 | D37: ='Default Data'!E36 -> 200000 | E37: =D37/D$137 -> 0.004354593393 | F37: ='Default Data'!H36 -> 0 | BA37: Environmental Impact Assessment | BB37: ='Default Data'!BD36 -> 0 | BD37: ='Default Data'!BE36 -> 0 | BF37: ='Default Data'!BH36 -> 0
A38: Transmission Line Permits | D38: ='Default Data'!E37 -> 0 | E38: =D38/D$137 -> 0 | F38: ='Default Data'!H37 -> 0 | BA38: Transmission Line Permits | BD38: ='Default Data'!BE37 -> 0 | BF38: ='Default Data'!BH37 -> 0
A39: Land (Leasing, Acquisition) | D39: =B184 -> 771980 | E39: =D39/D$137 -> 0.01680829504 | F39: ='Default Data'!H38 -> 0 | BA39: Land (Leasing, Acquisition) | BD39: =BB184 -> 0 | BF39: ='Default Data'!BH38 -> 0
A40: Exploration (Pre-Drilling) | BA40: Exploration (Pre-Drilling)
A41: Geologist | B41: ='Default Data'!D40 -> 59.37 | D41: ='Default Data'!E40 -> 100000 | E41: =D41/D$137 -> 0.002177296696 | F41: ='Default Data'!H40 -> 1 | BA41: Geologist | BB41: ='Default Data'!BD40 -> 0 | BD41: ='Default Data'!BE40 -> 0 | BF41: ='Default Data'!BH40 -> 0
A42: Geophysicist | B42: ='Default Data'!D41 -> 59.37 | D42: ='Default Data'!E41 -> 80000 | E42: 0.001741837357 | F42: ='Default Data'!H41 -> 0 | BA42: Geophysicist | BB42: ='Default Data'!BD41 -> 0 | BD42: ='Default Data'!BE41 -> 0 | BF42: ='Default Data'!BH41 -> 0
A43: Geochemist | B43: ='Default Data'!D42 -> 59.37 | D43: ='Default Data'!E42 -> 50000 | E43: 0.001088648348 | F43: ='Default Data'!H42 -> 0 | BA43: Geochemist | BB43: ='Default Data'!BD42 -> 0 | BD43: ='Default Data'!BE42 -> 0 | BF43: ='Default Data'!BH42 -> 0
A44: Other Geo scientists | B44: ='Default Data'!D43 -> 59.37 | D44: ='Default Data'!E43 -> 75000 | E44: 0.001632972522 | F44: ='Default Data'!H43 -> 0 | BA44: Other Geo scientists | BB44: ='Default Data'!BD43 -> 0 | BD44: ='Default Data'!BE43 -> 0 | BF44: ='Default Data'!BH43 -> 0
A45: Field Crew | B45: ='Default Data'!D44 -> 30 | D45: ='Default Data'!E44 -> 50000 | E45: 0.001088648348 | F45: ='Default Data'!H44 -> 0 | BA45: Field Crew | BB45: ='Default Data'!BD44 -> 0 | BD45: ='Default Data'!BE44 -> 0 | BF45: ='Default Data'!BH44 -> 0
A46: Management/Administrative | B46: ='Default Data'!D45 -> 60 | D46: ='Default Data'!E45 -> 0 | E46: 0 | F46: ='Default Data'!H45 -> 0 | BA46: Management/Administrative | BB46: ='Default Data'!BD45 -> 0 | BD46: ='Default Data'!BE45 -> 0 | BF46: ='Default Data'!BH45 -> 0
A47: Exploration Equipment, Tests, Surveys | D47: ='Default Data'!E46 -> 1000000 | E47: 0.02177296696 | F47: ='Default Data'!H46 -> 0 | BA47: Exploration Equipment, Tests, Surveys | BD47: ='Default Data'!BE46 -> 0 | BF47: ='Default Data'!BH46 -> 0
A48: Total | D48: =SUM(D36:D47) -> 2426980 | E48: 0.05284255536 | BA48: Total | BD48: =SUM(BD36:BD47) -> 0
A50: Exploration Drilling | B50: Daily Rate | C50: Cost per Well | D50: Total Cost | E50: Percent of Cost | F50: Local Share | BA50: Exploration Drilling | BB50: Daily Rate | BC50: Cost per Well | BD50: Total Cost | BF50: Local Share
A51: Geologist | B51: ='Default Data'!D50 -> 700 | C51: =B51*'Default Data'!$K$24 -> 27931.39054 | D51: =C51*B$23 -> 55862.78108 | E51: =D51/D$137 -> 0.001216298487 | F51: ='Default Data'!H50 -> 1 | BA51: Geologist | BB51: ='Default Data'!BD50 -> 0 | BC51: =BB51*'Default Data'!$K$24 -> 0 | BD51: =BC51*BB$23 -> 0 | BF51: ='Default Data'!BH50 -> 0
A52: Mud Engineer(s) | B52: ='Default Data'!D51 -> 800 | C52: =B52*'Default Data'!$K$24 -> 31921.58919 | D52: 63843.17838 | E52: 0.001390055414 | F52: ='Default Data'!H51 -> 0 | BA52: Mud Engineer(s) | BB52: ='Default Data'!BD51 -> 0 | BC52: =BB52*'Default Data'!$K$24 -> 0 | BD52: 0 | BF52: ='Default Data'!BH51 -> 0
A53: Drilling Fluids - Mud | B53: ='Default Data'!D52 -> 5950 | C53: =B53*'Default Data'!$K$24 -> 237416.8196 | D53: 474833.6392 | E53: 0.01033853714 | F53: ='Default Data'!H52 -> 0 | BA53: Drilling Fluids - Mud | BB53: ='Default Data'!BD52 -> 0 | BC53: =BB53*'Default Data'!$K$24 -> 0 | BD53: 0 | BF53: ='Default Data'!BH52 -> 0
A54: Directional Engineer and Motorman | B54: ='Default Data'!D53 -> 2650 | C54: =B54*'Default Data'!$K$24*'Rates & Misc'!M$25 -> 63444.15851 | D54: 126888.317 | E54: 0.002762735135 | F54: ='Default Data'!H53 -> 0 | BA54: Directional Engineer and Motorman | BB54: ='Default Data'!BD53 -> 0 | BC54: =BB54*'Default Data'!$K$24*'Rates & Misc'!BM$25 -> 0 | BD54: 0 | BF54: ='Default Data'!BH53 -> 0
A55: Direction Tools and Services | B55: ='Default Data'!D54 -> 7858 | C55: =B55*'Default Data'!$K$24*'Rates & Misc'!M$25 -> 188129.8859 | D55: 376259.7718 | E55: 0.00819229158 | F55: ='Default Data'!H54 -> 0 | BA55: Direction Tools and Services | BB55: ='Default Data'!BD54 -> 0 | BC55: =BB55*'Default Data'!$K$24*'Rates & Misc'!BM$25 -> 0 | BD55: 0 | BF55: ='Default Data'!BH54 -> 0
A56: Drilling Engineering | B56: ='Default Data'!D55 -> 1400 | C56: =B56*'Default Data'!K23 -> 65720.91892 | D56: 131441.8378 | E56: 0.002861878793 | F56: ='Default Data'!H55 -> 0 | BA56: Drilling Engineering | BB56: ='Default Data'!BD55 -> 0 | BC56: =BB56*'Default Data'!BK23 -> 0 | BD56: 0 | BF56: ='Default Data'!BH55 -> 0
A57: Drill Rig Rate | B57: ='Default Data'!D56 -> 15000 | C57: =B57*'Default Data'!K$24 -> 598529.7973 | D57: 1197059.595 | E57: 0.02606353901 | F57: ='Default Data'!H56 -> 0 | BA57: Drill Rig Rate | BB57: ='Default Data'!BD56 -> 0 | BC57: =BB57*'Default Data'!BK$24 -> 0 | BD57: 0 | BF57: ='Default Data'!BH56 -> 0
A58: Drill Hands - labor | B58: ='Default Data'!D57 -> 2304 | C58: =B58*'Default Data'!K$24 -> 91934.17686 | D58: 183868.3537 | E58: 0.004003359591 | F58: ='Default Data'!H57 -> 0 | BA58: Drill Hands - labor | BB58: ='Default Data'!BD57 -> 0 | BC58: =BB58*'Default Data'!BK$24 -> 0 | BD58: 0 | BF58: ='Default Data'!BH57 -> 0
A59: Management/Administrative | C59: ='Default Data'!E58 -> 5000 | D59: 10000 | E59: 0.0002177296696 | F59: ='Default Data'!H58 -> 0 | BA59: Management/Administrative | BC59: ='Default Data'!BE58 -> 0 | BD59: 0 | BF59: ='Default Data'!BH58 -> 0
A60: Site Construction | C60: ='Default Data'!E59 -> 125000 | D60: 250000 | E60: 0.005443241741 | F60: ='Default Data'!H59 -> 1 | BA60: Site Construction | BC60: ='Default Data'!BE59 -> 0 | BD60: 0 | BF60: ='Default Data'!BH59 -> 0
A61: Material Costs - Cement and Casing | C61: ='Default Data'!E60 -> 978103.125 | D61: 1956206.25 | E61: 0.04259241405 | F61: ='Default Data'!H60 -> 1 | BA61: Material Costs - Cement and Casing | BC61: ='Default Data'!BE60 -> 0 | BD61: 0 | BF61: ='Default Data'!BH60 -> 0
A62: Drilling Tools | C62: ='Default Data'!E61 -> 125000 | D62: 250000 | E62: 0.005443241741 | F62: ='Default Data'!H61 -> 0 | BA62: Drilling Tools | BC62: ='Default Data'!BE61 -> 0 | BD62: 0 | BF62: ='Default Data'!BH61 -> 0
A63: Outside Services | C63: ='Default Data'!E62 -> 225000 | D63: 450000 | E63: 0.009797835133 | F63: ='Default Data'!H62 -> 0 | BA63: Outside Services | BC63: ='Default Data'!BE62 -> 0 | BD63: 0 | BF63: ='Default Data'!BH62 -> 0
A64: Move Services and equipment | C64: ='Default Data'!E63 -> 250000 | D64: 500000 | E64: 0.01088648348 | F64: ='Default Data'!H63 -> 1 | BA64: Move Services and equipment | BC64: ='Default Data'!BE63 -> 0 | BD64: 0 | BF64: ='Default Data'!BH63 -> 0
A65: Location Maintenance | C65: ='Default Data'!E64 -> 50000 | D65: 100000 | E65: 0.002177296696 | F65: ='Default Data'!H64 -> 1 | BA65: Location Maintenance | BC65: ='Default Data'!BE64 -> 0 | BD65: 0 | BF65: ='Default Data'!BH64 -> 0
A66: Fuel | C66: ='Default Data'!E65 -> 125000 | D66: 250000 | E66: 0.005443241741 | F66: ='Default Data'!H65 -> 1 | BA66: Fuel | BC66: ='Default Data'!BE65 -> 0 | BD66: 0 | BF66: ='Default Data'!BH65 -> 0
A67: Camp | C67: ='Default Data'!E66 -> 25000 | D67: 50000 | E67: 0.001088648348 | F67: ='Default Data'!H66 -> 1 | BA67: Camp | BC67: ='Default Data'!BE66 -> 0 | BD67: 0 | BF67: ='Default Data'!BH66 -> 0
A68: Other Unallocated Costs | C68: ='Default Data'!E67 -> 0 | D68: 0 | E68: 0 | F68: ='Default Data'!H67 -> 0 | BA68: Other Unallocated Costs | BC68: ='Default Data'!BE67 -> 0 | BD68: 0 | BF68: ='Default Data'!BH67 -> 0
A69: Total: | C69: =SUM(C51:C68)-C58 -> 3121197.685 | D69: =SUM(D51:D68)-D58 -> 6242395.37 | E69: 0.1359154682 | BA69: Total: | BC69: =SUM(BC51:BC68)-BC58 -> 0 | BD69: =SUM(BD51:BD68)-BD58 -> 0
A71: Production Drilling | B71: Daily Rate | C71: Cost per Well | D71: Total Cost | E71: Percent of Cost | F71: Local Share | BA71: Production Drilling | BB71: Daily Rate | BC71: Cost per Well | BD71: Total Cost | BF71: Local Share
A72: Geologist | B72: ='Default Data'!D71 -> 700 | C72: =B72*'Default Data'!$K$24 -> 27931.39054 | D72: =C72*(G$19+G$20) -> 78095.19179 | E72: =D72/D$137 -> 0.001700364031 | F72: ='Default Data'!H71 -> 1 | BA72: Geologist | BB72: ='Default Data'!BD71 -> 0 | BC72: =BB72*'Default Data'!$K$24 -> 0 | BD72: =BC72*(BF$20+BF$22) -> 0 | BF72: ='Default Data'!BH71 -> 0
A73: Mud Engineer(s) | B73: ='Default Data'!D72 -> 800 | C73: =B73*'Default Data'!$K$24 -> 31921.58919 | D73: 89251.64776 | E73: 0.001943273178 | F73: ='Default Data'!H72 -> 0 | BA73: Mud Engineer(s) | BB73: ='Default Data'!BD72 -> 0 | BC73: =BB73*'Default Data'!$K$24 -> 0 | BD73: 0 | BF73: ='Default Data'!BH72 -> 0
A74: Drilling Fluids - Mud | B74: ='Default Data'!D73 -> 5950 | C74: =B74*'Default Data'!$K$24 -> 237416.8196 | D74: 663809.1302 | E74: 0.01445309426 | F74: ='Default Data'!H73 -> 0 | BA74: Drilling Fluids - Mud | BB74: ='Default Data'!BD73 -> 0 | BC74: =BB74*'Default Data'!$K$24 -> 0 | BD74: 0 | BF74: ='Default Data'!BH73 -> 0
A75: Directional Engineer and Motorman | B75: ='Default Data'!D74 -> 2650 | C75: =B75*'Default Data'!$K$24*'Rates & Misc'!M$25 -> 63444.15851 | D75: 177387.6499 | E75: 0.003862255441 | F75: ='Default Data'!H74 -> 0 | BA75: Directional Engineer and Motorman | BB75: ='Default Data'!BD74 -> 0 | BC75: =BB75*'Default Data'!$K$24*'Rates & Misc'!BM$25 -> 0 | BD75: 0 | BF75: ='Default Data'!BH74 -> 0
A76: Direction Tools and Services | B76: ='Default Data'!D75 -> 7858 | C76: =B76*'Default Data'!$K$24*'Rates & Misc'!M$25 -> 188129.8859 | D76: 526004.586 | E76: 0.01145268047 | F76: ='Default Data'!H75 -> 0 | BA76: Direction Tools and Services | BB76: ='Default Data'!BD75 -> 0 | BC76: =BB76*'Default Data'!$K$24*'Rates & Misc'!BM$25 -> 0 | BD76: 0 | BF76: ='Default Data'!BH75 -> 0
A77: Drilling Engineering | B77: ='Default Data'!D76 -> 1400 | C77: =B77*'Default Data'!K23 -> 65720.91892 | D77: 183753.3924 | E77: 0.004000856543 | F77: ='Default Data'!H76 -> 0 | BA77: Drilling Engineering | BB77: ='Default Data'!BD76 -> 0 | BC77: =BB77*'Default Data'!BK23 -> 0 | BD77: 0 | BF77: ='Default Data'!BH76 -> 0
A78: Drill Rig Rate | B78: ='Default Data'!D77 -> 15000 | C78: =B78*'Default Data'!K$24 -> 598529.7973 | D78: 1673468.395 | E78: 0.03643637209 | F78: ='Default Data'!H77 -> 0 | BA78: Drill Rig Rate | BB78: ='Default Data'!BD77 -> 0 | BC78: =BB78*'Default Data'!BK$24 -> 0 | BD78: 0 | BF78: ='Default Data'!BH77 -> 0
A79: Drill Hands - labor | B79: ='Default Data'!D78 -> 2304 | C79: =B79*'Default Data'!K$24 -> 91934.17686 | D79: 257044.7455 | F79: ='Default Data'!H78 -> 0 | BA79: Drill Hands - labor | BB79: ='Default Data'!BD78 -> 0 | BC79: =BB79*'Default Data'!BK$24 -> 0 | BD79: 0 | BF79: ='Default Data'!BH78 -> 0
A80: Management/Administrative | C80: ='Default Data'!E79 -> 5000 | D80: 13979.82526 | E80: =D80/D$137 -> 0.0003043822735 | F80: ='Default Data'!H79 -> 0 | BA80: Management/Administrative | BC80: ='Default Data'!BE79 -> 0 | BD80: 0 | BF80: ='Default Data'!BH79 -> 0
A81: Site Construction | C81: ='Default Data'!E80 -> 125000 | D81: 349495.6314 | E81: 0.007609556837 | F81: ='Default Data'!H80 -> 1 | BA81: Site Construction | BC81: ='Default Data'!BE80 -> 0 | BD81: 0 | BF81: ='Default Data'!BH80 -> 0
A82: Material Costs - (Cement and Casing) | C82: ='Default Data'!E81 -> 978103.125 | D82: 2734742.154 | E82: 0.05954345057 | F82: ='Default Data'!H81 -> 1 | BA82: Material Costs - (Cement and Casing) | BC82: ='Default Data'!BE81 -> 0 | BD82: 0 | BF82: ='Default Data'!BH81 -> 0
A83: Drilling Tools | C83: ='Default Data'!E82 -> 125000 | D83: 349495.6314 | E83: 0.007609556837 | F83: ='Default Data'!H82 -> 0 | BA83: Drilling Tools | BC83: ='Default Data'!BE82 -> 0 | BD83: 0 | BF83: ='Default Data'!BH82 -> 0
A84: Outside Services | C84: ='Default Data'!E83 -> 225000 | D84: 629092.1365 | E84: 0.01369720231 | F84: ='Default Data'!H83 -> 0 | BA84: Outside Services | BC84: ='Default Data'!BE83 -> 0 | BD84: 0 | BF84: ='Default Data'!BH83 -> 0
A85: Move Services and equipment | C85: ='Default Data'!E84 -> 250000 | D85: 698991.2628 | E85: 0.01521911367 | F85: ='Default Data'!H84 -> 1 | BA85: Move Services and equipment | BC85: ='Default Data'!BE84 -> 0 | BD85: 0 | BF85: ='Default Data'!BH84 -> 0
A86: Location Maintenance | C86: ='Default Data'!E85 -> 50000 | D86: 139798.2526 | E86: 0.003043822735 | F86: ='Default Data'!H85 -> 1 | BA86: Location Maintenance | BC86: ='Default Data'!BE85 -> 0 | BD86: 0 | BF86: ='Default Data'!BH85 -> 0
A87: Fuel | C87: ='Default Data'!E86 -> 125000 | D87: 349495.6314 | E87: 0.007609556837 | F87: ='Default Data'!H86 -> 1 | BA87: Fuel | BC87: ='Default Data'!BE86 -> 0 | BD87: 0 | BF87: ='Default Data'!BH86 -> 0
A88: Camp | C88: ='Default Data'!E87 -> 25000 | D88: 69899.12628 | E88: 0.001521911367 | F88: ='Default Data'!H87 -> 1 | BA88: Camp | BC88: ='Default Data'!BE87 -> 0 | BD88: 0 | BF88: ='Default Data'!BH87 -> 0
A89: Other Unallocated Costs | C89: ='Default Data'!E88 -> 1000000 | D89: 2795965.051 | E89: 0.06087645469 | F89: ='Default Data'!H88 -> 0 | BA89: Other Unallocated Costs | BC89: ='Default Data'!BE88 -> 0 | BD89: 0 | BF89: ='Default Data'!BH88 -> 0
A90: Total: | C90: =SUM(C72:C89)-C79 -> 4121197.685 | D90: =SUM(D72:D89)-D79 -> 11522724.7 | E90: 0.2508839041 | BA90: Total: | BC90: =SUM(BC72:BC89)-BC79 -> 0 | BD90: =SUM(BD72:BD89)-BD79 -> 0
A92: Well Stimulation | B92: Daily Rate | C92: Cost per Well | D92: Total Cost | E92: Percent of Cost | F92: Local Share | BA92: Well Stimulation | BB92: Daily Rate | BC92: Cost per Well | BD92: Total Cost | BF92: Local Share
A93: Variable Costs | BA93: Variable Costs
A94: Reservoir Engineer | B94: ='Default Data'!D93 -> 0 | C94: ='Rates & Misc'!D$56*B94 -> 0 | D94: =C94*(G$19+G$20) -> 0 | E94: =D94/D$137 -> 0 | F94: ='Default Data'!H93 -> 1 | BA94: Reservoir Engineer | BB94: ='Default Data'!BD93 -> 0 | BC94: ='Rates & Misc'!BD$56*BB94 -> 0 | BD94: =BC94*(BF$20+BF$22) -> 0 | BF94: ='Default Data'!BH93 -> 0
A95: Geologist | B95: ='Default Data'!D94 -> 0 | C95: ='Rates & Misc'!D$56*B95 -> 0 | D95: 0 | E95: 0 | F95: ='Default Data'!H94 -> 1 | BA95: Geologist | BB95: ='Default Data'!BD94 -> 0 | BC95: ='Rates & Misc'!BD$56*BB95 -> 0 | BD95: 0 | BF95: ='Default Data'!BH94 -> 0
A96: Geophysicist | B96: ='Default Data'!D95 -> 0 | C96: ='Rates & Misc'!D$56*B96 -> 0 | D96: 0 | E96: 0 | F96: ='Default Data'!H95 -> 0 | BA96: Geophysicist | BB96: ='Default Data'!BD95 -> 0 | BC96: ='Rates & Misc'!BD$56*BB96 -> 0 | BD96: 0 | BF96: ='Default Data'!BH95 -> 0
A97: Drill Rig | B97: ='Default Data'!D96 -> 0 | C97: ='Rates & Misc'!D$56*B97 -> 0 | D97: 0 | E97: 0 | F97: ='Default Data'!H96 -> 0 | BA97: Drill Rig | BB97: ='Default Data'!BD96 -> 0 | BC97: ='Rates & Misc'!BD$56*BB97 -> 0 | BD97: 0 | BF97: ='Default Data'!BH96 -> 0
A98: Drill Hands - labor | B98: ='Default Data'!D97 -> 0 | C98: ='Rates & Misc'!D$56*B98 -> 0 | D98: 0 | E98: 0 | F98: ='Default Data'!H97 -> 0 | BA98: Drill Hands - labor | BB98: ='Default Data'!BD97 -> 0 | BC98: ='Rates & Misc'!BD$56*BB98 -> 0 | BD98: 0 | BF98: ='Default Data'!BH97 -> 0
A99: Materials (proppant, water) | B99: ='Default Data'!D98 -> 0 | C99: ='Rates & Misc'!D$56*B99 -> 0 | D99: 0 | E99: 0 | F99: ='Default Data'!H98 -> 1 | BA99: Materials (proppant, water) | BB99: ='Default Data'!BD98 -> 0 | BC99: ='Rates & Misc'!BD$56*BB99 -> 0 | BD99: 0 | BF99: ='Default Data'!BH98 -> 0
A100: Fuel | B100: ='Default Data'!D99 -> 0 | C100: ='Rates & Misc'!D$56*B100 -> 0 | D100: 0 | E100: 0 | F100: ='Default Data'!H99 -> 1 | BA100: Fuel | BB100: ='Default Data'!BD99 -> 0 | BC100: ='Rates & Misc'!BD$56*BB100 -> 0 | BD100: 0 | BF100: ='Default Data'!BH99 -> 0
A101: Subtotal | B101: =SUM(B94:B100) -> 0 | C101: =SUM(C94:C100)-C98 -> 0 | D101: =SUM(D94:D100)-D98 -> 0 | E101: 0 | BA101: Subtotal | BB101: =SUM(BB94:BB100) -> 0 | BC101: =SUM(BC94:BC100)-BC98 -> 0 | BD101: =SUM(BD94:BD100)-BD98 -> 0
A102: Fixed Costs | BA102: Fixed Costs
A103: Injection Testing | B103: ='Default Data'!D102 -> 0 | C103: =B103 -> 0 | D103: =C103*(G$19+G$20) -> 0 | E103: =D103/D$137 -> 0 | F103: ='Default Data'!H102 -> 0 | BA103: Injection Testing | BB103: ='Default Data'!BD102 -> 0 | BC103: =BB103 -> 0 | BD103: =BC103*(BF$20+BF$22) -> 0 | BF103: ='Default Data'!BH102 -> 0
A104: Mobilization/Demobilization | B104: ='Default Data'!D103 -> 0 | C104: =B104 -> 0 | D104: =C104*(G$19+G$20) -> 0 | E104: 0 | F104: ='Default Data'!H103 -> 1 | BA104: Mobilization/Demobilization | BB104: ='Default Data'!BD103 -> 0 | BC104: =BB104 -> 0 | BD104: =BC104*(BF$20+BF$22) -> 0 | BF104: ='Default Data'!BH103 -> 0
A105: Water | B105: ='Default Data'!D104 -> 0 | C105: =B105 -> 0 | D105: =C105*(G$19+G$20) -> 0 | E105: 0 | F105: ='Default Data'!H104 -> 1 | BA105: Water | BB105: ='Default Data'!BD104 -> 0 | BC105: =BB105 -> 0 | BD105: =BC105*(BF$20+BF$22) -> 0 | BF105: ='Default Data'!BH104 -> 0
A106: Downhole Logging | B106: ='Default Data'!D105 -> 0 | C106: =B106 -> 0 | D106: =C106*(G$19+G$20) -> 0 | E106: 0 | F106: ='Default Data'!H105 -> 0 | BA106: Downhole Logging | BB106: ='Default Data'!BD105 -> 0 | BC106: =BB106 -> 0 | BD106: =BC106*(BF$20+BF$22) -> 0 | BF106: ='Default Data'!BH105 -> 0
A107: Subtotal | B107: =SUM(B103:B106) -> 0 | C107: =B107 -> 0 | D107: =C107*(G$19+G$20) -> 0 | E107: 0 | BA107: Subtotal | BB107: =SUM(BB103:BB106) -> 0 | BC107: =BB107 -> 0 | BD107: =BC107*(BF$20+BF$22) -> 0
A108: Total: | B108: =B107+B101 -> 0 | C108: =C107+C101 -> 0 | D108: =D107+D101 -> 0 | E108: 0 | BA108: Total: | BB108: =BB107+BB101 -> 0 | BC108: =BC107+BC101 -> 0 | BD108: =BD107+BD101 -> 0
A110: =CONCATENATE(B18," Plant - Power Plant Costs") -> Binary Plant - Power Plant Costs | BA110: =CONCATENATE(BB18," Plant - Power Plant Costs") -> Plant - Power Plant Costs
A111: Labor | B111: Hourly Rate | D111: Total Cost | E111: Percent of Cost | F111: Local Share | BA111: Labor | BB111: Hourly Rate | BD111: Total Cost | BF111: Local Share
A112: Engineering - Design | B112: ='Default Data'!N111 -> 63.75 | D112: ='Default Data'!D111 -> 376789.4568 | E112: =D112/D$137 -> 0.008203824395 | F112: ='Default Data'!H111 -> 1 | BA112: Engineering - Design | BB112: ='Default Data'!BN111 -> 0 | BD112: ='Default Data'!BD111 -> 0 | BF112: ='Default Data'!BH111 -> 0
A113: Laborers | B113: ='Default Data'!N112 -> 20.565 | D113: ='Default Data'!D112 -> 753578.9136 | E113: 0.01640764879 | F113: ='Default Data'!H112 -> 1 | BA113: Laborers | BB113: ='Default Data'!BN112 -> 0 | BD113: ='Default Data'!BD112 -> 0 | BF113: ='Default Data'!BH112 -> 0
A114: Mechanical | B114: ='Default Data'!N113 -> 26.25 | D114: ='Default Data'!D113 -> 753578.9136 | E114: 0.01640764879 | F114: ='Default Data'!H113 -> 1 | BA114: Mechanical | BB114: ='Default Data'!BN113 -> 0 | BD114: ='Default Data'!BD113 -> 0 | BF114: ='Default Data'!BH113 -> 0
A115: Electrical | B115: ='Default Data'!N114 -> 33.48 | D115: ='Default Data'!D114 -> 753578.9136 | E115: 0.01640764879 | F115: ='Default Data'!H114 -> 1 | BA115: Electrical | BB115: ='Default Data'!BN114 -> 0 | BD115: ='Default Data'!BD114 -> 0 | BF115: ='Default Data'!BH114 -> 0
A116: Management/Administrative | B116: ='Default Data'!N115 -> 60 | D116: ='Default Data'!D115 -> 1130368.37 | E116: 0.02461147319 | F116: ='Default Data'!H115 -> 0 | BA116: Management/Administrative | BB116: ='Default Data'!BN115 -> 0 | BD116: ='Default Data'!BD115 -> 0 | BF116: ='Default Data'!BH115 -> 0
A117: Total | D117: =SUM(D112:D116) -> 3767894.568 | E117: 0.08203824395 | BA117: Total | BD117: =SUM(BD112:BD116) -> 0
A118: =IF(B$18="Flash","Binary Plant Equipment - not applicable","Binary Plant Equipment") -> Binary Plant Equipment | D118: Total Cost | E118: Percent of Cost | F118: Local Share | BA118: =IF(BB$18="Flash","Binary Plant Equipment - not applicable","Binary Plant Equipment") -> Binary Plant Equipment | BD118: Total Cost | BF118: Local Share
A119: Turbines, Generators | D119: ='Default Data'!D118 -> 10048974.81 | E119: =D119/D$137 -> 0.2187959966 | F119: ='Default Data'!H118 -> 0 | BA119: Turbines, Generators | BD119: ='Default Data'!BD118 -> 0 | BF119: ='Default Data'!BH118 -> 0
A120: Air Cooled Condenser | D120: ='Default Data'!D119 -> 7477386.771 | E120: =D120/D$137 -> 0.1628048951 | F120: ='Default Data'!H119 -> 0 | BA120: Air Cooled Condenser | BD120: ='Default Data'!BD119 -> 0 | BF120: ='Default Data'!BH119 -> 0
A121: Well Field Pumps | D121: ='Default Data'!D120 -> 737847.9538 | E121: =D121/D$137 -> 0.01606513912 | F121: ='Default Data'!H120 -> 0 | BA121: Well Field Pumps | BD121: ='Default Data'!BD120 -> 0 | BF121: ='Default Data'!BH120 -> 0
A122: Geothermal Fluid Heat Exchangers | D122: ='Default Data'!D121 -> 1517236.945 | E122: =D122/D$137 -> 0.03303474988 | F122: ='Default Data'!H121 -> 0 | BA122: Geothermal Fluid Heat Exchangers | BD122: ='Default Data'!BD121 -> 0 | BF122: ='Default Data'!BH121 -> 0
A123: Total | D123: =SUM(D119:D122) -> 19781446.48 | E123: =D123/D$137 -> 0.4307007808 | BA123: Total | BD123: =SUM(BD119:BD122) -> 0
A124: Power Plant Cost | D124: =D123+D117 -> 23549341.05 | E124: =E123+E117 -> 0.5127390247 | BA124: Power Plant Cost | BD124: =BD123+BD117 -> 0
A126: =IF(B$18="Binary","Flash Plant Equipment - not applicable","Flash Plant Equipment") -> Flash Plant Equipment - not applicable | D126: Total Cost | E126: Percent of Cost | F126: Local Share | BA126: =IF(BB$18="Binary","Flash Plant Equipment - not applicable","Flash Plant Equipment") -> Flash Plant Equipment | BD126: Total Cost | BF126: Local Share
A127: Turbine Generator Cost | D127: ='Default Data'!D126 -> 0 | E127: =D127/D$137 -> 0 | F127: ='Default Data'!H126 -> 0 | BA127: Turbine Generator Cost | BD127: ='Default Data'!BD126 -> 0 | BF127: ='Default Data'!BH126 -> 0
A128: Flash Vessels | D128: ='Default Data'!D127 -> 0 | E128: 0 | F128: ='Default Data'!H127 -> 0 | BA128: Flash Vessels | BD128: ='Default Data'!BD127 -> 0 | BF128: ='Default Data'!BH127 -> 0
A129: Cooling Tower Cost | D129: ='Default Data'!D128 -> 0 | E129: 0 | F129: ='Default Data'!H128 -> 0 | BA129: Cooling Tower Cost | BD129: ='Default Data'!BD128 -> 0 | BF129: ='Default Data'!BH128 -> 0
A130: Condenser Cost | D130: ='Default Data'!D129 -> 0 | E130: 0 | F130: ='Default Data'!H129 -> 0 | BA130: Condenser Cost | BD130: ='Default Data'!BD129 -> 0 | BF130: ='Default Data'!BH129 -> 0
A131: Pump Costs | D131: ='Default Data'!D130 -> 0 | E131: 0 | F131: ='Default Data'!H130 -> 0 | BA131: Pump Costs | BD131: ='Default Data'!BD130 -> 0 | BF131: ='Default Data'!BH130 -> 0
A132: NCG Removal System | D132: ='Default Data'!D131 -> 0 | E132: 0 | F132: ='Default Data'!H131 -> 0 | BA132: NCG Removal System | BD132: ='Default Data'!BD131 -> 0 | BF132: ='Default Data'!BH131 -> 0
A133: H2S Removal System | D133: ='Default Data'!D132 -> 0 | E133: 0 | F133: ='Default Data'!H132 -> 0 | BA133: H2S Removal System | BD133: ='Default Data'!BD132 -> 0 | BF133: ='Default Data'!BH132 -> 0
A134: Total | D134: =SUM(D127:D133) -> 0 | E134: 0 | BA134: Total | BD134: =SUM(BD127:BD133) -> 0
A135: Project Cost | D135: =IF(B18="Flash",IF(B17="EGS",(D$134+D$117+D$108+D$90+D$69+D$48),(D$134+D$117+D$90+D$69+D$48)),IF(B17="EGS",(D$117+D$123+D$108+D$90+D$69+D$48),(D$117+D$123+D$90+D$69+D$48))) -> 43741441.12 | E135: 0.9523809524 | BA135: Project Cost | BD135: =(BD$134+BD$123+BD$117+BD$108+BD$90+BD$69+BD$48) -> 0
A136: Contingency Cost | D136: =D135*B29 -> 2187072.056 | E136: 0.04761904762 | BA136: Contingency Cost | BD136: =BD135*BB29 -> 0
A137: Total Installed Project Cost | D137: =D136+D135 -> 45928513.17 | E137: 1 | BA137: Total Installed Project Cost | BD137: =BD136+BD135 -> 0
A139: =CONCATENATE(B$18," Plant O&M Costs") -> Binary Plant O&M Costs | BA139: =CONCATENATE(BB$18," Plant O&M Costs") -> Plant O&M Costs
A140: Labor Costs | D140: Total Cost | E140: Percent of Cost | F140: Local Share | BA140: Labor Costs | BD140: Total Cost | BF140: Local Share
A141: Field labor | D141: ='Default Data'!G173+'Default Data'!G151 -> 119164.4886 | E141: =D141/D$161 -> 0.07898622993 | F141: ='Default Data'!H173 -> 1 | BA141: Field labor | BD141: ='Default Data'!BG173+'Default Data'!BG151 -> 0 | BF141: ='Default Data'!BH173 -> 0
A142: Plant Labor | D142: ='Default Data'!G174+'Default Data'!G152 -> 918517.9074 | E142: =D142/D$161 -> 0.6088245541 | F142: ='Default Data'!H174 -> 1 | BA142: Plant Labor | BD142: ='Default Data'!BG174+'Default Data'!BG152 -> 0 | BF142: ='Default Data'!BH174 -> 0
A143: Subtotal Labor | D143: =D142+D141 -> 1037682.396 | E143: =D143/D$161 -> 0.687810784 | BA143: Subtotal Labor | BD143: =BD142+BD141 -> 0
A144: Other Plant Costs | BA144: Other Plant Costs
A145: Equipment | D145: ='Default Data'!T15*B30 -> 470986.821 | E145: =D145/D$161 -> 0.3121859018 | F145: ='Default Data'!H188 -> 0 | BA145: Equipment | BD145: ='Default Data'!BT15*BB30 -> 0 | BF145: ='Default Data'!BH188 -> 0
A146: Services | E146: 0 | F146: ='Default Data'!H189 -> 0 | BA146: Services | BF146: ='Default Data'!BH189 -> 0
A147: Fees, Permits, Licenses | E147: 0 | F147: ='Default Data'!H190 -> 0 | BA147: Fees, Permits, Licenses | BF147: ='Default Data'!BH190 -> 0
A148: Insurance | E148: 0 | F148: ='Default Data'!H191 -> 0 | BA148: Insurance | BF148: ='Default Data'!BH191 -> 0
A149: Consumables/Tools and Misc. Supplies | E149: 0 | F149: ='Default Data'!H192 -> 0 | BA149: Consumables/Tools and Misc. Supplies | BF149: ='Default Data'!BH192 -> 0
A150: Other | E150: 0 | F150: ='Default Data'!H193 -> 0 | BA150: Other | BF150: ='Default Data'!BH193 -> 0
A151: Subtotal Labor | D151: =SUM(D145:D150) -> 470986.821 | E151: 0.3121859018 | BA151: Subtotal Labor | BD151: =SUM(BD145:BD150) -> 0
A152: Other Wellfield Costs | BA152: Other Wellfield Costs
A153: Equipment | D153: =('Default Data'!T18*'Default Data'!C184)-D141 -> 680265.9144 | E153: =D153/D$161 -> 0.4509031219 | F153: ='Default Data'!H196 -> 0 | BA153: Equipment | BD153: =('Default Data'!BT18*'Default Data'!BC184)-BD141 -> 0 | BF153: ='Default Data'!BH196 -> 0
A154: Services | E154: 0 | F154: ='Default Data'!H197 -> 0 | BA154: Services | BF154: ='Default Data'!BH197 -> 0
A155: Fuel (motor vehicle gasoline) | E155: 0 | F155: ='Default Data'!H198 -> 0 | BA155: Fuel (motor vehicle gasoline) | BF155: ='Default Data'!BH198 -> 0
A156: Consumables/Tools and Misc. Supplies | E156: 0 | F156: ='Default Data'!H199 -> 0 | BA156: Consumables/Tools and Misc. Supplies | BF156: ='Default Data'!BH199 -> 0
A157: Other | E157: 0 | F157: ='Default Data'!H200 -> 0 | BA157: Other | BF157: ='Default Data'!BH200 -> 0
A158: Subtotal Labor | D158: 5 | E158: 3.314168124e-06 | BA158: Subtotal Labor | BD158: =SUM(BD153:BD157) -> 0
A159: Total Plant O&M (Plant and Labor) | D159: =D142+D151 -> 1389504.728 | E159: 0.9210104559 | BA159: Total Plant O&M (Plant and Labor) | BD159: =BD142+BD151 -> 0
A160: Total Wellfield O&M (Wellfield and Labor) | D160: =D141+D158 -> 119169.4886 | E160: 0.0789895441 | BA160: Total Wellfield O&M (Wellfield and Labor) | BD160: =BD141+BD158 -> 0
A161: Total O&M | D161: =D160+D159 -> 1508674.217 | E161: 1 | BA161: Total O&M | BD161: =BD160+BD159 -> 0
A163: Other Input Parameters | BA163: Other Input Parameters
A164: Financial Parameters | E164: Local Share | BA164: Financial Parameters | BE164: Local Share
A165: Debt Financing | BA165: Debt Financing
A166: Percentage financed | B166: ='Default Data'!C210 -> 0.7 | E166: ='Default Data'!E210 -> 0 | BA166: Percentage financed | BB166: ='Default Data'!BC210 -> 0 | BE166: ='Default Data'!BE210 -> 0
A167: Years financed (term) | B167: ='Default Data'!C211 -> 15 | BA167: Years financed (term) | BB167: ='Default Data'!BC211 -> 0
A168: Interest rate | B168: ='Default Data'!C212 -> 0.1 | BA168: Interest rate | BB168: ='Default Data'!BC212 -> 0
A169: Equity Financing | BA169: Equity Financing
A170: Percentage equity | B170: =1-B166 -> 0.3 | BA170: Percentage equity | BB170: =1-BB166 -> 1
A171: Individual Investors (percent of total equity) | B171: ='Default Data'!C216 -> 0 | E171: ='Default Data'!E216 -> 1 | BA171: Individual Investors (percent of total equity) | BB171: ='Default Data'!BC216 -> 0 | BE171: ='Default Data'!BE216 -> 0
A172: Corporate Investors (percent of total equity) | B172: =1-B171 -> 1 | E172: ='Default Data'!E217 -> 0 | BA172: Corporate Investors (percent of total equity) | BB172: =1-BB171 -> 1 | BE172: ='Default Data'!BE217 -> 0
A173: Return on equity (annual interest rate) | B173: ='Default Data'!C218 -> 0.16 | BA173: Return on equity (annual interest rate) | BB173: ='Default Data'!BC218 -> 0
A174: Repayment term (years) | B174: ='Default Data'!C219 -> 10 | BA174: Repayment term (years) | BB174: ='Default Data'!BC219 -> 0
A175: Tax Parameters | BA175: Tax Parameters
A176: Local Property/Other Tax Rate (percent of taxable value) | B176: ='Default Data'!C221 -> 0 | BA176: Local Property/Other Tax Rate (percent of taxable value) | BB176: ='Default Data'!BC221 -> 0
A177: Assessed value (percent of construction cost) | B177: ='Default Data'!C222 -> 0 | BA177: Assessed value (percent of construction cost) | BB177: ='Default Data'!BC222 -> 0
A178: Taxable Value (percent of assessed value) | B178: ='Default Data'!C223 -> 0 | BA178: Taxable Value (percent of assessed value) | BB178: ='Default Data'!BC223 -> 0
A179: Taxable Value | B179: =D137*B177*B178 -> 0 | BA179: Taxable Value | BB179: =BD137*BB177*BB178 -> 0
A180: Local Taxes | B180: =B179*B176 -> 0 | E180: ='Default Data'!E225 -> 1 | BA180: Local Taxes | BB180: =BB179*BB176 -> 0 | BE180: ='Default Data'!BE225 -> 0
A181: Land Lease Parameters | BA181: Land Lease Parameters
A182: Land Lease (acres) | B182: ='Rates & Misc'!C73 -> 2420 | BA182: Land Lease (acres) | BB182: ='Rates & Misc'!BC73 -> 0
A183: Initial Land Lease/Acquisition Cost (per acre) | B183: ='Rates & Misc'!C74 -> 319 | BA183: Initial Land Lease/Acquisition Cost (per acre) | BB183: ='Rates & Misc'!BC74 -> 0
A184: Initial Land Lease/Acquisition Cost (total cost before production) | B184: =B182*B183 -> 771980 | BA184: Initial Land Lease/Acquisition Cost (total cost before production) | BB184: =BB182*BB183 -> 0
A185: Land Lease Cost (per acre per year during production) | B185: ='Rates & Misc'!C76 -> 5 | BA185: Land Lease Cost (per acre per year during production) | BB185: ='Rates & Misc'!BC76 -> 0
A186: Land Lease Cost (total cost per year during production) | B186: =B185*B182 -> 12100 | BA186: Land Lease Cost (total cost per year during production)
A187: Lease Payment Recipient (H = household/private, P = Public) | B187: ='Default Data'!C232 -> P | E187: ='Default Data'!E232 -> 0 | BA187: Lease Payment Recipient (H = household/private, P = Public) | BB187: ='Default Data'!BC232 -> 0 | BE187: ='Default Data'!BE232 -> 0
A189: Exploration, Production, Stimulation and Construction Related Services/Labor Input Parameters | BA189: Exploration, Production, Stimulation and Construction Related Services/Labor Input Parameters
A190: Labor multiplier (employer costs and overhead) | B190: ='Rates & Misc'!C10 -> 1.5 | BA190: Labor multiplier (employer costs and overhead) | BB190: ='Rates & Misc'!BC10 -> 0
A191: Labor Rates | B191: Wage Per Hour | D191: Power Plant Labor Rates | F191: Wage Per Hour | BA191: Labor Rates | BB191: Wage Per Hour | BD191: Power Plant Labor Rates | BF191: Wage Per Hour
A192: Management/Administrative | B192: ='Rates & Misc'!G28 -> 40 | D192: Engineering | F192: ='Rates & Misc'!G38 -> 42.5 | BA192: Management/Administrative | BB192: ='Rates & Misc'!BG28 -> 0 | BD192: Engineering | BF192: ='Rates & Misc'!BG38 -> 0
A193: Site Construction | B193: ='Rates & Misc'!G29 -> 13.7 | D193: Laborers | F193: ='Rates & Misc'!G39 -> 13.71 | BA193: Site Construction | BB193: ='Rates & Misc'!BG29 -> 0 | BD193: Laborers | BF193: ='Rates & Misc'!BG39 -> 0
A194: Material Costs - Cement and Casing | B194: ='Rates & Misc'!G30 -> 16.87 | D194: Mechanical | F194: ='Rates & Misc'!G40 -> 17.5 | BA194: Material Costs - Cement and Casing | BB194: ='Rates & Misc'!BG30 -> 0 | BD194: Mechanical | BF194: ='Rates & Misc'!BG40 -> 0
A195: Outside Services (fully burdened) | B195: ='Rates & Misc'!G31 -> 50 | D195: Electrical | F195: ='Rates & Misc'!G41 -> 22.32 | BA195: Outside Services (fully burdened) | BB195: ='Rates & Misc'!BG31 -> 0 | BD195: Electrical | BF195: ='Rates & Misc'!BG41 -> 0
A196: Move Services and equipment | B196: ='Rates & Misc'!G32 -> 13.7 | D196: Management/Administrative | F196: ='Rates & Misc'!G42 -> 40 | BA196: Move Services and equipment | BB196: ='Rates & Misc'!BG32 -> 0 | BD196: Management/Administrative | BF196: ='Rates & Misc'!BG42 -> 0
A197: Location Maintenance | B197: ='Rates & Misc'!G33 -> 13.7 | BA197: Location Maintenance | BB197: ='Rates & Misc'!BG33 -> 0
A198: Fuel Transportation | B198: ='Rates & Misc'!G34 -> 17.92 | BA198: Fuel | BB198: ='Rates & Misc'!BG34 -> 0
A199: Camp | B199: ='Rates & Misc'!G35 -> 13.7 | BA199: Camp | BB199: ='Rates & Misc'!BG35 -> 0
A201: Plant O&M Labor Input Parameters | BA201: Plant O&M Labor Input Parameters
A202: Labor multiplier (employer costs and overhead) | B202: ='Rates & Misc'!C12 -> 2.5 | BA202: Labor multiplier (employer costs and overhead) | BB202: ='Rates & Misc'!BC12 -> 0
A203: Labor Rates | B203: Wage Per Hour | BA203: Labor Rates | BB203: Wage Per Hour
A204: Operators | B204: =IF(B$18="Flash",'Default Data'!C163,'Default Data'!C141) -> 23.38809035 | BA204: Operators | BB204: =IF(BB$18="Flash",'Default Data'!BC163,'Default Data'!BC141) -> 0
A205: Maintenance mechanic | B205: =IF(B$18="Flash",'Default Data'!C164,'Default Data'!C142) -> 28.06570842 | BA205: Maintenance mechanic | BB205: =IF(BB$18="Flash",'Default Data'!BC164,'Default Data'!BC142) -> 0
A206: Electrician | B206: =IF(B$18="Flash",'Default Data'!C165,'Default Data'!C143) -> 28.06570842 | BA206: Electrician | BB206: =IF(BB$18="Flash",'Default Data'!BC165,'Default Data'!BC143) -> 0
A207: General Maintenance | B207: =IF(B$18="Flash",'Default Data'!C166,'Default Data'!C144) -> 20.46457906 | BA207: General Maintenance | BB207: =IF(BB$18="Flash",'Default Data'!BC166,'Default Data'!BC144) -> 0
A208: Facility Manager/Plant Engineer | B208: =IF(B$18="Flash",'Default Data'!C167,'Default Data'!C145) -> 46.7761807 | BA208: Facility Manager/Plant Engineer | BB208: =IF(BB$18="Flash",'Default Data'!BC167,'Default Data'!BC145) -> 0
A209: Operations Manager | B209: =IF(B$18="Flash",'Default Data'!C168,'Default Data'!C146) -> 35.08213552 | BA209: Operations Manager | BB209: =IF(BB$18="Flash",'Default Data'!BC168,'Default Data'!BC146) -> 0
... 56 more rows

Sheet Summary Results
A1: =CONCATENATE("Geothermal Plant - Project Data Summary (based on ",ProjectData!B11," analysis)") -> Geothermal Plant - Project Data Summary (based on Advanced analysis) | BB1: =A1 -> Geothermal Plant - Project Data Summary (based on Advanced analysis)
A3: Project Location | B3: =ProjectData!B13 -> IDAHO | BB3: Project Location | BC3: =B3 -> IDAHO
A4: Year of Construction | B4: =ProjectData!B14 -> 2010 | C4: Installed Project Cost ($/kW) | D4: =ProjectData!G18 -> 4592.851317 | BB4: Year of Construction | BC4: =B4 -> 2010 | BD4: Installed Project Cost ($/kW) | BE4: 4592.851317
A5: Construction Period (months) | B5: =ProjectData!B15 -> 21 | C5: Annual O&M Cost ($/kW) | D5: =ProjectData!G17 -> 150.8674217 | BB5: Construction Period (months) | BC5: 21 | BD5: Annual O&M Cost ($/kW) | BE5: 150.8674217
A6: Nominal Plant Size (MW net output) | B6: =ProjectData!B16 -> 10 | C6: Money Value (Dollar Year) | D6: =ProjectData!B31 -> 2010 | BB6: Nominal Plant size (MW net output) | BC6: 10 | BD6: Money Value (Dollar Year) | BE6: 2010
A7: Nameplate Capacity (MW) | B7: =ProjectData!G13 -> 12.22619588 | C7: Installed Project Cost | D7: =ProjectData!G14 -> 45928513.17 | BB7: Nameplate Capacity (MW) | BC7: 12.22619588 | BD7: Installed Project Cost | BE7: 45928513.17
A8: Technology | B8: =ProjectData!B17 -> Hydrothermal | C8: Local Spending | D8: =Calculations!N101 -> 10836118.1 | BB8: Technology | BC8: Hydrothermal | BD8: Local Spending | BE8: 10836118.1
A9: Plant type | B9: =ProjectData!B18 -> Binary | C9: Total Annual Operational Expenses | D9: =Calculations!C134+Calculations!C127 -> 14951952.91 | BB9: Plant type | BC9: Binary | BD9: Total Annual Operational Expenses | BE9: 14951952.91
A10: =CONCATENATE("Resource Temperature (degrees ",ProjectData!$C$19,")") -> Resource Temperature (degrees Celsius) | B10: =ProjectData!B19 -> 200 | C10: Direct Operating and Maintenance Costs | D10: =Calculations!C127 -> 2188935.131 | BB10: Resource Temperature (degrees Celsius) | BC10: 200 | BD10: Direct Operating and Maintenance Costs | BE10: 2188935.131
A11: =CONCATENATE("Resource Depth (",ProjectData!$C$20,")") -> Resource Depth (Meters) | B11: =ProjectData!B20 -> 2250 | C11: Local Spending | D11: =Calculations!F127 -> 1037682.396 | BB11: Resource Depth (Meters) | BC11: 2250 | BD11: Local Spending | BE11: 1037682.396
A12: Number of Exploration Wells | B12: =ProjectData!B23 -> 2 | C12: Other Annual Costs | D12: =Calculations!C134 -> 12763017.78 | BB12: Number of Exploration Wells | BC12: 2 | BD12: Other Annual Costs | BE12: 12763017.78
A13: Number of Production Wells | B13: =ProjectData!G19 -> 1.863976701 | C13: Local Spending | D13: =Calculations!F134 -> 0 | BB13: Number of Production Wells | BC13: 1.863976701 | BD13: Local Spending | BE13: 0
A14: Number of Injection Wells | B14: =ProjectData!G20 -> 0.9319883504 | C14: Debt and Equity Payments | D14: =Calculations!F129+Calculations!F130+Calculations!F131 -> 0 | BB14: Number of Injection Wells | BC14: 0.9319883504 | BD14: Debt and Equity Payments | BE14: 0
A15: Production Well Flow Rate (kg/s) | B15: =ProjectData!B25 -> 80 | C15: Property Taxes | D15: =Calculations!F132 -> 0 | BB15: Production well flow rate (kg/s) | BC15: 80 | BD15: Property Taxes | BE15: 0
A16: Well Flow (lb/hr) | B16: =ProjectData!G21 -> 634930.56 | C16: Land Lease | D16: =Calculations!F133 -> 0 | BB16: Well flow (lb/hr) | BC16: 634930.56 | BD16: Land Lease | BE16: 0
A17: Total Flow (lb/hr) | B17: =ProjectData!G22 -> 1183495.771 | BB17: Total Flow (lb/hr) | BC17: 1183495.771
A20: Local Economic Impacts - Summary Results | BB20: Local Economic Impacts - Summary Results
B21: Jobs (FTE) | C21: =CONCATENATE("Earnings (Millions of $",$D$6,")") -> Earnings (Millions of $2010) | D21: =CONCATENATE("Output (Millions of $",D6,")") -> Output (Millions of $2010) | E21: =CONCATENATE("Value Added (Millions of $",D6,")") -> Value Added (Millions of $2010) | BC21: Jobs (FTE) | BD21: =CONCATENATE("Earnings (Millions of $",$D$6,")") -> Earnings (Millions of $2010) | BE21: =CONCATENATE("Output (Millions of $",$BE6,")") -> Output (Millions of $2010) | BF21: =CONCATENATE("Value Added (Millions of $",BE6,")") -> Value Added (Millions of $2010)
A22: During construction period | BB22: During construction period
A23: Project Development and Onsite Labor Impacts | B23: =Calculations!AG141 -> 71.36977704 | C23: =Calculations!AH141 -> 2.683140864 | D23: =Calculations!AI141 -> 4.024711296 | E23: =Calculations!AJ141 -> 2.683140864 | BB23: Project Development and Onsite Labor Impacts | BC23: =B23 -> 71.36977704 | BD23: =C23 -> 2.683140864 | BE23: =D23 -> 4.024711296 | BF23: =E23 -> 2.683140864
A24: Construction Labor | B24: =Calculations!AG142 -> 66.51870188 | C24: =Calculations!AH142 -> 2.255617663 | BB24: Construction Labor | BC24: =B24 -> 66.51870188 | BD24: =C24 -> 2.255617663
A25: Construction Related Services | B25: =Calculations!AG143 -> 4.851075168 | C25: =Calculations!AH143 -> 0.4275232008 | BB25: Construction Related Services | BC25: 4.851075168 | BD25: 0.4275232008
A26: Turbine and Supply Chain Impacts | B26: =Calculations!AG144 -> 49.79604611 | C26: =Calculations!AH144 -> 2.38652578 | D26: =Calculations!AI144 -> 11.22438168 | E26: =Calculations!AJ144 -> 3.869348763 | BB26: Turbine and Supply Chain Impacts | BC26: 49.79604611 | BD26: 2.38652578 | BE26: =D26 -> 11.22438168 | BF26: 3.869348763
A27: Induced Impacts | B27: =Calculations!AG145 -> 21.06312669 | C27: =Calculations!AH145 -> 0.7665944135 | D27: =Calculations!AI145 -> 2.461440251 | E27: =Calculations!AJ145 -> 1.305700037 | BB27: Induced Impacts | BC27: 21.06312669 | BD27: 0.7665944135 | BE27: 2.461440251 | BF27: 1.305700037
A28: Total Impacts | B28: =Calculations!AG146 -> 142.2289498 | C28: =Calculations!AH146 -> 5.836261058 | D28: =Calculations!AI146 -> 17.71053323 | E28: =Calculations!AJ146 -> 7.858189665 | BB28: Total Impacts | BC28: 142.2289498 | BD28: 5.836261058 | BE28: 17.71053323 | BF28: 7.858189665
A30: During operating years (annual) | BB30: During operating years (annual)
A31: Onsite Labor Impacts | B31: =Calculations!AG150 -> 7.856440652 | C31: =Calculations!AH150 -> 1.037682396 | D31: =Calculations!AI150 -> 1.037682396 | E31: =Calculations!AJ150 -> 1.037682396 | BB31: Onsite Labor Impacts | BC31: =B31 -> 7.856440652 | BD31: =C31 -> 1.037682396 | BE31: =D31 -> 1.037682396 | BF31: 1.037682396
A32: Local Revenue and Supply Chain Impacts | B32: =Calculations!AG151 -> 3.186448925 | C32: =Calculations!AH151 -> 0.1320127161 | D32: =Calculations!AI151 -> 1.491147558 | E32: =Calculations!AJ151 -> 0.2313317858 | BB32: Local Revenue and Supply Chain Impacts | BC32: 3.186448925 | BD32: 0.1320127161 | BE32: 1.491147558 | BF32: 0.2313317858
A33: Induced Impacts | B33: =Calculations!AG152 -> 2.949574504 | C33: =Calculations!AH152 -> 0.1142741583 | D33: =Calculations!AI152 -> 0.3669551489 | E33: =Calculations!AJ152 -> 0.1946493213 | BB33: Induced Impacts | BC33: 2.949574504 | BD33: 0.1142741583 | BE33: 0.3669551489 | BF33: 0.1946493213
A34: Total Impacts | B34: =Calculations!AG153 -> 13.99246408 | C34: =Calculations!AH153 -> 1.28396927 | D34: =Calculations!AI153 -> 2.895785103 | E34: =Calculations!AJ153 -> 1.463663503 | BB34: Total Impacts | BC34: 13.99246408 | BD34: 1.28396927 | BE34: 2.895785103 | BF34: 1.463663503
A35: =CONCATENATE("Notes: Earnings and Output values are millions of dollars in year ",ProjectData!B31, " dollars. Construction and operating jobs are full-") -> Notes: Earnings and Output values are millions of dollars in year 2010 dollars. Construction and operating jobs are full- | BB35: Notes: Earnings and Output values are millions of dollars in year 2010 dollars. Construction and operating jobs are full-
A36: time equivalent (FTE) for a period of one year (1 FTE = 2,080 hours). Plant workers includes operators, field technicians, administration and | BB36: time equivalent (FTE) for a period of one year (1 FTE = 2,080 hours). Plant workers includes operators, field technicians, administration and
A37: management. Economic impacts "During operating years" represent impacts that occur from plant and wellfield operations/expenditures. | BB37: management. Economic impacts "During operating years" represent impacts that occur from plant and wellfield operations/expenditures.
A38: The analysis does not include impacts associated with spending of plant "profits" and assumes no tax abatement unless noted. | BB38: The analysis does not include impacts associated with spending of plant "profits" and assumes no tax abatement unless noted.
A39: =CONCATENATE("Totals may not add up due to independent rounding. Results are based on user defined ",ProjectData!B11, " analysis.") -> Totals may not add up due to independent rounding. Results are based on user defined Advanced analysis. | BB39: Totals may not add up due to independent rounding. Results are based on user defined Advanced analysis.
A42: Detailed Geothermal Project Data Costs
A44: Model Inputs | B44: Cost | C44: Local Share | BB44: Detailed Geothermal Project Data Costs
A45: Permitting
A46: Environmental Analysis | B46: =Calculations!C3 -> 100000 | C46: =Calculations!D3 -> 0 | BB46: Model Inputs | BC46: Cost | BD46: Local Share
A47: Environmental Impact Assessment | B47: =Calculations!C4 -> 200000 | C47: =Calculations!D4 -> 0 | BB47: Permitting
A48: Transmission Line Permits | B48: =Calculations!C5 -> 0 | C48: =Calculations!D5 -> 0 | BB48: Environmental Analysis | BC48: =B46 -> 100000 | BD48: =C46 -> 0
A49: Land (Leasing, Acquisition) | B49: =Calculations!C6 -> 771980 | C49: =Calculations!D6 -> 0 | BB49: Environmental Impact Assessment | BC49: =B47 -> 200000 | BD49: 0
A50: Exploration (Pre-Drilling) | BB50: Transmission Line Permits | BC50: =B48 -> 0 | BD50: 0
A51: Geologist | B51: =Calculations!C8 -> 100000 | C51: =Calculations!D8 -> 1 | BB51: Land (Leasing, Acquisition) | BC51: =B49 -> 771980 | BD51: 0
A52: Geophysicist | B52: =Calculations!C9 -> 80000 | C52: =Calculations!D9 -> 0 | BB52: Exploration (Pre-Drilling)
A53: Geochemist | B53: =Calculations!C10 -> 50000 | C53: =Calculations!D10 -> 0 | BB53: Geologist | BC53: =B51 -> 100000 | BD53: 1
A54: Other Geo scientists | B54: =Calculations!C11 -> 75000 | C54: =Calculations!D11 -> 0 | BB54: Geophysicist | BC54: =B52 -> 80000 | BD54: 0
A55: Field Crew | B55: =Calculations!C12 -> 50000 | C55: =Calculations!D12 -> 0 | BB55: Geochemist | BC55: =B53 -> 50000 | BD55: 0
A56: Management/Administrative | B56: =Calculations!C13 -> 0 | C56: =Calculations!D13 -> 0 | BB56: Other Geo scientists | BC56: =B54 -> 75000 | BD56: 0
A57: Exploration Equipment, Tests, Surveys | B57: =Calculations!C14 -> 1000000 | C57: =Calculations!D14 -> 0 | BB57: Field Crew | BC57: =B55 -> 50000 | BD57: 0
A58: Total | B58: =Calculations!C15 -> 2426980 | BB58: Management/Administrative | BC58: =B56 -> 0 | BD58: 0
BB59: Exploration Equipment, Tests, Surveys | BC59: =B57 -> 1000000 | BD59: 0
A60: Exploration Drilling | BB60: Total | BC60: =B58 -> 2426980
A61: Geologist | B61: =Calculations!C18 -> 55862.78108 | C61: =Calculations!D18 -> 1
A62: Mud Engineer(s) | B62: =Calculations!C19 -> 63843.17838 | C62: =Calculations!D19 -> 0 | BB62: Exploration Drilling
A63: Drilling Fluids - Mud | B63: =Calculations!C20 -> 474833.6392 | C63: =Calculations!D20 -> 0 | BB63: Geologist | BC63: =B61 -> 55862.78108 | BD63: =C61 -> 1
A64: Directional Engineer and Motorman | B64: =Calculations!C21 -> 126888.317 | C64: =Calculations!D21 -> 0 | BB64: Mud Engineer(s) | BC64: 63843.17838 | BD64: 0
A65: Direction Tools and Services | B65: =Calculations!C22 -> 376259.7718 | C65: =Calculations!D22 -> 0 | BB65: Drilling Fluids - Mud | BC65: 474833.6392 | BD65: 0
A66: Drilling Engineering | B66: =Calculations!C23 -> 131441.8378 | C66: =Calculations!D23 -> 0 | BB66: Directional Engineer and Motorman | BC66: 126888.317 | BD66: 0
A67: Drill Rig Rate | B67: =Calculations!C24 -> 1197059.595 | C67: =Calculations!D24 -> 0 | BB67: Direction Tools and Services | BC67: 376259.7718 | BD67: 0
A68: Drill Hands - labor | B68: =Calculations!C25 -> 183868.3537 | C68: =Calculations!D25 -> 0 | BB68: Drilling Engineering | BC68: 131441.8378 | BD68: 0
A69: Management/Administrative | B69: =Calculations!C26 -> 10000 | C69: =Calculations!D26 -> 0 | BB69: Drill Rig Rate | BC69: 1197059.595 | BD69: 0
A70: Site Construction | B70: =Calculations!C27 -> 250000 | C70: =Calculations!D27 -> 1 | BB70: Drill Hands - labor | BC70: 183868.3537 | BD70: 0
A71: Material Costs - Cement and Casing | B71: =Calculations!C28 -> 1956206.25 | C71: =Calculations!D28 -> 1 | BB71: Management/Administrative | BC71: 10000 | BD71: 0
A72: Drilling Tools | B72: =Calculations!C29 -> 250000 | C72: =Calculations!D29 -> 0 | BB72: Site Construction | BC72: 250000 | BD72: 1
A73: Outside Services | B73: =Calculations!C30 -> 450000 | C73: =Calculations!D30 -> 0 | BB73: Material Costs - Cement and Casing | BC73: 1956206.25 | BD73: 1
A74: Move Services and equipment | B74: =Calculations!C31 -> 500000 | C74: =Calculations!D31 -> 1 | BB74: Drilling Tools | BC74: 250000 | BD74: 0
A75: Location Maintenance | B75: =Calculations!C32 -> 100000 | C75: =Calculations!D32 -> 1 | BB75: Outside Services | BC75: 450000 | BD75: 0
A76: Fuel | B76: =Calculations!C33 -> 250000 | C76: =Calculations!D33 -> 1 | BB76: Move Services and equipment | BC76: 500000 | BD76: 1
A77: Camp | B77: =Calculations!C34 -> 50000 | C77: =Calculations!D34 -> 1 | BB77: Location Maintenance | BC77: 100000 | BD77: 1
A78: Other Unallocated Costs | B78: =Calculations!C35 -> 0 | C78: =Calculations!D35 -> 0 | BB78: Fuel | BC78: 250000 | BD78: 1
A79: Total: | B79: =Calculations!C36 -> 6242395.37 | BB79: Camp | BC79: 50000 | BD79: 1
BB80: Other Unallocated Costs | BC80: 0 | BD80: 0
A81: Production Drilling | BB81: Total: | BC81: 6242395.37
A82: Geologist | B82: =Calculations!C39 -> 78095.19179 | C82: =Calculations!D39 -> 1
A83: Mud Engineer(s) | B83: =Calculations!C40 -> 89251.64776 | C83: =Calculations!D40 -> 0 | BB83: Production Drilling
A84: Drilling Fluids - Mud | B84: =Calculations!C41 -> 663809.1302 | C84: =Calculations!D41 -> 0 | BB84: Geologist | BC84: =B82 -> 78095.19179 | BD84: =C82 -> 1
A85: Directional Engineer and Motorman | B85: =Calculations!C42 -> 177387.6499 | C85: =Calculations!D42 -> 0 | BB85: Mud Engineer(s) | BC85: 89251.64776 | BD85: 0
A86: Direction Tools and Services | B86: =Calculations!C43 -> 526004.586 | C86: =Calculations!D43 -> 0 | BB86: Drilling Fluids - Mud | BC86: 663809.1302 | BD86: 0
A87: Drilling Engineering | B87: =Calculations!C44 -> 183753.3924 | C87: =Calculations!D44 -> 0 | BB87: Directional Engineer and Motorman | BC87: 177387.6499 | BD87: 0
A88: Drill Rig Rate | B88: =Calculations!C45 -> 1673468.395 | C88: =Calculations!D45 -> 0 | BB88: Direction Tools and Services | BC88: 526004.586 | BD88: 0
A89: Drill Hands - labor | B89: =Calculations!C46 -> 257044.7455 | C89: =Calculations!D46 -> 0 | BB89: Drilling Engineering | BC89: 183753.3924 | BD89: 0
A90: Management/Administrative | B90: =Calculations!C47 -> 13979.82526 | C90: =Calculations!D47 -> 0 | BB90: Drill Rig Rate | BC90: 1673468.395 | BD90: 0
A91: Site Construction | B91: =Calculations!C48 -> 349495.6314 | C91: =Calculations!D48 -> 1 | BB91: Drill Hands - labor | BC91: 257044.7455 | BD91: 0
A92: Material Costs - (Cement and Casing) | B92: =Calculations!C49 -> 2734742.154 | C92: =Calculations!D49 -> 1 | BB92: Management/Administrative | BC92: 13979.82526 | BD92: 0
A93: Drilling Tools | B93: =Calculations!C50 -> 349495.6314 | C93: =Calculations!D50 -> 0 | BB93: Site Construction | BC93: 349495.6314 | BD93: 1
A94: Outside Services | B94: =Calculations!C51 -> 629092.1365 | C94: =Calculations!D51 -> 0 | BB94: Material Costs - (Cement and Casing) | BC94: 2734742.154 | BD94: 1
A95: Move Services and equipment | B95: =Calculations!C52 -> 698991.2628 | C95: =Calculations!D52 -> 1 | BB95: Drilling Tools | BC95: 349495.6314 | BD95: 0
A96: Location Maintenance | B96: =Calculations!C53 -> 139798.2526 | C96: =Calculations!D53 -> 1 | BB96: Outside Services | BC96: 629092.1365 | BD96: 0
A97: Fuel | B97: =Calculations!C54 -> 349495.6314 | C97: =Calculations!D54 -> 1 | BB97: Move Services and equipment | BC97: 698991.2628 | BD97: 1
A98: Camp | B98: =Calculations!C55 -> 69899.12628 | C98: =Calculations!D55 -> 1 | BB98: Location Maintenance | BC98: 139798.2526 | BD98: 1
A99: Other Unallocated Costs | B99: =Calculations!C56 -> 2795965.051 | C99: =Calculations!D56 -> 0 | BB99: Fuel | BC99: 349495.6314 | BD99: 1
A100: Total: | B100: =Calculations!C57 -> 11522724.7 | BB100: Camp | BC100: 69899.12628 | BD100: 1
BB101: Other Unallocated Costs | BC101: 2795965.051 | BD101: 0
A102: Well Stimulation | BB102: Total: | BC102: 11522724.7
A103: Variable Costs
A104: Reservoir Engineer | B104: =Calculations!C61 -> 0 | C104: =Calculations!D61 -> 1 | BB104: Well Stimulation
A105: Geologist | B105: =Calculations!C62 -> 0 | C105: =Calculations!D62 -> 1 | BB105: Variable Costs
A106: Geophysicist | B106: =Calculations!C63 -> 0 | C106: =Calculations!D63 -> 0 | BB106: Reservoir Engineer | BC106: =B104 -> 0 | BD106: =C104 -> 1
A107: Drill Rig | B107: =Calculations!C64 -> 0 | C107: =Calculations!D64 -> 0 | BB107: Geologist | BC107: 0 | BD107: 1
A108: Drill Hands - labor | B108: =Calculations!C65 -> 0 | C108: =Calculations!D65 -> 0 | BB108: Geophysicist | BC108: 0 | BD108: 0
A109: Materials (proppant, water) | B109: =Calculations!C66 -> 0 | C109: =Calculations!D66 -> 1 | BB109: Drill Rig | BC109: 0 | BD109: 0
A110: Fuel | B110: =Calculations!C67 -> 0 | C110: =Calculations!D67 -> 1 | BB110: Drill Hands - labor | BC110: 0 | BD110: 0
A111: Subtotal | B111: =Calculations!C68 -> 0 | BB111: Materials (proppant, water) | BC111: 0 | BD111: 1
A112: Fixed Costs | BB112: Fuel | BC112: 0 | BD112: 1
A113: Injection Testing | B113: =Calculations!C70 -> 0 | C113: =Calculations!D70 -> 0 | BB113: Subtotal | BC113: 0
A114: Mobilization/Demobilization | B114: =Calculations!C71 -> 0 | C114: =Calculations!D71 -> 1 | BB114: Fixed Costs
A115: Water | B115: =Calculations!C72 -> 0 | C115: =Calculations!D72 -> 1 | BB115: Injection Testing | BC115: =B113 -> 0 | BD115: =C113 -> 0
A116: Downhole Logging | B116: =Calculations!C73 -> 0 | C116: =Calculations!D73 -> 0 | BB116: Mobilization/Demobilization | BC116: 0 | BD116: 1
A117: Subtotal | B117: =Calculations!C74 -> 0 | BB117: Water | BC117: 0 | BD117: 1
A118: Total: | B118: =Calculations!C75 -> 0 | BB118: Downhole Logging | BC118: 0 | BD118: 0
BB119: Subtotal | BC119: 0
A120: =CONCATENATE($B$9," Plant - Power Plant Costs") -> Binary Plant - Power Plant Costs | BB120: Total: | BC120: 0
A121: Labor
A122: Engineering - Design | B122: =Calculations!C79 -> 376789.4568 | C122: =Calculations!D79 -> 1 | BB122: =CONCATENATE($B$9," Plant - Power Plant Costs") -> Binary Plant - Power Plant Costs
A123: Laborers | B123: =Calculations!C80 -> 753578.9136 | C123: =Calculations!D80 -> 1 | BB123: Labor
A124: Mechanical | B124: =Calculations!C81 -> 753578.9136 | C124: =Calculations!D81 -> 1 | BB124: Engineering - Design | BC124: =B122 -> 376789.4568 | BD124: =C122 -> 1
A125: Electrical | B125: =Calculations!C82 -> 753578.9136 | C125: =Calculations!D82 -> 1 | BB125: Laborers | BC125: 753578.9136 | BD125: 1
A126: Management/Administrative | B126: =Calculations!C83 -> 1130368.37 | C126: =Calculations!D83 -> 0 | BB126: Mechanical | BC126: 753578.9136 | BD126: 1
A127: Total | B127: =Calculations!C84 -> 3767894.568 | BB127: Electrical | BC127: 753578.9136 | BD127: 1
A128: =IF($B$9="Flash","Binary Plant Equipment - not applicable","Binary Plant Equipment") -> Binary Plant Equipment | BB128: Management/Administrative | BC128: 1130368.37 | BD128: 0
A129: Turbines, Generators | B129: =Calculations!C86 -> 10048974.81 | C129: =Calculations!D86 -> 0 | BB129: Total | BC129: 3767894.568
A130: Air Cooled Condenser | B130: =Calculations!C87 -> 7477386.771 | C130: =Calculations!D87 -> 0 | BB130: =IF($B$9="Flash","Binary Plant Equipment - not applicable","Binary Plant Equipment") -> Binary Plant Equipment
A131: Well Field Pumps | B131: =Calculations!C88 -> 737847.9538 | C131: =Calculations!D88 -> 0 | BB131: Turbines, Generators | BC131: =B129 -> 10048974.81 | BD131: =C129 -> 0
A132: Geothermal Fluid Heat Exchangers | B132: =Calculations!C89 -> 1517236.945 | C132: =Calculations!D89 -> 0 | BB132: Air Cooled Condenser | BC132: 7477386.771 | BD132: 0
A133: Total | B133: =Calculations!C90 -> 19781446.48 | BB133: Well Field Pumps | BC133: 737847.9538 | BD133: 0
BB134: Total | BC134: =B133 -> 19781446.48
A135: =IF($B$9="Binary","Flash Plant Equipment - not applicable","Flash Plant Equipment") -> Flash Plant Equipment - not applicable
A136: Turbine Generator Cost | B136: =Calculations!C93 -> 0 | C136: =Calculations!D93 -> 0 | BB136: =IF($B$9="Binary","Flash Plant Equipment - not applicable","Flash Plant Equipment") -> Flash Plant Equipment - not applicable
A137: Flash Vessels | B137: =Calculations!C94 -> 0 | C137: =Calculations!D94 -> 0 | BB137: Turbine Generator Cost | BC137: =B136 -> 0 | BD137: =C136 -> 0
A138: Cooling Tower Cost | B138: =Calculations!C95 -> 0 | C138: =Calculations!D95 -> 0 | BB138: Flash Vessels | BC138: 0 | BD138: 0
A139: Condenser Cost | B139: =Calculations!C96 -> 0 | C139: =Calculations!D96 -> 0 | BB139: Cooling Tower Cost | BC139: 0 | BD139: 0
A140: Pump Costs | B140: =Calculations!C97 -> 0 | C140: =Calculations!D97 -> 0 | BB140: Condenser Cost | BC140: 0 | BD140: 0
A141: NCG Removal System | B141: =Calculations!C98 -> 0 | C141: =Calculations!D98 -> 0 | BB141: Pump Costs | BC141: 0 | BD141: 0
A142: H2S Removal System | B142: =Calculations!C99 -> 0 | C142: =Calculations!D99 -> 0 | BB142: NCG Removal System | BC142: 0 | BD142: 0
A143: Total | B143: =Calculations!C100 -> 0 | BB143: H2S Removal System | BC143: 0 | BD143: 0
A144: Project Cost | B144: =Calculations!C101 -> 43741441.12 | BB144: Total | BC144: 0
A145: Contingency Cost | B145: =Calculations!C102 -> 2187072.056 | BB145: Project Cost | BC145: 43741441.12
A146: Total Installed Plant Cost | B146: =Calculations!C103 -> 45928513.17 | BB146: Contingency Cost | BC146: 2187072.056
BB147: Total Installed Plant Cost | BC147: 45928513.17
A148: =CONCATENATE($B$9," Plant O&M Costs") -> Binary Plant O&M Costs
A149: Labor Costs | BB149: =CONCATENATE($B$9," Plant O&M Costs") -> Binary Plant O&M Costs
A150: Field labor | B150: =Calculations!C107 -> 119164.4886 | C150: =Calculations!D107 -> 1 | BB150: Labor Costs
A151: Plant Labor | B151: =Calculations!C108 -> 918517.9074 | C151: =Calculations!D108 -> 1 | BB151: Field labor | BC151: =B150 -> 119164.4886 | BD151: =C150 -> 1
A152: Subtotal Labor Costs | B152: =Calculations!C109 -> 1037682.396 | BB152: Plant Labor | BC152: 918517.9074 | BD152: 1
A153: Other Plant Costs | BB153: Subtotal Labor Costs | BC153: 1037682.396
A154: Equipment | B154: =Calculations!C111 -> 470986.821 | C154: =Calculations!D111 -> 0 | BB154: Other Plant Costs
A155: Services | B155: =Calculations!C112 -> 0 | C155: =Calculations!D112 -> 0 | BB155: Equipment | BC155: 470986.821 | BD155: 0
A156: Fees, Permits, Licenses | B156: =Calculations!C113 -> 0 | C156: =Calculations!D113 -> 0 | BB156: Services | BC156: 0 | BD156: 0
A157: Insurance | B157: =Calculations!C114 -> 0 | C157: =Calculations!D114 -> 0 | BB157: Fees, Permits, Licenses | BC157: 0 | BD157: 0
A158: Consumables/Tools and Misc. Supplies | B158: =Calculations!C115 -> 0 | C158: =Calculations!D115 -> 0 | BB158: Insurance | BC158: 0 | BD158: 0
A159: Other | B159: =Calculations!C116 -> 0 | C159: =Calculations!D116 -> 0 | BB159: Consumables/Tools and Misc. Supplies | BC159: 0 | BD159: 0
A160: Subtotal Other Plant Costs | B160: =Calculations!C117 -> 470986.821 | BB160: Other | BC160: 0
A161: Other Wellfield Costs | BB161: Subtotal Other Plant Costs | BC161: 470986.821
A162: Equipment | B162: =Calculations!C119 -> 680265.9144 | C162: =Calculations!D119 -> 0 | BB162: Other Wellfield Costs
A163: Services | B163: =Calculations!C120 -> 0 | C163: =Calculations!D120 -> 0 | BB163: Equipment | BC163: 680265.9144 | BD163: 0
A164: Fuel (motor vehicle gasoline) | B164: =Calculations!C121 -> 0 | C164: =Calculations!D121 -> 0 | BB164: Services | BC164: 0 | BD164: 0
A165: Consumables/Tools and Misc. Supplies | B165: =Calculations!C122 -> 0 | C165: =Calculations!D122 -> 0 | BB165: Fuel (motor vehicle gasoline) | BC165: 0 | BD165: 0
A166: Other | B166: =Calculations!C123 -> 0 | C166: =Calculations!D123 -> 0 | BB166: Consumables/Tools and Misc. Supplies | BC166: 0 | BD166: 0
A167: Subtotal Other Wellfield Costs | B167: =Calculations!C124 -> 680265.9144 | C167: =Calculations!D124 -> 0 | BB167: Other | BC167: 0 | BD167: 0
A168: Total Plant O&M (Plant and Labor) | B168: =Calculations!C125 -> 1389504.728 | BB168: Subtotal Other Wellfield Costs | BC168: 680265.9144
A169: Total Wellfield O&M (Wellfield and Labor) | B169: =Calculations!C126 -> 799430.403 | BB169: Total Plant O&M (Plant and Labor) | BC169: 1389504.728
A170: Total O&M (without debt, equity, taxes, or lease pmts.) | B170: =Calculations!C127 -> 2188935.131 | BB170: Total Wellfield O&M (Wellfield and Labor) | BC170: 799430.403
BB171: Total O&M (without debt, equity, taxes, or lease pmts.) | BC171: =B170 -> 2188935.131
A172: Debt Payment (average annual) | B172: =Calculations!C129 -> 4226876.566 | C172: =Calculations!D129 -> 0
A173: Equity Payment - Individuals | B173: =Calculations!C130 -> 0 | C173: =Calculations!D130 -> 1 | BB173: Debt Payment (average annual) | BC173: 4226876.566 | BD173: 0
A174: Equity Payment - Corporate | B174: =Calculations!C131 -> 6335106.08 | C174: =Calculations!D131 -> 0 | BB174: Equity Payment - Individuals | BC174: 0 | BD174: 1
A175: Property Taxes | B175: =Calculations!C132 -> 0 | C175: =Calculations!D132 -> 1 | BB175: Equity Payment - Corporate | BC175: 6335106.08 | BD175: 0
A176: Land Lease | B176: =Calculations!C133 -> 12100 | C176: =Calculations!D133 -> 0 | BB176: Property Taxes | BC176: 0 | BD176: 1
A177: Total Annual Operating and Maintenance Costs | B177: =Calculations!C134 -> 12763017.78 | BB177: Land Lease | BC177: 12100 | BD177: 0
BB178: Total Annual Operating and Maintenance Costs | BC178: 12763017.78
A179: Other Input Parameters
A180: Financial Parameters | C180: Local Share | BB180: Other Input Parameters
A181: Debt Financing | BB181: Financial Parameters | BD181: Local Share
A182: Percentage financed | B182: =Calculations!C308 -> 0.7 | C182: =Calculations!E308 -> 0 | BB182: Debt Financing
A183: Years financed (term) | B183: =Calculations!C309 -> 15 | BB183: Percentage financed | BC183: =B182 -> 0.7 | BD183: =C182 -> 0
A184: Interest rate | B184: =Calculations!C310 -> 0.1 | BB184: Years financed (term) | BC184: =B183 -> 15
A185: Equity Financing | BB185: Interest rate | BC185: 0.1
A186: Percentage equity | B186: =Calculations!C312 -> 0.3 | BB186: Equity Financing
A187: Individual Investors (percent of total equity) | B187: =Calculations!C313 -> 0 | C187: =Calculations!E313 -> 1 | BB187: Percentage equity | BC187: =B186 -> 0.3
A188: Corporate Investors (percent of total equity) | B188: =Calculations!C314 -> 1 | C188: =Calculations!E314 -> 0 | BB188: Individual Investors (percent of total equity) | BC188: 0 | BD188: 1
A189: Return on equity (annual interest rate) | B189: =Calculations!C315 -> 0.16 | BB189: Corporate Investors (percent of total equity) | BC189: 1 | BD189: 0
A190: Repayment term (years) | B190: =Calculations!C316 -> 10 | BB190: Return on equity (annual interest rate) | BC190: 0.16
A191: Tax Parameters | BB191: Repayment term (years) | BC191: 10
A192: Local Property/Other Tax Rate (percent of taxable value) | B192: =Calculations!C318 -> 0 | BB192: Tax Parameters
A193: Assessed value (percent of construction cost) | B193: =Calculations!C319 -> 0 | BB193: Local Property/Other Tax Rate (percent of taxable value) | BC193: =B192 -> 0
A194: Taxable Value (percent of assessed value) | B194: =Calculations!C320 -> 0 | BB194: Assessed value (percent of construction cost) | BC194: 0
A195: Taxable Value | B195: =Calculations!C321 -> 0 | BB195: Taxable Value (percent of assessed value) | BC195: 0
A196: Local Taxes | B196: =Calculations!C322 -> 0 | C196: =Calculations!E322 -> 1 | BB196: Taxable Value | BC196: 0
A197: Land Lease Parameters | BB197: Local Taxes | BC197: 0 | BD197: =C196 -> 1
A198: Land Lease (acres) | B198: =Calculations!C324 -> 2420 | BB198: Land Lease Parameters
A199: Initial Land Lease/Acquisition Cost (per acre) | B199: =Calculations!C325 -> 319 | BB199: Land Lease (acres) | BC199: =B198 -> 2420
A200: Initial Land Lease/Acquisition Cost (total cost before production) | B200: =Calculations!C326 -> 771980 | BB200: Initial Land Lease/Acquisition Cost (per acre) | BC200: 319
A201: Land Lease Cost (per acre per year during production) | B201: =Calculations!C327 -> 5 | BB201: Initial Land Lease/Acquisition Cost (total cost before production) | BC201: 771980
A202: Land Lease Cost (total cost per year during production) | B202: =Calculations!C328 -> 12100 | BB202: Land Lease Cost (per acre per year during production) | BC202: 5
A203: Lease Payment Recipient (H = household/private, P = Public) | B203: =Calculations!C329 -> P | C203: =Calculations!E329 -> 0 | BB203: Land Lease Cost (total cost per year during production) | BC203: 12100
BB204: Lease Payment Recipient (H = household/private, P = Public) | BC204: P | BD204: =C203 -> 0
A205: Exploration, Production, Stimulation and Construction Related Services/Labor Input Parameters
A206: Labor multiplier (employer costs and overhead) | B206: =Calculations!C332 -> 1.5 | BB206: Exploration, Production, Stimulation and Construction Related Services/Labor Input Parameters
A207: Labor Rates | C207: Power Plant Labor Rates | D207: Wage Per Hour | BB207: Labor multiplier (employer costs and overhead) | BC207: =B206 -> 1.5
... 20 more rows

Sheet User Add-in Location
A1: Multipliers For Economic Input-Output Analysis
A3: MyCounty (name) | C3: Year of Data | E3: =IF(B3="","",IF(D3="","Enter Year of Data",IF(D3>2006,IF(D3<2016,"","ERROR - Deflators Data Not Current"),"ERROR - Deflators Data Not Current"))) -> 
A4: MyRegion (includes) | C4: Year of Data | E4: =IF(B4="","",IF(D4="","Enter Year of Data",IF(D4>2006,IF(D4<2016,"","ERROR - Deflators Data Not Current"),"ERROR - Deflators Data Not Current"))) -> 
A8: Jobs Per Million Dollars Change in Final Demand | D8: Personal Consumption Expenditures (PCE)
A9: Jobs Direct Multipliers | B9: MyCounty | C9: MyRegion | E9: MyCounty | F9: MyRegion
A10: Agriculture | B10: 0 | C10: 0 | E10: 0 | F10: 0
A11: Mining | B11: 0 | C11: 0 | E11: 0 | F11: 0
A12: Construction | B12: 0 | C12: 0 | E12: 0 | F12: 0
A13: Manufacturing | B13: 0 | C13: 0 | E13: 0 | F13: 0
A14: Fabricated Metals | B14: 0 | C14: 0 | E14: 0 | F14: 0
A15: Machinery | B15: 0 | C15: 0 | E15: 0 | F15: 0
A16: Electrical Equipment | B16: 0 | C16: 0 | E16: 0 | F16: 0
A17: TCPU | B17: 0 | C17: 0 | E17: 0 | F17: 0
A18: Wholesale Trade | B18: 0 | C18: 0 | E18: 0 | F18: 0
A19: Retail Trade | B19: 0 | C19: 0 | E19: 0 | F19: 0
A20: FIRE | B20: 0 | C20: 0 | E20: 0 | F20: 0
A21: Misc. Services | B21: 0 | C21: 0 | E21: 0 | F21: 0
A22: Professional Services | B22: 0 | C22: 0 | E22: 0 | F22: 0
A23: Government | B23: 0 | C23: 0 | E23: 0 | F23: 0
D24: Total | E24: 0 | F24: 0
A25: Jobs Per Million Dollars Change in Final Demand
A26: Jobs Indirect Multipliers | B26: MyCounty | C26: MyRegion
A27: Agriculture | B27: 0 | C27: 0
A28: Mining | B28: 0 | C28: 0
A29: Construction | B29: 0 | C29: 0
A30: Manufacturing | B30: 0 | C30: 0
A31: Fabricated Metals | B31: 0 | C31: 0
A32: Machinery | B32: 0 | C32: 0
A33: Electrical Equipment | B33: 0 | C33: 0
A34: TCPU | B34: 0 | C34: 0
A35: Wholesale Trade | B35: 0 | C35: 0
A36: Retail Trade | B36: 0 | C36: 0
A37: FIRE | B37: 0 | C37: 0
A38: Misc. Services | B38: 0 | C38: 0
A39: Professional Services | B39: 0 | C39: 0
A40: Government | B40: 0 | C40: 0
A42: Jobs Per Million Dollars Change in Final Demand
A43: Jobs Induced Multipliers | B43: MyCounty | C43: MyRegion
A44: Agriculture | B44: 0 | C44: 0
A45: Mining | B45: 0 | C45: 0
A46: Construction | B46: 0 | C46: 0
A47: Manufacturing | B47: 0 | C47: 0
A48: Fabricated Metals | B48: 0 | C48: 0
A49: Machinery | B49: 0 | C49: 0
A50: Electrical Equipment | B50: 0 | C50: 0
A51: TCPU | B51: 0 | C51: 0
A52: Wholesale Trade | B52: 0 | C52: 0
A53: Retail Trade | B53: 0 | C53: 0
A54: FIRE | B54: 0 | C54: 0
A55: Misc. Services | B55: 0 | C55: 0
A56: Professional Services | B56: 0 | C56: 0
A57: Government | B57: 0 | C57: 0
A59: Earnings Per Million Dollars Change in Final Demand
A60: Earnings Direct Multipliers | B60: MyCounty | C60: MyRegion
A61: Agriculture | B61: 0 | C61: 0
A62: Mining | B62: 0 | C62: 0
A63: Construction | B63: 0 | C63: 0
A64: Manufacturing | B64: 0 | C64: 0
A65: Fabricated Metals | B65: 0 | C65: 0
A66: Machinery | B66: 0 | C66: 0
A67: Electrical Equipment | B67: 0 | C67: 0
A68: TCPU | B68: 0 | C68: 0
A69: Wholesale Trade | B69: 0 | C69: 0
A70: Retail Trade | B70: 0 | C70: 0
A71: FIRE | B71: 0 | C71: 0
A72: Misc. Services | B72: 0 | C72: 0
A73: Professional Services | B73: 0 | C73: 0
A74: Government | B74: 0 | C74: 0
A76: Earnings Per Million Dollars Change in Final Demand
A77: Earnings Indirect Multipliers | B77: MyCounty | C77: MyRegion
A78: Agriculture | B78: 0 | C78: 0
A79: Mining | B79: 0 | C79: 0
A80: Construction | B80: 0 | C80: 0
A81: Manufacturing | B81: 0 | C81: 0
A82: Fabricated Metals | B82: 0 | C82: 0
A83: Machinery | B83: 0 | C83: 0
A84: Electrical Equipment | B84: 0 | C84: 0
A85: TCPU | B85: 0 | C85: 0
A86: Wholesale Trade | B86: 0 | C86: 0
A87: Retail Trade | B87: 0 | C87: 0
A88: FIRE | B88: 0 | C88: 0
A89: Misc. Services | B89: 0 | C89: 0
A90: Professional Services | B90: 0 | C90: 0
A91: Government | B91: 0 | C91: 0
A93: Earnings Per Million Dollars Change in Final Demand
A94: Earnings Induced Multipliers | B94: MyCounty | C94: MyRegion
A95: Agriculture | B95: 0 | C95: 0
A96: Mining | B96: 0 | C96: 0
A97: Construction | B97: 0 | C97: 0
A98: Manufacturing | B98: 0 | C98: 0
A99: Fabricated Metals | B99: 0 | C99: 0
A100: Machinery | B100: 0 | C100: 0
A101: Electrical Equipment | B101: 0 | C101: 0
A102: TCPU | B102: 0 | C102: 0
A103: Wholesale Trade | B103: 0 | C103: 0
A104: Retail Trade | B104: 0 | C104: 0
A105: FIRE | B105: 0 | C105: 0
A106: Misc. Services | B106: 0 | C106: 0
A107: Professional Services | B107: 0 | C107: 0
A108: Government | B108: 0 | C108: 0
A110: Output Per Million Dollars Change in Final Demand
A111: Output Direct Multipliers | B111: MyCounty | C111: MyRegion
A112: Agriculture | B112: 0 | C112: 0
A113: Mining | B113: 0 | C113: 0
A114: Construction | B114: 0 | C114: 0
A115: Manufacturing | B115: 0 | C115: 0
A116: Fabricated Metals | B116: 0 | C116: 0
A117: Machinery | B117: 0 | C117: 0
A118: Electrical Equipment | B118: 0 | C118: 0
A119: TCPU | B119: 0 | C119: 0
A120: Wholesale Trade | B120: 0 | C120: 0
A121: Retail Trade | B121: 0 | C121: 0
A122: FIRE | B122: 0 | C122: 0
A123: Misc. Services | B123: 0 | C123: 0
A124: Professional Services | B124: 0 | C124: 0
A125: Government | B125: 0 | C125: 0
A127: Output Per Million Dollars Change in Final Demand
A128: Output Indirect Multipliers | B128: MyCounty | C128: MyRegion
A129: Agriculture | B129: 0 | C129: 0
A130: Mining | B130: 0 | C130: 0
A131: Construction | B131: 0 | C131: 0
A132: Manufacturing | B132: 0 | C132: 0
A133: Fabricated Metals | B133: 0 | C133: 0
A134: Machinery | B134: 0 | C134: 0
A135: Electrical Equipment | B135: 0 | C135: 0
A136: TCPU | B136: 0 | C136: 0
A137: Wholesale Trade | B137: 0 | C137: 0
A138: Retail Trade | B138: 0 | C138: 0
A139: FIRE | B139: 0 | C139: 0
A140: Misc. Services | B140: 0 | C140: 0
A141: Professional Services | B141: 0 | C141: 0
A142: Government | B142: 0 | C142: 0
A144: Output Per Million Dollars Change in Final Demand
A145: Output Induced Multipliers | B145: MyCounty | C145: MyRegion
A146: Agriculture | B146: 0 | C146: 0
A147: Mining | B147: 0 | C147: 0
A148: Construction | B148: 0 | C148: 0
A149: Manufacturing | B149: 0 | C149: 0
A150: Fabricated Metals | B150: 0 | C150: 0
A151: Machinery | B151: 0 | C151: 0
A152: Electrical Equipment | B152: 0 | C152: 0
A153: TCPU | B153: 0 | C153: 0
A154: Wholesale Trade | B154: 0 | C154: 0
A155: Retail Trade | B155: 0 | C155: 0
A156: FIRE | B156: 0 | C156: 0
A157: Misc. Services | B157: 0 | C157: 0
A158: Professional Services | B158: 0 | C158: 0
A159: Government | B159: 0 | C159: 0
A161: Value Added Per Million Dollars Change in Final Demand
A162: Value Added Direct Multipliers | B162: MyCounty | C162: MyRegion
A163: Agriculture | B163: 0 | C163: 0
A164: Mining | B164: 0 | C164: 0
A165: Construction | B165: 0 | C165: 0
A166: Manufacturing | B166: 0 | C166: 0
A167: Fabricated Metals | B167: 0 | C167: 0
A168: Machinery | B168: 0 | C168: 0
A169: Electrical Equipment | B169: 0 | C169: 0
A170: TCPU | B170: 0 | C170: 0
A171: Wholesale Trade | B171: 0 | C171: 0
A172: Retail Trade | B172: 0 | C172: 0
A173: FIRE | B173: 0 | C173: 0
A174: Misc. Services | B174: 0 | C174: 0
A175: Professional Services | B175: 0 | C175: 0
A176: Government | B176: 0 | C176: 0
A178: Value Added Per Million Dollars Change in Final Demand
A179: Value Added Indirect Multipliers | B179: MyCounty | C179: MyRegion
A180: Agriculture | B180: 0 | C180: 0
A181: Mining | B181: 0 | C181: 0
A182: Construction | B182: 0 | C182: 0
A183: Manufacturing | B183: 0 | C183: 0
A184: Fabricated Metals | B184: 0 | C184: 0
A185: Machinery | B185: 0 | C185: 0
A186: Electrical Equipment | B186: 0 | C186: 0
A187: TCPU | B187: 0 | C187: 0
A188: Wholesale Trade | B188: 0 | C188: 0
A189: Retail Trade | B189: 0 | C189: 0
A190: FIRE | B190: 0 | C190: 0
A191: Misc. Services | B191: 0 | C191: 0
A192: Professional Services | B192: 0 | C192: 0
A193: Government | B193: 0 | C193: 0
A195: Value Added Per Million Dollars Change in Final Demand
A196: Value Added Induced Multipliers | B196: MyCounty | C196: MyRegion
A197: Agriculture | B197: 0 | C197: 0
A198: Mining | B198: 0 | C198: 0
A199: Construction | B199: 0 | C199: 0
A200: Manufacturing | B200: 0 | C200: 0
A201: Fabricated Metals | B201: 0 | C201: 0
A202: Machinery | B202: 0 | C202: 0
A203: Electrical Equipment | B203: 0 | C203: 0
A204: TCPU | B204: 0 | C204: 0
A205: Wholesale Trade | B205: 0 | C205: 0
A206: Retail Trade | B206: 0 | C206: 0
A207: FIRE | B207: 0 | C207: 0
A208: Misc. Services | B208: 0 | C208: 0
A209: Professional Services | B209: 0 | C209: 0
A210: Government | B210: 0 | C210: 0
O683: ALABAMA
O684: ALASKA
O685: ARIZONA
O686: ARKANSAS
... 47 more rows

Sheet Calculations
D1: =ProjectData!B13 -> IDAHO | F1: =ProjectData!B31 -> 2010
B2: Permitting | C2: Cost | D2: LocalShare | F2: Cost | G2: W/Contingency | I2: ProServ | J2: ConServ | K2: Serv | L2: Mat | M2: Other | N2: Total
B3: Environmental Analysis | C3: =IF(ProjectData!$B$11="Simple",'Default Data'!M35,ProjectData!D36) -> 100000 | D3: =IF(ProjectData!$B$11="Simple",'Default Data'!H35,ProjectData!F36) -> 0 | F3: =D3*C3 -> 0 | G3: =IF(ProjectData!B$11="Simple",F3*(1+'Rates & Misc'!C$6),F3*(1+ProjectData!B$29)) -> 0 | H3: =G3-F3 -> 0 | I3: =IF('Default Data'!AM35>0,(('Default Data'!AM35/'Default Data'!$AG35)*$G3),0) -> 0 | J3: =IF('Default Data'!AN35>0,(('Default Data'!AN35/'Default Data'!$AG35)*$G3),0) -> 0 | K3: =IF('Default Data'!AO35>0,(('Default Data'!AO35/'Default Data'!$AG35)*$G3),0) -> 0 | L3: =IF('Default Data'!AP35>0,(('Default Data'!AP35/'Default Data'!$AG35)*$G3),0) -> 0 | M3: =IF('Default Data'!AQ35>0,(('Default Data'!AQ35/'Default Data'!$AG35)*$G3),0) -> 0 | N3: =SUM(I3:M3) -> 0
B4: Environmental Impact Assessment | C4: =IF(ProjectData!$B$11="Simple",'Default Data'!M36,ProjectData!D37) -> 200000 | D4: =IF(ProjectData!$B$11="Simple",'Default Data'!H36,ProjectData!F37) -> 0 | F4: =D4*C4 -> 0 | G4: =IF(ProjectData!B$11="Simple",F4*(1+'Rates & Misc'!C$6),F4*(1+ProjectData!B$29)) -> 0 | H4: 0 | I4: =IF('Default Data'!AM36>0,(('Default Data'!AM36/'Default Data'!$AG36)*$G4),0) -> 0 | J4: =IF('Default Data'!AN36>0,(('Default Data'!AN36/'Default Data'!$AG36)*$G4),0) -> 0 | K4: =IF('Default Data'!AO36>0,(('Default Data'!AO36/'Default Data'!$AG36)*$G4),0) -> 0 | L4: =IF('Default Data'!AP36>0,(('Default Data'!AP36/'Default Data'!$AG36)*$G4),0) -> 0 | M4: =IF('Default Data'!AQ36>0,(('Default Data'!AQ36/'Default Data'!$AG36)*$G4),0) -> 0 | N4: =SUM(I4:M4) -> 0 | P4: Default | R4: User
A5: Warning | B5: Transmission Line Permits | C5: =IF(ProjectData!$B$11="Simple",'Default Data'!M37,ProjectData!D38) -> 0 | D5: =IF(ProjectData!$B$11="Simple",'Default Data'!H37,ProjectData!F38) -> 0 | F5: =D5*C5 -> 0 | G5: =IF(ProjectData!B$11="Simple",F5*(1+'Rates & Misc'!C$6),F5*(1+ProjectData!B$29)) -> 0 | H5: 0 | I5: =IF('Default Data'!AM37>0,(('Default Data'!AM37/'Default Data'!$AG37)*$G5),0) -> 0 | J5: =IF('Default Data'!AN37>0,(('Default Data'!AN37/'Default Data'!$AG37)*$G5),0) -> 0 | K5: =IF('Default Data'!AO37>0,(('Default Data'!AO37/'Default Data'!$AG37)*$G5),0) -> 0 | L5: =IF('Default Data'!AP37>0,(('Default Data'!AP37/'Default Data'!$AG37)*$G5),0) -> 0 | M5: =IF('Default Data'!AQ37>0,(('Default Data'!AQ37/'Default Data'!$AG37)*$G5),0) -> 0 | N5: 0 | P5: Household/Private | Q5: Public | R5: Household/Private | S5: Public
B6: Land (Leasing, Acquisition) | C6: =IF(ProjectData!$B$11="Simple",'Default Data'!M38,ProjectData!D39) -> 771980 | D6: =IF(ProjectData!$B$11="Simple",'Default Data'!H38,ProjectData!F39) -> 0 | F6: =D6*C6 -> 0 | G6: =IF(ProjectData!B$11="Simple",F6*(1+'Rates & Misc'!C$6),F6*(1+ProjectData!B$29)) -> 0 | H6: 0 | I6: =IF('Default Data'!AM38>0,(('Default Data'!AM38/'Default Data'!$AG38)*$G6),0) -> 0 | J6: =IF('Default Data'!AN38>0,(('Default Data'!AN38/'Default Data'!$AG38)*$G6),0) -> 0 | K6: =IF('Default Data'!AO38>0,(('Default Data'!AO38/'Default Data'!$AG38)*$G6),0) -> 0 | L6: =IF('Default Data'!AP38>0,(('Default Data'!AP38/'Default Data'!$AG38)*$G6),0) -> 0 | M6: =IF('Default Data'!AQ38>0,(('Default Data'!AQ38/'Default Data'!$AG38)*$G6),0) -> 0 | N6: 0 | P6: =IF('Default Data'!$C232="H",Calculations!$N6,0) -> 0 | Q6: =IF('Default Data'!$C232="P",Calculations!$N6,0) -> 0 | R6: =IF(ProjectData!$B187="H",Calculations!$N6,0) -> 0 | S6: =IF(ProjectData!$B187="P",Calculations!$N6,0) -> 0
A7: This Worksheet contains Data and Formulas that are an integral part of the JEDI model. | B7: Exploration (Pre-Drilling) | H7: 0 | I7: =IF('Default Data'!AM39>0,(('Default Data'!AM39/'Default Data'!$AG39)*$G7),0) -> 0 | J7: =IF('Default Data'!AN39>0,(('Default Data'!AN39/'Default Data'!$AG39)*$G7),0) -> 0 | K7: =IF('Default Data'!AO39>0,(('Default Data'!AO39/'Default Data'!$AG39)*$G7),0) -> 0 | L7: =IF('Default Data'!AP39>0,(('Default Data'!AP39/'Default Data'!$AG39)*$G7),0) -> 0 | M7: =IF('Default Data'!AQ39>0,(('Default Data'!AQ39/'Default Data'!$AG39)*$G7),0) -> 0 | N7: 0 | P7: =IF(ProjectData!$B$11="Simple",P6,R6) -> 0 | R7: =IF(ProjectData!$B$11="Simple",Q6,S6) -> 0
B8: Geologist | C8: =IF(ProjectData!$B$11="Simple",'Default Data'!M40,ProjectData!D41) -> 100000 | D8: =IF(ProjectData!$B$11="Simple",'Default Data'!H40,ProjectData!F41) -> 1 | F8: =D8*C8 -> 100000 | G8: =IF(ProjectData!B$11="Simple",F8*(1+'Rates & Misc'!C$6),F8*(1+ProjectData!B$29)) -> 105000 | H8: 5000 | I8: =IF('Default Data'!AM40>0,(('Default Data'!AM40/'Default Data'!$AG40)*$G8),0) -> 105000 | J8: =IF('Default Data'!AN40>0,(('Default Data'!AN40/'Default Data'!$AG40)*$G8),0) -> 0 | K8: =IF('Default Data'!AO40>0,(('Default Data'!AO40/'Default Data'!$AG40)*$G8),0) -> 0 | L8: =IF('Default Data'!AP40>0,(('Default Data'!AP40/'Default Data'!$AG40)*$G8),0) -> 0 | M8: =IF('Default Data'!AQ40>0,(('Default Data'!AQ40/'Default Data'!$AG40)*$G8),0) -> 0 | N8: 105000
A9: Although the data and formulas are available for review they must not be changed. | B9: Geophysicist | C9: =IF(ProjectData!$B$11="Simple",'Default Data'!M41,ProjectData!D42) -> 80000 | D9: =IF(ProjectData!$B$11="Simple",'Default Data'!H41,ProjectData!F42) -> 0 | F9: 0 | G9: =IF(ProjectData!B$11="Simple",F9*(1+'Rates & Misc'!C$6),F9*(1+ProjectData!B$29)) -> 0 | H9: 0 | I9: =IF('Default Data'!AM41>0,(('Default Data'!AM41/'Default Data'!$AG41)*$G9),0) -> 0 | J9: =IF('Default Data'!AN41>0,(('Default Data'!AN41/'Default Data'!$AG41)*$G9),0) -> 0 | K9: =IF('Default Data'!AO41>0,(('Default Data'!AO41/'Default Data'!$AG41)*$G9),0) -> 0 | L9: =IF('Default Data'!AP41>0,(('Default Data'!AP41/'Default Data'!$AG41)*$G9),0) -> 0 | M9: =IF('Default Data'!AQ41>0,(('Default Data'!AQ41/'Default Data'!$AG41)*$G9),0) -> 0 | N9: 0
B10: Geochemist | C10: =IF(ProjectData!$B$11="Simple",'Default Data'!M42,ProjectData!D43) -> 50000 | D10: =IF(ProjectData!$B$11="Simple",'Default Data'!H42,ProjectData!F43) -> 0 | F10: 0 | G10: =IF(ProjectData!B$11="Simple",F10*(1+'Rates & Misc'!C$6),F10*(1+ProjectData!B$29)) -> 0 | H10: 0 | I10: =IF('Default Data'!AM42>0,(('Default Data'!AM42/'Default Data'!$AG42)*$G10),0) -> 0 | J10: =IF('Default Data'!AN42>0,(('Default Data'!AN42/'Default Data'!$AG42)*$G10),0) -> 0 | K10: =IF('Default Data'!AO42>0,(('Default Data'!AO42/'Default Data'!$AG42)*$G10),0) -> 0 | L10: =IF('Default Data'!AP42>0,(('Default Data'!AP42/'Default Data'!$AG42)*$G10),0) -> 0 | M10: =IF('Default Data'!AQ42>0,(('Default Data'!AQ42/'Default Data'!$AG42)*$G10),0) -> 0 | N10: 0
A11: Any changes to the data or formulas will impact the analysis and may invalidate the model results. | B11: Other Geo scientists | C11: =IF(ProjectData!$B$11="Simple",'Default Data'!M43,ProjectData!D44) -> 75000 | D11: =IF(ProjectData!$B$11="Simple",'Default Data'!H43,ProjectData!F44) -> 0 | F11: 0 | G11: =IF(ProjectData!B$11="Simple",F11*(1+'Rates & Misc'!C$6),F11*(1+ProjectData!B$29)) -> 0 | H11: 0 | I11: =IF('Default Data'!AM43>0,(('Default Data'!AM43/'Default Data'!$AG43)*$G11),0) -> 0 | J11: =IF('Default Data'!AN43>0,(('Default Data'!AN43/'Default Data'!$AG43)*$G11),0) -> 0 | K11: =IF('Default Data'!AO43>0,(('Default Data'!AO43/'Default Data'!$AG43)*$G11),0) -> 0 | L11: =IF('Default Data'!AP43>0,(('Default Data'!AP43/'Default Data'!$AG43)*$G11),0) -> 0 | M11: =IF('Default Data'!AQ43>0,(('Default Data'!AQ43/'Default Data'!$AG43)*$G11),0) -> 0 | N11: 0
B12: Field Crew | C12: =IF(ProjectData!$B$11="Simple",'Default Data'!M44,ProjectData!D45) -> 50000 | D12: =IF(ProjectData!$B$11="Simple",'Default Data'!H44,ProjectData!F45) -> 0 | F12: 0 | G12: =IF(ProjectData!B$11="Simple",F12*(1+'Rates & Misc'!C$6),F12*(1+ProjectData!B$29)) -> 0 | H12: 0 | I12: =IF('Default Data'!AM44>0,(('Default Data'!AM44/'Default Data'!$AG44)*$G12),0) -> 0 | J12: =IF('Default Data'!AN44>0,(('Default Data'!AN44/'Default Data'!$AG44)*$G12),0) -> 0 | K12: =IF('Default Data'!AO44>0,(('Default Data'!AO44/'Default Data'!$AG44)*$G12),0) -> 0 | L12: =IF('Default Data'!AP44>0,(('Default Data'!AP44/'Default Data'!$AG44)*$G12),0) -> 0 | M12: =IF('Default Data'!AQ44>0,(('Default Data'!AQ44/'Default Data'!$AG44)*$G12),0) -> 0 | N12: 0
B13: Management/Administrative | C13: =IF(ProjectData!$B$11="Simple",'Default Data'!M45,ProjectData!D46) -> 0 | D13: =IF(ProjectData!$B$11="Simple",'Default Data'!H45,ProjectData!F46) -> 0 | F13: 0 | G13: =IF(ProjectData!B$11="Simple",F13*(1+'Rates & Misc'!C$6),F13*(1+ProjectData!B$29)) -> 0 | H13: 0 | I13: =IF('Default Data'!AM45>0,(('Default Data'!AM45/'Default Data'!$AG45)*$G13),0) -> 0 | J13: =IF('Default Data'!AN45>0,(('Default Data'!AN45/'Default Data'!$AG45)*$G13),0) -> 0 | K13: =IF('Default Data'!AO45>0,(('Default Data'!AO45/'Default Data'!$AG45)*$G13),0) -> 0 | L13: =IF('Default Data'!AP45>0,(('Default Data'!AP45/'Default Data'!$AG45)*$G13),0) -> 0 | M13: =IF('Default Data'!AQ45>0,(('Default Data'!AQ45/'Default Data'!$AG45)*$G13),0) -> 0 | N13: 0
B14: Exploration Equipment, Tests, Surveys | C14: =IF(ProjectData!$B$11="Simple",'Default Data'!M46,ProjectData!D47) -> 1000000 | D14: =IF(ProjectData!$B$11="Simple",'Default Data'!H46,ProjectData!F47) -> 0 | F14: 0 | G14: =IF(ProjectData!B$11="Simple",F14*(1+'Rates & Misc'!C$6),F14*(1+ProjectData!B$29)) -> 0 | H14: 0 | I14: =IF('Default Data'!AM46>0,(('Default Data'!AM46/'Default Data'!$AG46)*$G14),0) -> 0 | J14: =IF('Default Data'!AN46>0,(('Default Data'!AN46/'Default Data'!$AG46)*$G14),0) -> 0 | K14: =IF('Default Data'!AO46>0,(('Default Data'!AO46/'Default Data'!$AG46)*$G14),0) -> 0 | L14: =IF('Default Data'!AP46>0,(('Default Data'!AP46/'Default Data'!$AG46)*$G14),0) -> 0 | M14: =IF('Default Data'!AQ46>0,(('Default Data'!AQ46/'Default Data'!$AG46)*$G14),0) -> 0 | N14: 0
B15: Total | C15: =SUM(C3:C14) -> 2426980 | F15: =SUM(F3:F14) -> 100000 | G15: 105000 | H15: 5000 | I15: 105000 | J15: 0 | K15: 0 | L15: 0 | M15: 0 | N15: 105000
B17: 1. Exploration Drilling | I17: ProServ | J17: ConServ | K17: Serv | L17: Mat | M17: Other
B18: Geologist | C18: =IF(ProjectData!$B$11="Simple",'Default Data'!M50,ProjectData!D51) -> 55862.78108 | D18: =IF(ProjectData!$B$11="Simple",'Default Data'!H50,ProjectData!F51) -> 1 | F18: =D18*C18 -> 55862.78108 | G18: =IF(ProjectData!B$11="Simple",F18*(1+'Rates & Misc'!C$6),F18*(1+ProjectData!B$29)) -> 58655.92014 | H18: =G18-F18 -> 2793.139054 | I18: =IF('Default Data'!AM50>0,(('Default Data'!AM50/'Default Data'!$AG50)*$G18),0) -> 58655.92014 | J18: =IF('Default Data'!AN50>0,(('Default Data'!AN50/'Default Data'!$AG50)*$G18),0) -> 0 | K18: =IF('Default Data'!AO50>0,(('Default Data'!AO50/'Default Data'!$AG50)*$G18),0) -> 0 | L18: =IF('Default Data'!AP50>0,(('Default Data'!AP50/'Default Data'!$AG50)*$G18),0) -> 0 | M18: =IF('Default Data'!AQ50>0,(('Default Data'!AQ50/'Default Data'!$AG50)*$G18),0) -> 0 | N18: =SUM(I18:M18) -> 58655.92014
B19: Mud Engineer(s) | C19: =IF(ProjectData!$B$11="Simple",'Default Data'!M51,ProjectData!D52) -> 63843.17838 | D19: =IF(ProjectData!$B$11="Simple",'Default Data'!H51,ProjectData!F52) -> 0 | F19: 0 | G19: =IF(ProjectData!B$11="Simple",F19*(1+'Rates & Misc'!C$6),F19*(1+ProjectData!B$29)) -> 0 | H19: 0 | I19: =IF('Default Data'!AM51>0,(('Default Data'!AM51/'Default Data'!$AG51)*$G19),0) -> 0 | J19: =IF('Default Data'!AN51>0,(('Default Data'!AN51/'Default Data'!$AG51)*$G19),0) -> 0 | K19: =IF('Default Data'!AO51>0,(('Default Data'!AO51/'Default Data'!$AG51)*$G19),0) -> 0 | L19: =IF('Default Data'!AP51>0,(('Default Data'!AP51/'Default Data'!$AG51)*$G19),0) -> 0 | M19: =IF('Default Data'!AQ51>0,(('Default Data'!AQ51/'Default Data'!$AG51)*$G19),0) -> 0 | N19: 0
A20: To view the data and formulas simply scroll over to the adjacent columns to the right. | B20: Drilling Fluids - Mud | C20: =IF(ProjectData!$B$11="Simple",'Default Data'!M52,ProjectData!D53) -> 474833.6392 | D20: =IF(ProjectData!$B$11="Simple",'Default Data'!H52,ProjectData!F53) -> 0 | F20: 0 | G20: =IF(ProjectData!B$11="Simple",F20*(1+'Rates & Misc'!C$6),F20*(1+ProjectData!B$29)) -> 0 | H20: 0 | I20: =IF('Default Data'!AM52>0,(('Default Data'!AM52/'Default Data'!$AG52)*$G20),0) -> 0 | J20: =IF('Default Data'!AN52>0,(('Default Data'!AN52/'Default Data'!$AG52)*$G20),0) -> 0 | K20: =IF('Default Data'!AO52>0,(('Default Data'!AO52/'Default Data'!$AG52)*$G20),0) -> 0 | L20: =IF('Default Data'!AP52>0,(('Default Data'!AP52/'Default Data'!$AG52)*$G20),0) -> 0 | M20: =IF('Default Data'!AQ52>0,(('Default Data'!AQ52/'Default Data'!$AG52)*$G20),0) -> 0 | N20: 0
B21: Directional Engineer and Motorman | C21: =IF(ProjectData!$B$11="Simple",'Default Data'!M53,ProjectData!D54) -> 126888.317 | D21: =IF(ProjectData!$B$11="Simple",'Default Data'!H53,ProjectData!F54) -> 0 | F21: 0 | G21: =IF(ProjectData!B$11="Simple",F21*(1+'Rates & Misc'!C$6),F21*(1+ProjectData!B$29)) -> 0 | H21: 0 | I21: =IF('Default Data'!AM53>0,(('Default Data'!AM53/'Default Data'!$AG53)*$G21),0) -> 0 | J21: =IF('Default Data'!AN53>0,(('Default Data'!AN53/'Default Data'!$AG53)*$G21),0) -> 0 | K21: =IF('Default Data'!AO53>0,(('Default Data'!AO53/'Default Data'!$AG53)*$G21),0) -> 0 | L21: =IF('Default Data'!AP53>0,(('Default Data'!AP53/'Default Data'!$AG53)*$G21),0) -> 0 | M21: =IF('Default Data'!AQ53>0,(('Default Data'!AQ53/'Default Data'!$AG53)*$G21),0) -> 0 | N21: 0
B22: Direction Tools and Services | C22: =IF(ProjectData!$B$11="Simple",'Default Data'!M54,ProjectData!D55) -> 376259.7718 | D22: =IF(ProjectData!$B$11="Simple",'Default Data'!H54,ProjectData!F55) -> 0 | F22: 0 | G22: =IF(ProjectData!B$11="Simple",F22*(1+'Rates & Misc'!C$6),F22*(1+ProjectData!B$29)) -> 0 | H22: 0 | I22: =IF('Default Data'!AM54>0,(('Default Data'!AM54/'Default Data'!$AG54)*$G22),0) -> 0 | J22: =IF('Default Data'!AN54>0,(('Default Data'!AN54/'Default Data'!$AG54)*$G22),0) -> 0 | K22: =IF('Default Data'!AO54>0,(('Default Data'!AO54/'Default Data'!$AG54)*$G22),0) -> 0 | L22: =IF('Default Data'!AP54>0,(('Default Data'!AP54/'Default Data'!$AG54)*$G22),0) -> 0 | M22: =IF('Default Data'!AQ54>0,(('Default Data'!AQ54/'Default Data'!$AG54)*$G22),0) -> 0 | N22: 0
B23: Drilling Engineering | C23: =IF(ProjectData!$B$11="Simple",'Default Data'!M55,ProjectData!D56) -> 131441.8378 | D23: =IF(ProjectData!$B$11="Simple",'Default Data'!H55,ProjectData!F56) -> 0 | F23: 0 | G23: =IF(ProjectData!B$11="Simple",F23*(1+'Rates & Misc'!C$6),F23*(1+ProjectData!B$29)) -> 0 | H23: 0 | I23: =IF('Default Data'!AM55>0,(('Default Data'!AM55/'Default Data'!$AG55)*$G23),0) -> 0 | J23: =IF('Default Data'!AN55>0,(('Default Data'!AN55/'Default Data'!$AG55)*$G23),0) -> 0 | K23: =IF('Default Data'!AO55>0,(('Default Data'!AO55/'Default Data'!$AG55)*$G23),0) -> 0 | L23: =IF('Default Data'!AP55>0,(('Default Data'!AP55/'Default Data'!$AG55)*$G23),0) -> 0 | M23: =IF('Default Data'!AQ55>0,(('Default Data'!AQ55/'Default Data'!$AG55)*$G23),0) -> 0 | N23: 0
B24: Drill Rig Rate | C24: =IF(ProjectData!$B$11="Simple",'Default Data'!M56,ProjectData!D57) -> 1197059.595 | D24: =IF(ProjectData!$B$11="Simple",'Default Data'!H56,ProjectData!F57) -> 0 | F24: 0 | G24: =IF(ProjectData!B$11="Simple",F24*(1+'Rates & Misc'!C$6),F24*(1+ProjectData!B$29)) -> 0 | H24: 0 | I24: =IF('Default Data'!AM56>0,(('Default Data'!AM56/'Default Data'!$AG56)*$G24),0) -> 0 | J24: =IF('Default Data'!AN56>0,(('Default Data'!AN56/'Default Data'!$AG56)*$G24),0) -> 0 | K24: =IF('Default Data'!AO56>0,(('Default Data'!AO56/'Default Data'!$AG56)*$G24),0) -> 0 | L24: =IF('Default Data'!AP56>0,(('Default Data'!AP56/'Default Data'!$AG56)*$G24),0) -> 0 | M24: =IF('Default Data'!AQ56>0,(('Default Data'!AQ56/'Default Data'!$AG56)*$G24),0) -> 0 | N24: 0
B25: Drill Hands - labor | C25: =IF(ProjectData!$B$11="Simple",'Default Data'!M57,ProjectData!D58) -> 183868.3537 | D25: =IF(ProjectData!$B$11="Simple",'Default Data'!H57,ProjectData!F58) -> 0 | F25: 0 | G25: =IF(ProjectData!B$11="Simple",F25*(1+'Rates & Misc'!C$6),F25*(1+ProjectData!B$29)) -> 0 | H25: 0 | I25: =IF('Default Data'!AM57>0,(('Default Data'!AM57/'Default Data'!$AG57)*$G25),0) -> 0 | J25: =IF('Default Data'!AN57>0,(('Default Data'!AN57/'Default Data'!$AG57)*$G25),0) -> 0 | K25: =IF('Default Data'!AO57>0,(('Default Data'!AO57/'Default Data'!$AG57)*$G25),0) -> 0 | L25: =IF('Default Data'!AP57>0,(('Default Data'!AP57/'Default Data'!$AG57)*$G25),0) -> 0 | M25: =IF('Default Data'!AQ57>0,(('Default Data'!AQ57/'Default Data'!$AG57)*$G25),0) -> 0 | N25: 0
B26: Management/Administrative | C26: =IF(ProjectData!$B$11="Simple",'Default Data'!M58,ProjectData!D59) -> 10000 | D26: =IF(ProjectData!$B$11="Simple",'Default Data'!H58,ProjectData!F59) -> 0 | F26: 0 | G26: =IF(ProjectData!B$11="Simple",F26*(1+'Rates & Misc'!C$6),F26*(1+ProjectData!B$29)) -> 0 | H26: 0 | I26: =IF('Default Data'!AM58>0,(('Default Data'!AM58/'Default Data'!$AG58)*$G26),0) -> 0 | J26: =IF('Default Data'!AN58>0,(('Default Data'!AN58/'Default Data'!$AG58)*$G26),0) -> 0 | K26: =IF('Default Data'!AO58>0,(('Default Data'!AO58/'Default Data'!$AG58)*$G26),0) -> 0 | L26: =IF('Default Data'!AP58>0,(('Default Data'!AP58/'Default Data'!$AG58)*$G26),0) -> 0 | M26: =IF('Default Data'!AQ58>0,(('Default Data'!AQ58/'Default Data'!$AG58)*$G26),0) -> 0 | N26: 0
B27: Site Construction | C27: =IF(ProjectData!$B$11="Simple",'Default Data'!M59,ProjectData!D60) -> 250000 | D27: =IF(ProjectData!$B$11="Simple",'Default Data'!H59,ProjectData!F60) -> 1 | F27: 250000 | G27: =IF(ProjectData!B$11="Simple",F27*(1+'Rates & Misc'!C$6),F27*(1+ProjectData!B$29)) -> 262500 | H27: 12500 | I27: =IF('Default Data'!AM59>0,(('Default Data'!AM59/'Default Data'!$AG59)*$G27),0) -> 0 | J27: =IF('Default Data'!AN59>0,(('Default Data'!AN59/'Default Data'!$AG59)*$G27),0) -> 42000 | K27: =IF('Default Data'!AO59>0,(('Default Data'!AO59/'Default Data'!$AG59)*$G27),0) -> 0 | L27: =IF('Default Data'!AP59>0,(('Default Data'!AP59/'Default Data'!$AG59)*$G27),0) -> 220500 | M27: =IF('Default Data'!AQ59>0,(('Default Data'!AQ59/'Default Data'!$AG59)*$G27),0) -> 0 | N27: 262500
B28: Material Costs - Cement and Casing | C28: =IF(ProjectData!$B$11="Simple",'Default Data'!M60,ProjectData!D61) -> 1956206.25 | D28: =IF(ProjectData!$B$11="Simple",'Default Data'!H60,ProjectData!F61) -> 1 | F28: 1956206.25 | G28: =IF(ProjectData!B$11="Simple",F28*(1+'Rates & Misc'!C$6),F28*(1+ProjectData!B$29)) -> 2054016.563 | H28: 97810.3125 | I28: =IF('Default Data'!AM60>0,(('Default Data'!AM60/'Default Data'!$AG60)*$G28),0) -> 0 | J28: =IF('Default Data'!AN60>0,(('Default Data'!AN60/'Default Data'!$AG60)*$G28),0) -> 328642.65 | K28: =IF('Default Data'!AO60>0,(('Default Data'!AO60/'Default Data'!$AG60)*$G28),0) -> 0 | L28: =IF('Default Data'!AP60>0,(('Default Data'!AP60/'Default Data'!$AG60)*$G28),0) -> 1725373.913 | M28: =IF('Default Data'!AQ60>0,(('Default Data'!AQ60/'Default Data'!$AG60)*$G28),0) -> 0 | N28: 2054016.563
B29: Drilling Tools | C29: =IF(ProjectData!$B$11="Simple",'Default Data'!M61,ProjectData!D62) -> 250000 | D29: =IF(ProjectData!$B$11="Simple",'Default Data'!H61,ProjectData!F62) -> 0 | F29: 0 | G29: =IF(ProjectData!B$11="Simple",F29*(1+'Rates & Misc'!C$6),F29*(1+ProjectData!B$29)) -> 0 | H29: 0 | I29: =IF('Default Data'!AM61>0,(('Default Data'!AM61/'Default Data'!$AG61)*$G29),0) -> 0 | J29: =IF('Default Data'!AN61>0,(('Default Data'!AN61/'Default Data'!$AG61)*$G29),0) -> 0 | K29: =IF('Default Data'!AO61>0,(('Default Data'!AO61/'Default Data'!$AG61)*$G29),0) -> 0 | L29: =IF('Default Data'!AP61>0,(('Default Data'!AP61/'Default Data'!$AG61)*$G29),0) -> 0 | M29: =IF('Default Data'!AQ61>0,(('Default Data'!AQ61/'Default Data'!$AG61)*$G29),0) -> 0 | N29: 0
B30: Outside Services | C30: =IF(ProjectData!$B$11="Simple",'Default Data'!M62,ProjectData!D63) -> 450000 | D30: =IF(ProjectData!$B$11="Simple",'Default Data'!H62,ProjectData!F63) -> 0 | F30: 0 | G30: =IF(ProjectData!B$11="Simple",F30*(1+'Rates & Misc'!C$6),F30*(1+ProjectData!B$29)) -> 0 | H30: 0 | I30: =IF('Default Data'!AM62>0,(('Default Data'!AM62/'Default Data'!$AG62)*$G30),0) -> 0 | J30: =IF('Default Data'!AN62>0,(('Default Data'!AN62/'Default Data'!$AG62)*$G30),0) -> 0 | K30: =IF('Default Data'!AO62>0,(('Default Data'!AO62/'Default Data'!$AG62)*$G30),0) -> 0 | L30: =IF('Default Data'!AP62>0,(('Default Data'!AP62/'Default Data'!$AG62)*$G30),0) -> 0 | M30: =IF('Default Data'!AQ62>0,(('Default Data'!AQ62/'Default Data'!$AG62)*$G30),0) -> 0 | N30: 0
B31: Move Services and equipment | C31: =IF(ProjectData!$B$11="Simple",'Default Data'!M63,ProjectData!D64) -> 500000 | D31: =IF(ProjectData!$B$11="Simple",'Default Data'!H63,ProjectData!F64) -> 1 | F31: 500000 | G31: =IF(ProjectData!B$11="Simple",F31*(1+'Rates & Misc'!C$6),F31*(1+ProjectData!B$29)) -> 525000 | H31: 25000 | I31: =IF('Default Data'!AM63>0,(('Default Data'!AM63/'Default Data'!$AG63)*$G31),0) -> 0 | J31: =IF('Default Data'!AN63>0,(('Default Data'!AN63/'Default Data'!$AG63)*$G31),0) -> 0 | K31: =IF('Default Data'!AO63>0,(('Default Data'!AO63/'Default Data'!$AG63)*$G31),0) -> 262500 | L31: =IF('Default Data'!AP63>0,(('Default Data'!AP63/'Default Data'!$AG63)*$G31),0) -> 262500 | M31: =IF('Default Data'!AQ63>0,(('Default Data'!AQ63/'Default Data'!$AG63)*$G31),0) -> 0 | N31: 525000
B32: Location Maintenance | C32: =IF(ProjectData!$B$11="Simple",'Default Data'!M64,ProjectData!D65) -> 100000 | D32: =IF(ProjectData!$B$11="Simple",'Default Data'!H64,ProjectData!F65) -> 1 | F32: 100000 | G32: =IF(ProjectData!B$11="Simple",F32*(1+'Rates & Misc'!C$6),F32*(1+ProjectData!B$29)) -> 105000 | H32: 5000 | I32: =IF('Default Data'!AM64>0,(('Default Data'!AM64/'Default Data'!$AG64)*$G32),0) -> 0 | J32: =IF('Default Data'!AN64>0,(('Default Data'!AN64/'Default Data'!$AG64)*$G32),0) -> 0 | K32: =IF('Default Data'!AO64>0,(('Default Data'!AO64/'Default Data'!$AG64)*$G32),0) -> 52500 | L32: =IF('Default Data'!AP64>0,(('Default Data'!AP64/'Default Data'!$AG64)*$G32),0) -> 52500 | M32: =IF('Default Data'!AQ64>0,(('Default Data'!AQ64/'Default Data'!$AG64)*$G32),0) -> 0 | N32: 105000
B33: Fuel | C33: =IF(ProjectData!$B$11="Simple",'Default Data'!M65,ProjectData!D66) -> 250000 | D33: =IF(ProjectData!$B$11="Simple",'Default Data'!H65,ProjectData!F66) -> 1 | F33: 250000 | G33: =IF(ProjectData!B$11="Simple",F33*(1+'Rates & Misc'!C$6),F33*(1+ProjectData!B$29)) -> 262500 | H33: 12500 | I33: =IF('Default Data'!AM65>0,(('Default Data'!AM65/'Default Data'!$AG65)*$G33),0) -> 0 | J33: =IF('Default Data'!AN65>0,(('Default Data'!AN65/'Default Data'!$AG65)*$G33),0) -> 42000 | K33: =IF('Default Data'!AO65>0,(('Default Data'!AO65/'Default Data'!$AG65)*$G33),0) -> 0 | L33: =IF('Default Data'!AP65>0,(('Default Data'!AP65/'Default Data'!$AG65)*$G33),0) -> 220500 | M33: =IF('Default Data'!AQ65>0,(('Default Data'!AQ65/'Default Data'!$AG65)*$G33),0) -> 0 | N33: 262500
B34: Camp | C34: =IF(ProjectData!$B$11="Simple",'Default Data'!M66,ProjectData!D67) -> 50000 | D34: =IF(ProjectData!$B$11="Simple",'Default Data'!H66,ProjectData!F67) -> 1 | F34: 50000 | G34: =IF(ProjectData!B$11="Simple",F34*(1+'Rates & Misc'!C$6),F34*(1+ProjectData!B$29)) -> 52500 | H34: 2500 | I34: =IF('Default Data'!AM66>0,(('Default Data'!AM66/'Default Data'!$AG66)*$G34),0) -> 0 | J34: =IF('Default Data'!AN66>0,(('Default Data'!AN66/'Default Data'!$AG66)*$G34),0) -> 8400 | K34: =IF('Default Data'!AO66>0,(('Default Data'!AO66/'Default Data'!$AG66)*$G34),0) -> 0 | L34: =IF('Default Data'!AP66>0,(('Default Data'!AP66/'Default Data'!$AG66)*$G34),0) -> 44100 | M34: =IF('Default Data'!AQ66>0,(('Default Data'!AQ66/'Default Data'!$AG66)*$G34),0) -> 0 | N34: 52500
B35: Other Unallocated Costs | C35: =IF(ProjectData!$B$11="Simple",'Default Data'!M67,ProjectData!D68) -> 0 | D35: =IF(ProjectData!$B$11="Simple",'Default Data'!H67,ProjectData!F68) -> 0 | F35: 0 | G35: =IF(ProjectData!B$11="Simple",F35*(1+'Rates & Misc'!C$6),F35*(1+ProjectData!B$29)) -> 0 | H35: 0 | I35: =IF('Default Data'!AM67>0,(('Default Data'!AM67/'Default Data'!$AG67)*$G35),0) -> 0 | J35: =IF('Default Data'!AN67>0,(('Default Data'!AN67/'Default Data'!$AG67)*$G35),0) -> 0 | K35: =IF('Default Data'!AO67>0,(('Default Data'!AO67/'Default Data'!$AG67)*$G35),0) -> 0 | L35: =IF('Default Data'!AP67>0,(('Default Data'!AP67/'Default Data'!$AG67)*$G35),0) -> 0 | M35: =IF('Default Data'!AQ67>0,(('Default Data'!AQ67/'Default Data'!$AG67)*$G35),0) -> 0 | N35: 0
B36: Total: | C36: =SUM(C18:C35)-C25 -> 6242395.37 | F36: =SUM(F18:F35)-F25 -> 3162069.031 | G36: =SUM(G18:G35)-G25 -> 3320172.483 | H36: =SUM(H18:H35) -> 158103.4516 | I36: 58655.92014 | J36: 421042.65 | K36: 315000 | L36: 2525473.913 | M36: 0 | N36: 3320172.483
B38: 2. Production Drilling
B39: Geologist | C39: =IF(ProjectData!$B$11="Simple",'Default Data'!M71,ProjectData!D72) -> 78095.19179 | D39: =IF(ProjectData!$B$11="Simple",'Default Data'!H71,ProjectData!F72) -> 1 | F39: =D39*C39 -> 78095.19179 | G39: =IF(ProjectData!B$11="Simple",F39*(1+'Rates & Misc'!C$6),F39*(1+ProjectData!B$29)) -> 81999.95138 | H39: =G39-F39 -> 3904.759589 | I39: =IF('Default Data'!AM71>0,(('Default Data'!AM71/'Default Data'!$AG71)*$G39),0) -> 81999.95138 | J39: =IF('Default Data'!AN71>0,(('Default Data'!AN71/'Default Data'!$AG71)*$G39),0) -> 0 | K39: =IF('Default Data'!AO71>0,(('Default Data'!AO71/'Default Data'!$AG71)*$G39),0) -> 0 | L39: =IF('Default Data'!AP71>0,(('Default Data'!AP71/'Default Data'!$AG71)*$G39),0) -> 0 | M39: =IF('Default Data'!AQ71>0,(('Default Data'!AQ71/'Default Data'!$AG71)*$G39),0) -> 0 | N39: =SUM(I39:M39) -> 81999.95138
B40: Mud Engineer(s) | C40: =IF(ProjectData!$B$11="Simple",'Default Data'!M72,ProjectData!D73) -> 89251.64776 | D40: =IF(ProjectData!$B$11="Simple",'Default Data'!H72,ProjectData!F73) -> 0 | F40: 0 | G40: =IF(ProjectData!B$11="Simple",F40*(1+'Rates & Misc'!C$6),F40*(1+ProjectData!B$29)) -> 0 | H40: 0 | I40: =IF('Default Data'!AM72>0,(('Default Data'!AM72/'Default Data'!$AG72)*$G40),0) -> 0 | J40: =IF('Default Data'!AN72>0,(('Default Data'!AN72/'Default Data'!$AG72)*$G40),0) -> 0 | K40: =IF('Default Data'!AO72>0,(('Default Data'!AO72/'Default Data'!$AG72)*$G40),0) -> 0 | L40: =IF('Default Data'!AP72>0,(('Default Data'!AP72/'Default Data'!$AG72)*$G40),0) -> 0 | M40: =IF('Default Data'!AQ72>0,(('Default Data'!AQ72/'Default Data'!$AG72)*$G40),0) -> 0 | N40: 0
B41: Drilling Fluids - Mud (5950/day) | C41: =IF(ProjectData!$B$11="Simple",'Default Data'!M73,ProjectData!D74) -> 663809.1302 | D41: =IF(ProjectData!$B$11="Simple",'Default Data'!H73,ProjectData!F74) -> 0 | F41: 0 | G41: =IF(ProjectData!B$11="Simple",F41*(1+'Rates & Misc'!C$6),F41*(1+ProjectData!B$29)) -> 0 | H41: 0 | I41: =IF('Default Data'!AM73>0,(('Default Data'!AM73/'Default Data'!$AG73)*$G41),0) -> 0 | J41: =IF('Default Data'!AN73>0,(('Default Data'!AN73/'Default Data'!$AG73)*$G41),0) -> 0 | K41: =IF('Default Data'!AO73>0,(('Default Data'!AO73/'Default Data'!$AG73)*$G41),0) -> 0 | L41: =IF('Default Data'!AP73>0,(('Default Data'!AP73/'Default Data'!$AG73)*$G41),0) -> 0 | M41: =IF('Default Data'!AQ73>0,(('Default Data'!AQ73/'Default Data'!$AG73)*$G41),0) -> 0 | N41: 0
B42: Directional Engineer and Motorman | C42: =IF(ProjectData!$B$11="Simple",'Default Data'!M74,ProjectData!D75) -> 177387.6499 | D42: =IF(ProjectData!$B$11="Simple",'Default Data'!H74,ProjectData!F75) -> 0 | F42: 0 | G42: =IF(ProjectData!B$11="Simple",F42*(1+'Rates & Misc'!C$6),F42*(1+ProjectData!B$29)) -> 0 | H42: 0 | I42: =IF('Default Data'!AM74>0,(('Default Data'!AM74/'Default Data'!$AG74)*$G42),0) -> 0 | J42: =IF('Default Data'!AN74>0,(('Default Data'!AN74/'Default Data'!$AG74)*$G42),0) -> 0 | K42: =IF('Default Data'!AO74>0,(('Default Data'!AO74/'Default Data'!$AG74)*$G42),0) -> 0 | L42: =IF('Default Data'!AP74>0,(('Default Data'!AP74/'Default Data'!$AG74)*$G42),0) -> 0 | M42: =IF('Default Data'!AQ74>0,(('Default Data'!AQ74/'Default Data'!$AG74)*$G42),0) -> 0 | N42: 0
B43: Direction Tools and Services | C43: =IF(ProjectData!$B$11="Simple",'Default Data'!M75,ProjectData!D76) -> 526004.586 | D43: =IF(ProjectData!$B$11="Simple",'Default Data'!H75,ProjectData!F76) -> 0 | F43: 0 | G43: =IF(ProjectData!B$11="Simple",F43*(1+'Rates & Misc'!C$6),F43*(1+ProjectData!B$29)) -> 0 | H43: 0 | I43: =IF('Default Data'!AM75>0,(('Default Data'!AM75/'Default Data'!$AG75)*$G43),0) -> 0 | J43: =IF('Default Data'!AN75>0,(('Default Data'!AN75/'Default Data'!$AG75)*$G43),0) -> 0 | K43: =IF('Default Data'!AO75>0,(('Default Data'!AO75/'Default Data'!$AG75)*$G43),0) -> 0 | L43: =IF('Default Data'!AP75>0,(('Default Data'!AP75/'Default Data'!$AG75)*$G43),0) -> 0 | M43: =IF('Default Data'!AQ75>0,(('Default Data'!AQ75/'Default Data'!$AG75)*$G43),0) -> 0 | N43: 0
B44: Drilling Engineering | C44: =IF(ProjectData!$B$11="Simple",'Default Data'!M76,ProjectData!D77) -> 183753.3924 | D44: =IF(ProjectData!$B$11="Simple",'Default Data'!H76,ProjectData!F77) -> 0 | F44: 0 | G44: =IF(ProjectData!B$11="Simple",F44*(1+'Rates & Misc'!C$6),F44*(1+ProjectData!B$29)) -> 0 | H44: 0 | I44: =IF('Default Data'!AM76>0,(('Default Data'!AM76/'Default Data'!$AG76)*$G44),0) -> 0 | J44: =IF('Default Data'!AN76>0,(('Default Data'!AN76/'Default Data'!$AG76)*$G44),0) -> 0 | K44: =IF('Default Data'!AO76>0,(('Default Data'!AO76/'Default Data'!$AG76)*$G44),0) -> 0 | L44: =IF('Default Data'!AP76>0,(('Default Data'!AP76/'Default Data'!$AG76)*$G44),0) -> 0 | M44: =IF('Default Data'!AQ76>0,(('Default Data'!AQ76/'Default Data'!$AG76)*$G44),0) -> 0 | N44: 0
B45: Drill Rig Rate | C45: =IF(ProjectData!$B$11="Simple",'Default Data'!M77,ProjectData!D78) -> 1673468.395 | D45: =IF(ProjectData!$B$11="Simple",'Default Data'!H77,ProjectData!F78) -> 0 | F45: 0 | G45: =IF(ProjectData!B$11="Simple",F45*(1+'Rates & Misc'!C$6),F45*(1+ProjectData!B$29)) -> 0 | H45: 0 | I45: =IF('Default Data'!AM77>0,(('Default Data'!AM77/'Default Data'!$AG77)*$G45),0) -> 0 | J45: =IF('Default Data'!AN77>0,(('Default Data'!AN77/'Default Data'!$AG77)*$G45),0) -> 0 | K45: =IF('Default Data'!AO77>0,(('Default Data'!AO77/'Default Data'!$AG77)*$G45),0) -> 0 | L45: =IF('Default Data'!AP77>0,(('Default Data'!AP77/'Default Data'!$AG77)*$G45),0) -> 0 | M45: =IF('Default Data'!AQ77>0,(('Default Data'!AQ77/'Default Data'!$AG77)*$G45),0) -> 0 | N45: 0
B46: Drill Hands - labor (6 men) | C46: =IF(ProjectData!$B$11="Simple",'Default Data'!M78,ProjectData!D79) -> 257044.7455 | D46: =IF(ProjectData!$B$11="Simple",'Default Data'!H78,ProjectData!F79) -> 0 | F46: 0 | G46: =IF(ProjectData!B$11="Simple",F46*(1+'Rates & Misc'!C$6),F46*(1+ProjectData!B$29)) -> 0 | H46: 0 | I46: =IF('Default Data'!AM78>0,(('Default Data'!AM78/'Default Data'!$AG78)*$G46),0) -> 0 | J46: =IF('Default Data'!AN78>0,(('Default Data'!AN78/'Default Data'!$AG78)*$G46),0) -> 0 | K46: =IF('Default Data'!AO78>0,(('Default Data'!AO78/'Default Data'!$AG78)*$G46),0) -> 0 | L46: =IF('Default Data'!AP78>0,(('Default Data'!AP78/'Default Data'!$AG78)*$G46),0) -> 0 | M46: =IF('Default Data'!AQ78>0,(('Default Data'!AQ78/'Default Data'!$AG78)*$G46),0) -> 0 | N46: 0
B47: Management/Administrative | C47: =IF(ProjectData!$B$11="Simple",'Default Data'!M79,ProjectData!D80) -> 13979.82526 | D47: =IF(ProjectData!$B$11="Simple",'Default Data'!H79,ProjectData!F80) -> 0 | F47: 0 | G47: =IF(ProjectData!B$11="Simple",F47*(1+'Rates & Misc'!C$6),F47*(1+ProjectData!B$29)) -> 0 | H47: 0 | I47: =IF('Default Data'!AM79>0,(('Default Data'!AM79/'Default Data'!$AG79)*$G47),0) -> 0 | J47: =IF('Default Data'!AN79>0,(('Default Data'!AN79/'Default Data'!$AG79)*$G47),0) -> 0 | K47: =IF('Default Data'!AO79>0,(('Default Data'!AO79/'Default Data'!$AG79)*$G47),0) -> 0 | L47: =IF('Default Data'!AP79>0,(('Default Data'!AP79/'Default Data'!$AG79)*$G47),0) -> 0 | M47: =IF('Default Data'!AQ79>0,(('Default Data'!AQ79/'Default Data'!$AG79)*$G47),0) -> 0 | N47: 0
B48: Site Construction | C48: =IF(ProjectData!$B$11="Simple",'Default Data'!M80,ProjectData!D81) -> 349495.6314 | D48: =IF(ProjectData!$B$11="Simple",'Default Data'!H80,ProjectData!F81) -> 1 | F48: 349495.6314 | G48: =IF(ProjectData!B$11="Simple",F48*(1+'Rates & Misc'!C$6),F48*(1+ProjectData!B$29)) -> 366970.413 | H48: 17474.78157 | I48: =IF('Default Data'!AM80>0,(('Default Data'!AM80/'Default Data'!$AG80)*$G48),0) -> 0 | J48: =IF('Default Data'!AN80>0,(('Default Data'!AN80/'Default Data'!$AG80)*$G48),0) -> 58715.26608 | K48: =IF('Default Data'!AO80>0,(('Default Data'!AO80/'Default Data'!$AG80)*$G48),0) -> 0 | L48: =IF('Default Data'!AP80>0,(('Default Data'!AP80/'Default Data'!$AG80)*$G48),0) -> 308255.1469 | M48: =IF('Default Data'!AQ80>0,(('Default Data'!AQ80/'Default Data'!$AG80)*$G48),0) -> 0 | N48: 366970.413
B49: Material Costs - (Cement and Casing) | C49: =IF(ProjectData!$B$11="Simple",'Default Data'!M81,ProjectData!D82) -> 2734742.154 | D49: =IF(ProjectData!$B$11="Simple",'Default Data'!H81,ProjectData!F82) -> 1 | F49: 2734742.154 | G49: =IF(ProjectData!B$11="Simple",F49*(1+'Rates & Misc'!C$6),F49*(1+ProjectData!B$29)) -> 2871479.262 | H49: 136737.1077 | I49: =IF('Default Data'!AM81>0,(('Default Data'!AM81/'Default Data'!$AG81)*$G49),0) -> 0 | J49: =IF('Default Data'!AN81>0,(('Default Data'!AN81/'Default Data'!$AG81)*$G49),0) -> 459436.6819 | K49: =IF('Default Data'!AO81>0,(('Default Data'!AO81/'Default Data'!$AG81)*$G49),0) -> 0 | L49: =IF('Default Data'!AP81>0,(('Default Data'!AP81/'Default Data'!$AG81)*$G49),0) -> 2412042.58 | M49: =IF('Default Data'!AQ81>0,(('Default Data'!AQ81/'Default Data'!$AG81)*$G49),0) -> 0 | N49: 2871479.262
B50: Drilling Tools | C50: =IF(ProjectData!$B$11="Simple",'Default Data'!M82,ProjectData!D83) -> 349495.6314 | D50: =IF(ProjectData!$B$11="Simple",'Default Data'!H82,ProjectData!F83) -> 0 | F50: 0 | G50: =IF(ProjectData!B$11="Simple",F50*(1+'Rates & Misc'!C$6),F50*(1+ProjectData!B$29)) -> 0 | H50: 0 | I50: =IF('Default Data'!AM82>0,(('Default Data'!AM82/'Default Data'!$AG82)*$G50),0) -> 0 | J50: =IF('Default Data'!AN82>0,(('Default Data'!AN82/'Default Data'!$AG82)*$G50),0) -> 0 | K50: =IF('Default Data'!AO82>0,(('Default Data'!AO82/'Default Data'!$AG82)*$G50),0) -> 0 | L50: =IF('Default Data'!AP82>0,(('Default Data'!AP82/'Default Data'!$AG82)*$G50),0) -> 0 | M50: =IF('Default Data'!AQ82>0,(('Default Data'!AQ82/'Default Data'!$AG82)*$G50),0) -> 0 | N50: 0
B51: Outside Services | C51: =IF(ProjectData!$B$11="Simple",'Default Data'!M83,ProjectData!D84) -> 629092.1365 | D51: =IF(ProjectData!$B$11="Simple",'Default Data'!H83,ProjectData!F84) -> 0 | F51: 0 | G51: =IF(ProjectData!B$11="Simple",F51*(1+'Rates & Misc'!C$6),F51*(1+ProjectData!B$29)) -> 0 | H51: 0 | I51: =IF('Default Data'!AM83>0,(('Default Data'!AM83/'Default Data'!$AG83)*$G51),0) -> 0 | J51: =IF('Default Data'!AN83>0,(('Default Data'!AN83/'Default Data'!$AG83)*$G51),0) -> 0 | K51: =IF('Default Data'!AO83>0,(('Default Data'!AO83/'Default Data'!$AG83)*$G51),0) -> 0 | L51: =IF('Default Data'!AP83>0,(('Default Data'!AP83/'Default Data'!$AG83)*$G51),0) -> 0 | M51: =IF('Default Data'!AQ83>0,(('Default Data'!AQ83/'Default Data'!$AG83)*$G51),0) -> 0 | N51: 0
B52: Move Services and equipment | C52: =IF(ProjectData!$B$11="Simple",'Default Data'!M84,ProjectData!D85) -> 698991.2628 | D52: =IF(ProjectData!$B$11="Simple",'Default Data'!H84,ProjectData!F85) -> 1 | F52: 698991.2628 | G52: =IF(ProjectData!B$11="Simple",F52*(1+'Rates & Misc'!C$6),F52*(1+ProjectData!B$29)) -> 733940.826 | H52: 34949.56314 | I52: =IF('Default Data'!AM84>0,(('Default Data'!AM84/'Default Data'!$AG84)*$G52),0) -> 0 | J52: =IF('Default Data'!AN84>0,(('Default Data'!AN84/'Default Data'!$AG84)*$G52),0) -> 0 | K52: =IF('Default Data'!AO84>0,(('Default Data'!AO84/'Default Data'!$AG84)*$G52),0) -> 366970.413 | L52: =IF('Default Data'!AP84>0,(('Default Data'!AP84/'Default Data'!$AG84)*$G52),0) -> 366970.413 | M52: =IF('Default Data'!AQ84>0,(('Default Data'!AQ84/'Default Data'!$AG84)*$G52),0) -> 0 | N52: 733940.826
B53: Location Maintenance | C53: =IF(ProjectData!$B$11="Simple",'Default Data'!M85,ProjectData!D86) -> 139798.2526 | D53: =IF(ProjectData!$B$11="Simple",'Default Data'!H85,ProjectData!F86) -> 1 | F53: 139798.2526 | G53: =IF(ProjectData!B$11="Simple",F53*(1+'Rates & Misc'!C$6),F53*(1+ProjectData!B$29)) -> 146788.1652 | H53: 6989.912628 | I53: =IF('Default Data'!AM85>0,(('Default Data'!AM85/'Default Data'!$AG85)*$G53),0) -> 0 | J53: =IF('Default Data'!AN85>0,(('Default Data'!AN85/'Default Data'!$AG85)*$G53),0) -> 0 | K53: =IF('Default Data'!AO85>0,(('Default Data'!AO85/'Default Data'!$AG85)*$G53),0) -> 73394.0826 | L53: =IF('Default Data'!AP85>0,(('Default Data'!AP85/'Default Data'!$AG85)*$G53),0) -> 73394.0826 | M53: =IF('Default Data'!AQ85>0,(('Default Data'!AQ85/'Default Data'!$AG85)*$G53),0) -> 0 | N53: 146788.1652
B54: Fuel | C54: =IF(ProjectData!$B$11="Simple",'Default Data'!M86,ProjectData!D87) -> 349495.6314 | D54: =IF(ProjectData!$B$11="Simple",'Default Data'!H86,ProjectData!F87) -> 1 | F54: 349495.6314 | G54: =IF(ProjectData!B$11="Simple",F54*(1+'Rates & Misc'!C$6),F54*(1+ProjectData!B$29)) -> 366970.413 | H54: 17474.78157 | I54: =IF('Default Data'!AM86>0,(('Default Data'!AM86/'Default Data'!$AG86)*$G54),0) -> 0 | J54: =IF('Default Data'!AN86>0,(('Default Data'!AN86/'Default Data'!$AG86)*$G54),0) -> 58715.26608 | K54: =IF('Default Data'!AO86>0,(('Default Data'!AO86/'Default Data'!$AG86)*$G54),0) -> 0 | L54: =IF('Default Data'!AP86>0,(('Default Data'!AP86/'Default Data'!$AG86)*$G54),0) -> 308255.1469 | M54: =IF('Default Data'!AQ86>0,(('Default Data'!AQ86/'Default Data'!$AG86)*$G54),0) -> 0 | N54: 366970.413
B55: Camp | C55: =IF(ProjectData!$B$11="Simple",'Default Data'!M87,ProjectData!D88) -> 69899.12628 | D55: =IF(ProjectData!$B$11="Simple",'Default Data'!H87,ProjectData!F88) -> 1 | F55: 69899.12628 | G55: =IF(ProjectData!B$11="Simple",F55*(1+'Rates & Misc'!C$6),F55*(1+ProjectData!B$29)) -> 73394.0826 | H55: 3494.956314 | I55: =IF('Default Data'!AM87>0,(('Default Data'!AM87/'Default Data'!$AG87)*$G55),0) -> 0 | J55: =IF('Default Data'!AN87>0,(('Default Data'!AN87/'Default Data'!$AG87)*$G55),0) -> 11743.05322 | K55: =IF('Default Data'!AO87>0,(('Default Data'!AO87/'Default Data'!$AG87)*$G55),0) -> 0 | L55: =IF('Default Data'!AP87>0,(('Default Data'!AP87/'Default Data'!$AG87)*$G55),0) -> 61651.02938 | M55: =IF('Default Data'!AQ87>0,(('Default Data'!AQ87/'Default Data'!$AG87)*$G55),0) -> 0 | N55: 73394.0826
B56: Other Unallocated Costs | C56: =IF(ProjectData!$B$11="Simple",'Default Data'!M88,ProjectData!D89) -> 2795965.051 | D56: =IF(ProjectData!$B$11="Simple",'Default Data'!H88,ProjectData!F89) -> 0 | F56: 0 | G56: =IF(ProjectData!B$11="Simple",F56*(1+'Rates & Misc'!C$6),F56*(1+ProjectData!B$29)) -> 0 | H56: 0 | I56: =IF('Default Data'!AM88>0,(('Default Data'!AM88/'Default Data'!$AG88)*$G56),0) -> 0 | J56: =IF('Default Data'!AN88>0,(('Default Data'!AN88/'Default Data'!$AG88)*$G56),0) -> 0 | K56: =IF('Default Data'!AO88>0,(('Default Data'!AO88/'Default Data'!$AG88)*$G56),0) -> 0 | L56: =IF('Default Data'!AP88>0,(('Default Data'!AP88/'Default Data'!$AG88)*$G56),0) -> 0 | M56: =IF('Default Data'!AQ88>0,(('Default Data'!AQ88/'Default Data'!$AG88)*$G56),0) -> 0 | N56: 0
B57: Total: | C57: =SUM(C39:C56)-C46 -> 11522724.7 | F57: =SUM(F39:F56)-F46 -> 4420517.25 | G57: =SUM(G39:G56)-G46 -> 4641543.113 | H57: =SUM(H39:H56)-H46 -> 221025.8625 | I57: =SUM(I39:I56) -> 81999.95138 | J57: 588610.2673 | K57: 440364.4956 | L57: 3530568.399 | M57: 0 | N57: 4641543.113
B59: 3. Well Stimulation
B60: Variable Costs
B61: Reservoir Engineer | C61: =IF(ProjectData!$B$11="Simple",'Default Data'!M93,ProjectData!D94) -> 0 | D61: =IF(ProjectData!$B$11="Simple",'Default Data'!H93,ProjectData!F94) -> 1 | F61: =D61*C61 -> 0 | G61: =IF(ProjectData!B$11="Simple",F61*(1+'Rates & Misc'!C$6),F61*(1+ProjectData!B$29)) -> 0 | H61: =G61-F61 -> 0 | I61: =IF('Default Data'!AM93>0,(('Default Data'!AM93/'Default Data'!$AG93)*$G61),0) -> 0 | J61: =IF('Default Data'!AN93>0,(('Default Data'!AN93/'Default Data'!$AG93)*$G61),0) -> 0 | K61: =IF('Default Data'!AO93>0,(('Default Data'!AO93/'Default Data'!$AG93)*$G61),0) -> 0 | L61: =IF('Default Data'!AP93>0,(('Default Data'!AP93/'Default Data'!$AG93)*$G61),0) -> 0 | M61: =IF('Default Data'!AQ93>0,(('Default Data'!AQ93/'Default Data'!$AG93)*$G61),0) -> 0 | N61: =SUM(I61:M61) -> 0
B62: Geologist | C62: =IF(ProjectData!$B$11="Simple",'Default Data'!M94,ProjectData!D95) -> 0 | D62: =IF(ProjectData!$B$11="Simple",'Default Data'!H94,ProjectData!F95) -> 1 | F62: 0 | G62: =IF(ProjectData!B$11="Simple",F62*(1+'Rates & Misc'!C$6),F62*(1+ProjectData!B$29)) -> 0 | H62: 0 | I62: =IF('Default Data'!AM94>0,(('Default Data'!AM94/'Default Data'!$AG94)*$G62),0) -> 0 | J62: =IF('Default Data'!AN94>0,(('Default Data'!AN94/'Default Data'!$AG94)*$G62),0) -> 0 | K62: =IF('Default Data'!AO94>0,(('Default Data'!AO94/'Default Data'!$AG94)*$G62),0) -> 0 | L62: =IF('Default Data'!AP94>0,(('Default Data'!AP94/'Default Data'!$AG94)*$G62),0) -> 0 | M62: =IF('Default Data'!AQ94>0,(('Default Data'!AQ94/'Default Data'!$AG94)*$G62),0) -> 0 | N62: 0
B63: Geophysicist | C63: =IF(ProjectData!$B$11="Simple",'Default Data'!M95,ProjectData!D96) -> 0 | D63: =IF(ProjectData!$B$11="Simple",'Default Data'!H95,ProjectData!F96) -> 0 | F63: 0 | G63: =IF(ProjectData!B$11="Simple",F63*(1+'Rates & Misc'!C$6),F63*(1+ProjectData!B$29)) -> 0 | H63: 0 | I63: =IF('Default Data'!AM95>0,(('Default Data'!AM95/'Default Data'!$AG95)*$G63),0) -> 0 | J63: =IF('Default Data'!AN95>0,(('Default Data'!AN95/'Default Data'!$AG95)*$G63),0) -> 0 | K63: =IF('Default Data'!AO95>0,(('Default Data'!AO95/'Default Data'!$AG95)*$G63),0) -> 0 | L63: =IF('Default Data'!AP95>0,(('Default Data'!AP95/'Default Data'!$AG95)*$G63),0) -> 0 | M63: =IF('Default Data'!AQ95>0,(('Default Data'!AQ95/'Default Data'!$AG95)*$G63),0) -> 0 | N63: 0
B64: Drill Rig | C64: =IF(ProjectData!$B$11="Simple",'Default Data'!M96,ProjectData!D97) -> 0 | D64: =IF(ProjectData!$B$11="Simple",'Default Data'!H96,ProjectData!F97) -> 0 | F64: 0 | G64: =IF(ProjectData!B$11="Simple",F64*(1+'Rates & Misc'!C$6),F64*(1+ProjectData!B$29)) -> 0 | H64: 0 | I64: =IF('Default Data'!AM96>0,(('Default Data'!AM96/'Default Data'!$AG96)*$G64),0) -> 0 | J64: =IF('Default Data'!AN96>0,(('Default Data'!AN96/'Default Data'!$AG96)*$G64),0) -> 0 | K64: =IF('Default Data'!AO96>0,(('Default Data'!AO96/'Default Data'!$AG96)*$G64),0) -> 0 | L64: =IF('Default Data'!AP96>0,(('Default Data'!AP96/'Default Data'!$AG96)*$G64),0) -> 0 | M64: =IF('Default Data'!AQ96>0,(('Default Data'!AQ96/'Default Data'!$AG96)*$G64),0) -> 0 | N64: 0
B65: Drill Hands - labor | C65: =IF(ProjectData!$B$11="Simple",'Default Data'!M97,ProjectData!D98) -> 0 | D65: =IF(ProjectData!$B$11="Simple",'Default Data'!H97,ProjectData!F98) -> 0 | F65: 0 | G65: =IF(ProjectData!B$11="Simple",F65*(1+'Rates & Misc'!C$6),F65*(1+ProjectData!B$29)) -> 0 | H65: 0 | I65: =IF('Default Data'!AM97>0,(('Default Data'!AM97/'Default Data'!$AG97)*$G65),0) -> 0 | J65: =IF('Default Data'!AN97>0,(('Default Data'!AN97/'Default Data'!$AG97)*$G65),0) -> 0 | K65: =IF('Default Data'!AO97>0,(('Default Data'!AO97/'Default Data'!$AG97)*$G65),0) -> 0 | L65: =IF('Default Data'!AP97>0,(('Default Data'!AP97/'Default Data'!$AG97)*$G65),0) -> 0 | M65: =IF('Default Data'!AQ97>0,(('Default Data'!AQ97/'Default Data'!$AG97)*$G65),0) -> 0 | N65: 0
B66: Materials (proppant, water) | C66: =IF(ProjectData!$B$11="Simple",'Default Data'!M98,ProjectData!D99) -> 0 | D66: =IF(ProjectData!$B$11="Simple",'Default Data'!H98,ProjectData!F99) -> 1 | F66: 0 | G66: =IF(ProjectData!B$11="Simple",F66*(1+'Rates & Misc'!C$6),F66*(1+ProjectData!B$29)) -> 0 | H66: 0 | I66: =IF('Default Data'!AM98>0,(('Default Data'!AM98/'Default Data'!$AG98)*$G66),0) -> 0 | J66: =IF('Default Data'!AN98>0,(('Default Data'!AN98/'Default Data'!$AG98)*$G66),0) -> 0 | K66: =IF('Default Data'!AO98>0,(('Default Data'!AO98/'Default Data'!$AG98)*$G66),0) -> 0 | L66: =IF('Default Data'!AP98>0,(('Default Data'!AP98/'Default Data'!$AG98)*$G66),0) -> 0 | M66: =IF('Default Data'!AQ98>0,(('Default Data'!AQ98/'Default Data'!$AG98)*$G66),0) -> 0 | N66: 0
B67: Fuel | C67: =IF(ProjectData!$B$11="Simple",'Default Data'!M99,ProjectData!D100) -> 0 | D67: =IF(ProjectData!$B$11="Simple",'Default Data'!H99,ProjectData!F100) -> 1 | F67: 0 | G67: =IF(ProjectData!B$11="Simple",F67*(1+'Rates & Misc'!C$6),F67*(1+ProjectData!B$29)) -> 0 | H67: 0 | I67: =IF('Default Data'!AM99>0,(('Default Data'!AM99/'Default Data'!$AG99)*$G67),0) -> 0 | J67: =IF('Default Data'!AN99>0,(('Default Data'!AN99/'Default Data'!$AG99)*$G67),0) -> 0 | K67: =IF('Default Data'!AO99>0,(('Default Data'!AO99/'Default Data'!$AG99)*$G67),0) -> 0 | L67: =IF('Default Data'!AP99>0,(('Default Data'!AP99/'Default Data'!$AG99)*$G67),0) -> 0 | M67: =IF('Default Data'!AQ99>0,(('Default Data'!AQ99/'Default Data'!$AG99)*$G67),0) -> 0 | N67: 0
B68: Subtotal | C68: =SUM(C60:C67)-C65 -> 0 | F68: =SUM(F60:F67)-F65 -> 0 | G68: =IF(ProjectData!B$11="Simple",F68*(1+'Rates & Misc'!C$6),F68*(1+ProjectData!B$29)) -> 0 | H68: 0 | I68: =IF($F68>0,(('Default Data'!AM100/$F68)*$H68)+'Default Data'!AM100,0) -> 0 | J68: =IF($F68>0,(('Default Data'!AN100/$F68)*$H68)+'Default Data'!AN100,0) -> 0 | K68: =IF($F68>0,(('Default Data'!AO100/$F68)*$H68)+'Default Data'!AO100,0) -> 0 | L68: =IF($F68>0,(('Default Data'!AP100/$F68)*$H68)+'Default Data'!AP100,0) -> 0 | M68: =IF($F68>0,(('Default Data'!AQ100/$F68)*$H68)+'Default Data'!AQ100,0) -> 0 | N68: 0
B69: Fixed Costs
B70: Injection Testing | C70: =IF(ProjectData!$B$11="Simple",'Default Data'!M102,ProjectData!D103) -> 0 | D70: =IF(ProjectData!$B$11="Simple",'Default Data'!H102,ProjectData!F103) -> 0 | F70: 0 | G70: =IF(ProjectData!B$11="Simple",F70*(1+'Rates & Misc'!C$6),F70*(1+ProjectData!B$29)) -> 0 | H70: =G70-F70 -> 0 | I70: =IF('Default Data'!AM102>0,(('Default Data'!AM102/'Default Data'!$AG102)*$G70),0) -> 0 | J70: =IF('Default Data'!AN102>0,(('Default Data'!AN102/'Default Data'!$AG102)*$G70),0) -> 0 | K70: =IF('Default Data'!AO102>0,(('Default Data'!AO102/'Default Data'!$AG102)*$G70),0) -> 0 | L70: =IF('Default Data'!AP102>0,(('Default Data'!AP102/'Default Data'!$AG102)*$G70),0) -> 0 | M70: =IF('Default Data'!AQ102>0,(('Default Data'!AQ102/'Default Data'!$AG102)*$G70),0) -> 0 | N70: 0
B71: Mobilization/Demobilization | C71: =IF(ProjectData!$B$11="Simple",'Default Data'!M103,ProjectData!D104) -> 0 | D71: =IF(ProjectData!$B$11="Simple",'Default Data'!H103,ProjectData!F104) -> 1 | F71: 0 | G71: =IF(ProjectData!B$11="Simple",F71*(1+'Rates & Misc'!C$6),F71*(1+ProjectData!B$29)) -> 0 | H71: =G71-F71 -> 0 | I71: =IF('Default Data'!AM103>0,(('Default Data'!AM103/'Default Data'!$AG103)*$G71),0) -> 0 | J71: =IF('Default Data'!AN103>0,(('Default Data'!AN103/'Default Data'!$AG103)*$G71),0) -> 0 | K71: =IF('Default Data'!AO103>0,(('Default Data'!AO103/'Default Data'!$AG103)*$G71),0) -> 0 | L71: =IF('Default Data'!AP103>0,(('Default Data'!AP103/'Default Data'!$AG103)*$G71),0) -> 0 | M71: =IF('Default Data'!AQ103>0,(('Default Data'!AQ103/'Default Data'!$AG103)*$G71),0) -> 0 | N71: 0
B72: Water | C72: =IF(ProjectData!$B$11="Simple",'Default Data'!M104,ProjectData!D105) -> 0 | D72: =IF(ProjectData!$B$11="Simple",'Default Data'!H104,ProjectData!F105) -> 1 | F72: 0 | G72: =IF(ProjectData!B$11="Simple",F72*(1+'Rates & Misc'!C$6),F72*(1+ProjectData!B$29)) -> 0 | H72: =G72-F72 -> 0 | I72: =IF('Default Data'!AM104>0,(('Default Data'!AM104/'Default Data'!$AG104)*$G72),0) -> 0 | J72: =IF('Default Data'!AN104>0,(('Default Data'!AN104/'Default Data'!$AG104)*$G72),0) -> 0 | K72: =IF('Default Data'!AO104>0,(('Default Data'!AO104/'Default Data'!$AG104)*$G72),0) -> 0 | L72: =IF('Default Data'!AP104>0,(('Default Data'!AP104/'Default Data'!$AG104)*$G72),0) -> 0 | M72: =IF('Default Data'!AQ104>0,(('Default Data'!AQ104/'Default Data'!$AG104)*$G72),0) -> 0 | N72: 0
B73: Downhole Logging | C73: =IF(ProjectData!$B$11="Simple",'Default Data'!M105,ProjectData!D106) -> 0 | D73: =IF(ProjectData!$B$11="Simple",'Default Data'!H105,ProjectData!F106) -> 0 | F73: 0 | G73: =IF(ProjectData!B$11="Simple",F73*(1+'Rates & Misc'!C$6),F73*(1+ProjectData!B$29)) -> 0 | H73: =G73-F73 -> 0 | I73: =IF('Default Data'!AM105>0,(('Default Data'!AM105/'Default Data'!$AG105)*$G73),0) -> 0 | J73: =IF('Default Data'!AN105>0,(('Default Data'!AN105/'Default Data'!$AG105)*$G73),0) -> 0 | K73: =IF('Default Data'!AO105>0,(('Default Data'!AO105/'Default Data'!$AG105)*$G73),0) -> 0 | L73: =IF('Default Data'!AP105>0,(('Default Data'!AP105/'Default Data'!$AG105)*$G73),0) -> 0 | M73: =IF('Default Data'!AQ105>0,(('Default Data'!AQ105/'Default Data'!$AG105)*$G73),0) -> 0 | N73: 0
B74: SubTotal | C74: =SUM(C70:C73) -> 0 | F74: =SUM(F70:F73) -> 0 | G74: =IF(ProjectData!B$11="Simple",F74*(1+'Rates & Misc'!C$6),F74*(1+ProjectData!B$29)) -> 0 | H74: =G74-F74 -> 0 | I74: =IF('Default Data'!AM106>0,(('Default Data'!AM106/'Default Data'!$AG106)*$G74),0) -> 0 | J74: =IF('Default Data'!AN106>0,(('Default Data'!AN106/'Default Data'!$AG106)*$G74),0) -> 0 | K74: =IF('Default Data'!AO106>0,(('Default Data'!AO106/'Default Data'!$AG106)*$G74),0) -> 0 | L74: =IF('Default Data'!AP106>0,(('Default Data'!AP106/'Default Data'!$AG106)*$G74),0) -> 0 | M74: =IF('Default Data'!AQ106>0,(('Default Data'!AQ106/'Default Data'!$AG106)*$G74),0) -> 0 | N74: 0
B75: Total: | C75: =C74+C68 -> 0 | F75: =F74+F68 -> 0 | G75: =G74+G68 -> 0 | H75: =SUM(H61:H74) -> 0 | I75: =SUM(I61:I74) -> 0 | J75: 0 | K75: 0 | L75: 0 | M75: 0 | N75: 0
B77: =ProjectData!A110 -> Binary Plant - Power Plant Costs
B78: Labor
B79: Engineering - Design | C79: =IF(ProjectData!$B$11="Simple",'Default Data'!K111,ProjectData!D112) -> 376789.4568 | D79: =IF(ProjectData!$B$11="Simple",'Default Data'!H111,ProjectData!F112) -> 1 | F79: =D79*C79 -> 376789.4568 | G79: =IF(ProjectData!B$11="Simple",F79*(1+'Rates & Misc'!C$6),F79*(1+ProjectData!B$29)) -> 395628.9297 | H79: =G79-F79 -> 18839.47284 | I79: =IF('Default Data'!AM111>0,(('Default Data'!AM111/'Default Data'!$AG111)*$G79),0) -> 395628.9297 | J79: =IF('Default Data'!AN111>0,(('Default Data'!AN111/'Default Data'!$AG111)*$G79),0) -> 0 | K79: =IF('Default Data'!AO111>0,(('Default Data'!AO111/'Default Data'!$AG111)*$G79),0) -> 0 | L79: =IF('Default Data'!AP111>0,(('Default Data'!AP111/'Default Data'!$AG111)*$G79),0) -> 0 | M79: =IF('Default Data'!AQ111>0,(('Default Data'!AQ111/'Default Data'!$AG111)*$G79),0) -> 0 | N79: =SUM(I79:M79) -> 395628.9297
B80: Laborers | C80: =IF(ProjectData!$B$11="Simple",'Default Data'!K112,ProjectData!D113) -> 753578.9136 | D80: =IF(ProjectData!$B$11="Simple",'Default Data'!H112,ProjectData!F113) -> 1 | F80: =D80*C80 -> 753578.9136 | G80: =IF(ProjectData!B$11="Simple",F80*(1+'Rates & Misc'!C$6),F80*(1+ProjectData!B$29)) -> 791257.8593 | H80: =G80-F80 -> 37678.94568 | I80: =IF('Default Data'!AM112>0,(('Default Data'!AM112/'Default Data'!$AG112)*$G80),0) -> 0 | J80: =IF('Default Data'!AN112>0,(('Default Data'!AN112/'Default Data'!$AG112)*$G80),0) -> 791257.8593 | K80: =IF('Default Data'!AO112>0,(('Default Data'!AO112/'Default Data'!$AG112)*$G80),0) -> 0 | L80: =IF('Default Data'!AP112>0,(('Default Data'!AP112/'Default Data'!$AG112)*$G80),0) -> 0 | M80: =IF('Default Data'!AQ112>0,(('Default Data'!AQ112/'Default Data'!$AG112)*$G80),0) -> 0 | N80: =SUM(I80:M80) -> 791257.8593
B81: Mechanical | C81: =IF(ProjectData!$B$11="Simple",'Default Data'!K113,ProjectData!D114) -> 753578.9136 | D81: =IF(ProjectData!$B$11="Simple",'Default Data'!H113,ProjectData!F114) -> 1 | F81: =D81*C81 -> 753578.9136 | G81: =IF(ProjectData!B$11="Simple",F81*(1+'Rates & Misc'!C$6),F81*(1+ProjectData!B$29)) -> 791257.8593 | H81: =G81-F81 -> 37678.94568 | I81: =IF('Default Data'!AM113>0,(('Default Data'!AM113/'Default Data'!$AG113)*$G81),0) -> 0 | J81: =IF('Default Data'!AN113>0,(('Default Data'!AN113/'Default Data'!$AG113)*$G81),0) -> 791257.8593 | K81: =IF('Default Data'!AO113>0,(('Default Data'!AO113/'Default Data'!$AG113)*$G81),0) -> 0 | L81: =IF('Default Data'!AP113>0,(('Default Data'!AP113/'Default Data'!$AG113)*$G81),0) -> 0 | M81: =IF('Default Data'!AQ113>0,(('Default Data'!AQ113/'Default Data'!$AG113)*$G81),0) -> 0 | N81: =SUM(I81:M81) -> 791257.8593
B82: Electrical | C82: =IF(ProjectData!$B$11="Simple",'Default Data'!K114,ProjectData!D115) -> 753578.9136 | D82: =IF(ProjectData!$B$11="Simple",'Default Data'!H114,ProjectData!F115) -> 1 | F82: =D82*C82 -> 753578.9136 | G82: =IF(ProjectData!B$11="Simple",F82*(1+'Rates & Misc'!C$6),F82*(1+ProjectData!B$29)) -> 791257.8593 | H82: =G82-F82 -> 37678.94568 | I82: =IF('Default Data'!AM114>0,(('Default Data'!AM114/'Default Data'!$AG114)*$G82),0) -> 0 | J82: =IF('Default Data'!AN114>0,(('Default Data'!AN114/'Default Data'!$AG114)*$G82),0) -> 791257.8593 | K82: =IF('Default Data'!AO114>0,(('Default Data'!AO114/'Default Data'!$AG114)*$G82),0) -> 0 | L82: =IF('Default Data'!AP114>0,(('Default Data'!AP114/'Default Data'!$AG114)*$G82),0) -> 0 | M82: =IF('Default Data'!AQ114>0,(('Default Data'!AQ114/'Default Data'!$AG114)*$G82),0) -> 0 | N82: =SUM(I82:M82) -> 791257.8593
B83: Management/Administrative | C83: =IF(ProjectData!$B$11="Simple",'Default Data'!K115,ProjectData!D116) -> 1130368.37 | D83: =IF(ProjectData!$B$11="Simple",'Default Data'!H115,ProjectData!F116) -> 0 | F83: =D83*C83 -> 0 | G83: =IF(ProjectData!B$11="Simple",F83*(1+'Rates & Misc'!C$6),F83*(1+ProjectData!B$29)) -> 0 | H83: =G83-F83 -> 0 | I83: =IF('Default Data'!AM115>0,(('Default Data'!AM115/'Default Data'!$AG115)*$G83),0) -> 0 | J83: =IF('Default Data'!AN115>0,(('Default Data'!AN115/'Default Data'!$AG115)*$G83),0) -> 0 | K83: =IF('Default Data'!AO115>0,(('Default Data'!AO115/'Default Data'!$AG115)*$G83),0) -> 0 | L83: =IF('Default Data'!AP115>0,(('Default Data'!AP115/'Default Data'!$AG115)*$G83),0) -> 0 | M83: =IF('Default Data'!AQ115>0,(('Default Data'!AQ115/'Default Data'!$AG115)*$G83),0) -> 0 | N83: =SUM(I83:M83) -> 0
B84: Total | C84: =SUM(C79:C83) -> 3767894.568 | F84: =SUM(F79:F83) -> 2637526.198 | G84: 2769402.508 | H84: 131876.3099 | I84: 395628.9297 | J84: 2373773.578 | K84: 0 | L84: 0 | M84: 0 | N84: 2769402.508
B85: =ProjectData!A118 -> Binary Plant Equipment
B86: Turbines, Generators | C86: =IF(ProjectData!$B$11="Simple",'Default Data'!K118,ProjectData!D119) -> 10048974.81 | D86: =IF(ProjectData!$B$11="Simple",'Default Data'!H118,ProjectData!F119) -> 0 | F86: =D86*C86 -> 0 | G86: =IF(ProjectData!B$11="Simple",F86*(1+'Rates & Misc'!C$6),F86*(1+ProjectData!B$29)) -> 0 | H86: =G86-F86 -> 0 | I86: =IF('Default Data'!AM118>0,(('Default Data'!AM118/'Default Data'!$AG118)*$G86),0) -> 0 | J86: =IF('Default Data'!AN118>0,(('Default Data'!AN118/'Default Data'!$AG118)*$G86),0) -> 0 | K86: =IF('Default Data'!AO118>0,(('Default Data'!AO118/'Default Data'!$AG118)*$G86),0) -> 0 | L86: =IF('Default Data'!AP118>0,(('Default Data'!AP118/'Default Data'!$AG118)*$G86),0) -> 0 | M86: =IF('Default Data'!AQ118>0,(('Default Data'!AQ118/'Default Data'!$AG118)*$G86),0) -> 0 | N86: =SUM(I86:M86) -> 0
B87: Air Cooled Condenser | C87: =IF(ProjectData!$B$11="Simple",'Default Data'!K119,ProjectData!D120) -> 7477386.771 | D87: =IF(ProjectData!$B$11="Simple",'Default Data'!H119,ProjectData!F120) -> 0 | F87: =D87*C87 -> 0 | G87: =IF(ProjectData!B$11="Simple",F87*(1+'Rates & Misc'!C$6),F87*(1+ProjectData!B$29)) -> 0 | H87: =G87-F87 -> 0 | I87: =IF('Default Data'!AM119>0,(('Default Data'!AM119/'Default Data'!$AG119)*$G87),0) -> 0 | J87: =IF('Default Data'!AN119>0,(('Default Data'!AN119/'Default Data'!$AG119)*$G87),0) -> 0 | K87: =IF('Default Data'!AO119>0,(('Default Data'!AO119/'Default Data'!$AG119)*$G87),0) -> 0 | L87: =IF('Default Data'!AP119>0,(('Default Data'!AP119/'Default Data'!$AG119)*$G87),0) -> 0 | M87: =IF('Default Data'!AQ119>0,(('Default Data'!AQ119/'Default Data'!$AG119)*$G87),0) -> 0 | N87: =SUM(I87:M87) -> 0
B88: Well Field Pumps | C88: =IF(ProjectData!$B$11="Simple",'Default Data'!K120,ProjectData!D121) -> 737847.9538 | D88: =IF(ProjectData!$B$11="Simple",'Default Data'!H120,ProjectData!F121) -> 0 | F88: =D88*C88 -> 0 | G88: =IF(ProjectData!B$11="Simple",F88*(1+'Rates & Misc'!C$6),F88*(1+ProjectData!B$29)) -> 0 | H88: =G88-F88 -> 0 | I88: =IF('Default Data'!AM120>0,(('Default Data'!AM120/'Default Data'!$AG120)*$G88),0) -> 0 | J88: =IF('Default Data'!AN120>0,(('Default Data'!AN120/'Default Data'!$AG120)*$G88),0) -> 0 | K88: =IF('Default Data'!AO120>0,(('Default Data'!AO120/'Default Data'!$AG120)*$G88),0) -> 0 | L88: =IF('Default Data'!AP120>0,(('Default Data'!AP120/'Default Data'!$AG120)*$G88),0) -> 0 | M88: =IF('Default Data'!AQ120>0,(('Default Data'!AQ120/'Default Data'!$AG120)*$G88),0) -> 0 | N88: =SUM(I88:M88) -> 0
B89: Geothermal Fluid Heat Exchangers | C89: =IF(ProjectData!$B$11="Simple",'Default Data'!K121,ProjectData!D122) -> 1517236.945 | D89: =IF(ProjectData!$B$11="Simple",'Default Data'!H121,ProjectData!F122) -> 0 | F89: =D89*C89 -> 0 | G89: =IF(ProjectData!B$11="Simple",F89*(1+'Rates & Misc'!C$6),F89*(1+ProjectData!B$29)) -> 0 | H89: =G89-F89 -> 0 | I89: =IF('Default Data'!AM121>0,(('Default Data'!AM121/'Default Data'!$AG121)*$G89),0) -> 0 | J89: =IF('Default Data'!AN121>0,(('Default Data'!AN121/'Default Data'!$AG121)*$G89),0) -> 0 | K89: =IF('Default Data'!AO121>0,(('Default Data'!AO121/'Default Data'!$AG121)*$G89),0) -> 0 | L89: =IF('Default Data'!AP121>0,(('Default Data'!AP121/'Default Data'!$AG121)*$G89),0) -> 0 | M89: =IF('Default Data'!AQ121>0,(('Default Data'!AQ121/'Default Data'!$AG121)*$G89),0) -> 0 | N89: =SUM(I89:M89) -> 0
B90: Total | C90: =SUM(C86:C89) -> 19781446.48 | F90: =SUM(F86:F89) -> 0 | G90: 0 | H90: 0 | I90: 0 | J90: 0 | K90: 0 | L90: 0 | M90: 0 | N90: 0
B92: =ProjectData!A126 -> Flash Plant Equipment - not applicable
B93: Turbine Generator Cost | C93: =IF(ProjectData!$B$11="Simple",'Default Data'!K126,ProjectData!D127) -> 0 | D93: =IF(ProjectData!$B$11="Simple",'Default Data'!H126,ProjectData!F127) -> 0 | F93: =D93*C93 -> 0 | G93: =IF(ProjectData!B$11="Simple",F93*(1+'Rates & Misc'!C$6),F93*(1+ProjectData!B$29)) -> 0 | H93: =G93-F93 -> 0 | I93: =IF('Default Data'!AM126>0,(('Default Data'!AM126/'Default Data'!$AG126)*$G93),0) -> 0 | J93: =IF('Default Data'!AN126>0,(('Default Data'!AN126/'Default Data'!$AG126)*$G93),0) -> 0 | K93: =IF('Default Data'!AO126>0,(('Default Data'!AO126/'Default Data'!$AG126)*$G93),0) -> 0 | L93: =IF('Default Data'!AP126>0,(('Default Data'!AP126/'Default Data'!$AG126)*$G93),0) -> 0 | M93: =IF('Default Data'!AQ126>0,(('Default Data'!AQ126/'Default Data'!$AG126)*$G93),0) -> 0 | N93: =SUM(I93:M93) -> 0
B94: Flash Vessels | C94: =IF(ProjectData!$B$11="Simple",'Default Data'!K127,ProjectData!D128) -> 0 | D94: =IF(ProjectData!$B$11="Simple",'Default Data'!H127,ProjectData!F128) -> 0 | F94: 0 | G94: =IF(ProjectData!B$11="Simple",F94*(1+'Rates & Misc'!C$6),F94*(1+ProjectData!B$29)) -> 0 | H94: 0 | I94: =IF('Default Data'!AM127>0,(('Default Data'!AM127/'Default Data'!$AG127)*$G94),0) -> 0 | J94: =IF('Default Data'!AN127>0,(('Default Data'!AN127/'Default Data'!$AG127)*$G94),0) -> 0 | K94: =IF('Default Data'!AO127>0,(('Default Data'!AO127/'Default Data'!$AG127)*$G94),0) -> 0 | L94: =IF('Default Data'!AP127>0,(('Default Data'!AP127/'Default Data'!$AG127)*$G94),0) -> 0 | M94: =IF('Default Data'!AQ127>0,(('Default Data'!AQ127/'Default Data'!$AG127)*$G94),0) -> 0 | N94: 0
B95: Cooling Tower Cost | C95: =IF(ProjectData!$B$11="Simple",'Default Data'!K128,ProjectData!D129) -> 0 | D95: =IF(ProjectData!$B$11="Simple",'Default Data'!H128,ProjectData!F129) -> 0 | F95: 0 | G95: =IF(ProjectData!B$11="Simple",F95*(1+'Rates & Misc'!C$6),F95*(1+ProjectData!B$29)) -> 0 | H95: 0 | I95: =IF('Default Data'!AM128>0,(('Default Data'!AM128/'Default Data'!$AG128)*$G95),0) -> 0 | J95: =IF('Default Data'!AN128>0,(('Default Data'!AN128/'Default Data'!$AG128)*$G95),0) -> 0 | K95: =IF('Default Data'!AO128>0,(('Default Data'!AO128/'Default Data'!$AG128)*$G95),0) -> 0 | L95: =IF('Default Data'!AP128>0,(('Default Data'!AP128/'Default Data'!$AG128)*$G95),0) -> 0 | M95: =IF('Default Data'!AQ128>0,(('Default Data'!AQ128/'Default Data'!$AG128)*$G95),0) -> 0 | N95: 0
B96: Condenser Cost | C96: =IF(ProjectData!$B$11="Simple",'Default Data'!K129,ProjectData!D130) -> 0 | D96: =IF(ProjectData!$B$11="Simple",'Default Data'!H129,ProjectData!F130) -> 0 | F96: 0 | G96: =IF(ProjectData!B$11="Simple",F96*(1+'Rates & Misc'!C$6),F96*(1+ProjectData!B$29)) -> 0 | H96: 0 | I96: =IF('Default Data'!AM129>0,(('Default Data'!AM129/'Default Data'!$AG129)*$G96),0) -> 0 | J96: =IF('Default Data'!AN129>0,(('Default Data'!AN129/'Default Data'!$AG129)*$G96),0) -> 0 | K96: =IF('Default Data'!AO129>0,(('Default Data'!AO129/'Default Data'!$AG129)*$G96),0) -> 0 | L96: =IF('Default Data'!AP129>0,(('Default Data'!AP129/'Default Data'!$AG129)*$G96),0) -> 0 | M96: =IF('Default Data'!AQ129>0,(('Default Data'!AQ129/'Default Data'!$AG129)*$G96),0) -> 0 | N96: 0
B97: Pump Costs | C97: =IF(ProjectData!$B$11="Simple",'Default Data'!K130,ProjectData!D131) -> 0 | D97: =IF(ProjectData!$B$11="Simple",'Default Data'!H130,ProjectData!F131) -> 0 | F97: 0 | G97: =IF(ProjectData!B$11="Simple",F97*(1+'Rates & Misc'!C$6),F97*(1+ProjectData!B$29)) -> 0 | H97: 0 | I97: =IF('Default Data'!AM130>0,(('Default Data'!AM130/'Default Data'!$AG130)*$G97),0) -> 0 | J97: =IF('Default Data'!AN130>0,(('Default Data'!AN130/'Default Data'!$AG130)*$G97),0) -> 0 | K97: =IF('Default Data'!AO130>0,(('Default Data'!AO130/'Default Data'!$AG130)*$G97),0) -> 0 | L97: =IF('Default Data'!AP130>0,(('Default Data'!AP130/'Default Data'!$AG130)*$G97),0) -> 0 | M97: =IF('Default Data'!AQ130>0,(('Default Data'!AQ130/'Default Data'!$AG130)*$G97),0) -> 0 | N97: 0
B98: NCG Removal System | C98: =IF(ProjectData!$B$11="Simple",'Default Data'!K131,ProjectData!D132) -> 0 | D98: =IF(ProjectData!$B$11="Simple",'Default Data'!H131,ProjectData!F132) -> 0 | F98: 0 | G98: =IF(ProjectData!B$11="Simple",F98*(1+'Rates & Misc'!C$6),F98*(1+ProjectData!B$29)) -> 0 | H98: 0 | I98: =IF('Default Data'!AM131>0,(('Default Data'!AM131/'Default Data'!$AG131)*$G98),0) -> 0 | J98: =IF('Default Data'!AN131>0,(('Default Data'!AN131/'Default Data'!$AG131)*$G98),0) -> 0 | K98: =IF('Default Data'!AO131>0,(('Default Data'!AO131/'Default Data'!$AG131)*$G98),0) -> 0 | L98: =IF('Default Data'!AP131>0,(('Default Data'!AP131/'Default Data'!$AG131)*$G98),0) -> 0 | M98: =IF('Default Data'!AQ131>0,(('Default Data'!AQ131/'Default Data'!$AG131)*$G98),0) -> 0 | N98: 0
B99: H2S Removal System | C99: =IF(ProjectData!$B$11="Simple",'Default Data'!K132,ProjectData!D133) -> 0 | D99: =IF(ProjectData!$B$11="Simple",'Default Data'!H132,ProjectData!F133) -> 0 | F99: 0 | G99: =IF(ProjectData!B$11="Simple",F99*(1+'Rates & Misc'!C$6),F99*(1+ProjectData!B$29)) -> 0 | H99: 0 | I99: =IF('Default Data'!AM132>0,(('Default Data'!AM132/'Default Data'!$AG132)*$G99),0) -> 0 | J99: =IF('Default Data'!AN132>0,(('Default Data'!AN132/'Default Data'!$AG132)*$G99),0) -> 0 | K99: =IF('Default Data'!AO132>0,(('Default Data'!AO132/'Default Data'!$AG132)*$G99),0) -> 0 | L99: =IF('Default Data'!AP132>0,(('Default Data'!AP132/'Default Data'!$AG132)*$G99),0) -> 0 | M99: =IF('Default Data'!AQ132>0,(('Default Data'!AQ132/'Default Data'!$AG132)*$G99),0) -> 0 | N99: 0
B100: Total: | C100: =SUM(C93:C99) -> 0 | F100: =SUM(F93:F99) -> 0 | G100: 0 | H100: 0 | I100: 0 | J100: 0 | K100: 0 | L100: 0 | M100: 0 | N100: 0
B101: Project Cost | C101: =C100+C90+C84+C75+C57+C36+C15 -> 43741441.12 | F101: =F100+F90+F84+F75+F57+F36+F15 -> 10320112.48 | G101: 10836118.1 | H101: 516005.624 | I101: 641284.8012 | J101: 3383426.495 | K101: 755364.4956 | L101: 6056042.311 | M101: 0 | N101: 10836118.1
B102: Contingency Cost | C102: =C101*ProjectData!B29 -> 2187072.056
B103: Total Installed Project Cost | C103: =C102+C101 -> 45928513.17 | N103: =N100+N90+N84+N75+N57+N36+N15 -> 10836118.1
N104: =N103-D224 -> 0
B105: =ProjectData!A139 -> Binary Plant O&M Costs
B106: Labor Costs
B107: Field labor | C107: =IF(ProjectData!$B$11="Simple",'Default Data'!G173+'Default Data'!G151,ProjectData!D141) -> 119164.4886 | D107: =IF(ProjectData!$B$11="Simple",'Default Data'!H173,ProjectData!F141) -> 1 | F107: =D107*C107 -> 119164.4886
B108: Plant Labor | C108: =IF(ProjectData!$B$11="Simple",'Default Data'!G174+'Default Data'!G152,ProjectData!D142) -> 918517.9074 | D108: =IF(ProjectData!$B$11="Simple",'Default Data'!H174,ProjectData!F142) -> 1 | F108: =D108*C108 -> 918517.9074
B109: Total Labor | C109: =C108+C107 -> 1037682.396 | F109: =F108+F107 -> 1037682.396
B110: Other Plant Costs
B111: Equipment | C111: =IF(ProjectData!$B$11="Simple",'Default Data'!D188,ProjectData!D145) -> 470986.821 | D111: =IF(ProjectData!$B$11="Simple",'Default Data'!H188,ProjectData!F145) -> 0 | F111: =D111*C111 -> 0
B112: Services | C112: =IF(ProjectData!$B$11="Simple",'Default Data'!D189,ProjectData!D146) -> 0 | D112: =IF(ProjectData!$B$11="Simple",'Default Data'!H189,ProjectData!F146) -> 0 | F112: 0
B113: Fees, Permits, Licenses | C113: =IF(ProjectData!$B$11="Simple",'Default Data'!D190,ProjectData!D147) -> 0 | D113: =IF(ProjectData!$B$11="Simple",'Default Data'!H190,ProjectData!F147) -> 0 | F113: 0
B114: Insurance | C114: =IF(ProjectData!$B$11="Simple",'Default Data'!D191,ProjectData!D148) -> 0 | D114: =IF(ProjectData!$B$11="Simple",'Default Data'!H191,ProjectData!F148) -> 0 | F114: 0
B115: Consumables/Tools and Misc. Supplies | C115: =IF(ProjectData!$B$11="Simple",'Default Data'!D192,ProjectData!D149) -> 0 | D115: =IF(ProjectData!$B$11="Simple",'Default Data'!H192,ProjectData!F149) -> 0 | F115: 0
B116: Other | C116: =IF(ProjectData!$B$11="Simple",'Default Data'!D193,ProjectData!D150) -> 0 | D116: =IF(ProjectData!$B$11="Simple",'Default Data'!H193,ProjectData!F150) -> 0 | F116: 0
B117: Total | C117: =SUM(C111:C116) -> 470986.821 | F117: =SUM(F111:F116) -> 0
B118: Other Wellfield Costs
B119: Equipment | C119: =IF(ProjectData!$B$11="Simple",'Default Data'!D196,ProjectData!D153) -> 680265.9144 | D119: =IF(ProjectData!$B$11="Simple",'Default Data'!H196,ProjectData!F153) -> 0 | F119: =D119*C119 -> 0
B120: Services | C120: =IF(ProjectData!$B$11="Simple",'Default Data'!D197,ProjectData!D154) -> 0 | D120: =IF(ProjectData!$B$11="Simple",'Default Data'!H197,ProjectData!F154) -> 0 | F120: =D120*C120 -> 0
B121: Fuel (motor vehicle gasoline) | C121: =IF(ProjectData!$B$11="Simple",'Default Data'!D198,ProjectData!D155) -> 0 | D121: =IF(ProjectData!$B$11="Simple",'Default Data'!H198,ProjectData!F155) -> 0 | F121: =D121*C121 -> 0
B122: Consumables/Tools and Misc. Supplies | C122: =IF(ProjectData!$B$11="Simple",'Default Data'!D199,ProjectData!D156) -> 0 | D122: =IF(ProjectData!$B$11="Simple",'Default Data'!H199,ProjectData!F156) -> 0 | F122: =D122*C122 -> 0
B123: Other | C123: =IF(ProjectData!$B$11="Simple",'Default Data'!D200,ProjectData!D157) -> 0 | D123: =IF(ProjectData!$B$11="Simple",'Default Data'!H200,ProjectData!F157) -> 0 | F123: =D123*C123 -> 0
B124: Total | C124: =SUM(C119:C123) -> 680265.9144 | F124: =SUM(F119:F123) -> 0
B125: Total Plant O&M (Plant and Labor) | C125: =C117+C108 -> 1389504.728 | F125: =F117+F108 -> 918517.9074
B126: Total Wellfield O&M (Wellfield and Labor) | C126: =C124+C107 -> 799430.403 | F126: =F124+F107 -> 119164.4886
B127: Total O&M | C127: =C126+C125 -> 2188935.131 | F127: =F126+F125 -> 1037682.396
B129: Financing (debt payment) | C129: =IF(ProjectData!$B$11="Simple",E266,E302) -> 4226876.566 | D129: =IF(ProjectData!$B$11="Simple",'Default Data'!E210,ProjectData!E166) -> 0 | F129: =D129*C129 -> 0 | G129: =IF(ProjectData!$B$11="Simple",C266,IC3)*D129 -> 0 | H129: Debt Pmt - Local share Avg Ann Interest
B130: Equity Payment - Individuals | C130: =IF(ProjectData!$B$11="Simple",J266,J302) -> 0 | D130: =IF(ProjectData!$B$11="Simple",'Default Data'!E216,ProjectData!E171) -> 1 | F130: =D130*C130 -> 0 | G130: =IF(ProjectData!$B$11="Simple",H266,H302)*D130 -> 0 | H130: Equity Pmt - Individual Share Avg Ann Interest
B131: Equity Payment - Corporate | C131: =IF(ProjectData!$B$11="Simple",O266,O302) -> 6335106.08 | D131: =IF(ProjectData!$B$11="Simple",'Default Data'!E217,ProjectData!E172) -> 0 | F131: =D131*C131 -> 0 | G131: =IF(ProjectData!$B$11="Simple",M266,M302)*D131 -> 0 | H131: Equity Pmt - Corporate Share Avg Ann Interest | K131: Default Land Lease | N131: User Land Lease
B132: Property Taxes | C132: =IF(ProjectData!$B$11="Simple",'Default Data'!C225,ProjectData!B180) -> 0 | D132: =IF(ProjectData!$B$11="Simple",'Default Data'!E225,ProjectData!E180) -> 1 | F132: =D132*C132 -> 0 | H132: Y | J132: Y | K132: H | L132: P | N132: H | O132: P
B133: Land Lease | C133: =IF(ProjectData!$B$11="Simple",'Default Data'!C231,ProjectData!B186) -> 12100 | D133: =IF(ProjectData!$B$11="Simple",'Default Data'!E232,ProjectData!E187) -> 0 | F133: =D133*C133 -> 0 | G133: =IF(ProjectData!$B$11="Simple",K133,N133) -> 0 | H133: To House | I133: =IF(ProjectData!$B$11="Simple",L133,O133) -> 0 | J133: To Public | K133: =IF('Default Data'!$C232="H",'Default Data'!$C231*'Default Data'!$E232,0) -> 0 | L133: =IF('Default Data'!$C232="P",'Default Data'!$C231*'Default Data'!$E232,0) -> 0 | N133: =IF(ProjectData!$B187="H",ProjectData!$B186*ProjectData!$E187,0) -> 0 | O133: =IF(ProjectData!$B187="P",ProjectData!$B186*ProjectData!$E187,0) -> 0
B134: Total | C134: =SUM(C127:C133) -> 12763017.78 | F134: =SUM(F129:F133) -> 0
B135: Total (without debt, equity, taxes, lease pmts) | C135: =C134-C131-C130-C129-C133-C132 -> 2188935.131
B136: Total cost per KW
B139: Year | C139: =F1 -> 2010 | E139: =CONCATENATE("Convert to ",Deflators!E4, " dollars") -> Convert to 2014 dollars | F139: =Deflators!F7 -> 1.074841396 | AA139: Plant Annual Operating and Maintenance Costs | AG139: Jobs | AH139: Earnings | AI139: Output | AJ139: Value Added
B140: Construction Costs Local Demand | E140: =SUM(E92:E139) -> 0 | AB140: Cost | AC140: Local Share | AF140: During construction period
C141: Demand | E141: Total | F141: Adj Demand | K141: Jobs | L141: Jobs | M141: Jobs | N141: Jobs | O141: Earnings | S141: Output | W141: Value Added | AA141: Variable Costs | AF141: Direct Impacts | AG141: =AG142+AG143 -> 71.36977704 | AH141: =AH142+AH143 -> 2.683140864 | AI141: =AI142+AI143 -> 4.024711296 | AJ141: =AJ142+AJ143 -> 2.683140864
F142: Millions of dollars | K142: Direct | L142: Indirect | M142: Induced | N142: Total | O142: Direct | P142: Indirect | Q142: Induced | R142: Total | S142: Direct | T142: Indirect | U142: Induced | V142: Total | W142: Direct | X142: Indirect | Y142: Induced | Z142: Total | AA142: Personnel | AF142: Onsite Construction Labor Only | AG142: =K145 -> 66.51870188 | AH142: =O145*H159 -> 2.255617663 | AI142: =S145*$H159 -> 3.383426495 | AJ142: =W145*H159 -> 2.255617663
B143: Agriculture | C143: =D210 -> 0 | E143: =C143 -> 0 | F143: =E143*F$139/10^6 -> 0 | K143: =$F143*Multipliers!D213 -> 0 | L143: =$F143*Multipliers!E213 -> 0 | M143: =$F143*Multipliers!F213 -> 0 | N143: =+M143+L143+K143 -> 0 | O143: =$F143*Multipliers!H213 -> 0 | P143: =$F143*Multipliers!I213 -> 0 | Q143: =$F143*Multipliers!J213 -> 0 | R143: =+Q143+P143+O143 -> 0 | S143: =$F143*Multipliers!L213 -> 0 | T143: =$F143*Multipliers!M213 -> 0 | U143: =$F143*Multipliers!N213 -> 0 | V143: =+U143+T143+S143 -> 0 | W143: =$F143*Multipliers!P213 -> 0 | X143: =$F143*Multipliers!Q213 -> 0 | Y143: =$F143*Multipliers!R213 -> 0 | Z143: =+Y143+X143+W143 -> 0 | AA143: Field Salaries | AF143: Other Onsite Construction Related Services (engin. and other prof. Services) | AG143: =K155 -> 4.851075168 | AH143: =O155*H159 -> 0.4275232008 | AI143: =S155*$H159 -> 0.6412848012 | AJ143: =W155*H159 -> 0.4275232008
B144: Mining | C144: =D211 -> 0 | E144: =C144 -> 0 | F144: =E144*F$139/10^6 -> 0 | K144: =$F144*Multipliers!D214 -> 0 | L144: =$F144*Multipliers!E214 -> 0 | M144: =$F144*Multipliers!F214 -> 0 | N144: =+M144+L144+K144 -> 0 | O144: =$F144*Multipliers!H214 -> 0 | P144: =$F144*Multipliers!I214 -> 0 | Q144: =$F144*Multipliers!J214 -> 0 | R144: =+Q144+P144+O144 -> 0 | S144: =$F144*Multipliers!L214 -> 0 | T144: =$F144*Multipliers!M214 -> 0 | U144: =$F144*Multipliers!N214 -> 0 | V144: =+U144+T144+S144 -> 0 | W144: =$F144*Multipliers!P214 -> 0 | X144: =$F144*Multipliers!Q214 -> 0 | Y144: =$F144*Multipliers!R214 -> 0 | Z144: =+Y144+X144+W144 -> 0 | AA144: Adminstrative | AF144: Turbine and Supply Chain Impacts | AG144: =(K157-AG141)+L157 -> 49.79604611 | AH144: =((O157*H159)-AH141)+P157*H159 -> 2.38652578 | AI144: =((S157*$H159)-AI141)+T157*$H159 -> 11.22438168 | AJ144: =((W157*H159)-AJ141)+X157*H159 -> 3.869348763
B145: Construction | C145: 3383426.495 | E145: 3383426.495 | F145: =E145*F$139/10^6 -> 3.636646856 | G145: =(J15+J36+J57+J75+J84+J90+J100)*$F139/10^6 -> 3.636646856 | K145: =$G147*Multipliers!D215+'Default Data'!AT116 -> 66.51870188 | L145: =$F145*Multipliers!E215 -> 12.36482415 | M145: =$F145*Multipliers!F215 -> 8.08063097 | N145: 86.96415699 | O145: =($G147*Multipliers!H215)+G187 -> 2.424431238 | P145: =$F145*Multipliers!I215 -> 0.4940383034 | Q145: =$F145*Multipliers!J215 -> 0.3118824556 | R145: 3.230351997 | S145: =$F145*Multipliers!L215 -> 3.636646856 | T145: =$F145*Multipliers!M215 -> 1.54358184 | U145: =$F145*Multipliers!N215 -> 1.001265758 | V145: 6.181494454 | W145: =$G147*Multipliers!P215+G187 -> 2.424431238 | X145: =$F145*Multipliers!Q215 -> 0.8062567386 | Y145: =$F145*Multipliers!R215 -> 0.5311607456 | Z145: 3.761848722 | AA145: Manangement | AF145: Induced Impacts | AG145: =M157 -> 21.06312669 | AH145: =Q157*H159 -> 0.7665944135 | AI145: =U157*$H159 -> 2.461440251 | AJ145: =Y157*H159 -> 1.305700037
B146: Manufacturing | C146: 5747787.164 | E146: 5747787.164 | F146: =E146*F$139/10^6 -> 6.177959578 | K146: =$F146*Multipliers!D216 -> 11.78361154 | L146: =$F146*Multipliers!E216 -> 13.50490934 | M146: =$F146*Multipliers!F216 -> 8.004284312 | N146: 33.29280519 | O146: =$F146*Multipliers!H216 -> 0.6967214961 | P146: =$F146*Multipliers!I216 -> 0.6907362951 | Q146: =$F146*Multipliers!J216 -> 0.3079451062 | R146: 1.695402897 | S146: =$F146*Multipliers!L216 -> 6.177959578 | T146: =$F146*Multipliers!M216 -> 2.4525694 | U146: =$F146*Multipliers!N216 -> 0.988863011 | V146: 9.619391989 | W146: =$F146*Multipliers!P216 -> 1.191297764 | X146: =$F146*Multipliers!Q216 -> 1.155124835 | Y146: =$F146*Multipliers!R216 -> 0.5245377157 | Z146: 2.870960315 | AA146: Personnel Subtotal | AF146: Total Impacts | AG146: =AG145+AG144+AG141 -> 142.2289498 | AH146: =AH145+AH144+AH141 -> 5.836261058 | AI146: =AI145+AI144+AI141 -> 17.71053323 | AJ146: =AJ145+AJ144+AJ141 -> 7.858189665
B147: Fabricated Metals | C147: 0 | E147: 0 | F147: 0 | G147: =F145-(G145+G146) -> 0 | K147: =$F147*Multipliers!D217 -> 0 | L147: =$F147*Multipliers!E217 -> 0 | M147: =$F147*Multipliers!F217 -> 0 | N147: 0 | O147: =$F147*Multipliers!H217 -> 0 | P147: =$F147*Multipliers!I217 -> 0 | Q147: =$F147*Multipliers!J217 -> 0 | R147: 0 | S147: =$F147*Multipliers!L217 -> 0 | T147: =$F147*Multipliers!M217 -> 0 | U147: =$F147*Multipliers!N217 -> 0 | V147: 0 | W147: =$F147*Multipliers!P217 -> 0 | X147: =$F147*Multipliers!Q217 -> 0 | Y147: =$F147*Multipliers!R217 -> 0 | Z147: 0 | AA147: Warranty/Maintenance Services
B148: Machinery | C148: 0 | E148: 0 | F148: 0 | K148: =$F148*Multipliers!D218 -> 0 | L148: =$F148*Multipliers!E218 -> 0 | M148: =$F148*Multipliers!F218 -> 0 | N148: 0 | O148: =$F148*Multipliers!H218 -> 0 | P148: =$F148*Multipliers!I218 -> 0 | Q148: =$F148*Multipliers!J218 -> 0 | R148: 0 | S148: =$F148*Multipliers!L218 -> 0 | T148: =$F148*Multipliers!M218 -> 0 | U148: =$F148*Multipliers!N218 -> 0 | V148: 0 | W148: =$F148*Multipliers!P218 -> 0 | X148: =$F148*Multipliers!Q218 -> 0 | Y148: =$F148*Multipliers!R218 -> 0 | Z148: 0 | AA148: Total | AF148: During operating years (annual)
B149: Electrical Equipment | C149: 0 | E149: 0 | F149: 0 | K149: =$F149*Multipliers!D219 -> 0 | L149: =$F149*Multipliers!E219 -> 0 | M149: =$F149*Multipliers!F219 -> 0 | N149: 0 | O149: =$F149*Multipliers!H219 -> 0 | P149: =$F149*Multipliers!I219 -> 0 | Q149: =$F149*Multipliers!J219 -> 0 | R149: 0 | S149: =$F149*Multipliers!L219 -> 0 | T149: =$F149*Multipliers!M219 -> 0 | U149: =$F149*Multipliers!N219 -> 0 | V149: 0 | W149: =$F149*Multipliers!P219 -> 0 | X149: =$F149*Multipliers!Q219 -> 0 | Y149: =$F149*Multipliers!R219 -> 0 | Z149: 0 | AA149: Fixed Costs | AF149: Direct Impacts
B150: TCPU | C150: 0 | E150: 0 | F150: 0 | K150: =$F150*Multipliers!D220 -> 0 | L150: =$F150*Multipliers!E220 -> 0 | M150: =$F150*Multipliers!F220 -> 0 | N150: 0 | O150: =$F150*Multipliers!H220 -> 0 | P150: =$F150*Multipliers!I220 -> 0 | Q150: =$F150*Multipliers!J220 -> 0 | R150: 0 | S150: =$F150*Multipliers!L220 -> 0 | T150: =$F150*Multipliers!M220 -> 0 | U150: =$F150*Multipliers!N220 -> 0 | V150: 0 | W150: =$F150*Multipliers!P220 -> 0 | X150: =$F150*Multipliers!Q220 -> 0 | Y150: =$F150*Multipliers!R220 -> 0 | Z150: 0 | AA150: Materials and Services | AF150: Onsite Plant and Wellfield Labor Only (operatiors, field techs, admin., mgmt.) | AG150: =K206 -> 7.856440652 | AH150: =O208 -> 1.037682396 | AI150: =S208 -> 1.037682396 | AJ150: =W208 -> 1.037682396
B151: Wholesale Trade | C151: 212299.6352 | E151: 212299.6352 | F151: 0.2281884363 | K151: =$F151*Multipliers!D221 -> 0.9661985359 | L151: =$F151*Multipliers!E221 -> 0.5954743816 | M151: =$F151*Multipliers!F221 -> 0.5145287264 | N151: 2.076201644 | O151: =$F151*Multipliers!H221 -> 0.0720492753 | P151: =$F151*Multipliers!I221 -> 0.02726690556 | Q151: =$F151*Multipliers!J221 -> 0.02204121011 | R151: 0.121357391 | S151: =$F151*Multipliers!L221 -> 0.2281884363 | T151: =$F151*Multipliers!M221 -> 0.08882597584 | U151: =$F151*Multipliers!N221 -> 0.07078136803 | V151: 0.3877957801 | W151: =$F151*Multipliers!P221 -> 0.1314788058 | X151: =$F151*Multipliers!Q221 -> 0.04685854223 | Y151: =$F151*Multipliers!R221 -> 0.03754503557 | Z151: 0.2158823836 | AA151: Vehicles | AF151: Supply Chain Impacts | AG151: =(K228-AG150)+L228 -> 3.186448925 | AH151: =(O229-AH150)+P229 -> 0.1320127161 | AI151: =(S229-AI150)+T229 -> 1.491147558 | AJ151: =(W229-AJ150)+X229 -> 0.2313317858
B152: Retail Trade | C152: 95955.51166 | E152: 95955.51166 | F152: 0.1031369561 | K152: =$F152*Multipliers!D222 -> 1.300043487 | L152: =$F152*Multipliers!E222 -> 0.2587904989 | M152: =$F152*Multipliers!F222 -> 0.2992574397 | N152: 1.858091425 | O152: =$F152*Multipliers!H222 -> 0.04243061035 | P152: =$F152*Multipliers!I222 -> 0.01039993284 | Q152: =$F152*Multipliers!J222 -> 0.01172218606 | R152: 0.06455272926 | S152: =$F152*Multipliers!L222 -> 0.1031369561 | T152: =$F152*Multipliers!M222 -> 0.03641275987 | U152: =$F152*Multipliers!N222 -> 0.03764104944 | V152: 0.1771907654 | W152: =$F152*Multipliers!P222 -> 0.06481829874 | X152: =$F152*Multipliers!Q222 -> 0.01877816577 | Y152: =$F152*Multipliers!R222 -> 0.01996667218 | Z152: 0.1035631367 | AA152: Misc. Services | AF152: Induced Impacts | AG152: =M228 -> 2.949574504 | AH152: =Q229 -> 0.1142741583 | AI152: =U229 -> 0.3669551489 | AJ152: =Y229 -> 0.1946493213
B153: FIRE | C153: 0 | E153: 0 | F153: 0 | K153: =$F153*Multipliers!D223 -> 0 | L153: =$F153*Multipliers!E223 -> 0 | M153: =$F153*Multipliers!F223 -> 0 | N153: 0 | O153: =$F153*Multipliers!H223 -> 0 | P153: =$F153*Multipliers!I223 -> 0 | Q153: =$F153*Multipliers!J223 -> 0 | R153: 0 | S153: =$F153*Multipliers!L223 -> 0 | T153: =$F153*Multipliers!M223 -> 0 | U153: =$F153*Multipliers!N223 -> 0 | V153: 0 | W153: =$F153*Multipliers!P223 -> 0 | X153: =$F153*Multipliers!Q223 -> 0 | Y153: =$F153*Multipliers!R223 -> 0 | Z153: 0 | AA153: Fees, Permits, Licenses | AF153: Total Impacts (Direct, Indirect, Induced) | AG153: =SUM(AG150:AG152) -> 13.99246408 | AH153: =SUM(AH150:AH152) -> 1.28396927 | AI153: =SUM(AI150:AI152) -> 2.895785103 | AJ153: =SUM(AJ150:AJ152) -> 1.463663503
B154: Misc. Services | C154: 755364.4956 | E154: 755364.4956 | F154: 0.8118970287 | K154: =$F154*Multipliers!D224 -> 4.811445127 | L154: =$F154*Multipliers!E224 -> 2.311960117 | M154: =$F154*Multipliers!F224 -> 2.377673386 | N154: 9.501078629 | O154: =$F154*Multipliers!H224 -> 0.34394251 | P154: =$F154*Multipliers!I224 -> 0.1103309432 | Q154: =$F154*Multipliers!J224 -> 0.1008053159 | R154: 0.5550787691 | S154: =$F154*Multipliers!L224 -> 0.8118970287 | T154: =$F154*Multipliers!M224 -> 0.3564980066 | U154: =$F154*Multipliers!N224 -> 0.3237082079 | V154: 1.492103243 | W154: =$F154*Multipliers!P224 -> 0.424609517 | X154: =$F154*Multipliers!Q224 -> 0.1844214367 | Y154: =$F154*Multipliers!R224 -> 0.171708494 | Z154: 0.7807394477 | AA154: Misc. Materials
B155: Professional Services | C155: 641284.8012 | E155: 641284.8012 | F155: 0.6892794507 | G155: =(I15+I36+I57+I75+I84+I90+I100)*$F139/10^6 -> 0.6892794507 | K155: =$G157*Multipliers!D225+'Default Data'!AS116 -> 4.851075168 | L155: =$F155*Multipliers!E225 -> 1.898788935 | M155: =$F155*Multipliers!F225 -> 1.786751853 | N155: 8.536615955 | O155: =($G157*Multipliers!H225)+$H187 -> 0.4595196338 | P155: =$F155*Multipliers!I225 -> 0.07722042845 | Q155: =$F155*Multipliers!J225 -> 0.06957113555 | R155: 0.6063111978 | S155: =$F155*Multipliers!L225 -> 0.6892794507 | T155: =$F155*Multipliers!M225 -> 0.2653600923 | U155: =$F155*Multipliers!N225 -> 0.2233984812 | V155: 1.178038024 | W155: =($G157*Multipliers!P225)+$H187 -> 0.4595196338 | X155: =$F155*Multipliers!Q225 -> 0.1352921216 | Y155: =$F155*Multipliers!R225 -> 0.118501787 | Z155: 0.7133135424 | AA155: Insurance
B156: Government | C156: 0 | E156: 0 | F156: 0 | K156: =$F156*Multipliers!D226 -> 0 | L156: =$F156*Multipliers!E226 -> 0 | M156: =$F156*Multipliers!F226 -> 0 | N156: 0 | O156: =$F156*Multipliers!H226 -> 0 | P156: =$F156*Multipliers!I226 -> 0 | Q156: =$F156*Multipliers!J226 -> 0 | R156: 0 | S156: =$F156*Multipliers!L226 -> 0 | T156: =$F156*Multipliers!M226 -> 0 | U156: =$F156*Multipliers!N226 -> 0 | V156: 0 | W156: =$F156*Multipliers!P226 -> 0 | X156: =$F156*Multipliers!Q226 -> 0 | Y156: =$F156*Multipliers!R226 -> 0 | Z156: 0 | AA156: Fuel (gals)
B157: Total | C157: =SUM(C143:C156) -> 10836118.1 | E157: =SUM(E143:E156) -> 10836118.1 | F157: =SUM(F143:F156) -> 11.64710831 | G157: =F155-(G155+G156) -> 0 | K157: =SUM(K143:K156) -> 90.23107573 | L157: 30.93474742 | M157: 21.06312669 | N157: 142.2289498 | O157: 4.039094763 | P157: 1.409992809 | Q157: 0.8239674094 | R157: 6.273054981 | S157: 11.64710831 | T157: 4.743248074 | U157: 2.645657875 | V157: 19.03601426 | W157: =SUM(W143:W156) -> 4.696155257 | X157: 2.34673184 | Y157: 1.40342045 | Z157: 8.446307547 | AA157: Tools and Misc. Supplies
AA158: Spare Parts Inventory
E159: Inflator to | F159: =C139 -> 2010 | G159: Dollars | H159: =Deflators!F8 -> 0.9303698238 | AA159: Subtotal | AB159: =C182 -> 0
C163: Local Share | D163: 1 | E163: 0.5
B164: Annual Operations and Maintenance Costs Local Demand - margined | AA164: Payroll Parameters | AB164: Base Wage per Hour | AC164: Annual Wage | AD164: Employer Payroll Costs
C165: Demand | D165: PCE-Land Lease | E165: PCE -Equity | F165: Total | G165: Adj Demand - Million | K165: Jobs | O165: Earnings | S165: Output | W165: Value Added | AA165: Construction Labor
D166: To Farm/House | E166: To Individuals | F166: w/o Plant Empl | G166: =Multipliers!D2 -> 2014 | H166: Dollars | K166: Direct | L166: Indirect | M166: Induced | N166: Total | O166: Direct | P166: Indirect | Q166: Induced | R166: Total | S166: Direct | T166: Indirect | U166: Induced | V166: Total | W166: Direct | X166: Indirect | Y166: Induced | Z166: Total | AB166: 0 | AC166: =AB166*40*52 -> 0 | AD166: 0
B167: Agriculture | C167: =$C$210*'Default Data'!C260+$C$211*'Default Data'!C261+$C$212*'Default Data'!C262+$C$213*'Default Data'!C263+$C$214*'Default Data'!C264+$C$215*'Default Data'!C265+$C$216*'Default Data'!C266+$C$217*'Default Data'!C267+$C$218*'Default Data'!C268+$C$219*'Default Data'!C269+$C$220*'Default Data'!C270+$C$221*'Default Data'!C271+$C$222*'Default Data'!C272+$C$223*'Default Data'!C273 -> 0 | D167: =G$133*D$163*Multipliers!$U213 -> 0 | E167: =G$130*E$163*Multipliers!$U213 -> 0 | F167: =SUM(C167:E167) -> 0 | G167: =F167*F$139/10^6 -> 0 | K167: =$G167*Multipliers!D213 -> 0 | L167: =$G167*Multipliers!E213 -> 0 | M167: =$G167*Multipliers!F213 -> 0 | N167: =+M167+L167+K167 -> 0 | O167: =$G167*Multipliers!H213 -> 0 | P167: =$G167*Multipliers!I213 -> 0 | Q167: =$G167*Multipliers!J213 -> 0 | R167: =+Q167+P167+O167 -> 0 | S167: =$G167*Multipliers!L213 -> 0 | T167: =$G167*Multipliers!M213 -> 0 | U167: =$G167*Multipliers!N213 -> 0 | V167: =+U167+T167+S167 -> 0 | W167: =$G167*Multipliers!P213 -> 0 | X167: =$G167*Multipliers!Q213 -> 0 | Y167: =$G167*Multipliers!R213 -> 0 | Z167: =+Y167+X167+W167 -> 0 | AB167: 0 | AC167: =AB167*40*52 -> 0 | AD167: 0
B168: Mining | C168: =$C$210*'Default Data'!D260+$C$211*'Default Data'!D261+$C$212*'Default Data'!D262+$C$213*'Default Data'!D263+$C$214*'Default Data'!D264+$C$215*'Default Data'!D265+$C$216*'Default Data'!D266+$C$217*'Default Data'!D267+$C$218*'Default Data'!D268+$C$219*'Default Data'!D269+$C$220*'Default Data'!D270+$C$221*'Default Data'!D271+$C$222*'Default Data'!D272+$C$223*'Default Data'!D273 -> 0 | D168: =G$133*D$163*Multipliers!U214 -> 0 | E168: =G$130*E$163*Multipliers!$U214 -> 0 | F168: =SUM(C168:E168) -> 0 | G168: =F168*F$139/10^6 -> 0 | K168: =$G168*Multipliers!D214 -> 0 | L168: =$G168*Multipliers!E214 -> 0 | M168: =$G168*Multipliers!F214 -> 0 | N168: =+M168+L168+K168 -> 0 | O168: =$G168*Multipliers!H214 -> 0 | P168: =$G168*Multipliers!I214 -> 0 | Q168: =$G168*Multipliers!J214 -> 0 | R168: =+Q168+P168+O168 -> 0 | S168: =$G168*Multipliers!L214 -> 0 | T168: =$G168*Multipliers!M214 -> 0 | U168: =$G168*Multipliers!N214 -> 0 | V168: =+U168+T168+S168 -> 0 | W168: =$G168*Multipliers!P214 -> 0 | X168: =$G168*Multipliers!Q214 -> 0 | Y168: =$G168*Multipliers!R214 -> 0 | Z168: =+Y168+X168+W168 -> 0 | AB168: 0 | AC168: =AB168*40*52 -> 0 | AD168: 0
B169: Construction | C169: =$C$210*'Default Data'!E260+$C$211*'Default Data'!E261+$C$212*'Default Data'!E262+$C$213*'Default Data'!E263+$C$214*'Default Data'!E264+$C$215*'Default Data'!E265+$C$216*'Default Data'!E266+$C$217*'Default Data'!E267+$C$218*'Default Data'!E268+$C$219*'Default Data'!E269+$C$220*'Default Data'!E270+$C$221*'Default Data'!E271+$C$222*'Default Data'!E272+$C$223*'Default Data'!E273 -> 0 | D169: =G$133*D$163*Multipliers!U215 -> 0 | E169: =G$130*E$163*Multipliers!$U215 -> 0 | F169: 0 | G169: 0 | K169: =$G169*Multipliers!D215 -> 0 | L169: =$G169*Multipliers!E215 -> 0 | M169: =$G169*Multipliers!F215 -> 0 | N169: 0 | O169: =$G169*Multipliers!H215 -> 0 | P169: =$G169*Multipliers!I215 -> 0 | Q169: =$G169*Multipliers!J215 -> 0 | R169: 0 | S169: =$G169*Multipliers!L215 -> 0 | T169: =$G169*Multipliers!M215 -> 0 | U169: =$G169*Multipliers!N215 -> 0 | V169: 0 | W169: =$G169*Multipliers!P215 -> 0 | X169: =$G169*Multipliers!Q215 -> 0 | Y169: =$G169*Multipliers!R215 -> 0 | Z169: 0 | AB169: 0 | AC169: =AB169*40*52 -> 0 | AD169: 0
B170: Manufacturing | C170: =$C$210*'Default Data'!F260+$C$211*'Default Data'!F261+$C$212*'Default Data'!F262+$C$213*'Default Data'!F263+$C$214*'Default Data'!F264+$C$215*'Default Data'!F265+$C$216*'Default Data'!F266+$C$217*'Default Data'!F267+$C$218*'Default Data'!F268+$C$219*'Default Data'!F269+$C$220*'Default Data'!F270+$C$221*'Default Data'!F271+$C$222*'Default Data'!F272+$C$223*'Default Data'!F273 -> 0 | D170: =G$133*D$163*Multipliers!U216 -> 0 | E170: =G$130*E$163*Multipliers!$U216 -> 0 | F170: 0 | G170: 0 | K170: =$G170*Multipliers!D216 -> 0 | L170: =$G170*Multipliers!E216 -> 0 | M170: =$G170*Multipliers!F216 -> 0 | N170: 0 | O170: =$G170*Multipliers!H216 -> 0 | P170: =$G170*Multipliers!I216 -> 0 | Q170: =$G170*Multipliers!J216 -> 0 | R170: 0 | S170: =$G170*Multipliers!L216 -> 0 | T170: =$G170*Multipliers!M216 -> 0 | U170: =$G170*Multipliers!N216 -> 0 | V170: 0 | W170: =$G170*Multipliers!P216 -> 0 | X170: =$G170*Multipliers!Q216 -> 0 | Y170: =$G170*Multipliers!R216 -> 0 | Z170: 0 | AA170: O&M Labor | AB170: Base Wage per Hour | AC170: Annual Wage | AD170: Employer Payroll Costs
B171: Fabricated Metals | C171: =$C$210*'Default Data'!G260+$C$211*'Default Data'!G261+$C$212*'Default Data'!G262+$C$213*'Default Data'!G263+$C$214*'Default Data'!G264+$C$215*'Default Data'!G265+$C$216*'Default Data'!G266+$C$217*'Default Data'!G267+$C$218*'Default Data'!G268+$C$219*'Default Data'!G269+$C$220*'Default Data'!G270+$C$221*'Default Data'!G271+$C$222*'Default Data'!G272+$C$223*'Default Data'!G273 -> 0 | D171: =G$133*D$163*Multipliers!U217 -> 0 | E171: =G$130*E$163*Multipliers!$U217 -> 0 | F171: 0 | G171: 0 | K171: =$G171*Multipliers!D217 -> 0 | L171: =$G171*Multipliers!E217 -> 0 | M171: =$G171*Multipliers!F217 -> 0 | N171: 0 | O171: =$G171*Multipliers!H217 -> 0 | P171: =$G171*Multipliers!I217 -> 0 | Q171: =$G171*Multipliers!J217 -> 0 | R171: 0 | S171: =$G171*Multipliers!L217 -> 0 | T171: =$G171*Multipliers!M217 -> 0 | U171: =$G171*Multipliers!N217 -> 0 | V171: 0 | W171: =$G171*Multipliers!P217 -> 0 | X171: =$G171*Multipliers!Q217 -> 0 | Y171: =$G171*Multipliers!R217 -> 0 | Z171: 0 | AA171: Field Salaries (technicians, other) | AB171: 0 | AC171: =AB171*40*52 -> 0 | AD171: 0
B172: Machinery | C172: =$C$210*'Default Data'!H260+$C$211*'Default Data'!H261+$C$212*'Default Data'!H262+$C$213*'Default Data'!H263+$C$214*'Default Data'!H264+$C$215*'Default Data'!H265+$C$216*'Default Data'!H266+$C$217*'Default Data'!H267+$C$218*'Default Data'!H268+$C$219*'Default Data'!H269+$C$220*'Default Data'!H270+$C$221*'Default Data'!H271+$C$222*'Default Data'!H272+$C$223*'Default Data'!H273 -> 0 | D172: =G$133*D$163*Multipliers!U218 -> 0 | E172: =G$130*E$163*Multipliers!$U218 -> 0 | F172: 0 | G172: 0 | K172: =$G172*Multipliers!D218 -> 0 | L172: =$G172*Multipliers!E218 -> 0 | M172: =$G172*Multipliers!F218 -> 0 | N172: 0 | O172: =$G172*Multipliers!H218 -> 0 | P172: =$G172*Multipliers!I218 -> 0 | Q172: =$G172*Multipliers!J218 -> 0 | R172: 0 | S172: =$G172*Multipliers!L218 -> 0 | T172: =$G172*Multipliers!M218 -> 0 | U172: =$G172*Multipliers!N218 -> 0 | V172: 0 | W172: =$G172*Multipliers!P218 -> 0 | X172: =$G172*Multipliers!Q218 -> 0 | Y172: =$G172*Multipliers!R218 -> 0 | Z172: 0 | AA172: Administrative | AB172: 0 | AC172: =AB172*40*52 -> 0 | AD172: 0
B173: Electrical Equipment | C173: =$C$210*'Default Data'!J260+$C$211*'Default Data'!J261+$C$212*'Default Data'!J262+$C$213*'Default Data'!J263+$C$214*'Default Data'!J264+$C$215*'Default Data'!J265+$C$216*'Default Data'!J266+$C$217*'Default Data'!J267+$C$218*'Default Data'!J268+$C$219*'Default Data'!J269+$C$220*'Default Data'!J270+$C$221*'Default Data'!J271+$C$222*'Default Data'!J272+$C$223*'Default Data'!J273 -> 0 | D173: =G$133*D$163*Multipliers!U219 -> 0 | E173: =G$130*E$163*Multipliers!$U219 -> 0 | F173: 0 | G173: 0 | K173: =$G173*Multipliers!D219 -> 0 | L173: =$G173*Multipliers!E219 -> 0 | M173: =$G173*Multipliers!F219 -> 0 | N173: 0 | O173: =$G173*Multipliers!H219 -> 0 | P173: =$G173*Multipliers!I219 -> 0 | Q173: =$G173*Multipliers!J219 -> 0 | R173: 0 | S173: =$G173*Multipliers!L219 -> 0 | T173: =$G173*Multipliers!M219 -> 0 | U173: =$G173*Multipliers!N219 -> 0 | V173: 0 | W173: =$G173*Multipliers!P219 -> 0 | X173: =$G173*Multipliers!Q219 -> 0 | Y173: =$G173*Multipliers!R219 -> 0 | Z173: 0 | AA173: Management | AB173: 0 | AC173: =AB173*40*52 -> 0 | AD173: 0
B174: TCPU | C174: =$C$210*'Default Data'!K260+$C$211*'Default Data'!K261+$C$212*'Default Data'!K262+$C$213*'Default Data'!K263+$C$214*'Default Data'!K264+$C$215*'Default Data'!K265+$C$216*'Default Data'!K266+$C$217*'Default Data'!K267+$C$218*'Default Data'!K268+$C$219*'Default Data'!K269+$C$220*'Default Data'!K270+$C$221*'Default Data'!K271+$C$222*'Default Data'!K272+$C$223*'Default Data'!K273 -> 0 | D174: =G$133*D$163*Multipliers!U220 -> 0 | E174: =G$130*E$163*Multipliers!$U220 -> 0 | F174: 0 | G174: 0 | K174: =$G174*Multipliers!D220 -> 0 | L174: =$G174*Multipliers!E220 -> 0 | M174: =$G174*Multipliers!F220 -> 0 | N174: 0 | O174: =$G174*Multipliers!H220 -> 0 | P174: =$G174*Multipliers!I220 -> 0 | Q174: =$G174*Multipliers!J220 -> 0 | R174: 0 | S174: =$G174*Multipliers!L220 -> 0 | T174: =$G174*Multipliers!M220 -> 0 | U174: =$G174*Multipliers!N220 -> 0 | V174: 0 | W174: =$G174*Multipliers!P220 -> 0 | X174: =$G174*Multipliers!Q220 -> 0 | Y174: =$G174*Multipliers!R220 -> 0 | Z174: 0
B175: Wholesale Trade | C175: =$C$210*'Default Data'!M260+$C$211*'Default Data'!M261+$C$212*'Default Data'!M262+$C$213*'Default Data'!M263+$C$214*'Default Data'!M264+$C$215*'Default Data'!M265+$C$216*'Default Data'!M266+$C$217*'Default Data'!M267+$C$218*'Default Data'!M268+$C$219*'Default Data'!M269+$C$220*'Default Data'!M270+$C$221*'Default Data'!M271+$C$222*'Default Data'!M272+$C$223*'Default Data'!M273 -> 0 | D175: =G$133*D$163*Multipliers!U221 -> 0 | E175: =G$130*E$163*Multipliers!$U221 -> 0 | F175: 0 | G175: 0 | K175: =$G175*Multipliers!D221 -> 0 | L175: =$G175*Multipliers!E221 -> 0 | M175: =$G175*Multipliers!F221 -> 0 | N175: 0 | O175: =$G175*Multipliers!H221 -> 0 | P175: =$G175*Multipliers!I221 -> 0 | Q175: =$G175*Multipliers!J221 -> 0 | R175: 0 | S175: =$G175*Multipliers!L221 -> 0 | T175: =$G175*Multipliers!M221 -> 0 | U175: =$G175*Multipliers!N221 -> 0 | V175: 0 | W175: =$G175*Multipliers!P221 -> 0 | X175: =$G175*Multipliers!Q221 -> 0 | Y175: =$G175*Multipliers!R221 -> 0 | Z175: 0
B176: Retail Trade | C176: =$C$210*'Default Data'!O260+$C$211*'Default Data'!O261+$C$212*'Default Data'!O262+$C$213*'Default Data'!O263+$C$214*'Default Data'!O264+$C$215*'Default Data'!O265+$C$216*'Default Data'!O266+$C$217*'Default Data'!O267+$C$218*'Default Data'!O268+$C$219*'Default Data'!O269+$C$220*'Default Data'!O270+$C$221*'Default Data'!O271+$C$222*'Default Data'!O272+$C$223*'Default Data'!O273 -> 0 | D176: =G$133*D$163*Multipliers!U222 -> 0 | E176: =G$130*E$163*Multipliers!$U222 -> 0 | F176: 0 | G176: 0 | K176: =$G176*Multipliers!D222 -> 0 | L176: =$G176*Multipliers!E222 -> 0 | M176: =$G176*Multipliers!F222 -> 0 | N176: 0 | O176: =$G176*Multipliers!H222 -> 0 | P176: =$G176*Multipliers!I222 -> 0 | Q176: =$G176*Multipliers!J222 -> 0 | R176: 0 | S176: =$G176*Multipliers!L222 -> 0 | T176: =$G176*Multipliers!M222 -> 0 | U176: =$G176*Multipliers!N222 -> 0 | V176: 0 | W176: =$G176*Multipliers!P222 -> 0 | X176: =$G176*Multipliers!Q222 -> 0 | Y176: =$G176*Multipliers!R222 -> 0 | Z176: 0
B177: FIRE | C177: =$C$210*'Default Data'!P260+$C$211*'Default Data'!P261+$C$212*'Default Data'!P262+$C$213*'Default Data'!P263+$C$214*'Default Data'!P264+$C$215*'Default Data'!P265+$C$216*'Default Data'!P266+$C$217*'Default Data'!P267+$C$218*'Default Data'!P268+$C$219*'Default Data'!P269+$C$220*'Default Data'!P270+$C$221*'Default Data'!P271+$C$222*'Default Data'!P272+$C$223*'Default Data'!P273 -> 0 | D177: =G$133*D$163*Multipliers!U223 -> 0 | E177: =G$130*E$163*Multipliers!$U223 -> 0 | F177: 0 | G177: 0 | K177: =$G177*Multipliers!D223 -> 0 | L177: =$G177*Multipliers!E223 -> 0 | M177: =$G177*Multipliers!F223 -> 0 | N177: 0 | O177: =$G177*Multipliers!H223 -> 0 | P177: =$G177*Multipliers!I223 -> 0 | Q177: =$G177*Multipliers!J223 -> 0 | R177: 0 | S177: =$G177*Multipliers!L223 -> 0 | T177: =$G177*Multipliers!M223 -> 0 | U177: =$G177*Multipliers!N223 -> 0 | V177: 0 | W177: =$G177*Multipliers!P223 -> 0 | X177: =$G177*Multipliers!Q223 -> 0 | Y177: =$G177*Multipliers!R223 -> 0 | Z177: 0
B178: Misc. Services | C178: =$C$210*'Default Data'!Q260+$C$211*'Default Data'!Q261+$C$212*'Default Data'!Q262+$C$213*'Default Data'!Q263+$C$214*'Default Data'!Q264+$C$215*'Default Data'!Q265+$C$216*'Default Data'!Q266+$C$217*'Default Data'!Q267+$C$218*'Default Data'!Q268+$C$219*'Default Data'!Q269+$C$220*'Default Data'!Q270+$C$221*'Default Data'!Q271+$C$222*'Default Data'!Q272+$C$223*'Default Data'!Q273 -> 0 | D178: =G$133*D$163*Multipliers!U224 -> 0 | E178: =G$130*E$163*Multipliers!$U224 -> 0 | F178: 0 | G178: 0 | K178: =$G178*Multipliers!D224 -> 0 | L178: =$G178*Multipliers!E224 -> 0 | M178: =$G178*Multipliers!F224 -> 0 | N178: 0 | O178: =$G178*Multipliers!H224 -> 0 | P178: =$G178*Multipliers!I224 -> 0 | Q178: =$G178*Multipliers!J224 -> 0 | R178: 0 | S178: =$G178*Multipliers!L224 -> 0 | T178: =$G178*Multipliers!M224 -> 0 | U178: =$G178*Multipliers!N224 -> 0 | V178: 0 | W178: =$G178*Multipliers!P224 -> 0 | X178: =$G178*Multipliers!Q224 -> 0 | Y178: =$G178*Multipliers!R224 -> 0 | Z178: 0
B179: Professional Services | C179: =$C$210*'Default Data'!R260+$C$211*'Default Data'!R261+$C$212*'Default Data'!R262+$C$213*'Default Data'!R263+$C$214*'Default Data'!R264+$C$215*'Default Data'!R265+$C$216*'Default Data'!R266+$C$217*'Default Data'!R267+$C$218*'Default Data'!R268+$C$219*'Default Data'!R269+$C$220*'Default Data'!R270+$C$221*'Default Data'!R271+$C$222*'Default Data'!R272+$C$223*'Default Data'!R273 -> 0 | D179: =G$133*D$163*Multipliers!U225 -> 0 | E179: =G$130*E$163*Multipliers!$U225 -> 0 | F179: 0 | G179: 0 | K179: =$G179*Multipliers!D225 -> 0 | L179: =$G179*Multipliers!E225 -> 0 | M179: =$G179*Multipliers!F225 -> 0 | N179: 0 | O179: =$G179*Multipliers!H225 -> 0 | P179: =$G179*Multipliers!I225 -> 0 | Q179: =$G179*Multipliers!J225 -> 0 | R179: 0 | S179: =$G179*Multipliers!L225 -> 0 | T179: =$G179*Multipliers!M225 -> 0 | U179: =$G179*Multipliers!N225 -> 0 | V179: 0 | W179: =$G179*Multipliers!P225 -> 0 | X179: =$G179*Multipliers!Q225 -> 0 | Y179: =$G179*Multipliers!R225 -> 0 | Z179: 0
B180: Government | C180: =$C$210*'Default Data'!S260+$C$211*'Default Data'!S261+$C$212*'Default Data'!S262+$C$213*'Default Data'!S263+$C$214*'Default Data'!S264+$C$215*'Default Data'!S265+$C$216*'Default Data'!S266+$C$217*'Default Data'!S267+$C$218*'Default Data'!S268+$C$219*'Default Data'!S269+$C$220*'Default Data'!S270+$C$221*'Default Data'!S271+$C$222*'Default Data'!S272+$C$223*'Default Data'!S273 -> 0 | D180: =G$133*D$163*Multipliers!U226 -> 0 | E180: =G$130*E$163*Multipliers!$U226 -> 0 | F180: 0 | G180: 0 | K180: =$G180*Multipliers!D226 -> 0 | L180: =$G180*Multipliers!E226 -> 0 | M180: =$G180*Multipliers!F226 -> 0 | N180: 0 | O180: =$G180*Multipliers!H226 -> 0 | P180: =$G180*Multipliers!I226 -> 0 | Q180: =$G180*Multipliers!J226 -> 0 | R180: 0 | S180: =$G180*Multipliers!L226 -> 0 | T180: =$G180*Multipliers!M226 -> 0 | U180: =$G180*Multipliers!N226 -> 0 | V180: 0 | W180: =$G180*Multipliers!P226 -> 0 | X180: =$G180*Multipliers!Q226 -> 0 | Y180: =$G180*Multipliers!R226 -> 0 | Z180: 0
B181: Total | C181: =SUM(C167:C180) -> 0 | D181: =SUM(D167:D180) -> 0 | E181: =SUM(E167:E180) -> 0 | F181: =SUM(F167:F180) -> 0 | G181: =SUM(G167:G180) -> 0 | J181: Total | K181: =SUM(K167:K180) -> 0 | L181: =SUM(L167:L180) -> 0 | M181: 0 | N181: 0 | O181: 0 | P181: 0 | Q181: 0 | R181: 0 | S181: 0 | T181: 0 | U181: 0 | V181: 0 | W181: =SUM(W167:W180) -> 0 | X181: 0 | Y181: 0 | Z181: 0
D182: Employer Cost Multiplier | F182: =IF(ProjectData!$B11="simple",'Rates & Misc'!$C12,ProjectData!$B202) -> 2.5 | G182: =IF(ProjectData!$B11="simple",'Rates & Misc'!$C10,ProjectData!$B190) -> 1.5 | H182: =IF(ProjectData!$B11="simple",'Rates & Misc'!$C10,ProjectData!$B190) -> 1.5
B183: Plant Employees | D183: Earnings - Gross | F183: =F109 -> 1037682.396 | G183: =G145 -> 3.636646856 | H183: =G155 -> 0.6892794507
B184: Plant Employees | D184: Employee - (SSI, Medicare, etc.) | E184: 0.071 | F184: =$E184*(F183*((F182-1)/F182)) -> 44205.27007 | G184: =$E184*(G183*((G182-1)/G182)) -> 0.08606730894 | H184: =$E184*(H183*((H182-1)/H182)) -> 0.016312947 | N184: Inflate to | O184: =C139 -> 2010 | P184: Dollars | S184: =O184 -> 2010 | T184: Dollars | W184: =S184 -> 2010 | X184: Dollars
B185: Field and Plant | C185: ='Default Data'!AA154 -> 7.856440652 | D185: Other benefits | E185: 0.3 | F185: =$E185*(F183*((F182-1)/F182)) -> 186782.8313 | G185: =$E185*(G183*((G182-1)/G182)) -> 0.3636646856 | H185: =$E185*(H183*((H182-1)/H182)) -> 0.06892794507 | J185: Without Plant Employees | K185: =K181 -> 0 | L185: =L181 -> 0 | M185: =M181 -> 0 | N185: =N181 -> 0 | O185: =O181*$H159 -> 0 | P185: =P181*$H159 -> 0 | Q185: 0 | R185: 0 | S185: 0 | T185: 0 | U185: 0 | V185: 0 | W185: =W181*$H159 -> 0 | X185: 0 | Y185: 0 | Z185: 0
C186: 0 | D186: Other overhead | E186: =1-(E185+E184) -> 0.629 | F186: =$E186*(F183*((F182-1)/F182)) -> 391621.3363 | G186: =$E186*(G183*((G182-1)/G182)) -> 0.7624836242 | H186: =$E186*(H183*((H182-1)/H182)) -> 0.1445189248 | J186: With Plant Employees | K186: =K185+K206 -> 7.856440652 | L186: =L185+L206 -> 3.186448925 | M186: =M185+M206 -> 2.949574504 | N186: =N185+N206 -> 13.99246408 | O186: =(O181+O206)*$H159 -> 1.037682396 | P186: =(P181+P206)*$H159 -> 0.1320127161 | Q186: 0.1142741583 | R186: 1.28396927 | S186: 1.037682396 | T186: 0.453465162 | U186: 0.3669551489 | V186: 1.858102707 | W186: =(W181+W206)*$H159 -> 1.037682396 | X186: 0.2313317858 | Y186: 0.1946493213 | Z186: 1.463663503
C187: 0 | D187: Earnings (minus taxes, benefits, etc) | F187: =F183-(F184+F185+F186) -> 415072.9584 | G187: =G183-(G184+G185+G186) -> 2.424431238 | H187: =H183-(H184+H185+H186) -> 0.4595196338
B188: Total | C188: =+C187+C186+C185 -> 7.856440652
K189: Plant Employees Only
B190: Plant Employee Spending | E190: PCE | G190: Adj Demand - Million | K190: Jobs | O190: Earnings | S190: Output | W190: Value Added
E191: Plant Emp | G191: =G166 -> 2014 | H191: Dollars | K191: Direct | L191: Indirect | M191: Induced | N191: Total | O191: Direct | P191: Indirect | Q191: Induced | R191: Total | S191: Direct | T191: Indirect | U191: Induced | V191: Total | W191: Direct | X191: Indirect | Y191: Induced | Z191: Total
B192: Agriculture | E192: =F$187*Multipliers!U213 -> 3939.76904 | G192: =E192*F$139/10^6 -> 0.004234626854 | L192: =$G192*Multipliers!E213 -> 0.007031131954 | M192: =$G192*Multipliers!F213 -> 0.0104681949 | N192: =M192+L192 -> 0.01749932686 | P192: =$G192*Multipliers!I213 -> 0.0004831140776 | Q192: =$G192*Multipliers!J213 -> 0.0004488820202 | R192: =Q192+P192 -> 0.0009319960978 | S192: =$G192*Multipliers!L213 -> 0.004234626854 | T192: =$G192*Multipliers!M213 -> 0.001543641826 | U192: =$G192*Multipliers!N213 -> 0.001440141781 | V192: =U192+T192 -> 0.002983783607 | X192: =$G192*Multipliers!Q213 -> 0.0007971430347 | Y192: =$G192*Multipliers!R213 -> 0.0007641520134 | Z192: =Y192+X192 -> 0.001561295048
B193: Mining | E193: =F$187*Multipliers!U214 -> 1.524437878 | G193: =E193*F$139/10^6 -> 1.638528937e-06 | L193: =$G193*Multipliers!E214 -> 3.143806854e-06 | M193: =$G193*Multipliers!F214 -> 2.718676774e-06 | N193: =M193+L193 -> 5.862483627e-06 | P193: =$G193*Multipliers!I214 -> 1.376150038e-07 | Q193: =$G193*Multipliers!J214 -> 1.014766498e-07 | R193: =Q193+P193 -> 2.390916536e-07 | S193: =$G193*Multipliers!L214 -> 1.638528937e-06 | T193: =$G193*Multipliers!M214 -> 5.06940282e-07 | U193: =$G193*Multipliers!N214 -> 3.258085482e-07 | V193: =U193+T193 -> 8.327488303e-07 | X193: =$G193*Multipliers!Q214 -> 2.282985558e-07 | Y193: =$G193*Multipliers!R214 -> 1.728327409e-07 | Z193: =Y193+X193 -> 4.011312967e-07
B194: Construction | E194: =F$187*Multipliers!U215 -> 0 | G194: 0 | L194: =$G194*Multipliers!E215 -> 0 | M194: =$G194*Multipliers!F215 -> 0 | N194: 0 | P194: =$G194*Multipliers!I215 -> 0 | Q194: =$G194*Multipliers!J215 -> 0 | R194: 0 | S194: =$G194*Multipliers!L215 -> 0 | T194: =$G194*Multipliers!M215 -> 0 | U194: =$G194*Multipliers!N215 -> 0 | V194: 0 | X194: =$G194*Multipliers!Q215 -> 0 | Y194: =$G194*Multipliers!R215 -> 0 | Z194: 0
B195: Manufacturing | E195: =F$187*Multipliers!U216 -> 14461.43183 | G195: 0.01554374557 | L195: =$G195*Multipliers!E216 -> 0.03397835031 | M195: =$G195*Multipliers!F216 -> 0.02013877839 | N195: 0.0541171287 | P195: =$G195*Multipliers!I216 -> 0.001737892437 | Q195: =$G195*Multipliers!J216 -> 0.000774789851 | R195: 0.002512682288 | S195: =$G195*Multipliers!L216 -> 0.01554374557 | T195: =$G195*Multipliers!M216 -> 0.006170664323 | U195: =$G195*Multipliers!N216 -> 0.00248797922 | V195: 0.008658643543 | X195: =$G195*Multipliers!Q216 -> 0.002906293949 | Y195: =$G195*Multipliers!R216 -> 0.001319736831 | Z195: 0.00422603078
B196: Fabricated Metals | E196: =F$187*Multipliers!U217 -> 0.2215820061 | G196: 2.381655127e-07 | L196: =$G196*Multipliers!E217 -> 4.450108601e-07 | M196: =$G196*Multipliers!F217 -> 4.371012493e-07 | N196: 8.821121093e-07 | P196: =$G196*Multipliers!I217 -> 2.013882489e-08 | Q196: =$G196*Multipliers!J217 -> 1.655767732e-08 | R196: 3.669650221e-08 | S196: =$G196*Multipliers!L217 -> 2.381655127e-07 | T196: =$G196*Multipliers!M217 -> 7.54726671e-08 | U196: =$G196*Multipliers!N217 -> 5.317796421e-08 | V196: 1.286506313e-07 | X196: =$G196*Multipliers!Q217 -> 3.417913601e-08 | Y196: =$G196*Multipliers!R217 -> 2.820644823e-08 | Z196: 6.238558424e-08
B197: Machinery | E197: =F$187*Multipliers!U218 -> 7.831228726 | G197: 8.417328814e-06 | L197: =$G197*Multipliers!E218 -> 1.731615756e-05 | M197: =$G197*Multipliers!F218 -> 1.034021549e-05 | N197: 2.765637305e-05 | P197: =$G197*Multipliers!I218 -> 8.071821908e-07 | Q197: =$G197*Multipliers!J218 -> 3.906516007e-07 | R197: 1.197833792e-06 | S197: =$G197*Multipliers!L218 -> 8.417328814e-06 | T197: =$G197*Multipliers!M218 -> 3.038692339e-06 | U197: =$G197*Multipliers!N218 -> 1.25459042e-06 | V197: 4.293282759e-06 | X197: =$G197*Multipliers!Q218 -> 1.373991956e-06 | Y197: =$G197*Multipliers!R218 -> 6.654655136e-07 | Z197: 2.039457469e-06
B198: Electrical Equipment | E198: =F$187*Multipliers!U219 -> 9.97021192 | G198: 1.07163965e-05 | L198: =$G198*Multipliers!E219 -> 2.438545512e-05 | M198: =$G198*Multipliers!F219 -> 1.873293506e-05 | N198: 4.311839018e-05 | P198: =$G198*Multipliers!I219 -> 1.212611928e-06 | Q198: =$G198*Multipliers!J219 -> 7.042050012e-07 | R198: 1.916816929e-06 | S198: =$G198*Multipliers!L219 -> 1.07163965e-05 | T198: =$G198*Multipliers!M219 -> 4.450832575e-06 | U198: =$G198*Multipliers!N219 -> 2.261736081e-06 | V198: 6.712568657e-06 | X198: =$G198*Multipliers!Q219 -> 2.025529993e-06 | Y198: =$G198*Multipliers!R219 -> 1.199651592e-06 | Z198: 3.225181585e-06
B199: TCPU | E199: =F$187*Multipliers!U220 -> 18654.13979 | G199: 0.02005024165 | L199: =$G199*Multipliers!E220 -> 0.05211448397 | M199: =$G199*Multipliers!F220 -> 0.03920181681 | N199: 0.09131630079 | P199: =$G199*Multipliers!I220 -> 0.002399026627 | Q199: =$G199*Multipliers!J220 -> 0.00149741704 | R199: 0.003896443667 | S199: =$G199*Multipliers!L220 -> 0.02005024165 | T199: =$G199*Multipliers!M220 -> 0.008675553887 | U199: =$G199*Multipliers!N220 -> 0.004808157719 | V199: 0.01348371161 | X199: =$G199*Multipliers!Q220 -> 0.004071234181 | Y199: =$G199*Multipliers!R220 -> 0.002550519358 | Z199: 0.00662175354
B200: Wholesale Trade | E200: =F$187*Multipliers!U221 -> 19041.5836 | G200: 0.02046668229 | L200: =$G200*Multipliers!E221 -> 0.05340930146 | M200: =$G200*Multipliers!F221 -> 0.04614912195 | N200: 0.09955842341 | P200: =$G200*Multipliers!I221 -> 0.002445623899 | Q200: =$G200*Multipliers!J221 -> 0.001976920706 | R200: 0.004422544605 | S200: =$G200*Multipliers!L221 -> 0.02046668229 | T200: =$G200*Multipliers!M221 -> 0.007966981398 | U200: =$G200*Multipliers!N221 -> 0.006348524033 | V200: 0.01431550543 | X200: =$G200*Multipliers!Q221 -> 0.00420283741 | Y200: =$G200*Multipliers!R221 -> 0.003367490164 | Z200: 0.007570327575
B201: Retail Trade | E201: =F$187*Multipliers!U222 -> 49227.61694 | G201: 0.0529118805 | L201: =$G201*Multipliers!E222 -> 0.1327661051 | M201: =$G201*Multipliers!F222 -> 0.1535266745 | N201: 0.2862927797 | P201: =$G201*Multipliers!I222 -> 0.005335429943 | Q201: =$G201*Multipliers!J222 -> 0.00601377946 | R201: 0.0113492094 | S201: =$G201*Multipliers!L222 -> 0.0529118805 | T201: =$G201*Multipliers!M222 -> 0.01868067153 | U201: =$G201*Multipliers!N222 -> 0.0193108153 | V201: 0.03799148683 | X201: =$G201*Multipliers!Q222 -> 0.009633676436 | Y201: =$G201*Multipliers!R222 -> 0.01024341044 | Z201: 0.01987708687
B202: FIRE | E202: =F$187*Multipliers!U223+F185 -> 242429.3019 | G202: 0.2605730493 | L202: =$G202*Multipliers!E223 -> 0.9061405494 | M202: =$G202*Multipliers!F223 -> 0.4613557799 | N202: 1.367496329 | P202: =$G202*Multipliers!I223 -> 0.03409252445 | Q202: =$G202*Multipliers!J223 -> 0.01777039848 | R202: 0.05186292293 | S202: =$G202*Multipliers!L223 -> 0.2605730493 | T202: =$G202*Multipliers!M223 -> 0.1354264432 | U202: =$G202*Multipliers!N223 -> 0.05705530061 | V202: 0.1924817438 | X202: =$G202*Multipliers!Q223 -> 0.06759159548 | Y202: =$G202*Multipliers!R223 -> 0.03026625255 | Z202: 0.09785784803
B203: Misc. Services | E203: =F$187*Multipliers!U224+F186 -> 638415.7855 | G203: 0.6861957139 | L203: =$G203*Multipliers!E224 -> 1.954012722 | M203: =$G203*Multipliers!F224 -> 2.009551986 | N203: 3.963564708 | P203: =$G203*Multipliers!I224 -> 0.09324904226 | Q203: =$G203*Multipliers!J224 -> 0.08519821267 | R203: 0.1784472549 | S203: =$G203*Multipliers!L224 -> 0.6861957139 | T203: =$G203*Multipliers!M224 -> 0.3013034849 | U203: =$G203*Multipliers!N224 -> 0.2735903409 | V203: 0.5748938258 | X203: =$G203*Multipliers!Q224 -> 0.1558685337 | Y203: =$G203*Multipliers!R224 -> 0.1451238624 | Z203: 0.3009923961
B204: Professional Services | E204: =F$187*Multipliers!U225 -> 3611.472443 | G204: 0.003881760081 | L204: =$G204*Multipliers!E225 -> 0.01069325813 | M204: =$G204*Multipliers!F225 -> 0.01006230783 | N204: 0.02075556596 | P204: =$G204*Multipliers!I225 -> 0.000434876125 | Q204: =$G204*Multipliers!J225 -> 0.0003917982126 | R204: 0.0008266743375 | S204: =$G204*Multipliers!L225 -> 0.003881760081 | T204: =$G204*Multipliers!M225 -> 0.001494407257 | U204: =$G204*Multipliers!N225 -> 0.0012580954 | V204: 0.002752502658 | X204: =$G204*Multipliers!Q225 -> 0.0007619138454 | Y204: =$G204*Multipliers!R225 -> 0.0006673570577 | Z204: 0.001429270903
B205: Government | E205: =F$187*Multipliers!U226+F184 -> 47881.74747 | G205: 0.05146528428 | L205: =$G205*Multipliers!E226 -> 0.03625773226 | M205: =$G205*Multipliers!F226 -> 0.1990876145 | N205: 0.2353453468 | P205: =$G205*Multipliers!I226 -> 0.001713024642 | Q205: =$G205*Multipliers!J226 -> 0.008753184423 | R205: 0.01046620907 | S205: =$G205*Multipliers!L226 -> 0.05146528428 | T205: =$G205*Multipliers!M226 -> 0.006133207407 | U205: =$G205*Multipliers!N226 -> 0.02811533418 | V205: 0.03424854159 | X205: =$G205*Multipliers!Q226 -> 0.002808089419 | Y205: =$G205*Multipliers!R226 -> 0.01491230129 | Z205: 0.01772039071
B206: Total | E206: =SUM(E192:E205) -> 1037682.396 | G206: =SUM(G192:G205) -> 1.115343995 | K206: =IF(K208=0,0,C188) -> 7.856440652 | L206: =SUM(L192:L205) -> 3.186448925 | M206: =SUM(M192:M205) -> 2.949574504 | N206: =M206+L206+K206 -> 13.99246408 | O206: =G206 -> 1.115343995 | P206: =SUM(P192:P205) -> 0.141892732 | Q206: =SUM(Q192:Q205) -> 0.1228265958 | R206: =Q206+P206+O206 -> 1.380063323 | S206: =SUM(S192:S205) -> 1.115343995 | T206: =SUM(T192:T205) -> 0.4874031277 | U206: =SUM(U192:U205) -> 0.3944185844 | V206: =U206+T206+S206 -> 1.997165707 | W206: =O206 -> 1.115343995 | X206: =SUM(X192:X205) -> 0.2486449795 | Y206: =SUM(Y192:Y205) -> 0.2092171482 | Z206: =Y206+X206+W206 -> 1.573206123
N207: Inflate to | O207: =O184 -> 2010 | P207: Dollars
B208: Annual O&M Costs Local Demand | D208: Construction Costs Local Demand | K208: =SUM(L213:L226) -> 3.186448925 | O208: =O206*$H159 -> 1.037682396 | P208: =P206*$H159 -> 0.1320127161 | Q208: 0.1142741583 | R208: 1.28396927 | S208: 1.037682396 | T208: 0.453465162 | U208: 0.3669551489 | V208: 1.858102707 | W208: =W206*$H159 -> 1.037682396 | X208: 0.2313317858 | Y208: 0.1946493213 | Z208: 1.463663503
C209: Demand | D209: Demand
B210: Agriculture | C210: 0 | D210: 0 | K210: With Plant Employees
B211: Mining | C211: 0 | D211: 0 | K211: Jobs | O211: Earnings | S211: Output | W211: Value Added
... 136 more rows

Sheet Default Data
X2: 3000 meters | Y2: Drilling Progress
B3: Resource Temperature °C | C3: =IF(ProjectData!C19="Celsius",ProjectData!B19,(ProjectData!B19-32) *(5/9)) -> 200 | X3: Cost | Y3: Easy | Z3: Medium | AA3: Hard
B4: Resource Depth (meters) | C4: =IF(ProjectData!C20="meters",ProjectData!B20,ProjectData!B20/3.28083) -> 2250 | X4: Geologist | Y4: 0.006384198809 | Z4: 0.007089636821 | AA4: 0.00780866881
A5: Warning | B5: Production well flow rate (kg/s) | C5: =ProjectData!B25 -> 80 | X5: Mud Engineer(s) | Y5: 0.007296227211 | Z5: 0.008102442081 | AA5: 0.008924192925
X6: Drilling Fluids - Mud (5950/day) | Y6: 0.05426568988 | Z6: 0.06026191298 | AA6: 0.06637368488
A7: This Worksheet contains Data and Formulas that are an integral part of the JEDI model. | X7: Directional Engineer and Motorman (60% of rotary time) | Y7: 0.01450125158 | Z7: 0.01610360364 | AA7: 0.01773683344
X8: Direction Tools and Services (75% of directional services) | Y8: 0.04350375474 | Z8: 0.04831081091 | AA8: 0.05321050032
A9: Although the data and formulas are available for review they must not be changed. | X9: Drilling Engineering | Y9: 0.01502164426 | Z9: 0.0166814984 | AA9: 0.01837333838
X10: Drill Rig Rate | Y10: 0.1459245442 | Z10: 0.1620488416 | AA10: 0.1784838585
A11: Any changes to the data or formulas will impact the analysis and may invalidate the model results. | B11: Project Descriptive Data | X11: Drill Hands - labor (6 men) | Y11: 0 | Z11: 0 | AA11: 0
B12: Geothermal Input Sheet | G12: =D185/C17 -> 199199.3408 | X12: Management/Administrative | Y12: 0.0009961204242 | Z12: 0.0009518372542 | AA12: 0.0009067007358
B13: Select Model Analysis Type | C13: =ProjectData!B11 -> Advanced | F13: Model Input Calculations: | J13: Simple | S13: Advanced (User Reviewed and/or Revised) | X13: Site Construction | Y13: 0.02490301061 | Z13: 0.02379593136 | AA13: 0.0226675184
B14: User Input: | F14: Resource Temperature °C | G14: =IF(D20="Celsius",C20,(C20-32) *(5/9)) -> 200 | J14: =CONCATENATE("Exploration Costs (", ROUND(K14/K20,3)*100, " % )") -> Exploration Costs (5.9 % ) | K14: =E47 -> 2426980 | S14: =CONCATENATE("Exploration Costs (", ROUND(T14/T20,3)*100, " % )") -> Exploration Costs (5.3 % ) | T14: =ProjectData!D48 -> 2426980 | X14: Material Costs - Cement and Casing | Y14: 0.3286002055 | Z14: 0.3139920734 | AA14: 0.2991024387
B15: Project Location | C15: =ProjectData!B13 -> IDAHO | F15: Resource Depth (meters) | G15: =C4 -> 2250 | J15: =CONCATENATE(C19," Plant Capital Cost"," (",ROUND(K15/K20,3)*100," % )") -> Binary Plant Capital Cost (57 % ) | K15: =G17 -> 23549341.05 | S15: =CONCATENATE(ProjectData!B18," Plant Capital Cost"," (",ROUND(T15/T20,3)*100," % )") -> Binary Plant Capital Cost (51.3 % ) | T15: =ProjectData!G15 -> 23549341.05 | X15: Drilling Tools | Y15: 0.02490301061 | Z15: 0.02379593136 | AA15: 0.0226675184
B16: Year of Construction | C16: =ProjectData!B14 -> 2010 | F16: Total Project Size - Nameplate Capacity (MW) | G16: =(1+G18)*C17 -> 12.22619588 | J16: Estimated Cost/well | K16: =IF(C25="Low",'Drill Cost Curves'!G7*1000,IF(C25="Medium",'Drill Cost Curves'!G8*1000,'Drill Cost Curves'!G9*1000)) -> 3463571.182 | S16: Estimated Cost/well | T16: =IF(ProjectData!B27="Low",'Drill Cost Curves'!G7*1000,IF(ProjectData!B27="Medium",'Drill Cost Curves'!G8*1000,'Drill Cost Curves'!G9*1000)) -> 3463571.182 | X16: Outside Services | Y16: 0.04482541909 | Z16: 0.04283267644 | AA16: 0.04080153311
B17: Nominal Plant size (MW net output) | C17: =ProjectData!B16 -> 10 | F17: Plant Capital Cost | G17: =G19*C17*1000 -> 23549341.05 | J17: =CONCATENATE("Stimulation Costs (", ROUND(K17/K20,3)*100, " % )") -> Stimulation Costs (0 % ) | K17: =IF(C18="EGS",(C24)*(G22+G23),0) -> 0 | L17: =M107 -> 0 | S17: =CONCATENATE("Stimulation Costs (", ROUND(T17/T20,3)*100, " % )") -> Stimulation Costs (0 % ) | T17: =IF(ProjectData!B17="EGS",(ProjectData!B26)*(ProjectData!G19+ProjectData!G20),0) -> 0 | X17: Move Services and equipment | Y17: 0.04980602121 | Z17: 0.04759186271 | AA17: 0.04533503679
B18: Technology: (Hydrothermal or EGS) | C18: =ProjectData!B17 -> Hydrothermal | F18: Plant Size scalar | G18: =ProjectData!B21 -> 0.222619588 | J18: =CONCATENATE("Total Well Costs (", ROUND(K18/K20,3)*100, " % )") -> Total Well Costs (32.4 % ) | K18: =M68+M89 -> 13388637.32 | L18: =M68+M89 -> 13388637.32 | S18: =CONCATENATE("Total Well Costs (", ROUND(T18/T20,3)*100, " % )") -> Total Well Costs (38.7 % ) | T18: =ProjectData!D69+ProjectData!D90 -> 17765120.07 | U18: =U68+U89 -> 18206033.17 | X18: Location Maintenance | Y18: 0.009961204242 | Z18: 0.009518372542 | AA18: 0.009067007358
B19: Plant type (Flash, Binary) | C19: =ProjectData!B18 -> Binary | F19: =CONCATENATE(C19," Installed Plant Cost ($/kW)") -> Binary Installed Plant Cost ($/kW) | G19: =ProjectData!G16 -> 2354.934105 | J19: Contingency | K19: =SUM(K18,K17,K15,K14)*'Rates & Misc'!C6 -> 1968247.918 | S19: Contingency | T19: =SUM(T18,T17,T15,T14)*ProjectData!B29 -> 2187072.056 | X19: Fuel | Y19: 0.02490301061 | Z19: 0.02379593136 | AA19: 0.0226675184
A20: To view the data and formulas simply scroll over to the adjacent columns to the right. | B20: Resource Temperature (select Celsius or Farenheit) | C20: =ProjectData!B19 -> 200 | D20: =ProjectData!C19 -> Celsius | F20: Annual Direct O&M Cost ($/kW) | G20: =D185/(C17*1000) -> 199.1993408 | J20: Total Installed Project Cost | K20: =SUM(K17,K18,K15,K14,K19) -> 41333206.28 | S20: Total Project Cost | T20: =SUM(T17,T18,T15,T14,T19) -> 45928513.17 | X20: Camp | Y20: 0.004980602121 | Z20: 0.004759186271 | AA20: 0.004533503679
B21: Resource Depth (select meters or feet) | C21: =ProjectData!B20 -> 2250 | D21: =ProjectData!C20 -> Meters | F21: Installed Project Cost ($/kW) | G21: =K20/(G16*1000) -> 3380.70866 | X21: Other Unallocated Costs | Y21: 0.1992240848 | Z21: 0.1903674508 | AA21: 0.1813401472
B22: Ratio of Production to Injection Wells | C22: =ProjectData!B22 -> 2 | F22: # Production Wells | G22: =IF(C19="Binary",(C17*1000/((G25*'Brine effectiveness'!C14)/1000)),(C17*1000/((G25*'Brine effectiveness'!C25)/1000))) -> 1.863976701 | J22: Advanced Model Drilling Time:
B23: Number of Exploration Wells | C23: =ProjectData!B23 -> 2 | F23: # Injection Wells | G23: =G22/C22 -> 0.9319883504 | J23: Completion drill time (days) per well | K23: =K24/0.85 -> 46.94351351
B24: Stimulation cost per well | C24: =ProjectData!B26 -> 700000 | F24: Production well flow rate (kg/s) | G24: =C27 -> 80 | J24: Rotary time per well (days) | K24: =IF(ProjectData!B28="Easy",('Default Data'!C4*3.28083)/215,IF(ProjectData!B28="Medium",('Default Data'!C4*3.28083)/185,('Default Data'!C4*3.28083)/160)) -> 39.90198649
B25: Drilling Cost Curve (Simple Model - Select Low, Medium, High) | C25: =ProjectData!B27 -> Medium | F25: Well flow (lb/hour) | G25: =G24*2.20462*60*60 -> 634930.56 | J25: Move time per well (days) | K25: =K23*0.15 -> 7.041527027
B26: Drilling Progress (Advanced Model - Select Easy, Medium, Hard) | C26: =ProjectData!B28 -> Medium | F26: Total Flow (lb/hr) | G26: =G25*G22 -> 1183495.771
B27: Production well flow rate (kg/s) | C27: =ProjectData!B25 -> 80 | F27: Gallons per minute | G27: =7.4805*G25/('Fluid Density'!E18*60) -> 1466.508429
J32: Simple | S32: Advanced (User Reviewed and/or Revised)
B33: Model Inputs | D33: Hourly Rate | E33: Total Cost | H33: Local Share | J33: Detailed Geothermal Plant Project Data Costs | K33: Cost | M33: Total Cost | N33: Wage ($/hr) | O33: Daily rate | P33: Total Man hours | Q33: Jobs/year | S33: Detailed Geothermal Plant Project Data Costs | T33: Cost | U33: Total Cost | V33: Wage ($/hr) | W33: Daily rate | X33: Total Man hours | Y33: Jobs/year | AA33: Jobs/year | AB33: labor percent of total | AC33: Labor | AD33: Materials | AE33: Services | AF33: Other | AG33: Total | AH33: Cost allocation (Materials & Other) | AM33: ProServ | AN33: ConServ | AO33: Serv | AP33: Mat | AQ33: Other | AS33: ProServJob | AT33: ConJob
B34: Permitting | J34: Permitting | S34: Permitting
B35: Environmental Analysis | D35: ='Rates & Misc'!D20 -> 75 | E35: 100000 | H35: =IF(ProjectData!$B$13="UNITED STATES",1,'Local Share'!D4) -> 0 | J35: Environmental Analysis | K35: =E35 -> 100000 | M35: =K35 -> 100000 | N35: =D35 -> 75 | P35: =K35/N35 -> 1333.333333 | Q35: =P35/'Rates & Misc'!$C$4 -> 0.641025641 | S35: Environmental Analysis | T35: =ProjectData!D36 -> 100000 | U35: =T35 -> 100000 | V35: =ProjectData!B36 -> 75 | X35: =T35/V35 -> 1333.333333 | Y35: =X35/'Rates & Misc'!$C$4 -> 0.641025641 | Z35: =IF(C$13="Simple",(M35*ProjectData!B$29)/'Default Data'!N35/'Rates & Misc'!C$4,(U35*ProjectData!B$29)/'Default Data'!V35/'Rates & Misc'!C$4) -> 0.03205128205 | AA35: =IF(C$13="Simple",Q35+Z35,Y35+Z35)*Calculations!D3 -> 0 | AB35: 1 | AC35: =IF(C$13="Simple",M35*AB35,U35*AB35) -> 100000 | AD35: =IF($C$13="Simple",M35-AC35,U35-AC35) -> 0 | AG35: =SUM(AC35:AF35) -> 100000 | AM35: =AC35 -> 100000 | AO35: =AE35 -> 0 | AP35: =AD35 -> 0 | AS35: =IF(AM35>0,AA35,0) -> 0 | AT35: =IF(AN35>0,AA35,0) -> 0
B36: Environmental Impact Assessment | D36: ='Rates & Misc'!D21 -> 75 | E36: 200000 | H36: =IF(ProjectData!$B$13="UNITED STATES",1,'Local Share'!D5) -> 0 | J36: Environmental Impact Assessment | K36: =E36 -> 200000 | M36: =K36 -> 200000 | N36: =D36 -> 75 | P36: =K36/N36 -> 2666.666667 | Q36: =P36/'Rates & Misc'!$C$4 -> 1.282051282 | S36: Environmental Impact Assessment | T36: =ProjectData!D37 -> 200000 | U36: =T36 -> 200000 | V36: =ProjectData!B37 -> 75 | X36: =T36/V36 -> 2666.666667 | Y36: =X36/'Rates & Misc'!$C$4 -> 1.282051282 | Z36: =IF(C$13="Simple",(M36*ProjectData!B$29)/'Default Data'!N36/'Rates & Misc'!C$4,(U36*ProjectData!B$29)/'Default Data'!V36/'Rates & Misc'!C$4) -> 0.0641025641 | AA36: =IF(C$13="Simple",Q36+Z36,Y36+Z36)*Calculations!D4 -> 0 | AB36: 1 | AC36: =IF(C$13="Simple",M36*AB36,U36*AB36) -> 200000 | AD36: 0 | AG36: 200000 | AM36: 200000 | AO36: 0 | AP36: 0 | AS36: =IF(AM36>0,AA36,0) -> 0 | AT36: =IF(AN36>0,AA36,0) -> 0
B37: Transmission Line Permits | H37: =IF(ProjectData!$B$13="UNITED STATES",1,'Local Share'!D6) -> 0 | J37: Transmission Line Permits | M37: =K37 -> 0 | S37: Transmission Line Permits | U37: =T37 -> 0 | AA37: =IF(C$13="Simple",Q37+Z37,Y37+Z37)*Calculations!D5 -> 0 | AC37: =IF(C$13="Simple",M37*AB37,U37*AB37) -> 0 | AF37: =IF($C$13="Simple",M37-AC37,U37-AC37) -> 0 | AG37: =SUM(AC37:AF37) -> 0 | AM37: 0 | AO37: 0 | AP37: =AF37 -> 0 | AS37: =IF(AM37>0,AA37,0) -> 0 | AT37: =IF(AN37>0,AA37,0) -> 0
B38: Land (Leasing, Acquisition) | E38: ='Rates & Misc'!C75 -> 771980 | H38: =IF(ProjectData!$B$13="UNITED STATES",1,'Local Share'!D7) -> 0 | J38: Land | K38: =E38 -> 771980 | M38: =K38 -> 771980 | S38: Land | T38: =ProjectData!D39 -> 771980 | U38: =T38 -> 771980 | AA38: =IF(C$13="Simple",Q38+Z38,Y38+Z38)*Calculations!D6 -> 0 | AC38: =IF(C$13="Simple",M38*AB38,U38*AB38) -> 0 | AF38: =IF($C$13="Simple",M38-AC38,U38-AC38) -> 771980 | AG38: =SUM(AC38:AF38) -> 771980 | AM38: 0 | AO38: 0 | AQ38: =AF38 -> 771980 | AS38: =IF(AM38>0,AA38,0) -> 0 | AT38: =IF(AN38>0,AA38,0) -> 0
B39: Exploration (Pre-Drilling) | J39: Exploration (Pre-Drilling) | S39: Exploration (Pre-Drilling)
B40: Geologist | D40: ='Rates & Misc'!D24 -> 59.37 | E40: 100000 | H40: =IF(ProjectData!$B$13="UNITED STATES",1,'Local Share'!D9) -> 1 | J40: Geologist | K40: =E40 -> 100000 | M40: =K40 -> 100000 | N40: =D40 -> 59.37 | P40: =K40/N40 -> 1684.352367 | Q40: =P40/'Rates & Misc'!$C$4 -> 0.8097847916 | S40: Geologist | T40: =ProjectData!D41 -> 100000 | U40: =T40 -> 100000 | V40: =ProjectData!B41 -> 59.37 | X40: =T40/V40 -> 1684.352367 | Y40: =X40/'Rates & Misc'!$C$4 -> 0.8097847916 | Z40: =IF(C$13="Simple",(M40*ProjectData!B$29)/'Default Data'!N40/'Rates & Misc'!C$4,(U40*ProjectData!B$29)/'Default Data'!V40/'Rates & Misc'!C$4) -> 0.04048923958 | AA40: =IF(C$13="Simple",Q40+Z40,Y40+Z40)*Calculations!D8 -> 0.8502740312 | AB40: 1 | AC40: =IF(C$13="Simple",M40*AB40,U40*AB40) -> 100000 | AD40: 0 | AG40: 100000 | AM40: 100000 | AO40: 0 | AP40: 0 | AS40: =IF(AM40>0,AA40,0) -> 0.8502740312 | AT40: =IF(AN40>0,AA40,0) -> 0
B41: Geophysicist | D41: ='Rates & Misc'!D25 -> 59.37 | E41: 80000 | H41: =IF(ProjectData!$B$13="UNITED STATES",1,'Local Share'!D10) -> 0 | J41: Geophysicist | K41: 80000 | M41: 80000 | N41: 59.37 | P41: 1347.481893 | Q41: =P41/'Rates & Misc'!$C$4 -> 0.6478278333 | S41: Geophysicist | T41: =ProjectData!D42 -> 80000 | U41: 80000 | V41: =ProjectData!B42 -> 59.37 | X41: 1347.481893 | Y41: =X41/'Rates & Misc'!$C$4 -> 0.6478278333 | Z41: =IF(C$13="Simple",(M41*ProjectData!B$29)/'Default Data'!N41/'Rates & Misc'!C$4,(U41*ProjectData!B$29)/'Default Data'!V41/'Rates & Misc'!C$4) -> 0.03239139166 | AA41: =IF(C$13="Simple",Q41+Z41,Y41+Z41)*Calculations!D9 -> 0 | AB41: 1 | AC41: 80000 | AD41: 0 | AG41: 80000 | AM41: 80000 | AO41: 0 | AP41: 0 | AS41: 0 | AT41: 0
B42: Geochemist | D42: ='Rates & Misc'!D26 -> 59.37 | E42: 50000 | H42: =IF(ProjectData!$B$13="UNITED STATES",1,'Local Share'!D11) -> 0 | J42: Geochemist | K42: 50000 | M42: 50000 | N42: 59.37 | P42: 842.1761833 | Q42: =P42/'Rates & Misc'!$C$4 -> 0.4048923958 | S42: Geochemist | T42: =ProjectData!D43 -> 50000 | U42: 50000 | V42: =ProjectData!B43 -> 59.37 | X42: 842.1761833 | Y42: =X42/'Rates & Misc'!$C$4 -> 0.4048923958 | Z42: =IF(C$13="Simple",(M42*ProjectData!B$29)/'Default Data'!N42/'Rates & Misc'!C$4,(U42*ProjectData!B$29)/'Default Data'!V42/'Rates & Misc'!C$4) -> 0.02024461979 | AA42: =IF(C$13="Simple",Q42+Z42,Y42+Z42)*Calculations!D10 -> 0 | AB42: 1 | AC42: 50000 | AD42: 0 | AG42: 50000 | AM42: 50000 | AO42: 0 | AP42: 0 | AS42: 0 | AT42: 0
B43: Other Geo scientists: | D43: ='Rates & Misc'!D27 -> 59.37 | E43: 75000 | H43: =IF(ProjectData!$B$13="UNITED STATES",1,'Local Share'!D12) -> 0 | J43: Other Geo scientists: | K43: 75000 | M43: 75000 | N43: 59.37 | P43: 1263.264275 | Q43: =P43/'Rates & Misc'!$C$4 -> 0.6073385937 | S43: Other Geo scientists: | T43: =ProjectData!D44 -> 75000 | U43: 75000 | V43: =ProjectData!B44 -> 59.37 | X43: 1263.264275 | Y43: =X43/'Rates & Misc'!$C$4 -> 0.6073385937 | Z43: =IF(C$13="Simple",(M43*ProjectData!B$29)/'Default Data'!N43/'Rates & Misc'!C$4,(U43*ProjectData!B$29)/'Default Data'!V43/'Rates & Misc'!C$4) -> 0.03036692968 | AA43: =IF(C$13="Simple",Q43+Z43,Y43+Z43)*Calculations!D11 -> 0 | AB43: 1 | AC43: 75000 | AD43: 0 | AG43: 75000 | AM43: 75000 | AO43: 0 | AP43: 0 | AS43: 0 | AT43: 0
B44: Field Crew | D44: ='Rates & Misc'!D28 -> 30 | E44: 50000 | H44: =IF(ProjectData!$B$13="UNITED STATES",1,'Local Share'!D13) -> 0 | J44: Field Crew | K44: 50000 | M44: 50000 | N44: 30 | P44: 1666.666667 | Q44: =P44/'Rates & Misc'!$C$4 -> 0.8012820513 | S44: Field Crew | T44: =ProjectData!D45 -> 50000 | U44: 50000 | V44: =ProjectData!B45 -> 30 | X44: 1666.666667 | Y44: =X44/'Rates & Misc'!$C$4 -> 0.8012820513 | Z44: =IF(C$13="Simple",(M44*ProjectData!B$29)/'Default Data'!N44/'Rates & Misc'!C$4,(U44*ProjectData!B$29)/'Default Data'!V44/'Rates & Misc'!C$4) -> 0.04006410256 | AA44: =IF(C$13="Simple",Q44+Z44,Y44+Z44)*Calculations!D12 -> 0 | AB44: 1 | AC44: 50000 | AD44: 0 | AG44: 50000 | AM44: 50000 | AO44: 0 | AP44: 0 | AS44: 0 | AT44: 0
B45: Management/Administrative | D45: ='Rates & Misc'!D29 -> 60 | E45: =C45*90 -> 0 | H45: =IF(ProjectData!$B$13="UNITED STATES",1,'Local Share'!D14) -> 0 | J45: Management/Administrative | K45: 0 | M45: 0 | N45: 60 | P45: 0 | Q45: =P45/'Rates & Misc'!$C$4 -> 0 | S45: Management/Administrative | T45: =ProjectData!D46 -> 0 | U45: 0 | V45: =ProjectData!B46 -> 60 | X45: 0 | Y45: =X45/'Rates & Misc'!$C$4 -> 0 | Z45: =IF(C$13="Simple",(M45*ProjectData!B$29)/'Default Data'!N45/'Rates & Misc'!C$4,(U45*ProjectData!B$29)/'Default Data'!V45/'Rates & Misc'!C$4) -> 0 | AA45: =IF(C$13="Simple",Q45+Z45,Y45+Z45)*Calculations!D13 -> 0 | AB45: 1 | AC45: 0 | AD45: 0 | AG45: 0 | AM45: 0 | AO45: 0 | AP45: 0 | AS45: 0 | AT45: 0
B46: Exploration Equipment, Tests, Surveys | E46: 1000000 | H46: =IF(ProjectData!$B$13="UNITED STATES",1,'Local Share'!D15) -> 0 | J46: Exploration Equipment, Tests, Surveys | K46: 1000000 | M46: 1000000 | S46: Exploration Equipment, Tests, Surveys | T46: =ProjectData!D47 -> 1000000 | U46: 1000000 | AC46: 0 | AD46: 1000000 | AG46: 1000000 | AM46: 0 | AO46: 0 | AP46: 1000000 | AS46: 0 | AT46: 0
B47: Totals: | E47: =SUM(E35:E46) -> 2426980 | M47: =SUM(M35:M46) -> 2426980
B49: 1. Exploration Drilling | D49: Daily Rate | E49: Cost per Well | F49: Total Cost | J49: 1. Exploration Drilling Costs per well | L49: % of cost | M49: Total Cost | S49: 1. Exploration Drilling Costs per well | AB49: Labor Percentage | AC49: Labor | AD49: Materials | AE49: Services | AG49: Total | AH49: Cost allocation (Materials & Other) | AM49: ProServ | AN49: ConServ | AO49: Serv | AP49: Mat | AQ49: Other | AS49: ProServJob | AT49: ConJob
B50: Geologist | D50: ='Rates & Misc'!G20 -> 700 | E50: =D50*'Default Data'!$K$24 -> 27931.39054 | F50: =E50*C$23 -> 55862.78108 | H50: =IF(ProjectData!$B$13="UNITED STATES",1,'Local Share'!D19) -> 1 | J50: Geologist | K50: =K$68*L50 -> 12277.73089 | L50: =IF($C$25="low",Y4,IF($C$25="medium",Z4,AA4)) -> 0.007089636821 | M50: =K50*(C$23) -> 24555.46178 | N50: ='Rates & Misc'!H20 -> 58.33333333 | O50: =D50 -> 700 | P50: =M50/N50 -> 420.9507734 | Q50: =P50/'Rates & Misc'!$C$4 -> 0.2023801795 | S50: Geologist | T50: =ProjectData!C51 -> 27931.39054 | U50: =ProjectData!D51 -> 55862.78108 | V50: =W50/'Rates & Misc'!I$20 -> 58.33333333 | W50: =ProjectData!B51 -> 700 | X50: =U50/V50 -> 957.6476757 | Y50: =X50/'Rates & Misc'!$C$4 -> 0.4604075364 | Z50: =IF(C$13="Simple",(M50*ProjectData!B$29)/'Default Data'!N50/'Rates & Misc'!C$4,(U50*ProjectData!B$29)/'Default Data'!V50/'Rates & Misc'!C$4) -> 0.02302037682 | AA50: =IF(C$13="Simple",Q50+Z50,Y50+Z50)*Calculations!D18 -> 0.4834279132 | AB50: 1 | AC50: =IF(C$13="Simple",M50*AB50,U50*AB50) -> 55862.78108 | AD50: =IF($C$13="Simple",M50-AC50,U50-AC50) -> 0 | AG50: =SUM(AC50:AF50) -> 55862.78108 | AM50: =AC50 -> 55862.78108 | AO50: =AE50 -> 0 | AP50: =AD50 -> 0 | AS50: =IF(AM50>0,AA50,0) -> 0.4834279132 | AT50: =IF(AN50>0,AA50,0) -> 0
B51: Mud Engineer(s) | D51: ='Rates & Misc'!G21 -> 800 | E51: =D51*'Default Data'!$K$24 -> 31921.58919 | F51: =E51*C$23 -> 63843.17838 | H51: =IF(ProjectData!$B$13="UNITED STATES",1,'Local Share'!D20) -> 0 | J51: Mud Engineer(s) | K51: =K$68*L51 -> 14031.69245 | L51: 0.008102442081 | M51: 28063.3849 | N51: ='Rates & Misc'!H21 -> 66.66666667 | O51: =D51 -> 800 | P51: =M51/N51 -> 420.9507734 | Q51: =P51/'Rates & Misc'!$C$4 -> 0.2023801795 | S51: Mud Engineer(s) | T51: =ProjectData!C52 -> 31921.58919 | U51: =ProjectData!D52 -> 63843.17838 | V51: =W51/'Rates & Misc'!I$20 -> 66.66666667 | W51: =ProjectData!B52 -> 800 | X51: =U51/V51 -> 957.6476757 | Y51: =X51/'Rates & Misc'!$C$4 -> 0.4604075364 | Z51: =IF(C$13="Simple",(M51*ProjectData!B$29)/'Default Data'!N51/'Rates & Misc'!C$4,(U51*ProjectData!B$29)/'Default Data'!V51/'Rates & Misc'!C$4) -> 0.02302037682 | AA51: =IF(C$13="Simple",Q51+Z51,Y51+Z51)*Calculations!D19 -> 0 | AB51: 1 | AC51: 63843.17838 | AD51: 0 | AG51: =SUM(AC51:AF51) -> 63843.17838 | AM51: =AC51 -> 63843.17838 | AO51: =AE51 -> 0 | AP51: =AD51 -> 0 | AS51: =IF(AM51>0,AA51,0) -> 0 | AT51: =IF(AN51>0,AA51,0) -> 0
B52: Drilling Fluids - Mud | D52: ='Rates & Misc'!G22 -> 5950 | E52: =D52*'Default Data'!$K$24 -> 237416.8196 | F52: 474833.6392 | H52: =IF(ProjectData!$B$13="UNITED STATES",1,'Local Share'!D21) -> 0 | J52: Drilling Fluids - Mud (5950/day) | K52: 104360.7126 | L52: 0.06026191298 | M52: 208721.4252 | O52: =D52 -> 5950 | S52: Drilling Fluids - Mud (5950/day) | T52: =ProjectData!C53 -> 237416.8196 | U52: =ProjectData!D53 -> 474833.6392 | W52: =ProjectData!B53 -> 5950 | AA52: =IF(C$13="Simple",Q52+Z52,Y52+Z52)*Calculations!D20 -> 0 | AC52: 0 | AD52: 474833.6392 | AG52: 474833.6392 | AM52: 0 | AO52: 0 | AP52: 474833.6392 | AS52: 0 | AT52: 0
B53: Directional Engineer and Motorman | D53: ='Rates & Misc'!G23 -> 2650 | E53: =D53*(K$24*'Rates & Misc'!M$25) -> 63444.15851 | F53: 126888.317 | H53: =IF(ProjectData!$B$13="UNITED STATES",1,'Local Share'!D22) -> 0 | J53: Directional Engineer and Motorman | K53: 27887.98874 | L53: 0.01610360364 | M53: 55775.97748 | N53: ='Rates & Misc'!H23 -> 55.20833333 | O53: =D53 -> 2650 | P53: =M53/N53 -> 1010.281856 | Q53: =P53/'Rates & Misc'!$C$4 -> 0.4857124309 | S53: Directional Engineer and Motorman | T53: =ProjectData!C54 -> 63444.15851 | U53: =ProjectData!D54 -> 126888.317 | V53: =W53/('Rates & Misc'!P23*'Rates & Misc'!P25) -> 55.20833333 | W53: =ProjectData!B54 -> 2650 | X53: =U53/V53 -> 2298.354422 | Y53: =X53/'Rates & Misc'!$C$4 -> 1.104978087 | Z53: =IF(C$13="Simple",(M53*ProjectData!B$29)/'Default Data'!N53/'Rates & Misc'!C$4,(U53*ProjectData!B$29)/'Default Data'!V53/'Rates & Misc'!C$4) -> 0.05524890437 | AA53: =IF(C$13="Simple",Q53+Z53,Y53+Z53)*Calculations!D21 -> 0 | AB53: 1 | AC53: 126888.317 | AD53: 0 | AG53: 126888.317 | AN53: =AC53 -> 126888.317 | AO53: 0 | AP53: 0 | AS53: 0 | AT53: 0
B54: Direction Tools and Services | D54: ='Rates & Misc'!G24 -> 7858 | E54: =D54*(K$24*'Rates & Misc'!M$25) -> 188129.8859 | F54: 376259.7718 | H54: =IF(ProjectData!$B$13="UNITED STATES",1,'Local Share'!D23) -> 0 | J54: Direction Tools and Services | K54: 83663.96622 | L54: 0.04831081091 | M54: 167327.9324 | Q54: =P54/'Rates & Misc'!$C$4 -> 0 | S54: Direction Tools and Services | T54: =ProjectData!C55 -> 188129.8859 | U54: =ProjectData!D55 -> 376259.7718 | Y54: =X54/'Rates & Misc'!$C$4 -> 0 | AA54: =IF(C$13="Simple",Q54+Z54,Y54+Z54)*Calculations!D22 -> 0 | AC54: 0 | AD54: 376259.7718 | AG54: 376259.7718 | AM54: 0 | AO54: 0 | AP54: 376259.7718 | AS54: 0 | AT54: 0
B55: Drilling Engineering | D55: ='Rates & Misc'!G25 -> 1400 | E55: =D55*'Default Data'!K23 -> 65720.91892 | F55: 131441.8378 | H55: =IF(ProjectData!$B$13="UNITED STATES",1,'Local Share'!D24) -> 0 | J55: Drilling Engineering | K55: 28888.77857 | L55: 0.0166814984 | M55: 57777.55714 | N55: ='Rates & Misc'!H25 -> 58.33333333 | O55: =D55 -> 1400 | P55: =M55/N55 -> 990.4724081 | Q55: =P55/'Rates & Misc'!$C$4 -> 0.4761886577 | S55: Drilling Engineering | T55: =ProjectData!C56 -> 65720.91892 | U55: =ProjectData!D56 -> 131441.8378 | V55: =W55/'Rates & Misc'!I$25 -> 58.33333333 | W55: =ProjectData!B56 -> 1400 | X55: =U55/V55 -> 2253.288649 | Y55: =X55/'Rates & Misc'!$C$4 -> 1.08331185 | Z55: =IF(C$13="Simple",(M55*ProjectData!B$29)/'Default Data'!N55/'Rates & Misc'!C$4,(U55*ProjectData!B$29)/'Default Data'!V55/'Rates & Misc'!C$4) -> 0.05416559252 | AA55: =IF(C$13="Simple",Q55+Z55,Y55+Z55)*Calculations!D23 -> 0 | AB55: 1 | AC55: 131441.8378 | AD55: 0 | AG55: 131441.8378 | AM55: 131441.8378 | AO55: 0 | AP55: 0 | AS55: 0 | AT55: 0
B56: Drill Rig Rate | D56: ='Rates & Misc'!G26 -> 15000 | E56: =D56*'Default Data'!K$24 -> 598529.7973 | F56: 1197059.595 | H56: =IF(ProjectData!$B$13="UNITED STATES",1,'Local Share'!D25) -> 0 | J56: Drill Rig Rate | K56: 280633.849 | L56: 0.1620488416 | M56: 561267.6979 | O56: =D56 -> 15000 | S56: Drill Rig Rate | T56: =ProjectData!C57 -> 598529.7973 | U56: =ProjectData!D57 -> 1197059.595 | W56: =ProjectData!B57 -> 15000 | AA56: =IF(C$13="Simple",Q56+Z56,Y56+Z56)*Calculations!D24 -> 0 | AC56: 0 | AD56: =IF($C$13="Simple",(M56-AC56-AC57-AF57)*AH56,(U56-AC56-AC57-AF57)*AH56) -> 506595.6204 | AE56: =AD56 -> 506595.6204 | AG56: 1013191.241 | AH56: 0.5 | AI56: Material and services split | AM56: 0 | AN56: =AE56+AD56 -> 1013191.241 | AS56: 0 | AT56: 0
B57: Drill Hands - labor | D57: ='Rates & Misc'!C51 -> 2304 | E57: =D57*'Default Data'!K$24 -> 91934.17686 | F57: 183868.3537 | H57: =IF(ProjectData!$B$13="UNITED STATES",1,'Local Share'!D26) -> 0 | J57: Drill Hands - labor | K57: 0 | L57: 0 | M57: =((O57*6)/O56)*M56 -> 517264.3104 | N57: =O57/('Rates & Misc'!$C$47*'Rates & Misc'!$C$48*'Rates & Misc'!$C$49) -> 16 | O57: =D57 -> 2304 | P57: ='Rates & Misc'!C47*'Rates & Misc'!C48*'Rates & Misc'!C49*K24*C23 -> 11491.77211 | Q57: =P57/'Rates & Misc'!$C$4 -> 5.524890437 | S57: Drill Hands - labor | T57: =ProjectData!C58 -> 91934.17686 | U57: =ProjectData!D58 -> 183868.3537 | V57: =W57/('Rates & Misc'!$C$47*'Rates & Misc'!$C$48*'Rates & Misc'!$C$49) -> 16 | W57: =ProjectData!B58 -> 2304 | X57: =U57/V57 -> 11491.77211 | Y57: =X57/'Rates & Misc'!$C$4 -> 5.524890437 | Z57: =IF(C$13="Simple",(M57*ProjectData!B$29)/'Default Data'!N57/'Rates & Misc'!C$4,(U57*ProjectData!B$29)/'Default Data'!V57/'Rates & Misc'!C$4) -> 0.2762445218 | AA57: =IF(C$13="Simple",Q57+Z57,Y57+Z57)*Calculations!D25 -> 0 | AB57: 1 | AC57: 183868.3537 | AD57: =IF($C$13="Simple",M57-AC57,U57-AC57) -> 0 | AG57: 183868.3537 | AN57: =AC57 -> 183868.3537 | AO57: 0 | AP57: 0 | AS57: 0 | AT57: 0
B58: Management/Administrative | E58: 5000 | F58: 10000 | H58: =IF(ProjectData!$B$13="UNITED STATES",1,'Local Share'!D27) -> 0 | J58: Management/Administrative | K58: 1648.378042 | L58: 0.0009518372542 | M58: =K58*(C$23) -> 3296.756084 | N58: ='Rates & Misc'!H28 -> 60 | P58: =K58/N58*C23 -> 54.94593473 | Q58: =P58/'Rates & Misc'!$C$4 -> 0.02641631477 | S58: Management/Administrative | T58: =ProjectData!C59 -> 5000 | U58: =ProjectData!D59 -> 10000 | V58: =ProjectData!B192*ProjectData!B$190 -> 60 | X58: =U58/V58 -> 166.6666667 | Y58: =X58/'Rates & Misc'!$C$4 -> 0.08012820513 | Z58: =IF(C$13="Simple",(M58*ProjectData!B$29)/'Default Data'!N58/'Rates & Misc'!C$4,(U58*ProjectData!B$29)/'Default Data'!V58/'Rates & Misc'!C$4) -> 0.004006410256 | AA58: =IF(C$13="Simple",Q58+Z58,Y58+Z58)*Calculations!D26 -> 0 | AB58: 1 | AC58: 10000 | AD58: =IF($C$13="Simple",M58-AC58,U58-AC58) -> 0 | AG58: 10000 | AM58: 10000 | AO58: 0 | AP58: 0 | AS58: 0 | AT58: 0
B59: Site Construction | E59: =125000 -> 125000 | F59: 250000 | H59: =IF(ProjectData!$B$13="UNITED STATES",1,'Local Share'!D28) -> 1 | J59: Site Construction | K59: 41209.45105 | L59: 0.02379593136 | M59: 82418.90209 | N59: ='Rates & Misc'!H29 -> 20.55 | P59: =(K59*AB59)/N59*C23 -> 641.7043472 | Q59: =P59/'Rates & Misc'!$C$4 -> 0.3085117054 | S59: Site Construction | T59: =ProjectData!C60 -> 125000 | U59: =ProjectData!D60 -> 250000 | V59: =ProjectData!B193*ProjectData!B$190 -> 20.55 | X59: =(U59*AB59)/V59 -> 1946.472019 | Y59: =X59/'Rates & Misc'!$C$4 -> 0.9358038555 | Z59: =IF(C$13="Simple",(M59*ProjectData!B$29)/'Default Data'!N59/'Rates & Misc'!C$4,(U59*ProjectData!B$29)/'Default Data'!V59/'Rates & Misc'!C$4) -> 0.2924387048 | AA59: =IF(C$13="Simple",Q59+Z59,Y59+Z59)*Calculations!D27 -> 1.22824256 | AB59: =C$110 -> 0.16 | AC59: 40000 | AD59: =IF($C$13="Simple",M59-AC59,U59-AC59) -> 210000 | AG59: 250000 | AN59: =AC59 -> 40000 | AO59: 0 | AP59: 210000 | AS59: 0 | AT59: 1.22824256
B60: Cement and Casing | D60: =(0.0000000144*G15^4)-(0.000149*G15^3)+(0.636*G15^2-406*G15) -> 978103.125 | E60: =D60 -> 978103.125 | F60: 1956206.25 | H60: =IF(ProjectData!$B$13="UNITED STATES",1,'Local Share'!D29) -> 1 | J60: Material Costs - Cement and Casing | K60: 543766.9484 | L60: 0.3139920734 | M60: 1087533.897 | N60: ='Rates & Misc'!H30 -> 25.305 | P60: =K60*AB60/N60*C23 -> 6876.325766 | Q60: =P60/'Rates & Misc'!$C$4 -> 3.305925849 | S60: Material Costs - Cement and Casing | T60: =ProjectData!C61 -> 978103.125 | U60: =ProjectData!D61 -> 1956206.25 | V60: =ProjectData!B194*ProjectData!B$190 -> 25.305 | X60: =(U60*AB60)/V60 -> 12368.82039 | Y60: =X60/'Rates & Misc'!$C$4 -> 5.946548265 | Z60: =IF(C$13="Simple",(M60*ProjectData!B$29)/'Default Data'!N60/'Rates & Misc'!C$4,(U60*ProjectData!B$29)/'Default Data'!V60/'Rates & Misc'!C$4) -> 1.858296333 | AA60: =IF(C$13="Simple",Q60+Z60,Y60+Z60)*Calculations!D28 -> 7.804844598 | AB60: =C$110 -> 0.16 | AC60: 312993 | AD60: =IF($C$13="Simple",M60-AC60,U60-AC60) -> 1643213.25 | AG60: 1956206.25 | AN60: =AC60 -> 312993 | AO60: 0 | AP60: 1643213.25 | AS60: 0 | AT60: 7.804844598
B61: Drilling Tools | E61: =125000 -> 125000 | F61: 250000 | H61: =IF(ProjectData!$B$13="UNITED STATES",1,'Local Share'!D30) -> 0 | J61: Drilling Tools | K61: 41209.45105 | L61: =IF($C$25="low",Y15,IF($C$25="medium",Z15,AA15)) -> 0.02379593136 | M61: 82418.90209 | S61: Drilling Tools | T61: =ProjectData!C62 -> 125000 | U61: =ProjectData!D62 -> 250000 | AA61: =IF(C$13="Simple",Q61+Z61,Y61+Z61)*Calculations!D29 -> 0 | AC61: 0 | AD61: =IF($C$13="Simple",M61-AC61,U61-AC61) -> 250000 | AG61: 250000 | AM61: 0 | AO61: 0 | AP61: 250000 | AS61: 0 | AT61: 0
B62: Outside Services | E62: 225000 | F62: 450000 | H62: =IF(ProjectData!$B$13="UNITED STATES",1,'Local Share'!D31) -> 0 | J62: Outside Services | K62: 74177.01188 | L62: 0.04283267644 | M62: 148354.0238 | N62: ='Rates & Misc'!H31 -> 50 | P62: =K62/N62*C23 -> 2967.080475 | Q62: =P62/'Rates & Misc'!$C$4 -> 1.426480998 | S62: Outside Services | T62: =ProjectData!C63 -> 225000 | U62: =ProjectData!D63 -> 450000 | V62: =ProjectData!B195*ProjectData!B$190 -> 75 | X62: =U62/V62 -> 6000 | Y62: =X62/'Rates & Misc'!$C$4 -> 2.884615385 | AA62: =IF(C$13="Simple",Q62+Z62,Y62+Z62)*Calculations!D30 -> 0 | AC62: 0 | AE62: =IF($C$13="Simple",M62-AC62,U62-AC62) -> 450000 | AG62: 450000 | AM62: 0 | AO62: 450000 | AP62: 0 | AS62: 0 | AT62: 0
B63: Move Services and equipment | E63: 250000 | F63: 500000 | H63: =IF(ProjectData!$B$13="UNITED STATES",1,'Local Share'!D32) -> 1 | J63: Move Services and equipment | K63: 82418.90209 | L63: 0.04759186271 | M63: 164837.8042 | N63: ='Rates & Misc'!H32 -> 20.55 | S63: Move Services and equipment | T63: =ProjectData!C64 -> 250000 | U63: =ProjectData!D64 -> 500000 | V63: =ProjectData!B196*ProjectData!B$190 -> 20.55 | AA63: =IF(C$13="Simple",Q63+Z63,Y63+Z63)*Calculations!D31 -> 0 | AC63: 0 | AD63: =IF($C$13="Simple",(M63-AC63)*AH63,(U63-AC63)*AH63) -> 250000 | AE63: =AD63 -> 250000 | AG63: 500000 | AH63: =AH56 -> 0.5 | AM63: 0 | AO63: 250000 | AP63: 250000 | AS63: 0 | AT63: 0
B64: Location Maintenance | E64: 50000 | F64: 100000 | H64: =IF(ProjectData!$B$13="UNITED STATES",1,'Local Share'!D33) -> 1 | J64: Location Maintenance | K64: 16483.78042 | L64: 0.009518372542 | M64: 32967.56084 | N64: ='Rates & Misc'!H33 -> 20.55 | P64: =(K64*AB64)/N64*C23 -> 802.130434 | Q64: =P64/'Rates & Misc'!$C$4 -> 0.3856396317 | S64: Location Maintenance | T64: =ProjectData!C65 -> 50000 | U64: =ProjectData!D65 -> 100000 | V64: =ProjectData!B197*ProjectData!B$190 -> 20.55 | X64: =(U64*AB64)/V64 -> 2433.090024 | Y64: =X64/'Rates & Misc'!$C$4 -> 1.169754819 | Z64: =IF(C$13="Simple",(M64*ProjectData!B$29)/'Default Data'!N64/'Rates & Misc'!C$4,(U64*ProjectData!B$29)/'Default Data'!V64/'Rates & Misc'!C$4) -> 0.1169754819 | AA64: =IF(C$13="Simple",Q64+Z64,Y64+Z64)*Calculations!D32 -> 1.286730301 | AB64: 0.5 | AC64: 50000 | AD64: =IF($C$13="Simple",M64-AC64,U64-AC64) -> 50000 | AG64: 100000 | AO64: =AE64+AC64 -> 50000 | AP64: 50000 | AS64: 0 | AT64: 0
B65: Fuel | E65: 125000 | F65: 250000 | H65: =IF(ProjectData!$B$13="UNITED STATES",1,'Local Share'!D34) -> 1 | J65: Fuel | K65: 41209.45105 | L65: 0.02379593136 | M65: 82418.90209 | N65: ='Rates & Misc'!H34 -> 26.88 | P65: =(K65*AB65/N65)*C23 -> 490.5887029 | Q65: =P65/'Rates & Misc'!$C$4 -> 0.2358599533 | S65: Fuel | T65: =ProjectData!C66 -> 125000 | U65: =ProjectData!D66 -> 250000 | V65: =ProjectData!B198*ProjectData!B$190 -> 26.88 | X65: =(U65*AB65)/V65 -> 1488.095238 | Y65: =X65/'Rates & Misc'!$C$4 -> 0.7154304029 | AA65: =IF(C$13="Simple",Q65+Z65,Y65+Z65)*Calculations!D33 -> 0.7154304029 | AB65: =C$110 -> 0.16 | AC65: 40000 | AD65: =IF($C$13="Simple",M65-AC65,U65-AC65) -> 210000 | AG65: 250000 | AN65: =AC65 -> 40000 | AO65: 0 | AP65: 210000 | AS65: 0 | AT65: 0.7154304029
B66: Camp | E66: 25000 | F66: 50000 | H66: =IF(ProjectData!$B$13="UNITED STATES",1,'Local Share'!D35) -> 1 | J66: Camp | K66: 8241.890209 | L66: 0.004759186271 | M66: 16483.78042 | N66: ='Rates & Misc'!H35 -> 20.55 | P66: =K66*AB66/N66*C23 -> 128.3408694 | Q66: =P66/'Rates & Misc'!$C$4 -> 0.06170234107 | S66: Camp | T66: =ProjectData!C67 -> 25000 | U66: =ProjectData!D67 -> 50000 | V66: =ProjectData!B199*ProjectData!B$190 -> 20.55 | X66: =(U66*AB66)/V66 -> 389.2944039 | Y66: =X66/'Rates & Misc'!$C$4 -> 0.1871607711 | Z66: =IF(C$13="Simple",(M66*ProjectData!B$29)/'Default Data'!N66/'Rates & Misc'!C$4,(U66*ProjectData!B$29)/'Default Data'!V66/'Rates & Misc'!C$4) -> 0.05848774097 | AA66: =IF(C$13="Simple",Q66+Z66,Y66+Z66)*Calculations!D34 -> 0.2456485121 | AB66: =C$110 -> 0.16 | AC66: 8000 | AD66: =IF($C$13="Simple",M66-AC66,U66-AC66) -> 42000 | AG66: 50000 | AN66: =AC66 -> 8000 | AO66: 0 | AP66: 42000 | AS66: 0 | AT66: 0.2456485121
B67: Other Unallocated Costs | F67: 0 | H67: =IF(ProjectData!$B$13="UNITED STATES",1,'Local Share'!D36) -> 0 | J67: Other Unallocated Costs | K67: 329675.6084 | L67: =1-SUM(L50:L66) -> 0.1903674508 | M67: 659351.2167 | S67: Other Unallocated Costs | T67: =ProjectData!C68 -> 0 | U67: =ProjectData!D68 -> 0 | AC67: 0 | AE67: =IF($C$13="Simple",M67-AC67,U67-AC67) -> 0 | AG67: 0 | AM67: 0 | AO67: 0 | AP67: 0 | AS67: 0 | AT67: 0
B68: Total: | E68: =SUM(E50:E67)-E57 -> 3121197.685 | F68: =SUM(F50:F67)-F57 -> 6242395.37 | K68: =K$16*L68*ProjectData!B24 -> 1731785.591 | L68: =SUM(L50:L67) -> 1 | M68: 3463571.182 | S68: =CONCATENATE("# of Exploration Wells = ",ProjectData!B23) -> # of Exploration Wells = 2 | U68: =SUM(U50:U67) -> 6426263.724
B70: 2. Production Drilling | D70: Daily Rate | E70: Cost per Well | F70: Total Cost | J70: 2. Production Drilling Costs per well | K70: Cost | L70: % of cost | N70: Wage ($/hr) | O70: Daily rate | P70: Total Man hours | Q70: Jobs/year | S70: 2. Production Drilling Costs per well | T70: Cost | V70: Wage ($/hr) | W70: Daily rate | X70: Total Man hours | Y70: Jobs/year | AC70: Labor | AD70: Materials | AE70: Services/Other Overhead | AG70: Total | AH70: Cost allocation (Materials & Other) | AM70: ProServ | AN70: ConServ | AO70: Serv | AP70: Mat
B71: Geologist | D71: ='Rates & Misc'!G20 -> 700 | E71: =D71*'Default Data'!$K$24 -> 27931.39054 | F71: =E71*(G$22+G$23) -> 78095.19179 | H71: =IF(ProjectData!$B$13="UNITED STATES",1,'Local Share'!D40) -> 1 | J71: Geologist | K71: =K$16*L71 -> 24555.46178 | L71: =IF($C$25="low",Y4,IF($C$25="medium",Z4,AA4)) -> 0.007089636821 | M71: =K71*(G$22+G$23) -> 68656.21297 | N71: ='Rates & Misc'!H20 -> 58.33333333 | O71: =D71 -> 700 | P71: =M71/N71 -> 1176.963651 | Q71: =P71/'Rates & Misc'!$C$4 -> 0.5658479091 | S71: Geologist | T71: =ProjectData!C72 -> 27931.39054 | U71: =ProjectData!D72 -> 78095.19179 | V71: =W71/'Rates & Misc'!I$20 -> 58.33333333 | W71: =ProjectData!B72 -> 700 | X71: =U71/V71 -> 1338.774716 | Y71: =X71/'Rates & Misc'!$C$4 -> 0.6436416905 | Z71: =IF(C$13="Simple",(M71*ProjectData!B$29)/'Default Data'!N71/'Rates & Misc'!C$4,(U71*ProjectData!B$29)/'Default Data'!V71/'Rates & Misc'!C$4) -> 0.03218208453 | AA71: =IF(C$13="Simple",Q71+Z71,Y71+Z71)*Calculations!D39 -> 0.6758237751 | AB71: 1 | AC71: =IF(C$13="Simple",M71*AB71,U71*AB71) -> 78095.19179 | AD71: =IF($C$13="Simple",M71-AC71,U71-AC71) -> 0 | AG71: =SUM(AC71:AF71) -> 78095.19179 | AM71: =AC71 -> 78095.19179 | AO71: =AE71 -> 0 | AP71: =AD71 -> 0 | AS71: =IF(AM71>0,AA71,0) -> 0.6758237751 | AT71: =IF(AN71>0,AA71,0) -> 0
B72: Mud Engineer(s) | D72: ='Rates & Misc'!G21 -> 800 | E72: =D72*'Default Data'!$K$24 -> 31921.58919 | F72: 89251.64776 | H72: =IF(ProjectData!$B$13="UNITED STATES",1,'Local Share'!D41) -> 0 | J72: Mud Engineer(s) | K72: 28063.3849 | L72: 0.008102442081 | M72: =K72*(G$22+G$23) -> 78464.24339 | N72: ='Rates & Misc'!H21 -> 66.66666667 | O72: =D72 -> 800 | P72: =M72/N72 -> 1176.963651 | Q72: =P72/'Rates & Misc'!$C$4 -> 0.5658479091 | S72: Mud Engineer(s) | T72: =ProjectData!C73 -> 31921.58919 | U72: =ProjectData!D73 -> 89251.64776 | V72: =W72/'Rates & Misc'!I$20 -> 66.66666667 | W72: =ProjectData!B73 -> 800 | X72: =U72/V72 -> 1338.774716 | Y72: =X72/'Rates & Misc'!$C$4 -> 0.6436416905 | Z72: =IF(C$13="Simple",(M72*ProjectData!B$29)/'Default Data'!N72/'Rates & Misc'!C$4,(U72*ProjectData!B$29)/'Default Data'!V72/'Rates & Misc'!C$4) -> 0.03218208453 | AA72: =IF(C$13="Simple",Q72+Z72,Y72+Z72)*Calculations!D40 -> 0 | AB72: 1 | AC72: 89251.64776 | AD72: 0 | AG72: =SUM(AC72:AF72) -> 89251.64776 | AM72: =AC72 -> 89251.64776 | AO72: 0 | AP72: 0 | AS72: 0 | AT72: 0
B73: Drilling Fluids - Mud | D73: ='Rates & Misc'!G22 -> 5950 | E73: =D73*'Default Data'!$K$24 -> 237416.8196 | F73: 663809.1302 | H73: =IF(ProjectData!$B$13="UNITED STATES",1,'Local Share'!D42) -> 0 | J73: Drilling Fluids - Mud | K73: 208721.4252 | L73: 0.06026191298 | M73: 583577.8102 | O73: 5950 | S73: Drilling Fluids - Mud | T73: =ProjectData!C74 -> 237416.8196 | U73: =ProjectData!D74 -> 663809.1302 | W73: =ProjectData!B74 -> 5950 | AA73: =IF(C$13="Simple",Q73+Z73,Y73+Z73)*Calculations!D41 -> 0 | AC73: 0 | AD73: 663809.1302 | AG73: 663809.1302 | AM73: =AC73 -> 0 | AO73: 0 | AP73: 663809.1302 | AS73: 0 | AT73: 0
B74: Directional Engineer and Motorman | D74: ='Rates & Misc'!G23 -> 2650 | E74: =D74*(K$24*'Rates & Misc'!M$25) -> 63444.15851 | F74: 177387.6499 | H74: =IF(ProjectData!$B$13="UNITED STATES",1,'Local Share'!D43) -> 0 | J74: Directional Engineer and Motorman | K74: 55775.97748 | L74: 0.01610360364 | M74: 155947.6837 | N74: ='Rates & Misc'!H23 -> 55.20833333 | O74: 2650 | P74: =M74/N74 -> 2824.712762 | Q74: =P74/'Rates & Misc'!$C$4 -> 1.358034982 | S74: Directional Engineer and Motorman | T74: =ProjectData!C75 -> 63444.15851 | U74: =ProjectData!D75 -> 177387.6499 | V74: =W74/('Rates & Misc'!P23*'Rates & Misc'!P25) -> 55.20833333 | W74: =ProjectData!B75 -> 2650 | X74: =U74/V74 -> 3213.059319 | Y74: =X74/'Rates & Misc'!$C$4 -> 1.544740057 | Z74: =IF(C$13="Simple",(M74*ProjectData!B$29)/'Default Data'!N74/'Rates & Misc'!C$4,(U74*ProjectData!B$29)/'Default Data'!V74/'Rates & Misc'!C$4) -> 0.07723700287 | AA74: =IF(C$13="Simple",Q74+Z74,Y74+Z74)*Calculations!D42 -> 0 | AB74: 1 | AC74: 177387.6499 | AD74: 0 | AG74: 177387.6499 | AN74: =AC74 -> 177387.6499 | AO74: 0 | AP74: 0 | AS74: 0 | AT74: 0
B75: Direction Tools and Services | D75: ='Rates & Misc'!G24 -> 7858 | E75: =D75*(K$24*'Rates & Misc'!M$25) -> 188129.8859 | F75: 526004.586 | H75: =IF(ProjectData!$B$13="UNITED STATES",1,'Local Share'!D44) -> 0 | J75: Direction Tools and Services | K75: 167327.9324 | L75: 0.04831081091 | M75: 467843.0512 | O75: 7858 | S75: Direction Tools and Services | T75: =ProjectData!C76 -> 188129.8859 | U75: =ProjectData!D76 -> 526004.586 | AA75: =IF(C$13="Simple",Q75+Z75,Y75+Z75)*Calculations!D43 -> 0 | AC75: 0 | AD75: 526004.586 | AG75: 526004.586 | AM75: =AC75 -> 0 | AO75: 0 | AP75: 526004.586 | AS75: 0 | AT75: 0
B76: Drilling Engineering | D76: ='Rates & Misc'!G25 -> 1400 | E76: =D76*'Default Data'!K23 -> 65720.91892 | F76: 183753.3924 | H76: =IF(ProjectData!$B$13="UNITED STATES",1,'Local Share'!D45) -> 0 | J76: Drilling Engineering | K76: 57777.55714 | L76: 0.0166814984 | M76: 161544.0305 | N76: ='Rates & Misc'!H25 -> 58.33333333 | O76: 1400 | P76: =M76/N76 -> 2769.326237 | Q76: =P76/'Rates & Misc'!$C$4 -> 1.331406845 | S76: Drilling Engineering | T76: =ProjectData!C77 -> 65720.91892 | U76: =ProjectData!D77 -> 183753.3924 | V76: =W76/'Rates & Misc'!I$25 -> 58.33333333 | W76: =ProjectData!B77 -> 1400 | X76: =U76/V76 -> 3150.058156 | Y76: =X76/'Rates & Misc'!$C$4 -> 1.514451037 | Z76: =IF(C$13="Simple",(M76*ProjectData!B$29)/'Default Data'!N76/'Rates & Misc'!C$4,(U76*ProjectData!B$29)/'Default Data'!V76/'Rates & Misc'!C$4) -> 0.07572255183 | AA76: =IF(C$13="Simple",Q76+Z76,Y76+Z76)*Calculations!D44 -> 0 | AB76: 1 | AC76: 183753.3924 | AD76: 0 | AG76: 183753.3924 | AM76: =AC76 -> 183753.3924 | AO76: 0 | AP76: 0 | AS76: 0 | AT76: 0
B77: Drill Rig Rate | D77: ='Rates & Misc'!G26 -> 15000 | E77: =D77*'Default Data'!K$24 -> 598529.7973 | F77: 1673468.395 | H77: =IF(ProjectData!$B$13="UNITED STATES",1,'Local Share'!D46) -> 0 | J77: Drill Rig Rate | K77: 561267.6979 | L77: 0.1620488416 | M77: 1569284.868 | O77: 15000 | S77: Drill Rig Rate | T77: =ProjectData!C78 -> 598529.7973 | U77: =ProjectData!D78 -> 1673468.395 | W77: =ProjectData!B78 -> 15000 | AA77: =IF(C$13="Simple",Q77+Z77,Y77+Z77)*Calculations!D45 -> 0 | AC77: 0 | AD77: =IF($C$13="Simple",(M77-AC77-AC78-AF78)*AH77,(U77-AC77-AC78-AF78)*AH77) -> 708211.8249 | AE77: =AD77 -> 708211.8249 | AG77: 1416423.65 | AH77: 0.5 | AM77: =AC77 -> 0 | AN77: =AE77+AD77 -> 1416423.65 | AS77: 0 | AT77: 0
B78: Drill Hands - labor | D78: ='Rates & Misc'!C51 -> 2304 | E78: =D78*'Default Data'!K$24 -> 91934.17686 | F78: 257044.7455 | H78: =IF(ProjectData!$B$13="UNITED STATES",1,'Local Share'!D47) -> 0 | J78: Drill Hands - labor | K78: 0 | L78: 0 | M78: =(O78/O77)*M77 -> 241042.1557 | N78: =O78/('Rates & Misc'!$C$47*'Rates & Misc'!$C$48*'Rates & Misc'!$C$49) -> 16 | O78: 2304 | P78: ='Rates & Misc'!C47*'Rates & Misc'!C48*'Rates & Misc'!C49*K24*(G22+G23) -> 16065.2966 | Q78: =P78/'Rates & Misc'!$C$4 -> 7.723700287 | S78: Drill Hands - labor | T78: =ProjectData!C79 -> 91934.17686 | U78: =ProjectData!D79 -> 257044.7455 | V78: =W78/('Rates & Misc'!C$47*'Rates & Misc'!C$48*'Rates & Misc'!C$49) -> 16 | W78: =ProjectData!B79 -> 2304 | X78: =U78/V78 -> 16065.2966 | Y78: =X78/'Rates & Misc'!$C$4 -> 7.723700287 | Z78: =IF(C$13="Simple",(M78*ProjectData!B$29)/'Default Data'!N78/'Rates & Misc'!C$4,(U78*ProjectData!B$29)/'Default Data'!V78/'Rates & Misc'!C$4) -> 0.3861850143 | AA78: =IF(C$13="Simple",Q78+Z78,Y78+Z78)*Calculations!D46 -> 0 | AB78: 1 | AC78: 257044.7455 | AD78: =IF($C$13="Simple",M78-AC78,U78-AC78) -> 0 | AG78: 257044.7455 | AN78: =AC78 -> 257044.7455 | AO78: =AE78 -> 0 | AP78: =AD78 -> 0 | AS78: 0 | AT78: 0
B79: Management/Administrative | E79: 5000 | F79: 13979.82526 | H79: =IF(ProjectData!$B$13="UNITED STATES",1,'Local Share'!D48) -> 0 | J79: Management/Administrative | K79: 3296.756084 | L79: 0.0009518372542 | M79: 9217.614793 | N79: =N58 -> 60 | P79: =K79/N79*(G22+G23) -> 153.6269132 | Q79: =P79/'Rates & Misc'!$C$4 -> 0.07385909289 | S79: Management/Administrative | T79: =ProjectData!C80 -> 5000 | U79: =ProjectData!D80 -> 13979.82526 | V79: =V58 -> 60 | X79: =U79/V79 -> 232.9970876 | Y79: =X79/'Rates & Misc'!$C$4 -> 0.1120178306 | Z79: =IF(C$13="Simple",(M79*ProjectData!B$29)/'Default Data'!N79/'Rates & Misc'!C$4,(U79*ProjectData!B$29)/'Default Data'!V79/'Rates & Misc'!C$4) -> 0.005600891529 | AA79: =IF(C$13="Simple",Q79+Z79,Y79+Z79)*Calculations!D47 -> 0 | AB79: 1 | AC79: 13979.82526 | AD79: =IF($C$13="Simple",M79-AC79,U79-AC79) -> 0 | AG79: 13979.82526 | AM79: =AC79 -> 13979.82526 | AO79: 0 | AP79: 0 | AS79: 0 | AT79: 0
B80: Site Construction | E80: =125000 -> 125000 | F80: 349495.6314 | H80: =IF(ProjectData!$B$13="UNITED STATES",1,'Local Share'!D49) -> 1 | J80: Site Construction | K80: 82418.90209 | L80: 0.02379593136 | M80: 230440.3698 | N80: =N59 -> 20.55 | P80: =(K80*AB80)/N80*(G22+G23) -> 1794.182928 | Q80: =P80/'Rates & Misc'!$C$4 -> 0.8625879461 | S80: Site Construction | T80: =ProjectData!C81 -> 125000 | U80: =ProjectData!D81 -> 349495.6314 | V80: =V59 -> 20.55 | X80: =(U80*AB80)/V80 -> 2721.13387 | Y80: =X80/'Rates & Misc'!$C$4 -> 1.308237437 | Z80: =IF(C$13="Simple",(M80*ProjectData!B$29)/'Default Data'!N80/'Rates & Misc'!C$4,(U80*ProjectData!B$29)/'Default Data'!V80/'Rates & Misc'!C$4) -> 0.4088241992 | AA80: =IF(C$13="Simple",Q80+Z80,Y80+Z80)*Calculations!D48 -> 1.717061637 | AB80: =C$110 -> 0.16 | AC80: 55919.30103 | AD80: =IF($C$13="Simple",M80-AC80,U80-AC80) -> 293576.3304 | AG80: 349495.6314 | AN80: =AC80 -> 55919.30103 | AO80: 0 | AP80: 293576.3304 | AS80: 0 | AT80: 1.717061637
B81: Material Costs - (Cement and Casing) | E81: =(0.0000000144*G15^4)-(0.000149*G15^3)+(0.636*G15^2-406*G15) -> 978103.125 | F81: 2734742.154 | H81: =IF(ProjectData!$B$13="UNITED STATES",1,'Local Share'!D50) -> 1 | J81: Material Costs - (Cement and Casing) | K81: 1087533.897 | L81: 0.3139920734 | M81: 3040706.768 | N81: 25.305 | P81: =K81*AB81/N81*(G22+G23) -> 19225.96652 | Q81: =P81/'Rates & Misc'!$C$4 -> 9.243253136 | S81: Material Costs - (Cement and Casing) | T81: =ProjectData!C82 -> 978103.125 | U81: =ProjectData!D82 -> 2734742.154 | V81: 25.305 | X81: =(U81*AB81)/V81 -> 17291.39477 | Y81: =X81/'Rates & Misc'!$C$4 -> 8.313170563 | Z81: =IF(C$13="Simple",(M81*ProjectData!B$29)/'Default Data'!N81/'Rates & Misc'!C$4,(U81*ProjectData!B$29)/'Default Data'!V81/'Rates & Misc'!C$4) -> 2.597865801 | AA81: =IF(C$13="Simple",Q81+Z81,Y81+Z81)*Calculations!D49 -> 10.91103636 | AB81: =C$110 -> 0.16 | AC81: 437558.7447 | AD81: =IF($C$13="Simple",M81-AC81,U81-AC81) -> 2297183.409 | AG81: 2734742.154 | AN81: =AC81 -> 437558.7447 | AO81: 0 | AP81: 2297183.409 | AS81: 0 | AT81: 10.91103636
B82: Drilling Tools | E82: =125000 -> 125000 | F82: 349495.6314 | H82: =IF(ProjectData!$B$13="UNITED STATES",1,'Local Share'!D51) -> 0 | J82: Drilling Tools | K82: 82418.90209 | L82: =IF($C$25="low",Y15,IF($C$25="medium",Z15,AA15)) -> 0.02379593136 | M82: 230440.3698 | S82: Drilling Tools | T82: =ProjectData!C83 -> 125000 | U82: =ProjectData!D83 -> 349495.6314 | V82: 0 | AA82: =IF(C$13="Simple",Q82+Z82,Y82+Z82)*Calculations!D50 -> 0 | AC82: 0 | AD82: =IF($C$13="Simple",M82-AC82,U82-AC82) -> 349495.6314 | AG82: 349495.6314 | AM82: =AC82 -> 0 | AO82: 0 | AP82: 349495.6314 | AS82: 0 | AT82: 0
B83: Outside Services | E83: 225000 | F83: 629092.1365 | H83: =IF(ProjectData!$B$13="UNITED STATES",1,'Local Share'!D52) -> 0 | J83: Outside Services | K83: 148354.0238 | L83: 0.04283267644 | M83: 414792.6657 | N83: 50 | P83: =K83/N83*(G22+G23) -> 8295.853313 | Q83: =P83/'Rates & Misc'!$C$4 -> 3.988391016 | S83: Outside Services | T83: =ProjectData!C84 -> 225000 | U83: =ProjectData!D84 -> 629092.1365 | V83: 75 | X83: =U83/V83 -> 8387.895154 | Y83: =X83/'Rates & Misc'!$C$4 -> 4.032641901 | Z83: =IF(C$13="Simple",(M83*ProjectData!B$29)/'Default Data'!N83/'Rates & Misc'!C$4,(U83*ProjectData!B$29)/'Default Data'!V83/'Rates & Misc'!C$4) -> 0.201632095 | AA83: =IF(C$13="Simple",Q83+Z83,Y83+Z83)*Calculations!D51 -> 0 | AB83: 1 | AC83: 629092.1365 | AE83: =IF($C$13="Simple",M83-AC83,U83-AC83) -> 0 | AG83: 629092.1365 | AM83: =AC83 -> 629092.1365 | AO83: 0 | AP83: 0 | AS83: 0 | AT83: 0
B84: Move Services and equipment | E84: 250000 | F84: 698991.2628 | H84: =IF(ProjectData!$B$13="UNITED STATES",1,'Local Share'!D53) -> 1 | J84: Move Services and equipment | K84: 164837.8042 | L84: 0.04759186271 | M84: 460880.7396 | N84: 20.55 | S84: Move Services and equipment | T84: =ProjectData!C85 -> 250000 | U84: =ProjectData!D85 -> 698991.2628 | V84: 20.55 | AA84: =IF(C$13="Simple",Q84+Z84,Y84+Z84)*Calculations!D52 -> 0 | AC84: 0 | AD84: =IF($C$13="Simple",(M84-AC84)*AH84,(U84-AC84)*AH84) -> 349495.6314 | AE84: =AD84 -> 349495.6314 | AG84: 698991.2628 | AH84: =AH77 -> 0.5 | AM84: =AC84 -> 0 | AO84: 349495.6314 | AP84: 349495.6314 | AS84: 0 | AT84: 0
B85: Location Maintenance | E85: 50000 | F85: 139798.2526 | H85: =IF(ProjectData!$B$13="UNITED STATES",1,'Local Share'!D54) -> 1 | J85: Location Maintenance | K85: 32967.56084 | L85: 0.009518372542 | M85: 92176.14793 | N85: 20.55 | P85: =(K85*AB85)/N85*(G22+G23) -> 2242.72866 | Q85: =P85/'Rates & Misc'!$C$4 -> 1.078234933 | S85: Location Maintenance | T85: =ProjectData!C86 -> 50000 | U85: =ProjectData!D86 -> 139798.2526 | V85: 20.55 | X85: =(U85*AB85)/V85 -> 3401.417337 | Y85: =X85/'Rates & Misc'!$C$4 -> 1.635296797 | Z85: =IF(C$13="Simple",(M85*ProjectData!B$29)/'Default Data'!N85/'Rates & Misc'!C$4,(U85*ProjectData!B$29)/'Default Data'!V85/'Rates & Misc'!C$4) -> 0.1635296797 | AA85: =IF(C$13="Simple",Q85+Z85,Y85+Z85)*Calculations!D53 -> 1.798826477 | AB85: =AB64 -> 0.5 | AC85: 69899.12628 | AD85: =IF($C$13="Simple",M85-AC85,U85-AC85) -> 69899.12628 | AG85: 139798.2526 | AO85: =AE85+AC85 -> 69899.12628 | AP85: 69899.12628 | AS85: 0 | AT85: 0
B86: Fuel | E86: 125000 | F86: 349495.6314 | H86: =IF(ProjectData!$B$13="UNITED STATES",1,'Local Share'!D55) -> 1 | J86: Fuel | K86: 82418.90209 | L86: 0.02379593136 | M86: 230440.3698 | N86: 26.88 | P86: =(K86*AB86/N86)*(G22+G23) -> 1371.668868 | Q86: =P86/'Rates & Misc'!$C$4 -> 0.6594561865 | S86: Fuel | T86: =ProjectData!C87 -> 125000 | U86: =ProjectData!D87 -> 349495.6314 | V86: 26.88 | X86: =(U86*AB86)/V86 -> 2080.331139 | Y86: =X86/'Rates & Misc'!$C$4 -> 1.000159202 | Z86: =IF(C$13="Simple",(M86*ProjectData!B$29)/'Default Data'!N86/'Rates & Misc'!C$4,(U86*ProjectData!B$29)/'Default Data'!V86/'Rates & Misc'!C$4) -> 0.3125497505 | AA86: =IF(C$13="Simple",Q86+Z86,Y86+Z86)*Calculations!D54 -> 1.312708952 | AB86: =C$110 -> 0.16 | AC86: 55919.30103 | AD86: =IF($C$13="Simple",M86-AC86,U86-AC86) -> 293576.3304 | AG86: 349495.6314 | AN86: =AC86 -> 55919.30103 | AO86: =AE86 -> 0 | AP86: 293576.3304 | AS86: 0 | AT86: 1.312708952
B87: Camp | E87: 25000 | F87: 69899.12628 | H87: =IF(ProjectData!$B$13="UNITED STATES",1,'Local Share'!D56) -> 1 | J87: Camp | K87: 16483.78042 | L87: 0.004759186271 | M87: 46088.07396 | N87: 20.55 | P87: =(K87*AB87/N87)*(G22+G23) -> 358.8365856 | Q87: =P87/'Rates & Misc'!$C$4 -> 0.1725175892 | S87: Camp | T87: =ProjectData!C88 -> 25000 | U87: =ProjectData!D88 -> 69899.12628 | V87: 20.55 | X87: =(U87*AB87)/V87 -> 544.226774 | Y87: =X87/'Rates & Misc'!$C$4 -> 0.2616474875 | Z87: =IF(C$13="Simple",(M87*ProjectData!B$29)/'Default Data'!N87/'Rates & Misc'!C$4,(U87*ProjectData!B$29)/'Default Data'!V87/'Rates & Misc'!C$4) -> 0.08176483984 | AA87: =IF(C$13="Simple",Q87+Z87,Y87+Z87)*Calculations!D55 -> 0.3434123273 | AB87: =C$110 -> 0.16 | AC87: 11183.86021 | AD87: =IF($C$13="Simple",M87-AC87,U87-AC87) -> 58715.26608 | AG87: 69899.12628 | AN87: =AC87 -> 11183.86021 | AO87: =AE87 -> 0 | AP87: 58715.26608 | AS87: 0 | AT87: 0.3434123273
B88: Other Unallocated Costs | E88: 1000000 | F88: 2795965.051 | H88: =IF(ProjectData!$B$13="UNITED STATES",1,'Local Share'!D57) -> 0 | J88: Other Unallocated Costs | K88: 659351.2167 | L88: =1-SUM(L71:L87) -> 0.1903674508 | M88: 1843522.959 | S88: Other Unallocated Costs | T88: =ProjectData!C89 -> 1000000 | U88: =ProjectData!D89 -> 2795965.051 | AC88: 0 | AE88: =IF($C$13="Simple",M88-AC88,U88-AC88) -> 2795965.051 | AG88: 2795965.051 | AM88: =AC88 -> 0 | AO88: =AE88 -> 2795965.051 | AP88: 0 | AS88: 0 | AT88: 0
B89: Total: | E89: =SUM(E71:E88)-E78 -> 4121197.685 | F89: =SUM(F71:F88)-F78 -> 11522724.7 | K89: 3463571.182 | L89: =SUM(L71:L88) -> 1 | M89: =SUM(M71:M88) -> 9925066.133 | U89: =SUM(U71:U88) -> 11779769.44 | AG89: =SUM(AG71:AG88) -> 11522724.7
M90: =M89+M68 -> 13388637.32
B91: 3. Stimulation Costs | D91: Daily Rate | E91: Cost per Well | F91: Total Cost | J91: 3. Stimulation Costs | S91: 3. Well Stimulation | AM91: ProServ | AN91: ConServ | AO91: Serv | AP91: Mat
B92: Associated Variable Costs: | J92: Associated Variable Costs: | O92: Daily rate | P92: Total Man hours | Q92: Jobs/year | S92: Associated Variable Costs: | AG92: Total
B93: Reservoir Engineer (per day) | D93: =IF(C$18="EGS",'Rates & Misc'!C60,0) -> 0 | E93: ='Rates & Misc'!D$56*D93 -> 0 | F93: =E93*(G$22+G$23) -> 0 | H93: =IF(ProjectData!$B$13="UNITED STATES",1,'Local Share'!D62) -> 1 | J93: Reservoir Engineer (per day) | K93: =E93 -> 0 | M93: =F93 -> 0 | N93: =M93/P93 -> 0 | O93: =D93 -> 0 | P93: ='Rates & Misc'!E60*'Rates & Misc'!D$56*($G$22+$G$23) -> 1232.685072 | Q93: =P93/'Rates & Misc'!$C$4 -> 0.5926370538 | S93: Reservoir Engineer (per day) | T93: =ProjectData!C94 -> 0 | U93: =IF(ProjectData!B$17="EGS",ProjectData!D94,0) -> 0 | V93: =W93/'Rates & Misc'!E60 -> 0 | W93: =ProjectData!B94 -> 0 | X93: =(U93*AB93)/V93 ->  | Y93: =X93/'Rates & Misc'!$C$4 ->  | Z93: =IF(C$13="Simple",(M93*ProjectData!B$29)/'Default Data'!N93/'Rates & Misc'!C$4,(U93*ProjectData!B$29)/'Default Data'!V93/'Rates & Misc'!C$4) ->  | AA93: =IF(C$13="Simple",Q93+Z93,Y93+Z93)*Calculations!D61 ->  | AB93: 1 | AC93: =IF(C$13="Simple",M93*AB93,U93*AB93) -> 0 | AD93: =IF($C$13="Simple",M93-AC93,U93-AC93) -> 0 | AG93: =SUM(AC93:AF93) -> 0 | AM93: =AC93 -> 0 | AO93: =AE93 -> 0 | AP93: =AD93 -> 0 | AS93: =IF(AM93>0,AA93,0) -> 0 | AT93: =IF(AN93>0,AA93,0) -> 0
B94: Geologist | D94: =IF(C$18="EGS",'Rates & Misc'!C61,0) -> 0 | E94: ='Rates & Misc'!D$56*D94 -> 0 | F94: 0 | H94: =IF(ProjectData!$B$13="UNITED STATES",1,'Local Share'!D63) -> 1 | J94: Geologist | K94: 0 | M94: =F94 -> 0 | N94: =M94/P94 -> 0 | O94: =D94 -> 0 | P94: ='Rates & Misc'!E61*'Rates & Misc'!D$56*($G$22+$G$23) -> 616.3425359 | Q94: =P94/'Rates & Misc'!$C$4 -> 0.2963185269 | S94: Geologist | T94: =ProjectData!C95 -> 0 | U94: =IF(ProjectData!B$17="EGS",ProjectData!D95,0) -> 0 | V94: =W94/'Rates & Misc'!E61 -> 0 | W94: =ProjectData!B95 -> 0 | X94: =(U94*AB94)/V94 ->  | Y94: =X94/'Rates & Misc'!$C$4 ->  | Z94: =IF(C$13="Simple",(M94*ProjectData!B$29)/'Default Data'!N94/'Rates & Misc'!C$4,(U94*ProjectData!B$29)/'Default Data'!V94/'Rates & Misc'!C$4) ->  | AA94: =IF(C$13="Simple",Q94+Z94,Y94+Z94)*Calculations!D62 ->  | AB94: 1 | AC94: 0 | AD94: =IF($C$13="Simple",M94-AC94,U94-AC94) -> 0 | AG94: =SUM(AC94:AF94) -> 0 | AM94: =AC94 -> 0 | AO94: =AE94 -> 0 | AP94: =AD94 -> 0 | AS94: 0 | AT94: 0
B95: Geophysicist (day) | D95: =IF(C$18="EGS",'Rates & Misc'!C62,0) -> 0 | E95: ='Rates & Misc'!D$56*D95 -> 0 | F95: 0 | H95: =IF(ProjectData!$B$13="UNITED STATES",1,'Local Share'!D64) -> 0 | J95: Geophysicist (day) | K95: 0 | M95: 0 | N95: =M95/P95 -> 0 | O95: =D95 -> 0 | P95: ='Rates & Misc'!E62*'Rates & Misc'!D$56*($G$22+$G$23) -> 616.3425359 | Q95: =P95/'Rates & Misc'!$C$4 -> 0.2963185269 | S95: Geophysicist (day) | T95: =ProjectData!C96 -> 0 | U95: =IF(ProjectData!B$17="EGS",ProjectData!D96,0) -> 0 | V95: =W95/'Rates & Misc'!E62 -> 0 | W95: =ProjectData!B96 -> 0 | X95: =(U95*AB95)/V95 ->  | Y95: =X95/'Rates & Misc'!$C$4 ->  | Z95: =IF(C$13="Simple",(M95*ProjectData!B$29)/'Default Data'!N95/'Rates & Misc'!C$4,(U95*ProjectData!B$29)/'Default Data'!V95/'Rates & Misc'!C$4) ->  | AA95: =IF(C$13="Simple",Q95+Z95,Y95+Z95)*Calculations!D63 ->  | AB95: 1 | AC95: 0 | AD95: =IF($C$13="Simple",M95-AC95,U95-AC95) -> 0 | AG95: 0 | AM95: =AC95 -> 0 | AO95: =AE95 -> 0 | AP95: =AD95 -> 0 | AS95: 0 | AT95: 0
B96: Drill Rig (EGS) | D96: =IF(C$18="EGS",'Rates & Misc'!C63,0) -> 0 | E96: ='Rates & Misc'!D$56*D96 -> 0 | F96: 0 | H96: =IF(ProjectData!$B$13="UNITED STATES",1,'Local Share'!D65) -> 0 | J96: Drill Rig (EGS) | K96: 0 | M96: 0 | O96: =D96 -> 0 | Q96: =P96/'Rates & Misc'!$C$4 -> 0 | S96: Drill Rig (EGS) | T96: =ProjectData!C97 -> 0 | U96: =IF(ProjectData!B$17="EGS",ProjectData!D97,0) -> 0 | W96: =ProjectData!B97 -> 0 | AA96: =IF(C$13="Simple",Q96+Z96,Y96+Z96)*Calculations!D64 -> 0 | AC96: 0 | AD96: =IF($C$13="Simple",(M96-AC96-AC97-AF97)*AH96,(U96-AC96-AC97-AF97)*AH96) -> 0 | AE96: =AD96 -> 0 | AG96: 0 | AH96: 0.5 | AM96: =AC96 -> 0 | AN96: =AE96+AD96 -> 0 | AS96: 0 | AT96: 0
B97: Drill Hands - labor | D97: =IF(C$18="EGS",'Rates & Misc'!C64,0) -> 0 | E97: ='Rates & Misc'!D$56*D97 -> 0 | F97: 0 | H97: =IF(ProjectData!$B$13="UNITED STATES",1,'Local Share'!D66) -> 0 | J97: Drill Hands - labor | K97: 0 | M97: 0 | N97: =M97/P97 -> 0 | O97: =D97 -> 0 | P97: ='Rates & Misc'!C47*'Rates & Misc'!C48*'Rates & Misc'!C49*'Rates & Misc'!D$56*($G$22+$G$23) -> 7396.110431 | Q97: =P97/'Rates & Misc'!$C$4 -> 3.555822323 | S97: Drill Hands - labor | T97: =ProjectData!C98 -> 0 | U97: =IF(ProjectData!B$17="EGS",ProjectData!D98,0) -> 0 | V97: =U97/X97 -> 0 | X97: =('Rates & Misc'!C$49*'Rates & Misc'!C$47)*'Rates & Misc'!D$56*(ProjectData!$G$19+ProjectData!$G$20)*'Rates & Misc'!C$48 -> 7396.110431 | Y97: =X97/'Rates & Misc'!$C$4 -> 3.555822323 | Z97: =IF(C$13="Simple",(M97*ProjectData!B$29)/'Default Data'!N97/'Rates & Misc'!C$4,(U97*ProjectData!B$29)/'Default Data'!V97/'Rates & Misc'!C$4) ->  | AA97: =IF(C$13="Simple",Q97+Z97,Y97+Z97)*Calculations!D65 ->  | AB97: 1 | AC97: 0 | AD97: =IF($C$13="Simple",M97-AC97,U97-AC97) -> 0 | AG97: 0 | AN97: =AC97 -> 0 | AO97: =AE97 -> 0 | AP97: =AD97 -> 0 | AS97: 0 | AT97: 0
B98: Material (proppant, water) | D98: =IF(C$18="EGS",'Rates & Misc'!C65,0) -> 0 | E98: ='Rates & Misc'!D$56*D98 -> 0 | F98: 0 | H98: =IF(ProjectData!$B$13="UNITED STATES",1,'Local Share'!D67) -> 1 | J98: Material (proppant, water) | K98: 0 | M98: 0 | S98: Material (proppant, water) | T98: =ProjectData!C99 -> 0 | U98: =IF(ProjectData!B$17="EGS",ProjectData!D99,0) -> 0 | AA98: =IF(C$13="Simple",Q98+Z98,Y98+Z98)*Calculations!D66 -> 0 | AC98: 0 | AD98: =IF($C$13="Simple",M98-AC98,U98-AC98) -> 0 | AG98: 0 | AM98: =AC98 -> 0 | AO98: =AE98 -> 0 | AP98: =AD98 -> 0 | AS98: 0 | AT98: 0
B99: Fuel | D99: =IF(C$18="EGS",'Rates & Misc'!C66,0) -> 0 | E99: ='Rates & Misc'!D$56*D99 -> 0 | F99: 0 | H99: =IF(ProjectData!$B$13="UNITED STATES",1,'Local Share'!D68) -> 1 | J99: Fuel | K99: 0 | M99: 0 | N99: =N86 -> 26.88 | P99: =(K99*$AB99/N99)*($G22+$G23) -> 0 | Q99: =P99/'Rates & Misc'!$C$4 -> 0 | S99: Fuel | T99: =ProjectData!C100 -> 0 | U99: =IF(ProjectData!B$17="EGS",ProjectData!D100,0) -> 0 | V99: =V86 -> 26.88 | X99: =(T99*$AB99/V99)*($G22+$G23) -> 0 | Y99: =X99/'Rates & Misc'!$C$4 -> 0 | AA99: =IF(C$13="Simple",Q99+Z99,Y99+Z99)*Calculations!D67 -> 0 | AB99: =C$110 -> 0.16 | AC99: 0 | AD99: =IF($C$13="Simple",M99-AC99,U99-AC99) -> 0 | AG99: 0 | AN99: =AC99 -> 0 | AO99: =AE99 -> 0 | AP99: =AD99 -> 0 | AS99: 0 | AT99: 0
B100: Subtotal | D100: =SUM(D93:D99) -> 0 | E100: =SUM(E93:E99) -> 0 | F100: =SUM(F93:F99) -> 0 | J100: Subtotal | K100: =SUM(K93:K99) -> 0 | M100: =SUM(M93:M99)-M97 -> 0 | S100: Subtotal | AG100: 0
B101: Associated Fixed Costs: | J101: Associated Fixed Costs: | S101: Associated Fixed Costs: | AG101: 0
B102: Injection Testing | D102: =IF($C$18="EGS",'Rates & Misc'!D67,0) -> 0 | E102: =D102 -> 0 | F102: =E102*(G$22+G$23) -> 0 | H102: =IF(ProjectData!$B$13="UNITED STATES",1,'Local Share'!D71) -> 0 | J102: Injection Testing | K102: =E102 -> 0 | M102: =F102 -> 0 | S102: Injection Testing | T102: =ProjectData!C103 -> 0 | U102: =IF(ProjectData!B$17="EGS",ProjectData!D103,0) -> 0 | W102: =ProjectData!B96 -> 0 | X102: =24*'Default Data'!$K$24*ProjectData!B68 -> 0 | Y102: =X102/'Rates & Misc'!$C$4 -> 0 | AA102: =IF(C$13="Simple",Q102+Z102,Y102+Z102)*Calculations!D70 -> 0 | AB102: 0 | AC102: =IF(C$13="Simple",M102*AB102,U102*AB102) -> 0 | AE102: =IF($C$13="Simple",M102-AC102,U102-AC102) -> 0 | AG102: 0 | AM102: =AC102 -> 0 | AO102: =AE102 -> 0 | AP102: =AD102 -> 0 | AS102: =IF(AM102>0,AA102,0) -> 0 | AT102: =IF(AN102>0,AA102,0) -> 0
B103: Mobilization/Demobilization | D103: =IF($C$18="EGS",'Rates & Misc'!D68,0) -> 0 | E103: =D103 -> 0 | F103: =E103*(G$22+G$23) -> 0 | H103: =IF(ProjectData!$B$13="UNITED STATES",1,'Local Share'!D72) -> 1 | J103: Mobilization/Demobilization | K103: =E103 -> 0 | M103: =F103 -> 0 | S103: Mobilization/Demobilization | T103: =ProjectData!C104 -> 0 | U103: =IF(ProjectData!B$17="EGS",ProjectData!D104,0) -> 0 | W103: =ProjectData!B97 -> 0 | X103: =24*'Default Data'!$K$24*ProjectData!B69 -> 0 | Y103: =X103/'Rates & Misc'!$C$4 -> 0 | AA103: =IF(C$13="Simple",Q103+Z103,Y103+Z103)*Calculations!D71 -> 0 | AB103: 0 | AC103: =IF(C$13="Simple",M103*AB103,U103*AB103) -> 0 | AE103: =IF($C$13="Simple",M103-AC103,U103-AC103) -> 0 | AG103: 0 | AN103: =AC103 -> 0 | AO103: =AE103 -> 0 | AP103: =AD103 -> 0 | AS103: =IF(AM103>0,AA103,0) -> 0 | AT103: =IF(AN103>0,AA103,0) -> 0
B104: Water (rate per/Kgallons) | D104: =IF($C$18="EGS",'Rates & Misc'!D69,0) -> 0 | E104: =D104 -> 0 | F104: =E104*(G$22+G$23) -> 0 | H104: =IF(ProjectData!$B$13="UNITED STATES",1,'Local Share'!D73) -> 1 | J104: Water (rate per/Kgallons) | K104: =E104 -> 0 | M104: =F104 -> 0 | S104: Water (rate per/Kgallons) | T104: =ProjectData!C105 -> 0 | U104: =IF(ProjectData!B$17="EGS",ProjectData!D105,0) -> 0 | W104: =ProjectData!B98 -> 0 | X104: =24*'Default Data'!$K$24*ProjectData!B70 -> 0 | Y104: =X104/'Rates & Misc'!$C$4 -> 0 | AA104: =IF(C$13="Simple",Q104+Z104,Y104+Z104)*Calculations!D72 -> 0 | AB104: 0 | AC104: =IF(C$13="Simple",M104*AB104,U104*AB104) -> 0 | AE104: =IF($C$13="Simple",M104-AC104,U104-AC104) -> 0 | AG104: 0 | AN104: =AC104 -> 0 | AO104: =AE104 -> 0 | AP104: =AD104 -> 0 | AS104: =IF(AM104>0,AA104,0) -> 0 | AT104: =IF(AN104>0,AA104,0) -> 0
B105: Downhole Logging | D105: =IF($C$18="EGS",'Rates & Misc'!D70,0) -> 0 | E105: =D105 -> 0 | F105: =E105*(G$22+G$23) -> 0 | H105: =IF(ProjectData!$B$13="UNITED STATES",1,'Local Share'!D74) -> 0 | J105: Downhole Logging | K105: =E105 -> 0 | M105: =F105 -> 0 | S105: Downhole Logging | T105: =ProjectData!C106 -> 0 | U105: =IF(ProjectData!B$17="EGS",ProjectData!D106,0) -> 0 | W105: =ProjectData!B99 -> 0 | Y105: =X105/'Rates & Misc'!$C$4 -> 0 | AA105: =IF(C$13="Simple",Q105+Z105,Y105+Z105)*Calculations!D73 -> 0 | AB105: 0 | AC105: =IF(C$13="Simple",M105*AB105,U105*AB105) -> 0 | AE105: =IF($C$13="Simple",M105-AC105,U105-AC105) -> 0 | AG105: 0 | AN105: =AC105 -> 0 | AO105: =AE105 -> 0 | AP105: =AD105 -> 0 | AS105: =IF(AM105>0,AA105,0) -> 0 | AT105: =IF(AN105>0,AA105,0) -> 0
B106: SubTotal | D106: =SUM(D102:D105) -> 0 | E106: =SUM(E102:E105) -> 0 | F106: =SUM(F102:F105) -> 0 | H106: =IF(ProjectData!$B$13="UNITED STATES",1,'Local Share'!D75) -> 0 | K106: =SUM(K102:K105) -> 0 | M106: =SUM(M102:M105) -> 0 | AA106: =IF(C$13="Simple",Q106,Y106) -> 0
B107: Total | D107: =D106+D100 -> 0 | E107: =E106+E100 -> 0 | F107: =F106+F100 -> 0 | K107: =K106+K100 -> 0 | M107: =M106+M100 -> 0
B108: =CONCATENATE(C19," Plant") -> Binary Plant | C108: Percent of Plant Cost | D108: Plant Cost | E108: Total Cost | G108: % of Project Cost
B109: Power Plant Cost | E109: =K15 -> 23549341.05 | S109: Construction Labor
B110: Power Plant Labor | C110: ='Rates & Misc'!C14 -> 0.16 | E110: =E109*C110 -> 3767894.568 | J110: 1. Power Plant Labor | S110: 1. Power Plant Labor | AC110: Labor | AE110: Mfg | AG110: Total | AM110: ProServ | AN110: ConServ | AO110: Serv | AP110: Mat
B111: Engineering - Design | C111: ='Rates & Misc'!I38 -> 0.1 | D111: =$E$110*C111 -> 376789.4568 | H111: =IF(ProjectData!$B$13="UNITED STATES",1,'Local Share'!D80) -> 1 | J111: Engineering | K111: =D111 -> 376789.4568 | N111: ='Rates & Misc'!H38 -> 63.75 | O111: 1 | P111: =K111/N111 -> 5910.422852 | Q111: =P111/'Rates & Misc'!$C$4 -> 2.841549448 | S111: Engineering | T111: =ProjectData!D112 -> 376789.4568 | V111: =ProjectData!B112 -> 63.75 | X111: =T111/V111 -> 5910.422852 | Y111: =X111/'Rates & Misc'!$C$4 -> 2.841549448 | Z111: =IF(C$13="Simple",(M111*ProjectData!B$29)/'Default Data'!N111/'Rates & Misc'!C$4,(U111*ProjectData!B$29)/'Default Data'!V111/'Rates & Misc'!C$4) -> 0 | AA111: =IF(C$13="Simple",Q111+Z111,Y111+Z111)*Calculations!D79 -> 2.841549448 | AB111: 1 | AC111: =IF($C$13="Simple",$K111*$AB111,$T111*$AB111) -> 376789.4568 | AG111: =SUM(AC111:AF111) -> 376789.4568 | AM111: =AC111 -> 376789.4568 | AN111: 0 | AS111: =IF(AM111>0,AA111,0) -> 2.841549448 | AT111: =IF(AN111>0,AA111,0) -> 0
B112: Laborers | C112: ='Rates & Misc'!I39 -> 0.2 | D112: =$E$110*C112 -> 753578.9136 | H112: =IF(ProjectData!$B$13="UNITED STATES",1,'Local Share'!D81) -> 1 | J112: Laborers | K112: =D112 -> 753578.9136 | N112: ='Rates & Misc'!H39 -> 20.565 | O112: 1 | P112: =K112/N112 -> 36643.75948 | Q112: =P112/'Rates & Misc'!$C$4 -> 17.61719206 | S112: Laborers | T112: =ProjectData!D113 -> 753578.9136 | V112: =ProjectData!B113 -> 20.565 | X112: =T112/V112 -> 36643.75948 | Y112: =X112/'Rates & Misc'!$C$4 -> 17.61719206 | Z112: =IF(C$13="Simple",(M112*ProjectData!B$29)/'Default Data'!N112/'Rates & Misc'!C$4,(U112*ProjectData!B$29)/'Default Data'!V112/'Rates & Misc'!C$4) -> 0 | AA112: =IF(C$13="Simple",Q112+Z112,Y112+Z112)*Calculations!D80 -> 17.61719206 | AB112: 1 | AD112: =IF($C$13="Simple",$K112*$AB112,$T112*$AB112) -> 753578.9136 | AG112: =SUM(AC112:AF112) -> 753578.9136 | AM112: 0 | AN112: 753578.9136 | AS112: =IF(AM112>0,AA112,0) -> 0 | AT112: =IF(AN112>0,AA112,0) -> 17.61719206
B113: Mechanical | C113: ='Rates & Misc'!I40 -> 0.2 | D113: =$E$110*C113 -> 753578.9136 | H113: =IF(ProjectData!$B$13="UNITED STATES",1,'Local Share'!D82) -> 1 | J113: Mechanical | K113: =D113 -> 753578.9136 | N113: ='Rates & Misc'!H40 -> 26.25 | O113: 1 | P113: =K113/N113 -> 28707.76814 | Q113: =P113/'Rates & Misc'!$C$4 -> 13.80181161 | S113: Mechanical | T113: =ProjectData!D114 -> 753578.9136 | V113: =ProjectData!B114 -> 26.25 | X113: =T113/V113 -> 28707.76814 | Y113: =X113/'Rates & Misc'!$C$4 -> 13.80181161 | Z113: =IF(C$13="Simple",(M113*ProjectData!B$29)/'Default Data'!N113/'Rates & Misc'!C$4,(U113*ProjectData!B$29)/'Default Data'!V113/'Rates & Misc'!C$4) -> 0 | AA113: =IF(C$13="Simple",Q113+Z113,Y113+Z113)*Calculations!D81 -> 13.80181161 | AB113: 1 | AD113: =IF($C$13="Simple",$K113*$AB113,$T113*$AB113) -> 753578.9136 | AG113: =SUM(AC113:AF113) -> 753578.9136 | AM113: 0 | AN113: 753578.9136 | AS113: =IF(AM113>0,AA113,0) -> 0 | AT113: =IF(AN113>0,AA113,0) -> 13.80181161
B114: Electrical | C114: ='Rates & Misc'!I41 -> 0.2 | D114: =$E$110*C114 -> 753578.9136 | H114: =IF(ProjectData!$B$13="UNITED STATES",1,'Local Share'!D83) -> 1 | J114: Electrical | K114: =D114 -> 753578.9136 | N114: ='Rates & Misc'!H41 -> 33.48 | O114: 1 | P114: =K114/N114 -> 22508.33075 | Q114: =P114/'Rates & Misc'!$C$4 -> 10.82131286 | S114: Electrical | T114: =ProjectData!D115 -> 753578.9136 | V114: =ProjectData!B115 -> 33.48 | X114: =T114/V114 -> 22508.33075 | Y114: =X114/'Rates & Misc'!$C$4 -> 10.82131286 | Z114: =IF(C$13="Simple",(M114*ProjectData!B$29)/'Default Data'!N114/'Rates & Misc'!C$4,(U114*ProjectData!B$29)/'Default Data'!V114/'Rates & Misc'!C$4) -> 0 | AA114: =IF(C$13="Simple",Q114+Z114,Y114+Z114)*Calculations!D82 -> 10.82131286 | AB114: 1 | AD114: =IF($C$13="Simple",$K114*$AB114,$T114*$AB114) -> 753578.9136 | AG114: =SUM(AC114:AF114) -> 753578.9136 | AM114: 0 | AN114: 753578.9136 | AS114: =IF(AM114>0,AA114,0) -> 0 | AT114: =IF(AN114>0,AA114,0) -> 10.82131286
B115: Management/Administrative | C115: ='Rates & Misc'!I42 -> 0.3 | D115: =$E$110*C115 -> 1130368.37 | H115: =IF(ProjectData!$B$13="UNITED STATES",1,'Local Share'!D84) -> 0 | J115: Management/Administrative | K115: =D115 -> 1130368.37 | N115: ='Rates & Misc'!H42 -> 60 | O115: 1 | P115: =K115/N115 -> 18839.47284 | Q115: =P115/'Rates & Misc'!$C$4 -> 9.057438866 | S115: Management/Administrative | T115: =ProjectData!D116 -> 1130368.37 | V115: =ProjectData!B116 -> 60 | X115: =T115/V115 -> 18839.47284 | Y115: =X115/'Rates & Misc'!$C$4 -> 9.057438866 | Z115: =IF(C$13="Simple",(M115*ProjectData!B$29)/'Default Data'!N115/'Rates & Misc'!C$4,(U115*ProjectData!B$29)/'Default Data'!V115/'Rates & Misc'!C$4) -> 0 | AA115: =IF(C$13="Simple",Q115+Z115,Y115+Z115)*Calculations!D83 -> 0 | AB115: 1 | AC115: =IF($C$13="Simple",$K115*$AB115,$T115*$AB115) -> 1130368.37 | AG115: =SUM(AC115:AF115) -> 1130368.37 | AM115: 1130368.37 | AN115: 0 | AS115: =IF(AM115>0,AA115,0) -> 0 | AT115: =IF(AN115>0,AA115,0) -> 0
B116: Total: | C116: =SUM(C111:C115) -> 1 | D116: =SUM(D111:D115) -> 3767894.568 | J116: Construction Equipment | Q116: =SUM(Q35:Q115) -> 104.3398304 | Y116: =SUM(Y35:Y115) ->  | AA116: =SUM(AA35:AA115) ->  | AS116: =SUM(AS35:AS115) -> 4.851075168 | AT116: =SUM(AT35:AT115) -> 66.51870188
B117: Binary Plant Equipment | E117: =IF(C19="Binary",E109-E110,0) -> 19781446.48 | J117: Binary Plant Equipment | S117: Binary Plant Equipment | AP117: Equip
B118: Turbines, Generators | C118: 0.508 | D118: =$E$117*C118 -> 10048974.81 | F118: =D118/($G$16*1000) -> 821.9216273 | H118: =IF(ProjectData!$B$13="UNITED STATES",1,'Local Share'!D87) -> 0 | J118: Turbines, Generators (36.3%) | K118: =D118 -> 10048974.81 | S118: Turbines, Generators (36.3%) | T118: =IF(ProjectData!B$18="Binary",ProjectData!D119,0) -> 10048974.81 | AB118: 1 | AE118: =IF($C$13="Simple",$K118*$AB118,$T118*$AB118) -> 10048974.81 | AG118: =SUM(AC118:AF118) -> 10048974.81 | AP118: =AE118 -> 10048974.81
B119: Air Cooled Condenser | C119: 0.378 | D119: =$E$117*C119 -> 7477386.771 | F119: =D119/($G$16*1000) -> 611.5873526 | H119: =IF(ProjectData!$B$13="UNITED STATES",1,'Local Share'!D88) -> 0 | J119: Air Cooled Condenser (55.8) | K119: =D119 -> 7477386.771 | S119: Air Cooled Condenser (55.8) | T119: =IF(ProjectData!B$18="Binary",ProjectData!D120,0) -> 7477386.771 | AB119: 1 | AE119: =IF($C$13="Simple",$K119*$AB119,$T119*$AB119) -> 7477386.771 | AG119: =SUM(AC119:AF119) -> 7477386.771 | AP119: =AE119 -> 7477386.771
B120: Well Field Pumps | C120: 0.0373 | D120: =$E$117*C120 -> 737847.9538 | F120: =D120/($G$16*1000) -> 60.34975728 | H120: =IF(ProjectData!$B$13="UNITED STATES",1,'Local Share'!D89) -> 0 | J120: Well Field Pumps (2.3%) | K120: =D120 -> 737847.9538 | S120: Well Field Pumps (2.3%) | T120: =IF(ProjectData!B$18="Binary",ProjectData!D121,0) -> 737847.9538 | AB120: 1 | AE120: =IF($C$13="Simple",$K120*$AB120,$T120*$AB120) -> 737847.9538 | AG120: =SUM(AC120:AF120) -> 737847.9538 | AP120: =AE120 -> 737847.9538
B121: Geothermal Fluid Heat Exchangers | C121: 0.0767 | D121: =$E$117*C121 -> 1517236.945 | F121: =D121/($G$16*1000) -> 124.0972221 | H121: =IF(ProjectData!$B$13="UNITED STATES",1,'Local Share'!D90) -> 0 | J121: Geothermal Fluid Heat Exchangers (5.5%) | K121: =D121 -> 1517236.945 | S121: Geothermal Fluid Heat Exchangers (5.5%) | T121: =IF(ProjectData!B$18="Binary",ProjectData!D122,0) -> 1517236.945 | AB121: 1 | AE121: =IF($C$13="Simple",$K121*$AB121,$T121*$AB121) -> 1517236.945 | AG121: =SUM(AC121:AF121) -> 1517236.945 | AP121: =AE121 -> 1517236.945
B122: Total: | C122: =SUM(C118:C121) -> 1 | D122: =SUM(D118:D121) -> 19781446.48 | F122: =D122/($G$16*1000) -> 1617.955959
B125: Flash Plant Equipment | E125: =IF(C19="Flash",E109-E110,0) -> 0 | J125: Flash Plant Equipment (84% of plant cost) | S125: Flash Plant Equipment
B126: Turbine Generator Cost | C126: 0.6873610023 | D126: =$E$125*C126 -> 0 | H126: =IF(ProjectData!$B$13="UNITED STATES",1,'Local Share'!D95) -> 0 | J126: Turbine Generator Cost | K126: =D126 -> 0 | S126: Turbine Generator Cost | T126: =IF(ProjectData!B$18="Flash",ProjectData!D127,0) -> 0 | AB126: 1 | AE126: =IF($C$13="Simple",$K126*$AB126,$T126*$AB126) -> 0 | AG126: =SUM(AC126:AF126) -> 0 | AP126: =AE126 -> 0
B127: Flash Vessels | C127: 0.0238429032 | D127: =$E$125*C127 -> 0 | H127: =IF(ProjectData!$B$13="UNITED STATES",1,'Local Share'!D96) -> 0 | J127: Flash Vessels | K127: 0 | S127: Flash Vessels | T127: =IF(ProjectData!B$18="Flash",ProjectData!D128,0) -> 0 | AB127: 1 | AE127: 0 | AG127: 0 | AP127: 0
B128: Cooling Tower Cost | C128: 0.1021354572 | D128: 0 | H128: =IF(ProjectData!$B$13="UNITED STATES",1,'Local Share'!D97) -> 0 | J128: Cooling Tower Cost | K128: 0 | S128: Cooling Tower Cost | T128: =IF(ProjectData!B$18="Flash",ProjectData!D129,0) -> 0 | AB128: 1 | AE128: 0 | AG128: 0 | AP128: 0
B129: Condenser Cost | C129: 0.1202322925 | D129: 0 | H129: =IF(ProjectData!$B$13="UNITED STATES",1,'Local Share'!D98) -> 0 | J129: Condenser Cost | K129: 0 | S129: Condenser Cost | T129: =IF(ProjectData!B$18="Flash",ProjectData!D130,0) -> 0 | AB129: 1 | AE129: 0 | AG129: 0 | AP129: 0
B130: Pump Costs | C130: 0.05289757499 | D130: 0 | H130: =IF(ProjectData!$B$13="UNITED STATES",1,'Local Share'!D99) -> 0 | J130: Pump Costs | K130: 0 | S130: Pump Costs | T130: =IF(ProjectData!B$18="Flash",ProjectData!D131,0) -> 0 | AB130: 1 | AE130: 0 | AG130: 0 | AP130: 0
B131: NCG Removal System | C131: 0.003456771709 | D131: 0 | H131: =IF(ProjectData!$B$13="UNITED STATES",1,'Local Share'!D100) -> 0 | J131: NCG Removal System | K131: 0 | S131: NCG Removal System | T131: =IF(ProjectData!B$18="Flash",ProjectData!D132,0) -> 0 | AB131: 1 | AE131: 0 | AG131: 0 | AP131: 0
B132: H2S Removal System | C132: 0.01007399811 | D132: 0 | H132: =IF(ProjectData!$B$13="UNITED STATES",1,'Local Share'!D101) -> 0 | J132: H2S Removal System | K132: 0 | S132: H2S Removal System | T132: =IF(ProjectData!B$18="Flash",ProjectData!D133,0) -> 0 | AB132: 1 | AE132: 0 | AG132: 0 | AP132: 0
B133: Total: | C133: =SUM(C126:C132) -> 1 | D133: =SUM(D126:D132) -> 0
B134: Binary O&M Worksheet | D134: =D133+D116 -> 3767894.568
B135: Gross Plant Size (MW) | C135: =IF(C19="Binary",G16,0) -> 12.22619588 | J135: =B177 -> Binary Plant O&M Summary | S135: =ProjectData!A139 -> Binary Plant O&M Costs
B136: Labor multiplier | C136: =IF(ProjectData!$B$11="Simple",'Rates & Misc'!$C$12,ProjectData!$B$202) -> 2.5 | J136: F/T Jobs | K136: =C178 -> 7.856440652 | S136: F/T Jobs | T136: ='Default Data'!W182+'Default Data'!W167 -> 16.77797911
B137: Labor cost index | C137: ='Rates & Misc'!C98 -> 1.169404517 | J137: Total Labor | M137: =D179 -> 1037682.396 | S137: Total Labor | V137: =ProjectData!D143 -> 1037682.396
B138: Plant O&M (% of total plant cost) | C138: =ProjectData!B30 -> 0.02 | J138: Field labor (25% of operators) | M138: 119164.4886 | S138: Field labor (25% of operators) | V138: =ProjectData!D141 -> 119164.4886
J139: Plant Labor | M139: 918517.9074 | S139: Plant Labor | V139: =ProjectData!D142 -> 918517.9074
B140: * Sourced from GETEM table -4B | C140: $/hr (adj rates) | D140: # ofemployees | E140: hours per year | F140: man hours | G140: total | J140: Non Labor (Equipment) | M140: 470986.821 | S140: Non Labor (Equipment) | V140: =ProjectData!D145 -> 470986.821
B141: Operators | C141: ='Rates & Misc'!C37*C$137 -> 23.38809035 | D141: =0.25*$C$135^0.525 -> 0.9306105403 | E141: =365*24 -> 8760 | F141: =D141*E141 -> 8152.148333 | G141: =F141*C141*$C$136 -> 476657.9544 | H141: =IF(ProjectData!$B$13="UNITED STATES",1,'Local Share'!D$109) -> 1 | J141: Total Plant O&M( Plant and Labor) | M141: 1389504.728 | S141: Total Plant O&M( Plant and Labor) | V141: =ProjectData!D159 -> 1389504.728
B142: maintenance mechanic | C142: ='Rates & Misc'!C38*C$137 -> 28.06570842 | D142: =0.25*$C$135^0.525 -> 0.9306105403 | E142: ='Rates & Misc'!$C$4 -> 2080 | F142: =D142*E142 -> 1935.669924 | G142: 135814.8692 | H142: =IF(ProjectData!$B$13="UNITED STATES",1,'Local Share'!D$109) -> 1 | J142: Total Wellfield O&M (4.5% of development costs) | M142: 602488.6792 | S142: Total Wellfield O&M (4.5% of development costs) | V142: =ProjectData!D153 -> 680265.9144
B143: electrician | C143: ='Rates & Misc'!C39*C$137 -> 28.06570842 | D143: =0.25*$C$135^0.525 -> 0.9306105403 | E143: ='Rates & Misc'!$C$4 -> 2080 | F143: 1935.669924 | G143: 135814.8692 | H143: =IF(ProjectData!$B$13="UNITED STATES",1,'Local Share'!D$109) -> 1 | J143: Total O&M | M143: 1991993.408 | S143: Total O&M | V143: =ProjectData!D161 -> 1508674.217
B144: general maintenance labor | C144: ='Rates & Misc'!C40*C$137 -> 20.46457906 | D144: =0.25*$C$135^0.525 -> 0.9306105403 | E144: ='Rates & Misc'!$C$4 -> 2080 | F144: 1935.669924 | G144: 99031.67546 | H144: =IF(ProjectData!$B$13="UNITED STATES",1,'Local Share'!D$109) -> 1
B145: facility manager/plant engineer | C145: ='Rates & Misc'!C41*C$137 -> 46.7761807 | D145: =0.075*$C$135^0.65 -> 0.3817689826 | E145: ='Rates & Misc'!$C$4 -> 2080 | F145: 794.0794838 | G145: 92860.01355 | H145: =IF(ProjectData!$B$13="UNITED STATES",1,'Local Share'!D$109) -> 1 | S145: O&M Labor
B146: operations manager | C146: ='Rates & Misc'!C42*C$137 -> 35.08213552 | D146: =0.075*$C$135^0.65 -> 0.3817689826 | E146: ='Rates & Misc'!$C$4 -> 2080 | F146: 794.0794838 | G146: 69645.01016 | H146: =IF(ProjectData!$B$13="UNITED STATES",1,'Local Share'!D$109) -> 1 | J146: Operators | N146: =C141 -> 23.38809035 | P146: =F141+F163 -> 8152.148333 | Q146: =P146/'Rates & Misc'!$C$4 -> 3.919302083 | S146: Operators | V146: =ProjectData!B204 -> 23.38809035 | X146: =IF(C$19="Binary",'Default Data'!W159,'Default Data'!W174) -> 8152.148333 | Y146: =X146/'Rates & Misc'!$C$4 -> 3.919302083 | AA146: =IF(C$13="Simple",Q146,Y146) -> 3.919302083
B147: clerical | C147: ='Rates & Misc'!C43*C$137 -> 14.03285421 | D147: =0.075*$C$135^0.65 -> 0.3817689826 | E147: ='Rates & Misc'!$C$4 -> 2080 | F147: 794.0794838 | G147: 27858.00407 | H147: =IF(ProjectData!$B$13="UNITED STATES",1,'Local Share'!D$109) -> 1 | J147: maintenance mechanic | N147: 28.06570842 | P147: 1935.669924 | Q147: =P147/'Rates & Misc'!$C$4 -> 0.9306105403 | S147: maintenance mechanic | V147: =ProjectData!B205 -> 28.06570842 | X147: =IF(C$19="Binary",'Default Data'!W160,'Default Data'!W175) -> 1935.669924 | Y147: =X147/'Rates & Misc'!$C$4 -> 0.9306105403 | AA147: 0.9306105403
B148: Totals: | F148: =SUM(F141:F147) -> 16341.39656 | G148: =SUM(G141:G147) -> 1037682.396 | J148: electrician | N148: 28.06570842 | P148: 1935.669924 | Q148: =P148/'Rates & Misc'!$C$4 -> 0.9306105403 | S148: electrician | V148: =ProjectData!B206 -> 28.06570842 | X148: =IF(C$19="Binary",'Default Data'!W161,'Default Data'!W176) -> 1935.669924 | Y148: =X148/'Rates & Misc'!$C$4 -> 0.9306105403 | AA148: 0.9306105403
B149: F/T Jobs | F149: =F148/'Rates & Misc'!C4 -> 7.856440652 | J149: general maintenance labor | N149: 20.46457906 | P149: 1935.669924 | Q149: =P149/'Rates & Misc'!$C$4 -> 0.9306105403 | S149: general maintenance labor | V149: =ProjectData!B207 -> 20.46457906 | X149: =IF(C$19="Binary",'Default Data'!W162,'Default Data'!W177) -> 1935.669924 | Y149: =X149/'Rates & Misc'!$C$4 -> 0.9306105403 | AA149: 0.9306105403
B150: Total Labor | G150: =G148 -> 1037682.396 | J150: facility manager/plant engineer | N150: 46.7761807 | P150: 794.0794838 | Q150: =P150/'Rates & Misc'!$C$4 -> 0.3817689826 | S150: facility manager/plant engineer | V150: =ProjectData!B208 -> 46.7761807 | X150: =IF(C$19="Binary",'Default Data'!W163,'Default Data'!W178) -> 794.0794838 | Y150: =X150/'Rates & Misc'!$C$4 -> 0.3817689826 | AA150: 0.3817689826
B151: Field labor (25% of operators) | G151: =G141*0.25 -> 119164.4886 | J151: operations manager | N151: 35.08213552 | P151: 794.0794838 | Q151: =P151/'Rates & Misc'!$C$4 -> 0.3817689826 | S151: operations manager | V151: =ProjectData!B209 -> 35.08213552 | X151: =IF(C$19="Binary",'Default Data'!W164,'Default Data'!W179) -> 794.0794838 | Y151: =X151/'Rates & Misc'!$C$4 -> 0.3817689826 | AA151: 0.3817689826
B152: Plant Labor | G152: =G150-G151 -> 918517.9074 | J152: clerical | N152: 14.03285421 | P152: 794.0794838 | Q152: =P152/'Rates & Misc'!$C$4 -> 0.3817689826 | S152: clerical | V152: =ProjectData!B210 -> 14.03285421 | X152: =IF(C$19="Binary",'Default Data'!W165,'Default Data'!W180) -> 794.0794838 | Y152: =X152/'Rates & Misc'!$C$4 -> 0.3817689826 | AA152: 0.3817689826
J154: Total: | Q154: =SUM(Q146:Q153) -> 7.856440652 | S154: Total: | Y154: =SUM(Y146:Y153) -> 7.856440652 | AA154: =SUM(AA146:AA153) -> 7.856440652
B155: Flash O&M Worksheet | F155: # employees
B156: Plant Size(MW) | C156: =IF(C19="Flash",G16,0) -> 0 | E156: Operations | F156: =IF(C$19="Flash",'Flash O&M'!K17,0) -> 0
B157: Labor multiplier | C157: =C136 -> 2.5 | E157: Maintenance | F157: =IF(C$19="Flash",'Flash O&M'!K18,0) -> 0 | S157: Binary O&M
B158: Labor cost index | C158: =C137 -> 1.169404517 | E158: Office | F158: =IF(C$19="Flash",'Flash O&M'!K19,0) -> 0 | S158: * Sourced from GETEM table -4B | T158: $/hr (adj rate) | U158: # ofemployees | V158: hours per year | W158: man hours | X158: total
B159: Plant O&M (% of total plant cost) | C159: =C138 -> 0.02 | S159: Operators | T159: =ProjectData!B204 -> 23.38809035 | U159: =IF(ProjectData!B$18="Binary",0.25*ProjectData!$G$13^0.525,0) -> 0.9306105403 | V159: =365*24 -> 8760 | W159: =U159*V159 -> 8152.148333 | X159: =W159*T159*ProjectData!$B$202 -> 476657.9544
S160: maintenance mechanic | T160: =ProjectData!B205 -> 28.06570842 | U160: =IF(ProjectData!B$18="Binary",0.25*ProjectData!$G$13^0.525,0) -> 0.9306105403 | V160: ='Rates & Misc'!$C$4 -> 2080 | W160: 1935.669924 | X160: =W160*T160*ProjectData!$B$202 -> 135814.8692
S161: electrician | T161: =ProjectData!B206 -> 28.06570842 | U161: =IF(ProjectData!B$18="Binary",0.25*ProjectData!$G$13^0.525,0) -> 0.9306105403 | V161: ='Rates & Misc'!$C$4 -> 2080 | W161: 1935.669924 | X161: =W161*T161*ProjectData!$B$202 -> 135814.8692
B162: * Sourced from GETEM table -5B | C162: $/hr (adj rates) | D162: # ofemployees | E162: hours | F162: man hours | G162: total | S162: general maintenance labor | T162: =ProjectData!B207 -> 20.46457906 | U162: =IF(ProjectData!B$18="Binary",0.25*ProjectData!$G$13^0.525,0) -> 0.9306105403 | V162: ='Rates & Misc'!$C$4 -> 2080 | W162: 1935.669924 | X162: =W162*T162*ProjectData!$B$202 -> 99031.67546
B163: Operators | C163: ='Rates & Misc'!D37*C$158 -> 23.38809035 | D163: =F156 -> 0 | E163: ='Rates & Misc'!C2 -> 8760 | F163: =D163*E163 -> 0 | G163: =F163*C163*$C$157 -> 0 | H163: =IF(ProjectData!$B$13="UNITED STATES",1,'Local Share'!D$109) -> 1 | S163: facility manager/plant engineer | T163: =ProjectData!B208 -> 46.7761807 | U163: =IF(ProjectData!B$18="Binary",0.075*ProjectData!$G$13^0.65,0) -> 0.3817689826 | V163: ='Rates & Misc'!$C$4 -> 2080 | W163: 794.0794838 | X163: =W163*T163*ProjectData!$B$202 -> 92860.01355
B164: maintenance mechanic | C164: ='Rates & Misc'!D38*C$158 -> 28.06570842 | D164: =F157 -> 0 | E164: ='Rates & Misc'!$C$4 -> 2080 | F164: =D164*E164 -> 0 | G164: 0 | H164: =IF(ProjectData!$B$13="UNITED STATES",1,'Local Share'!D$109) -> 1 | S164: operations manager | T164: =ProjectData!B209 -> 35.08213552 | U164: =IF(ProjectData!B$18="Binary",0.075*ProjectData!$G$13^0.65,0) -> 0.3817689826 | V164: ='Rates & Misc'!$C$4 -> 2080 | W164: 794.0794838 | X164: =W164*T164*ProjectData!$B$202 -> 69645.01016
B165: electrician | C165: ='Rates & Misc'!D39*C$158 -> 28.06570842 | D165: =F157 -> 0 | E165: ='Rates & Misc'!$C$4 -> 2080 | F165: 0 | G165: 0 | H165: =IF(ProjectData!$B$13="UNITED STATES",1,'Local Share'!D$109) -> 1 | S165: clerical | T165: =ProjectData!B210 -> 14.03285421 | U165: =IF(ProjectData!B$18="Binary",0.075*ProjectData!$G$13^0.65,0) -> 0.3817689826 | V165: ='Rates & Misc'!$C$4 -> 2080 | W165: 794.0794838 | X165: =W165*T165*ProjectData!$B$202 -> 27858.00407
B166: general maintenance labor | C166: ='Rates & Misc'!D40*C$158 -> 20.46457906 | D166: =F157 -> 0 | E166: ='Rates & Misc'!$C$4 -> 2080 | F166: 0 | G166: 0 | H166: =IF(ProjectData!$B$13="UNITED STATES",1,'Local Share'!D$109) -> 1 | S166: Totals: | W166: =SUM(W159:W165) -> 16341.39656 | X166: =SUM(X159:X165) -> 1037682.396
B167: facility manager/plant engineer | C167: ='Rates & Misc'!D41*C$158 -> 46.7761807 | D167: =F158 -> 0 | E167: ='Rates & Misc'!$C$4 -> 2080 | F167: 0 | G167: 0 | H167: =IF(ProjectData!$B$13="UNITED STATES",1,'Local Share'!D$109) -> 1 | S167: F/T Jobs | W167: =W166/'Rates & Misc'!C4 -> 7.856440652
B168: operations manager | C168: ='Rates & Misc'!D42*C$158 -> 35.08213552 | D168: =F158 -> 0 | E168: ='Rates & Misc'!$C$4 -> 2080 | F168: 0 | G168: 0 | H168: =IF(ProjectData!$B$13="UNITED STATES",1,'Local Share'!D$109) -> 1 | S168: Total Labor | X168: =X166 -> 1037682.396
B169: clerical | C169: ='Rates & Misc'!D43*C$158 -> 14.03285421 | D169: =F158 -> 0 | E169: ='Rates & Misc'!$C$4 -> 2080 | F169: 0 | G169: 0 | H169: =IF(ProjectData!$B$13="UNITED STATES",1,'Local Share'!D$109) -> 1 | S169: Field labor (25% of operators) | X169: =X159*0.25 -> 119164.4886
B170: Totals: | F170: =SUM(F163:F169) -> 0 | G170: =SUM(G163:G169) -> 0 | S170: Plant Labor | X170: =X168-X169 -> 918517.9074
B171: F/T Jobs | F171: =F170/'Rates & Misc'!$C$4 -> 0
B172: Total Labor | G172: =G170 -> 0 | S172: Flash O&M Labor
B173: Field labor | G173: =G163*0.25 -> 0 | H173: =IF(ProjectData!$B$13="UNITED STATES",1,'Local Share'!D109) -> 1 | S173: * Sourced from GETEM table -5B | T173: $/hr (adj rate) | U173: # ofemployees | V173: hours | W173: man hours | X173: total
B174: Plant Labor | G174: =G172-G173 -> 0 | H174: =IF(ProjectData!$B$13="UNITED STATES",1,'Local Share'!$D110) -> 1 | S174: Operators | T174: =ProjectData!B204 -> 23.38809035 | U174: =W187 -> 1 | V174: =365*24 -> 8760 | W174: =U174*V174 -> 8760 | X174: =W174*T174*ProjectData!$B$202 -> 512199.1786
S175: maintenance mechanic | T175: =ProjectData!B205 -> 28.06570842 | U175: =W188 -> 0.9 | V175: ='Rates & Misc'!$C$4 -> 2080 | W175: 1872 | X175: =W175*T175*ProjectData!$B$202 -> 131347.5154
S176: electrician | T176: =ProjectData!B206 -> 28.06570842 | U176: =W188 -> 0.9 | V176: ='Rates & Misc'!$C$4 -> 2080 | W176: 1872 | X176: =W176*T176*ProjectData!$B$202 -> 131347.5154
B177: =CONCATENATE(C19," Plant O&M Summary") -> Binary Plant O&M Summary | S177: general maintenance labor | T177: =ProjectData!B207 -> 20.46457906 | U177: =W188 -> 0.9 | V177: ='Rates & Misc'!$C$4 -> 2080 | W177: 1872 | X177: =W177*T177*ProjectData!$B$202 -> 95774.22998
B178: F/T Jobs | C178: =F171+F149 -> 7.856440652 | S178: facility manager/plant engineer | T178: =ProjectData!B208 -> 46.7761807 | U178: =W189 -> 0.67 | V178: ='Rates & Misc'!$C$4 -> 2080 | W178: 1393.6 | X178: =W178*T178*ProjectData!$B$202 -> 162968.2136
B179: Total Labor | D179: =G172+G150 -> 1037682.396 | S179: operations manager | T179: =ProjectData!B209 -> 35.08213552 | U179: =W189 -> 0.67 | V179: ='Rates & Misc'!$C$4 -> 2080 | W179: 1393.6 | X179: =W179*T179*ProjectData!$B$202 -> 122226.1602
B180: Field labor | D180: =G173+G151 -> 119164.4886 | S180: clerical | T180: =ProjectData!B210 -> 14.03285421 | U180: =W189 -> 0.67 | V180: ='Rates & Misc'!$C$4 -> 2080 | W180: 1393.6 | X180: =W180*T180*ProjectData!$B$202 -> 48890.46407
B181: Plant Labor | D181: =G174+G152 -> 918517.9074 | S181: Totals: | W181: =SUM(W174:W180) -> 18556.8 | X181: =SUM(X174:X180) -> 1204753.277
B182: Non Labor (Equipment) | D182: =IF(C19="Binary",K15*C138,K15*C159) -> 470986.821 | S182: F/T Jobs | W182: =W181/'Rates & Misc'!C4 -> 8.921538462
B183: Total Plant O&M( Plant and Labor) | D183: =D181+D182 -> 1389504.728 | S183: Total Labor | X183: =X181*'Default Data'!C158 -> 1408843.925
B184: Total Wellfield O&M | C184: 0.045 | D184: =K18*C184 -> 602488.6792 | S184: Field labor (25% of operators) | X184: =X174*0.25*'Default Data'!C158 -> 149742.0083
B185: Total O&M | D185: =D184+D183 -> 1991993.408 | S185: Plant Labor | X185: =X183-X184 -> 1259101.916
W186: # employees
B187: Other Plant Costs | V187: Operations | W187: ='Flash O&M'!K17 -> 1
B188: Equipment | D188: =D182 -> 470986.821 | H188: =IF(ProjectData!$B$13="UNITED STATES",1,'Local Share'!$D113) -> 0 | V188: Maintenance | W188: ='Flash O&M'!K18 -> 0.9
B189: Services | H189: =IF(ProjectData!$B$13="UNITED STATES",1,'Local Share'!$D114) -> 0 | V189: Office | W189: ='Flash O&M'!K19 -> 0.67
B190: Fees, Permits, Licenses | H190: =IF(ProjectData!$B$13="UNITED STATES",1,'Local Share'!$D115) -> 0
B191: Insurance | H191: =IF(ProjectData!$B$13="UNITED STATES",1,'Local Share'!$D116) -> 0
B192: Consumables/Tools and Misc. Supplies | H192: =IF(ProjectData!$B$13="UNITED STATES",1,'Local Share'!$D117) -> 0
B193: Other | H193: =IF(ProjectData!$B$13="UNITED STATES",1,'Local Share'!$D118) -> 0
B194: Total | D194: =SUM(D188:D193) -> 470986.821
B195: Other Wellfield Costs
B196: Equipment | D196: =D184-D180 -> 483324.1906 | H196: =IF(ProjectData!$B$13="UNITED STATES",1,'Local Share'!$D121) -> 0
B197: Services | H197: =IF(ProjectData!$B$13="UNITED STATES",1,'Local Share'!$D122) -> 0
B198: Fuel (motor vehicle gasoline) | H198: =IF(ProjectData!$B$13="UNITED STATES",1,'Local Share'!$D123) -> 0
B199: Consumables/Tools and Misc. Supplies | H199: =IF(ProjectData!$B$13="UNITED STATES",1,'Local Share'!$D124) -> 0
B200: Other | H200: =IF(ProjectData!$B$13="UNITED STATES",1,'Local Share'!$D125) -> 0
B201: Total | D201: =SUM(D196:D200) -> 483324.1906
B202: Total Plant O&M (Plant and Labor) | D202: =D194+D181 -> 1389504.728
B203: Total Wellfield O&M (Wellfield and Labor) | D203: =D201+D180 -> 602488.6792
B204: Total O&M | D204: =D203+D202 -> 1991993.408
B205: Management/Administrative | H205: 1
B208: Financial Parameters | E208: Local Share
B209: Debt Financing
B210: Percentage financed | C210: 0.7 | E210: =IF(ProjectData!$B$13="UNITED STATES",1,0) -> 0
B211: Years financed (term) | C211: 15
B212: Interest rate | C212: 0.1
... 36 more rows

Sheet Local Share
E1: Local Share % | F1: Notes
B2: 1 | F2: Applicable States | G2: Alabama | H2: Alaska | I2: Arizona | J2: Arkansas | K2: California | L2: Colorado | M2: Connecticut | N2: Delaware | O2: District of Columbia | P2: Florida | Q2: Georgia | R2: Hawaii | S2: Idaho | T2: Illinois | U2: Indiana | V2: Iowa | W2: Kansas | X2: Kentucky | Y2: Louisiana | Z2: Maine | AA2: Maryland | AB2: Massachusetts | AC2: Michigan | AD2: Minnesota | AE2: Mississippi | AF2: Missouri | AG2: Montana | AH2: MyCounty | AI2: MyRegion | AJ2: Nebraska | AK2: Nevada | AL2: New Hampshire | AM2: New Jersey | AN2: New Mexico | AO2: New York | AP2: North Carolina | AQ2: North Dakota | AR2: Ohio | AS2: Oklahoma | AT2: Oregon | AU2: Pennsylvania | AV2: Rhode Island | AW2: South Carolina | AX2: South Dakota | AY2: Tennessee | AZ2: Texas | BA2: Utah | BB2: Vermont | BC2: Virginia | BD2: Washington | BE2: West Virginia | BF2: Wisconsin | BG2: Wyoming
B3: =B2+1 -> 2 | C3: Permitting
B4: =B3+1 -> 3 | C4: Environmental Analysis | D4: =HLOOKUP(ProjectData!B$13,G$2:BG$125,B4) -> 0 | E4: 0.75 | F4: CA, NV,UT, CO | G4: 0 | H4: 0 | I4: 0 | J4: 0 | K4: 0.75 | L4: 0.75 | M4: 0 | N4: 0 | O4: 0 | P4: 0 | Q4: 0 | R4: 0 | S4: 0 | T4: 0 | U4: 0 | V4: 0 | W4: 0 | X4: 0 | Y4: 0 | Z4: 0 | AA4: 0 | AB4: 0 | AC4: 0 | AD4: 0 | AE4: 0 | AF4: 0 | AG4: 0 | AH4: 0 | AI4: 0 | AJ4: 0 | AK4: 0.75 | AL4: 0 | AM4: 0 | AN4: 0 | AO4: 0 | AP4: 0 | AQ4: 0 | AR4: 0 | AS4: 0 | AT4: 0 | AU4: 0 | AV4: 0 | AW4: 0 | AX4: 0 | AY4: 0 | AZ4: 0 | BA4: 0.75 | BB4: 0 | BC4: 0 | BD4: 0 | BE4: 0 | BF4: 0 | BG4: 0 | BH4: =COUNTIF(G4:BG4,">0") -> 4
A5: Warning | B5: 4 | C5: Environmental Impact Assessment | D5: =HLOOKUP(ProjectData!B$13,G$2:BG$125,B5) -> 0 | E5: 0.75 | F5: CA, NV,UT, CO | G5: 0 | H5: 0 | I5: 0 | J5: 0 | K5: 0.75 | L5: 0.75 | M5: 0 | N5: 0 | O5: 0 | P5: 0 | Q5: 0 | R5: 0 | S5: 0 | T5: 0 | U5: 0 | V5: 0 | W5: 0 | X5: 0 | Y5: 0 | Z5: 0 | AA5: 0 | AB5: 0 | AC5: 0 | AD5: 0 | AE5: 0 | AF5: 0 | AG5: 0 | AH5: 0 | AI5: 0 | AJ5: 0 | AK5: 0.75 | AL5: 0 | AM5: 0 | AN5: 0 | AO5: 0 | AP5: 0 | AQ5: 0 | AR5: 0 | AS5: 0 | AT5: 0 | AU5: 0 | AV5: 0 | AW5: 0 | AX5: 0 | AY5: 0 | AZ5: 0 | BA5: 0.75 | BB5: 0 | BC5: 0 | BD5: 0 | BE5: 0 | BF5: 0 | BG5: 0 | BH5: =COUNTIF(G5:BG5,">0") -> 4
B6: 5 | C6: Transmission Line Permits | D6: =HLOOKUP(ProjectData!B$13,G$2:BG$125,B6) -> 0 | E6: ? - David Hurlbut | G6: 0 | H6: 0 | I6: 0 | J6: 0 | K6: 0 | L6: 0 | M6: 0 | N6: 0 | O6: 0 | P6: 0 | Q6: 0 | R6: 0 | S6: 0 | T6: 0 | U6: 0 | V6: 0 | W6: 0 | X6: 0 | Y6: 0 | Z6: 0 | AA6: 0 | AB6: 0 | AC6: 0 | AD6: 0 | AE6: 0 | AF6: 0 | AG6: 0 | AH6: 0 | AI6: 0 | AJ6: 0 | AK6: 0 | AL6: 0 | AM6: 0 | AN6: 0 | AO6: 0 | AP6: 0 | AQ6: 0 | AR6: 0 | AS6: 0 | AT6: 0 | AU6: 0 | AV6: 0 | AW6: 0 | AX6: 0 | AY6: 0 | AZ6: 0 | BA6: 0 | BB6: 0 | BC6: 0 | BD6: 0 | BE6: 0 | BF6: 0 | BG6: 0 | BH6: =COUNTIF(G6:BG6,">0") -> 0
A7: This Worksheet contains Data and Formulas that are an integral part of the JEDI model. | B7: 6 | C7: Land (Leasing, Acquisition) | D7: =HLOOKUP(ProjectData!B$13,G$2:BG$125,B7) -> 0 | E7: ? | G7: 0 | H7: 0 | I7: 0 | J7: 0 | K7: 0 | L7: 0 | M7: 0 | N7: 0 | O7: 0 | P7: 0 | Q7: 0 | R7: 0 | S7: 0 | T7: 0 | U7: 0 | V7: 0 | W7: 0 | X7: 0 | Y7: 0 | Z7: 0 | AA7: 0 | AB7: 0 | AC7: 0 | AD7: 0 | AE7: 0 | AF7: 0 | AG7: 0 | AH7: 0 | AI7: 0 | AJ7: 0 | AK7: 0 | AL7: 0 | AM7: 0 | AN7: 0 | AO7: 0 | AP7: 0 | AQ7: 0 | AR7: 0 | AS7: 0 | AT7: 0 | AU7: 0 | AV7: 0 | AW7: 0 | AX7: 0 | AY7: 0 | AZ7: 0 | BA7: 0 | BB7: 0 | BC7: 0 | BD7: 0 | BE7: 0 | BF7: 0 | BG7: 0 | BH7: =COUNTIF(G7:BG7,">0") -> 0
B8: 7 | C8: Exploration (Pre-Drilling)
A9: Although the data and formulas are available for review they must not be changed. | B9: 8 | C9: Geologist | D9: =HLOOKUP(ProjectData!B$13,G$2:BG$125,B9) -> 1 | E9: 1 | F9: CA, CO,UT,NV, ID, OR, TX, NM | G9: 0 | H9: 0 | I9: 0 | J9: 0 | K9: 1 | L9: 1 | M9: 0 | N9: 0 | O9: 0 | P9: 0 | Q9: 0 | R9: 0 | S9: 1 | T9: 0 | U9: 0 | V9: 0 | W9: 0 | X9: 0 | Y9: 0 | Z9: 0 | AA9: 0 | AB9: 0 | AC9: 0 | AD9: 0 | AE9: 0 | AF9: 0 | AG9: 0 | AH9: 0 | AI9: 0 | AJ9: 0 | AK9: 1 | AL9: 0 | AM9: 0 | AN9: 1 | AO9: 0 | AP9: 0 | AQ9: 0 | AR9: 0 | AS9: 0 | AT9: 1 | AU9: 0 | AV9: 0 | AW9: 0 | AX9: 0 | AY9: 0 | AZ9: 1 | BA9: 1 | BB9: 0 | BC9: 0 | BD9: 0 | BE9: 0 | BF9: 0 | BG9: 0 | BH9: =COUNTIF(G9:BG9,">0") -> 8
B10: 9 | C10: Geophysicist | D10: =HLOOKUP(ProjectData!B$13,G$2:BG$125,B10) -> 0 | E10: 1 | F10: CA, CO,UT,NV, TX | G10: 0 | H10: 0 | I10: 0 | J10: 0 | K10: 1 | L10: 1 | M10: 0 | N10: 0 | O10: 0 | P10: 0 | Q10: 0 | R10: 0 | S10: 0 | T10: 0 | U10: 0 | V10: 0 | W10: 0 | X10: 0 | Y10: 0 | Z10: 0 | AA10: 0 | AB10: 0 | AC10: 0 | AD10: 0 | AE10: 0 | AF10: 0 | AG10: 0 | AH10: 0 | AI10: 0 | AJ10: 0 | AK10: 1 | AL10: 0 | AM10: 0 | AN10: 0 | AO10: 0 | AP10: 0 | AQ10: 0 | AR10: 0 | AS10: 0 | AT10: 0 | AU10: 0 | AV10: 0 | AW10: 0 | AX10: 0 | AY10: 0 | AZ10: 1 | BA10: 1 | BB10: 0 | BC10: 0 | BD10: 0 | BE10: 0 | BF10: 0 | BG10: 0 | BH10: 5
A11: Any changes to the data or formulas will impact the analysis and may invalidate the model results. | B11: 10 | C11: Geochemist | D11: =HLOOKUP(ProjectData!B$13,G$2:BG$125,B11) -> 0 | E11: 1 | F11: CA, CO,UT,NV, TX | G11: 0 | H11: 0 | I11: 0 | J11: 0 | K11: 1 | L11: 1 | M11: 0 | N11: 0 | O11: 0 | P11: 0 | Q11: 0 | R11: 0 | S11: 0 | T11: 0 | U11: 0 | V11: 0 | W11: 0 | X11: 0 | Y11: 0 | Z11: 0 | AA11: 0 | AB11: 0 | AC11: 0 | AD11: 0 | AE11: 0 | AF11: 0 | AG11: 0 | AH11: 0 | AI11: 0 | AJ11: 0 | AK11: 1 | AL11: 0 | AM11: 0 | AN11: 0 | AO11: 0 | AP11: 0 | AQ11: 0 | AR11: 0 | AS11: 0 | AT11: 0 | AU11: 0 | AV11: 0 | AW11: 0 | AX11: 0 | AY11: 0 | AZ11: 1 | BA11: 1 | BB11: 0 | BC11: 0 | BD11: 0 | BE11: 0 | BF11: 0 | BG11: 0 | BH11: 5
B12: 11 | C12: Other Geo scientists | D12: =HLOOKUP(ProjectData!B$13,G$2:BG$125,B12) -> 0 | E12: 1 | F12: CA, CO,UT,NV, TX | G12: 0 | H12: 0 | I12: 0 | J12: 0 | K12: 1 | L12: 1 | M12: 0 | N12: 0 | O12: 0 | P12: 0 | Q12: 0 | R12: 0 | S12: 0 | T12: 0 | U12: 0 | V12: 0 | W12: 0 | X12: 0 | Y12: 0 | Z12: 0 | AA12: 0 | AB12: 0 | AC12: 0 | AD12: 0 | AE12: 0 | AF12: 0 | AG12: 0 | AH12: 0 | AI12: 0 | AJ12: 0 | AK12: 1 | AL12: 0 | AM12: 0 | AN12: 0 | AO12: 0 | AP12: 0 | AQ12: 0 | AR12: 0 | AS12: 0 | AT12: 0 | AU12: 0 | AV12: 0 | AW12: 0 | AX12: 0 | AY12: 0 | AZ12: 1 | BA12: 1 | BB12: 0 | BC12: 0 | BD12: 0 | BE12: 0 | BF12: 0 | BG12: 0 | BH12: 5
B13: 12 | C13: Field Crew | D13: =HLOOKUP(ProjectData!B$13,G$2:BG$125,B13) -> 0 | E13: 1 | F13: CA, CO,UT,NV, TX | G13: 0 | H13: 0 | I13: 0 | J13: 0 | K13: 1 | L13: 1 | M13: 0 | N13: 0 | O13: 0 | P13: 0 | Q13: 0 | R13: 0 | S13: 0 | T13: 0 | U13: 0 | V13: 0 | W13: 0 | X13: 0 | Y13: 0 | Z13: 0 | AA13: 0 | AB13: 0 | AC13: 0 | AD13: 0 | AE13: 0 | AF13: 0 | AG13: 0 | AH13: 0 | AI13: 0 | AJ13: 0 | AK13: 1 | AL13: 0 | AM13: 0 | AN13: 0 | AO13: 0 | AP13: 0 | AQ13: 0 | AR13: 0 | AS13: 0 | AT13: 0 | AU13: 0 | AV13: 0 | AW13: 0 | AX13: 0 | AY13: 0 | AZ13: 1 | BA13: 1 | BB13: 0 | BC13: 0 | BD13: 0 | BE13: 0 | BF13: 0 | BG13: 0 | BH13: 5
B14: 13 | C14: Management/Administrative | D14: =HLOOKUP(ProjectData!B$13,G$2:BG$125,B14) -> 0 | E14: =E9 -> 1 | F14: CA, CO,UT,NV, TX | G14: 0 | H14: 0 | I14: 0 | J14: 0 | K14: 1 | L14: 1 | M14: 0 | N14: 0 | O14: 0 | P14: 0 | Q14: 0 | R14: 0 | S14: 0 | T14: 0 | U14: 0 | V14: 0 | W14: 0 | X14: 0 | Y14: 0 | Z14: 0 | AA14: 0 | AB14: 0 | AC14: 0 | AD14: 0 | AE14: 0 | AF14: 0 | AG14: 0 | AH14: 0 | AI14: 0 | AJ14: 0 | AK14: 1 | AL14: 0 | AM14: 0 | AN14: 0 | AO14: 0 | AP14: 0 | AQ14: 0 | AR14: 0 | AS14: 0 | AT14: 0 | AU14: 0 | AV14: 0 | AW14: 0 | AX14: 0 | AY14: 0 | AZ14: 1 | BA14: 1 | BB14: 0 | BC14: 0 | BD14: 0 | BE14: 0 | BF14: 0 | BG14: 0 | BH14: 5
B15: 14 | C15: Exploration Equipment, Tests, Surveys | D15: =HLOOKUP(ProjectData!B$13,G$2:BG$125,B15) -> 0 | E15: =E9 -> 1 | F15: CA, CO,UT,NV, TX | G15: 0 | H15: 0 | I15: 0 | J15: 0 | K15: 1 | L15: 1 | M15: 0 | N15: 0 | O15: 0 | P15: 0 | Q15: 0 | R15: 0 | S15: 0 | T15: 0 | U15: 0 | V15: 0 | W15: 0 | X15: 0 | Y15: 0 | Z15: 0 | AA15: 0 | AB15: 0 | AC15: 0 | AD15: 0 | AE15: 0 | AF15: 0 | AG15: 0 | AH15: 0 | AI15: 0 | AJ15: 0 | AK15: 1 | AL15: 0 | AM15: 0 | AN15: 0 | AO15: 0 | AP15: 0 | AQ15: 0 | AR15: 0 | AS15: 0 | AT15: 0 | AU15: 0 | AV15: 0 | AW15: 0 | AX15: 0 | AY15: 0 | AZ15: 1 | BA15: 1 | BB15: 0 | BC15: 0 | BD15: 0 | BE15: 0 | BF15: 0 | BG15: 0 | BH15: 5
B16: 15 | C16: Total
B17: 16
B18: 17 | C18: Exploration Drilling
B19: 18 | C19: Geologist | D19: =HLOOKUP(ProjectData!B$13,G$2:BG$125,B19) -> 1 | E19: =E9 -> 1 | F19: =F9 -> CA, CO,UT,NV, ID, OR, TX, NM | G19: 0 | H19: 0 | I19: 0 | J19: 0 | K19: 1 | L19: 1 | M19: 0 | N19: 0 | O19: 0 | P19: 0 | Q19: 0 | R19: 0 | S19: 1 | T19: 0 | U19: 0 | V19: 0 | W19: 0 | X19: 0 | Y19: 0 | Z19: 0 | AA19: 0 | AB19: 0 | AC19: 0 | AD19: 0 | AE19: 0 | AF19: 0 | AG19: 0 | AH19: 0 | AI19: 0 | AJ19: 0 | AK19: 1 | AL19: 0 | AM19: 0 | AN19: 1 | AO19: 0 | AP19: 0 | AQ19: 0 | AR19: 0 | AS19: 0 | AT19: 1 | AU19: 0 | AV19: 0 | AW19: 0 | AX19: 0 | AY19: 0 | AZ19: 1 | BA19: 1 | BB19: 0 | BC19: 0 | BD19: 0 | BE19: 0 | BF19: 0 | BG19: 0 | BH19: =COUNTIF(G19:BG19,">0") -> 8
A20: To view the data and formulas simply scroll over to the adjacent columns to the right. | B20: 19 | C20: Mud Engineer(s) | D20: =HLOOKUP(ProjectData!B$13,G$2:BG$125,B20) -> 0 | E20: =E10 -> 1 | F20: CA, CO,UT,NV, TX, NM | G20: 0 | H20: 0 | I20: 0 | J20: 0 | K20: 1 | L20: 1 | M20: 0 | N20: 0 | O20: 0 | P20: 0 | Q20: 0 | R20: 0 | S20: 0 | T20: 0 | U20: 0 | V20: 0 | W20: 0 | X20: 0 | Y20: 0 | Z20: 0 | AA20: 0 | AB20: 0 | AC20: 0 | AD20: 0 | AE20: 0 | AF20: 0 | AG20: 0 | AH20: 0 | AI20: 0 | AJ20: 0 | AK20: 1 | AL20: 0 | AM20: 0 | AN20: 1 | AO20: 0 | AP20: 0 | AQ20: 0 | AR20: 0 | AS20: 0 | AT20: 0 | AU20: 0 | AV20: 0 | AW20: 0 | AX20: 0 | AY20: 0 | AZ20: 1 | BA20: 1 | BB20: 0 | BC20: 0 | BD20: 0 | BE20: 0 | BF20: 0 | BG20: 0 | BH20: 6
B21: 20 | C21: Drilling Fluids - Mud | D21: =HLOOKUP(ProjectData!B$13,G$2:BG$125,B21) -> 0 | E21: =E11 -> 1 | F21: =F20 -> CA, CO,UT,NV, TX, NM | G21: 0 | H21: 0 | I21: 0 | J21: 0 | K21: 1 | L21: 1 | M21: 0 | N21: 0 | O21: 0 | P21: 0 | Q21: 0 | R21: 0 | S21: 0 | T21: 0 | U21: 0 | V21: 0 | W21: 0 | X21: 0 | Y21: 0 | Z21: 0 | AA21: 0 | AB21: 0 | AC21: 0 | AD21: 0 | AE21: 0 | AF21: 0 | AG21: 0 | AH21: 0 | AI21: 0 | AJ21: 0 | AK21: 1 | AL21: 0 | AM21: 0 | AN21: 1 | AO21: 0 | AP21: 0 | AQ21: 0 | AR21: 0 | AS21: 0 | AT21: 0 | AU21: 0 | AV21: 0 | AW21: 0 | AX21: 0 | AY21: 0 | AZ21: 1 | BA21: 1 | BB21: 0 | BC21: 0 | BD21: 0 | BE21: 0 | BF21: 0 | BG21: 0 | BH21: 6
B22: 21 | C22: Directional Engineer and Motorman | D22: =HLOOKUP(ProjectData!B$13,G$2:BG$125,B22) -> 0 | E22: =E12 -> 1 | F22: CA, CO,UT,NV, TX, NM | G22: 0 | H22: 0 | I22: 0 | J22: 0 | K22: 1 | L22: 1 | M22: 0 | N22: 0 | O22: 0 | P22: 0 | Q22: 0 | R22: 0 | S22: 0 | T22: 0 | U22: 0 | V22: 0 | W22: 0 | X22: 0 | Y22: 0 | Z22: 0 | AA22: 0 | AB22: 0 | AC22: 0 | AD22: 0 | AE22: 0 | AF22: 0 | AG22: 0 | AH22: 0 | AI22: 0 | AJ22: 0 | AK22: 1 | AL22: 0 | AM22: 0 | AN22: 1 | AO22: 0 | AP22: 0 | AQ22: 0 | AR22: 0 | AS22: 0 | AT22: 0 | AU22: 0 | AV22: 0 | AW22: 0 | AX22: 0 | AY22: 0 | AZ22: 1 | BA22: 1 | BB22: 0 | BC22: 0 | BD22: 0 | BE22: 0 | BF22: 0 | BG22: 0 | BH22: 6
B23: 22 | C23: Direction Tools and Services | D23: =HLOOKUP(ProjectData!B$13,G$2:BG$125,B23) -> 0 | E23: =E13 -> 1 | F23: CA, CO,UT,NV, TX, NM | G23: 0 | H23: 0 | I23: 0 | J23: 0 | K23: 1 | L23: 1 | M23: 0 | N23: 0 | O23: 0 | P23: 0 | Q23: 0 | R23: 0 | S23: 0 | T23: 0 | U23: 0 | V23: 0 | W23: 0 | X23: 0 | Y23: 0 | Z23: 0 | AA23: 0 | AB23: 0 | AC23: 0 | AD23: 0 | AE23: 0 | AF23: 0 | AG23: 0 | AH23: 0 | AI23: 0 | AJ23: 0 | AK23: 1 | AL23: 0 | AM23: 0 | AN23: 1 | AO23: 0 | AP23: 0 | AQ23: 0 | AR23: 0 | AS23: 0 | AT23: 0 | AU23: 0 | AV23: 0 | AW23: 0 | AX23: 0 | AY23: 0 | AZ23: 1 | BA23: 1 | BB23: 0 | BC23: 0 | BD23: 0 | BE23: 0 | BF23: 0 | BG23: 0 | BH23: 6
B24: 23 | C24: Drilling Engineering | D24: =HLOOKUP(ProjectData!B$13,G$2:BG$125,B24) -> 0 | E24: 1 | F24: CA, CO,UT,NV, TX, NM | G24: 0 | H24: 0 | I24: 0 | J24: 0 | K24: 1 | L24: 1 | M24: 0 | N24: 0 | O24: 0 | P24: 0 | Q24: 0 | R24: 0 | S24: 0 | T24: 0 | U24: 0 | V24: 0 | W24: 0 | X24: 0 | Y24: 0 | Z24: 0 | AA24: 0 | AB24: 0 | AC24: 0 | AD24: 0 | AE24: 0 | AF24: 0 | AG24: 0 | AH24: 0 | AI24: 0 | AJ24: 0 | AK24: 1 | AL24: 0 | AM24: 0 | AN24: 1 | AO24: 0 | AP24: 0 | AQ24: 0 | AR24: 0 | AS24: 0 | AT24: 0 | AU24: 0 | AV24: 0 | AW24: 0 | AX24: 0 | AY24: 0 | AZ24: 1 | BA24: 1 | BB24: 0 | BC24: 0 | BD24: 0 | BE24: 0 | BF24: 0 | BG24: 0 | BH24: 6
